Workbook

Sheet Portada
B2: MODELAMIENTO TÉCNICO, ECONÓMICO Y FINANCIERO
B3: Factibilidad para implementar soluciones de autogeneración en usuarios no regulados en Colombia
B17: Autor:
B18: Cristian Leonardo Manrique Pérez
B19: Director:
B20: Javier Andrés Ruiz Garzón
B23: Universidad Escuela Colombiana de Ingeniería Julio Garavito
B24: Bogotá D.C, Colombia
B25: Enero, 2023
B27: Leyenda del modelamiento
B28: Descripción | E28: Diseño | F28: Comentario u observación
B30: Encabezado o separador | E30: Qtr | F30: Encabezado de una tabla o separación de secciones
B32: Límite de categoria | E32: 100 | F32: Separación de secciones de cola
B34: Total o subtotal | E34: 100 | F34: Suma de elementos de arriba, incluyendo subtotales
B36: Balance final | E36: 100 | F36: El saldo o cierre de una cuenta de control
B38: Moneda expresada en millones | E38: $COP mm | F38: Millones de pesos colombianos
B39: Condiciones iniciales | E39: 100 | F39: Son condiciones de referencia inicial, tambien pueden ser datos de entrada
B41: Escenarios | E41: 100 | F41: Son casillas en donde se evaluan diferentes escenarios
B42: Datos de entrada | E42: 100 | F42: Son datos de entrada del modelo
B43: Datos base de referencia | E43: 100 | F43: Son datos de referencia o validación del modelo, por lo general traidos de otras hojas o para control de formulas
B44: Calculos o resultados | E44: 100 | F44: Son datos de salida resultado de un calculo artimetico o programado
B46: Datos traido de otras hojas | E46: 100 | F46: Son datos traidos de otras hojas, que pueden ser cualquiera de los anteriores.
B48: Habilitadores | E48: 100 | F48: Son datos que habilitan un estado o condición
B50: Comprobar total [%] | E50: 1 | F50: Son datos que comprueban una suma, por lo general porcentual
B52: Dato alerta | E52: 100 | F52: Son datos que representan una condición de alerta o que son datos relevantes
B54: Validación o check | E54: Ok | F54: Son comprobaciones dentro del modelo, para identificar errores o que las operaciones se encuentran bien
E55: Check

Sheet Tablero
B2: Dimensionamiento solución fotovoltaica | F2: Tarifa de energía - Usuario No Regulado | J2: Deuda - EPC | N2: Análisis economico y financiero | AD2: Analísis técnico | AR2: Analísis de sensibilidad y riesgos
B3: Sensibilidad en la generación de energía | D3: 0 | F3: Clasificación del usuario | G3: Nivel 3 | J3: Tipo de deuda | L3: Fija
B4: Escenario de generación | D4: P90 | G4: Industrial T.Horaria | J4: Tasa de referencia | L4: DTF (E.A.) | AS4: Sensibilidad de la Rentabilidad esperada del proyecto, por cambios en el CAPEX y OPEX - EPC | BC4: Sensibilidad de la Rentabilidad esperada del proyecto, por cambios en el CAPEX y OPEX - PPA
B5: Autoconsumo inversores | D5: 0.0015 | F5: Contribución o Subsidio | G5: No | H5: =SUMIF(Tarifa!$D$14:$D$20,$G$4,Tarifa!$C$14:$C$20) -> 0 | L5: =SUMIF(Macroeconómicos_año!$B$6:$B$14,$L$4,Macroeconómicos_año!$D$6:$D$14) -> 0.1061420854 | AS5: OPEX (AO&M) | AT5: Rentabilidad esperada | AU5: Costos de construcción - CAPEX + Exclusiones | BA5: 0.07 | BC5: OPEX (AO&M) | BD5: Rentabilidad esperada | BE5: Costos de construcción - CAPEX + Exclusiones | BK5: 0.05
B6: Autoconsumo transformadores | C6: No | D6: 0 | F6: Sensibilidad tarifa de energía - CUVn,m,i,j | H6: 0 | J6: Spread | L6: 0.04 | AU6: =$H$38*(1+AU7) -> 590.9528054 | AV6: 643.3157122 | AW6: 695.678619 | AX6: 748.0415259 | AY6: 800.4044327 | AZ6: 852.7673395 | BA6: 905.1302463 | BE6: =$H$38*(1+BE7) -> 635.835297 | BF6: 673.2373733 | BG6: 710.6394496 | BH6: 748.0415259 | BI6: 785.4436021 | BJ6: 822.8456784 | BK6: 860.2477547
B7: Capacidad de transformación | D7: 0 | F7: Indexador tarifa y venta de excedentes | H7: Min (IPP,IPC) | J7: =CONCATENATE("Tasa EA ",L3) -> Tasa EA Fija | L7: =(1+L5)*(1+L6)-1 -> 0.1503877689 | AS7: 0.07 | AT7: =L29 -> 825.670928 | AU7: =AV7-$BA$5 -> -0.21 | AV7: =AW7-$BA$5 -> -0.14 | AW7: =AX7-$BA$5 -> -0.07 | AX7: 0 | AY7: =AX7+$BA$5 -> 0.07 | AZ7: =AY7+$BA$5 -> 0.14 | BA7: =AZ7+$BA$5 -> 0.21 | BC7: 0.07 | BD7: =$L$51 -> 453.1226884 | BE7: =BF7-$BK$5 -> -0.15 | BF7: -0.1 | BG7: =BH7-$BK$5 -> -0.05 | BH7: 0 | BI7: =BH7+$BK$5 -> 0.05 | BJ7: =BI7+$BK$5 -> 0.1 | BK7: 0.15
B8: Dimensionamiento inicial en ac | D8: 140 | F8: Precio servicio de energía - EPC | G8: =SUMIFS(Index_precios_meses!$D$40:$AY$40,Index_precios_meses!$D$3:$AY$3,Inputs!$G$15) -> 494.8637971 | H8: =INDEX(Tarifa!$E$14:$J$20,SUMIF(Tarifa!$D$14:$D$20,$G$4,Tarifa!$A$14:$A$20),SUMIF(Tarifa!$E$13:$J$13,$G$3,Tarifa!$E$12:$J$12))*(1+$H$6) -> 481.7371066 | J8: =CONCATENATE("Tasa EM ",L3) -> Tasa EM Fija | L8: =(1+L7)^(1/Inputs!$C$10)-1 -> 0.0117433409 | AS8: =$H$45*(1+AT8) -> 21.8938432 | AT8: =AT9+$AS$7 -> 0.28 | BC8: =$H$45*(1+BD8) -> 21.8938432 | BD8: =BD9+$BC$7 -> 0.28
B9: Inversor tipo 1 | C9: 1 | D9: 100 | F9: Sensibilidad precio pactado - PPA | H9: 0 | J9: Deuda o financiación | K9: ( D ) | L9: =Deuda!E13/Tablero!H38 -> 0.8175088211 | AS9: 20.69652365 | AT9: =AT10+$AS$7 -> 0.21 | BC9: 20.69652365 | BD9: 0.21
B10: Inversor tipo 2 | C10: 1 | D10: 40 | F10: Precio pactado - PPA | G10: =SUMIFS(Index_precios_meses!$D$49:$AY$49,Index_precios_meses!$D$3:$AY$3,Inputs!$G$15) -> 314.6536051 | H10: 300.41 | J10: Equity o Patrimonio (capital inicial) | K10: ( E ) | L10: =1-L9 -> 0.1824911789 | AS10: 19.4992041 | AT10: =AT11+$AS$7 -> 0.14 | BC10: 19.4992041 | BD10: 0.14
B11: Inversor tipo 3 | C11: 0 | D11: 10 | F11: Precio pactado Net Biling | G11: =SUMIFS(Index_precios_meses!$D$52:$AY$52,Index_precios_meses!$D$3:$AY$3,Inputs!$G$15) -> 194.2952756 | H11: 185.5 | J11: DSCR | K11: Fijo | L11: 1.2 | AS11: 18.30188455 | AT11: =AT12+$AS$7 -> 0.07 | BC11: 18.30188455 | BD11: =BD12+$BC$7 -> 0.07
B12: Inversor tipo 4 | C12: 0 | D12: 10 | F12: Precio de bolsa | G12: Bolsa alta hidrología | J12: Periodo de la deuda (Tenor) | L12: 6 | AS12: 17.104565 | AT12: 0 | BC12: 17.104565 | BD12: 0
B13: Capacidad a Intalar en ac | D13: =SUMPRODUCT(C9:C12,D9:D12) -> 140 | G13: =FC_EPC!E2 -> 2023-05-31 | H13: =FC_EPC!E37 -> 185.8732602 | AS13: 15.90724545 | AT13: =AT12-$AS$7 -> -0.07 | BC13: 15.90724545 | BD13: =BD12-$BC$7 -> -0.07
B14: Factor dc/ac [pu] (Referencia) | D14: 1.22 | J14: Deuda - EPC (valores en Millones de pesos) | AS14: 14.7099259 | AT14: =AT13-$AS$7 -> -0.14 | BC14: 14.7099259 | BD14: =BD13-$BC$7 -> -0.14
B15: Capacidad en dc (Referencia) | D15: =D14*D13 -> 170.8 | F15: Incentivos tributarios | J15: CAPEX + Exclusiones | K15: 1 | L15: =H38 -> 748.0415259 | AS15: 13.51260635 | AT15: =AT14-$AS$7 -> -0.21 | BC15: 13.51260635 | BD15: -0.21
B16: Capacidad por panel | D16: 550 | F16: Exclusión o devolución del IVA | H16: Si | J16: LLCR: | L16: =Deuda!C38 -> 1.2 | AS16: 12.3152868 | AT16: =AT15-$AS$7 -> -0.28 | BC16: 12.3152868 | BD16: -0.28
B17: Número de paneles | D17: =ROUND($D$15*Inputs!$C$4/$D$16,0) -> 311 | F17: Exención aranceles | H17: No | J17: PLCR | L17: =Deuda!C43 -> 3.324826476
B18: Capacidad en dc [kWp] Real | C18: =$D$18/$D$13 -> 1.221785714 | D18: =$D$16*$D$17/Inputs!$C$4 -> 171.05 | F18: Deducción de Renta | G18: 15 | H18: Si | J18: WAL: | K18: 0.5 | L18: =Deuda!C47 -> 3.701149605 | AS18: Sensibilidad del VPN del proyecto (descontado al @WACC), por cambios en el CAPEX y OPEX - EPC | BC18: Sensibilidad del VPN del proyecto (descontado al @WACC), por cambios en el CAPEX y OPEX - PPA
B19: Factor de área útil [pu] | D19: 1.605 | F19: Depreciación acelerada | G19: 10 | H19: Si | J19: Deuda máxima (D) | K19: =Deuda!C52 -> 1 | L19: =K19*L15 -> 748.0415259 | AS19: OPEX (AO&M) | AT19: VPN @WACC | AU19: Costos de construcción - CAPEX + Exclusiones | BA19: 0.05 | BC19: OPEX (AO&M) | BD19: VPN @WACC | BE19: Costos de construcción - CAPEX + Exclusiones | BK19: 0.05
B20: Largo del panel [m] | D20: 2.25 | F20: Reducción de emisiones CO2eq | H20: =FC_EPC!D66 -> 2873.587808 | J20: Equity o Patrimonio (E) | K20: =1-K19 -> 0 | L20: =L15*K20 -> 0 | AU20: =$H$38*(1+AU21) -> 635.835297 | AV20: 673.2373733 | AW20: 710.6394496 | AX20: 748.0415259 | AY20: 785.4436021 | AZ20: 822.8456784 | BA20: 860.2477547 | BE20: =$H$38*(1+BE21) -> 635.835297 | BF20: 673.2373733 | BG20: 710.6394496 | BH20: 748.0415259 | BI20: 785.4436021 | BJ20: 822.8456784 | BK20: 860.2477547
B21: Ancho del panel [m] | D21: 1.139 | J21: Periodo máximo de la deuda | L21: =Deuda!C63 -> 10 | AS21: 0.07 | AT21: =$L$28 -> 879.315998 | AU21: =AV21-$BA$19 -> -0.15 | AV21: -0.1 | AW21: =AX21-$BA$19 -> -0.05 | AX21: 0 | AY21: =AX21+$BA$19 -> 0.05 | AZ21: =AY21+$BA$19 -> 0.1 | BA21: 0.15 | BC21: 0.07 | BD21: =$L$50 -> 483.700171 | BE21: =BF21-$BK$19 -> -0.15 | BF21: -0.1 | BG21: =BH21-$BK$19 -> -0.05 | BH21: 0 | BI21: =BH21+$BK$19 -> 0.05 | BJ21: =BI21+$BK$19 -> 0.1 | BK21: 0.15
B22: Área panel [m2] | D22: =D21*D20 -> 2.56275 | F22: No | H22: -6.070659365e+60 | AS22: =$H$45*(1+AT22) -> 21.8938432 | AT22: =AT23+$AS$21 -> 0.28 | BC22: =$H$45*(1+BD22) -> 21.8938432 | BD22: =BD23+$BC$21 -> 0.28
B23: Área total útil [m2] | C23: =$D$23/($D$20*$D$21*$D$17) -> 1.605 | D23: =$D$22*$D$17*$D$19 -> 1279.209476 | F23: Fecha de evación del modelo | H23: =Inputs!$G$4 -> 2022-11-17 | J23: Valoración - EPC | AS23: 20.69652365 | AT23: 0.21 | BC23: 20.69652365 | BD23: 0.21
B24: Factor de planta | D24: =D36/(D13*Inputs!C6*Inputs!C8) -> 0.1940047713 | F24: Precio base del calculo | G24: No | H24: 249.4098003 | J24: Venta de excedentes | L24: Net Metering | AS24: 19.4992041 | AT24: 0.14 | BC24: 19.4992041 | BD24: 0.14
B25: Rendimiento especifico | D25: =D36/D18 -> 1390.981885 | F25: VPN@WACC sin incentivos tributarios | H25: =FC_EPC!E136-FC_EPC!F134 -> 674.6048021 | J25: WACC (periodo 0) | L25: =WACC!D11 -> 0.08011283533 | AS25: 18.30188455 | AT25: =AT26+$AS$21 -> 0.07 | BC25: 18.30188455 | BD25: =BD26+$BC$21 -> 0.07
B26: Balance general Demanda - Generación primer año de operación | F26: Levelized cost LCOE | G26: No | H26: =FC_EPC!E62 -> 261.2352878 | J26: TIR proyecto | L26: =FC_EPC!E139 -> 0.2285588562 | AS26: 17.104565 | AT26: 0 | BC26: 17.104565 | BD26: 0
B27: Autoconsumo [kWh/año] | C27: =Balance!M8816 -> 172651.6213 | D27: =C27/$C$31 -> 0.2153096444 | F27: Precio de la tarifa de energía | G27: =FC_EPC!$E$2 -> 2023-05-31 | H27: =G8 -> 494.8637971 | J27: PRI (tiempo de retorno) | L27: =FC_EPC!E144 -> 3.416666667 | AS27: 15.90724545 | AT27: =AT26-$AS$21 -> -0.07 | BC27: 15.90724545 | BD27: =BD26-$BC$21 -> -0.07
B28: Excedentes Tipo 1 [kWh/año] | C28: =Balance!M8817 -> 59793.18256 | D28: =C28/$C$31 -> 0.07456662599 | F28: Reducción en la tarifa | G28: =FC_EPC!$E$2 -> 2023-05-31 | H28: =G8-H26 -> 233.6285093 | J28: VPN@WACC | L28: =FC_EPC!E136 -> 879.315998 | AS28: 14.7099259 | AT28: =AT27-$AS$21 -> -0.14 | BC28: 14.7099259 | BD28: =BD27-$BC$21 -> -0.14
B29: Excedentes Tipo 2 [kWh/año] | C29: =Balance!M8818 -> 5482.647582 | D29: =C29/$C$31 -> 0.006837276662 | J29: Rentabilidad esperada | L29: =FC_EPC!D158 -> 825.670928 | AS29: 13.51260635 | AT29: -0.21 | BC29: 13.51260635 | BD29: -0.21
B30: Importaciones netas [kWh/año] | C30: =Balance!I8824 -> 563948.4785 | D30: =C30/$C$31 -> 0.703286453 | F30: Costos de construcción - EPC | J30: Retorno sobre la inversión (ROI) | L30: =FC_EPC!D159 -> 0.6240222468 | AS30: 12.3152868 | AT30: -0.28 | BC30: 12.3152868 | BD30: -0.28
B31: Requerimiento energetico [kWh/año] | C31: =SUM(C27:C30) -> 801875.93 | D31: =SUM(D27:D30) -> 1 | F31: Sensibilidad en el CAPEX | H31: 0
B32: Autoconsumo [kWh/año] | C32: =C27 -> 172651.6213 | D32: =C32/$C$35 -> 0.1991019672 | F32: CAPEX incluido AIU | G32: $COP mm | H32: =Construcción!F29 -> 657.8678978 | J32: Deuda -PPA | AS32: Sensibilidad de la Rentabilidad esperada del proyecto, por cambios en la tarifa de energía y en la Generación de energía del proyecto - EPC | BC32: Sensibilidad de la Rentabilidad esperada del proyecto, por cambios en el CAPEX y en el precio pactado del PPA
B33: Total Excedentes [kWh/año] | C33: =SUM(C28:C29) -> 65275.83014 | D33: =C33/$C$35 -> 0.07527613175 | F33: IVA bienes y servicios CAPEX | G33: $COP mm | H33: =Construcción!F34 -> 37.46165906 | J33: Tipo de deuda | L33: Fija | AS33: Tarifa de energía | AT33: Rentabilidad esperada | AU33: Costos de construcción - CAPEX + Exclusiones | BA33: 0.07 | BC33: Precio pactado - PPA | BD33: Rentabilidad esperada | BE33: Costos de construcción - CAPEX + Exclusiones | BK33: 0.07
B34: Importaciónes [kWh/año] | C34: =Balance!I8817 -> 629224.3087 | D34: =C34/$C$35 -> 0.725621901 | F34: Intereses durante la construcción | G34: $COP mm | H34: =Construcción!F30 -> 5.553697323 | J34: Tasa de referencia | L34: DTF (E.A.) | AU34: =$H$38*(1+AU35) -> 590.9528054 | AV34: =$H$38*(1+AV35) -> 643.3157122 | AW34: =$H$38*(1+AW35) -> 695.678619 | AX34: =H38 -> 748.0415259 | AY34: =$H$38*(1+AY35) -> 800.4044327 | AZ34: =$H$38*(1+AZ35) -> 852.7673395 | BA34: =$H$38*(1+BA35) -> 905.1302463 | BE34: =$H$38*(1+BE35) -> 590.9528054 | BF34: 643.3157122 | BG34: 695.678619 | BH34: 748.0415259 | BI34: 800.4044327 | BJ34: 852.7673395 | BK34: 905.1302463
B35: Total Energía [kWh/año] | C35: =SUM(C32:C34) -> 867151.7601 | D35: =SUM(D32:D34) -> 1 | F35: Otros costos durante la construcción | G35: $COP mm | H35: =SUM(Construcción!F31:F33,Construcción!F35) -> 1.30043074 | L35: =SUMIF(Macroeconómicos_año!$B$6:$B$14,$L$34,Macroeconómicos_año!$D$6:$D$14) -> 0.1061420854 | AS35: 0.07 | AT35: =L29 -> 825.670928 | AU35: =AV35-$BA$33 -> -0.21 | AV35: -0.14 | AW35: =AX35-$BA$33 -> -0.07 | AX35: 0 | AY35: =AX35+$BA$33 -> 0.07 | AZ35: =AY35+$BA$33 -> 0.14 | BA35: 0.21 | BC35: 0.05 | BD35: =$L$51 -> 453.1226884 | BE35: =BF35-$BK$33 -> -0.21 | BF35: -0.14 | BG35: =BH35-$BK$33 -> -0.07 | BH35: 0 | BI35: =BH35+$BK$33 -> 0.07 | BJ35: =BI35+$BK$33 -> 0.14 | BK35: 0.21
B36: Generación Total [kWh/año] | D36: =Balance!J8812 -> 237927.4515 | F36: Exclusiones del proyecto | G36: $COP mm | H36: =Construcción!C78 -> 43.24335141 | J36: Spread | L36: 0.04 | AS36: =$H$8*(1+AT36) -> 616.6234965 | AT36: =AT37+$AS$35 -> 0.28 | BC36: =$H$10*(1+BD36) -> 360.492 | BD36: =BD37+$BC$35 -> 0.2
B37: Demanda Total [kWh/año] | D37: =Balance!G8812 -> 801875.93 | F37: IVA bienes y servicios Exclusiones | G37: $COP mm | H37: =Construcción!D78 -> 2.614489475 | J37: =CONCATENATE("Tasa EA ",L33) -> Tasa EA Fija | L37: =(1+L35)*(1+L36)-1 -> 0.1503877689 | AS37: 582.901899 | AT37: 0.21 | BC37: 345.4715 | BD37: 0.15
B38: Cobertura solar fotovoltaica neta | D38: =D36/D37 -> 0.296713547 | F38: Total costos del proyecto | G38: $COP mm | H38: =SUM(H32:H37) -> 748.0415259 | J38: =CONCATENATE("Tasa EM ",L33) -> Tasa EM Fija | L38: =(1+L37)^(1/Inputs!$C$10)-1 -> 0.0117433409 | AS38: 549.1803015 | AT38: 0.14 | BC38: 330.451 | BD38: 0.1
F39: Costo por kWp instalado | G39: $COPmm/kWp | H39: =(H38-H33-H37)/D18 -> 4.13893819 | J39: Deuda o financiación | L39: =Deuda!E79/(Exclusiones!T22/Inputs!C5) -> 0.9825996289 | AS39: 515.4587041 | AT39: =AT40+$AS$35 -> 0.07 | BC39: 315.4305 | BD39: =BD40+$BC$35 -> 0.05
B40: Exceso de energía Reactiva | J40: Equity o Patrimonio (capital inicial) | L40: =1-L39 -> 0.01740037113 | AS40: 481.7371066 | AT40: 0 | BC40: 300.41 | BD40: 0
B41: Compensación de energía reactiva | D41: Si | F41: Costos de operación y mantenimiento - Gestión de activos año 1 - EPC | J41: DSCR | L41: 1.2 | AS41: 448.0155091 | AT41: =AT40-$AS$35 -> -0.07 | BC41: 285.3895 | BD41: =BD40-$BC$35 -> -0.05
B42: Factor de potencia fijo PV | D42: 1 | F42: Sensibilidad en el OPEX | H42: 0 | J42: Periodo de la deuda (Tenor) | L42: 1 | AS42: 414.2939117 | AT42: =AT41-$AS$35 -> -0.14 | BC42: 270.369 | BD42: =BD41-$BC$35 -> -0.1
B43: Penalización Inductiva [kVArh/año] | D43: =Balance!N8812 -> 82942.01207 | F43: OPEX incluido AIU | G43: $COP mm | H43: =OPEX!N27/Inputs!$C$5 -> 15.06895476 | AS43: 380.5723142 | AT43: -0.21 | BC43: 255.3485 | BD43: -0.15
B44: Penalización Capacitiva [kVArh/año] | D44: =Balance!O8812 -> 6221.03 | F44: IVA servicios | G44: $COP mm | H44: =OPEX!N25/Inputs!$C$5 -> 2.035610242 | J44: Valoración - PPA | AS44: 346.8507168 | AT44: -0.28 | BC44: 240.328 | BD44: -0.2
B45: Total Energía Reactiva penalizada | D45: =SUM(D43:D44) -> 89163.04207 | F45: Total costos de A&OM | G45: $COP mm | H45: =SUM(H43:H44) -> 17.104565 | J45: Venta de excedentes | L45: =L24 -> Net Metering
F46: Realación OPEX/CAPEX | G46: % | H46: =H45/H32 -> 0.02599999948 | J46: Indexador del precio pactado - PPA | L46: Min (IPP,IPC) | AS46: Sensibilidad de la TIR del proyecto, por cambios en el CAPEX y en la Generación de energía del proyecto - EPC | BC46: Sensibilidad de la rentabilidad del proyecto, por cambios en el precio pactado del PPA y en la Generación de energía del proyecto - PPA
J47: WACC (periodo 0) | L47: =WACC!D37 -> 0.07142316195 | AS47: Generación [kWh/año] | AT47: TIR Proyecto | AU47: Costos de construcción - CAPEX + Exclusiones | BA47: 0.05 | BC47: Generación [kWh/año] | BD47: Rentabilidad esperada | BE47: Precio pactado en el PPA | BK47: 0.05
B48: Resultados alternativas EPC y PPA: | J48: TIR proyecto | L48: =FC_PPA!E65 -> 1.758089864 | AU48: =$H$38*(1+AU49) -> 635.835297 | AV48: 673.2373733 | AW48: 710.6394496 | AX48: 748.0415259 | AY48: 785.4436021 | AZ48: 822.8456784 | BA48: 860.2477547 | BE48: =$H$10*(1+BE49) -> 255.3485 | BF48: 270.369 | BG48: 285.3895 | BH48: 300.41 | BI48: 315.4305 | BJ48: 330.451 | BK48: 345.4715
J49: PRI (tiempo de retorno) | L49: =FC_PPA!E70 -> 0.4166666667 | AS49: 0.05 | AT49: =L26 -> 0.2285588562 | AU49: =AV49-$BA$47 -> -0.15 | AV49: =AW49-$BA$47 -> -0.1 | AW49: =AX49-$BA$47 -> -0.05 | AX49: 0 | AY49: =AX49+$BA$47 -> 0.05 | AZ49: =AY49+$BA$47 -> 0.1 | BA49: =AZ49+$BA$47 -> 0.15 | BC49: 0.05 | BD49: =BD35 -> 453.1226884 | BE49: =BF49-$BK$47 -> -0.15 | BF49: =BG49-$BK$47 -> -0.1 | BG49: =BH49-$BK$47 -> -0.05 | BH49: 0 | BI49: =BH49+$BK$47 -> 0.05 | BJ49: =BI49+$BK$47 -> 0.1 | BK49: 0.15
B50: Descripción Salida del modelo | C50: EPC | D50: PPA | J50: VPN@WACC | L50: =FC_PPA!E62 -> 483.700171 | AS50: =$D$36*(1+AT50) -> 285512.9418 | AT50: =AT51+$AS$49 -> 0.2 | BC50: =$D$36*(1+BD50) -> 285512.9418 | BD50: =BD51+$BC$49 -> 0.2
B51: Porcentaje de Ahorros e ingresos esperados | C51: =AVERAGE(FC_EPC!E151:AD151) -> 0.314222744 | D51: =AVERAGE(FC_PPA!E77:AD77) -> 0.1190725778 | J51: Rentabilidad esperada | L51: =FC_PPA!D83 -> 453.1226884 | AS51: 273616.5692 | AT51: =AT52+$AS$49 -> 0.15 | BC51: 273616.5692 | BD51: 0.15
B52: Ahorros e ingresos esperados primer año | C52: =FC_EPC!F149 -> 141.5299514 | D52: =FC_PPA!F75 -> 60.18082504 | J52: Retorno sobre la inversión (ROI) | L52: =FC_PPA!D84 -> 0.9080969333 | AS52: 261720.1966 | AT52: =AT53+$AS$49 -> 0.1 | BC52: 261720.1966 | BD52: 0.1
B53: Estructura de capital | C53: =_xlfn.CONCAT("Deuda ", ROUND(L9*100,2),"% /"," Equity ",ROUND(L10*100,2), "%") -> Deuda 81.75% / Equity 18.25% | D53: =_xlfn.CONCAT("Deuda ", ROUND(L39*100,2),"% /"," Equity ",ROUND(L40*100,2), "%") -> Deuda 98.26% / Equity 1.74% | AS53: 249823.8241 | AT53: =AT54+$AS$49 -> 0.05 | BC53: 249823.8241 | BD53: =BD54+$BC$49 -> 0.05
B54: Inversión | C54: =L15 -> 748.0415259 | D54: =SUM(H36:H37) -> 45.85784088 | AS54: 237927.4515 | AT54: 0 | BC54: 237927.4515 | BD54: 0
B55: Deuda | C55: =L15*L9 -> 611.5305459 | D55: =SUM(H36:H37)*L39 -> 45.05989743 | AS55: 226031.0789 | AT55: =AT54-$AS$49 -> -0.05 | BC55: 226031.0789 | BD55: =BD54-$BC$49 -> -0.05
B56: TIR | C56: =L26 -> 0.2285588562 | D56: =L48 -> 1.758089864 | AS56: 214134.7063 | AT56: =AT55-$AS$49 -> -0.1 | BC56: 214134.7063 | BD56: =BD55-$BC$49 -> -0.1
B57: VPN | C57: =L28 -> 879.315998 | D57: =L50 -> 483.700171 | AS57: 202238.3338 | AT57: =AT56-$AS$49 -> -0.15 | BC57: 202238.3338 | BD57: -0.15
B58: PRI | C58: =L27 -> 3.416666667 | D58: =L49 -> 0.4166666667 | AS58: 190341.9612 | AT58: =AT57-$AS$49 -> -0.2 | BC58: 190341.9612 | BD58: -0.2
B59: ROI | C59: =L30 -> 0.6240222468 | D59: =L52 -> 0.9080969333
B60: Rentabilidad esperada | C60: =L29 -> 825.670928 | D60: =L51 -> 453.1226884 | AS60: Sensibilidad de la Rentabilidad del proyecto, por cambios en la tarifa de energía y en la Generación de energía del proyecto - EPC | BC60: =CONCATENATE("Sensibilidad ",$BE$61, " ,variando el precio pactado del PPA") -> Sensibilidad PRI [años] ,variando el precio pactado del PPA
B61: LCOE | C61: =H24 -> 249.4098003 | AS61: Generación [kWh/año] | AT61: Rentabilidad esperada | AU61: Tarifa de energía servicio de energía contratada con comercializador frontera de entrada | BA61: 0.05 | BC61: Precio pactado - PPA | BE61: PRI [años]
B62: Reducción de emisiones TonCO2eq | C62: =H20 -> 2873.587808 | AU62: =$H$8*(1+AU63) -> 409.4765406 | AV62: 433.563396 | AW62: =$H$8*(1+AW63) -> 457.6502513 | AX62: =$H$8*(1+AX63) -> 481.7371066 | AY62: =$H$8*(1+AY63) -> 505.8239619 | AZ62: =$H$8*(1+AZ63) -> 529.9108173 | BA62: 553.9976726
AS63: 0.05 | AT63: =L29 -> 825.670928 | AU63: =AV63-$BA$61 -> -0.15 | AV63: -0.1 | AW63: =AX63-$BA$61 -> -0.05 | AX63: 0 | AY63: =AX63+$BA$61 -> 0.05 | AZ63: =AY63+$BA$61 -> 0.1 | BA63: 0.15 | BC63: 0.05 | BE63: =SUMIF(Inputs!N4:N7,Tablero!BE61,Inputs!O4:O7) -> 0.4166666667
AS64: =$D$36*(1+AT64) -> 285512.9418 | AT64: =AT65+$AS$63 -> 0.2 | BC64: =$H$10*(1+BD64) -> 360.492 | BD64: =BD65+$BC$63 -> 0.2
AS65: 273616.5692 | AT65: 0.15 | BC65: 345.4715 | BD65: 0.15
AS66: 261720.1966 | AT66: =AT67+$AS$63 -> 0.1 | BC66: 330.451 | BD66: 0.1
AS67: 249823.8241 | AT67: =AT68+$AS$63 -> 0.05 | BC67: 315.4305 | BD67: =BD68+$BC$63 -> 0.05
AS68: 237927.4515 | AT68: 0 | BC68: 300.41 | BD68: 0
AS69: 226031.0789 | AT69: =AT68-$AS$63 -> -0.05 | BC69: 285.3895 | BD69: =BD68-$BC$63 -> -0.05
AS70: 214134.7063 | AT70: =AT69-$AS$63 -> -0.1 | BC70: 270.369 | BD70: =BD69-$BC$63 -> -0.1
AS71: 202238.3338 | AT71: -0.15 | BC71: 255.3485 | BD71: -0.15
AS72: 190341.9612 | AT72: -0.2 | BC72: 240.328 | BD72: -0.2

Sheet FC_EPC
D2: Fecha | E2: =Inputs!G15 -> 2023-05-31 | F2: =EDATE(E2,E3+F3) -> 2024-12-31 | G2: =EDATE(F2,G3) -> 2025-12-31 | H2: =EDATE(G2,H3) -> 2026-12-31 | I2: 2027-12-31 | J2: 2028-12-31 | K2: 2029-12-31 | L2: 2030-12-31 | M2: 2031-12-31 | N2: 2032-12-31 | O2: 2033-12-31 | P2: 2034-12-31 | Q2: 2035-12-31 | R2: 2036-12-31 | S2: 2037-12-31 | T2: 2038-12-31 | U2: 2039-12-31 | V2: 2040-12-31 | W2: 2041-12-31 | X2: 2042-12-31 | Y2: 2043-12-31 | Z2: 2044-12-31 | AA2: 2045-12-31 | AB2: 2046-12-31 | AC2: 2047-12-31 | AD2: 2048-12-31
D3: Meses del año | E3: =Inputs!$C$10-MONTH(E2) -> 7 | F3: =Inputs!$C$10 -> 12 | G3: =F3 -> 12 | H3: =G3 -> 12 | I3: 12 | J3: 12 | K3: 12 | L3: 12 | M3: 12 | N3: 12 | O3: 12 | P3: 12 | Q3: 12 | R3: 12 | S3: 12 | T3: 12 | U3: 12 | V3: 12 | W3: 12 | X3: 12 | Y3: 12 | Z3: 12 | AA3: 12 | AB3: 12 | AC3: 12 | AD3: 12
D4: Año | E4: =YEAR(E2) -> 2023 | F4: =YEAR(F2) -> 2024 | G4: =YEAR(G2) -> 2025 | H4: =YEAR(H2) -> 2026 | I4: 2027 | J4: 2028 | K4: 2029 | L4: 2030 | M4: 2031 | N4: 2032 | O4: 2033 | P4: 2034 | Q4: 2035 | R4: 2036 | S4: 2037 | T4: 2038 | U4: 2039 | V4: 2040 | W4: 2041 | X4: 2042 | Y4: 2043 | Z4: 2044 | AA4: 2045 | AB4: 2046 | AC4: 2047 | AD4: 2048
D5: Periodo | E5: 0 | F5: =E5+1 -> 1 | G5: =F5+1 -> 2 | H5: 3 | I5: 4 | J5: 5 | K5: 6 | L5: 7 | M5: 8 | N5: 9 | O5: 10 | P5: 11 | Q5: 12 | R5: 13 | S5: 14 | T5: 15 | U5: 16 | V5: 17 | W5: 18 | X5: 19 | Y5: 20 | Z5: 21 | AA5: 22 | AB5: 23 | AC5: 24 | AD5: 25
A6: IPC | B6: Inflación al consumidor IPC (bienes y servicios) | E6: 1 | F6: =E6*(1+Macroeconómicos_año!E6) -> 1.105 | G6: =F6*(1+Macroeconómicos_año!F6) -> 1.20003 | H6: =G6*(1+Macroeconómicos_año!G6) -> 1.28163204 | I6: =H6*(1+Macroeconómicos_año!H6) -> 1.352121802 | J6: =I6*(1+Macroeconómicos_año!I6) -> 1.406206674 | K6: =J6*(1+Macroeconómicos_año!J6) -> 1.459642528 | L6: =K6*(1+Macroeconómicos_año!K6) -> 1.510730016 | M6: =L6*(1+Macroeconómicos_año!L6) -> 1.556051917 | N6: =M6*(1+Macroeconómicos_año!M6) -> 1.602733474 | O6: =N6*(1+Macroeconómicos_año!N6) -> 1.650815479 | P6: =O6*(1+Macroeconómicos_año!O6) -> 1.700339943 | Q6: =P6*(1+Macroeconómicos_año!P6) -> 1.751350141 | R6: =Q6*(1+Macroeconómicos_año!Q6) -> 1.803890646 | S6: =R6*(1+Macroeconómicos_año!R6) -> 1.858007365 | T6: =S6*(1+Macroeconómicos_año!S6) -> 1.913747586 | U6: =T6*(1+Macroeconómicos_año!T6) -> 1.971160013 | V6: =U6*(1+Macroeconómicos_año!U6) -> 2.030294814 | W6: =V6*(1+Macroeconómicos_año!V6) -> 2.091203658 | X6: =W6*(1+Macroeconómicos_año!W6) -> 2.153939768 | Y6: =X6*(1+Macroeconómicos_año!X6) -> 2.218557961 | Z6: =Y6*(1+Macroeconómicos_año!Y6) -> 2.2851147 | AA6: =Z6*(1+Macroeconómicos_año!Z6) -> 2.353668141 | AB6: =AA6*(1+Macroeconómicos_año!AA6) -> 2.424278185 | AC6: =AB6*(1+Macroeconómicos_año!AB6) -> 2.497006531 | AD6: =AC6*(1+Macroeconómicos_año!AC6) -> 2.571916727
A7: IPP | B7: Inflación al productor IPP (Oferta Interna) | E7: 1 | F7: =E7*(1+Macroeconómicos_año!E7) -> 1.089 | G7: =F7*(1+Macroeconómicos_año!F7) -> 1.127115 | H7: =G7*(1+Macroeconómicos_año!G7) -> 1.14740307 | I7: =H7*(1+Macroeconómicos_año!H7) -> 1.178382953 | J7: =I7*(1+Macroeconómicos_año!I7) -> 1.210199293 | K7: =J7*(1+Macroeconómicos_año!J7) -> 1.242874674 | L7: =K7*(1+Macroeconómicos_año!K7) -> 1.27643229 | M7: =L7*(1+Macroeconómicos_año!L7) -> 1.310895962 | N7: =M7*(1+Macroeconómicos_año!M7) -> 1.35022284 | O7: =N7*(1+Macroeconómicos_año!N7) -> 1.390729526 | P7: =O7*(1+Macroeconómicos_año!O7) -> 1.432451411 | Q7: =P7*(1+Macroeconómicos_año!P7) -> 1.475424954 | R7: =Q7*(1+Macroeconómicos_año!Q7) -> 1.519687702 | S7: =R7*(1+Macroeconómicos_año!R7) -> 1.565278333 | T7: =S7*(1+Macroeconómicos_año!S7) -> 1.612236683 | U7: =T7*(1+Macroeconómicos_año!T7) -> 1.660603784 | V7: =U7*(1+Macroeconómicos_año!U7) -> 1.710421897 | W7: =V7*(1+Macroeconómicos_año!V7) -> 1.761734554 | X7: =W7*(1+Macroeconómicos_año!W7) -> 1.814586591 | Y7: =X7*(1+Macroeconómicos_año!X7) -> 1.869024189 | Z7: =Y7*(1+Macroeconómicos_año!Y7) -> 1.925094914 | AA7: =Z7*(1+Macroeconómicos_año!Z7) -> 1.982847762 | AB7: =AA7*(1+Macroeconómicos_año!AA7) -> 2.042333195 | AC7: =AB7*(1+Macroeconómicos_año!AB7) -> 2.10360319 | AD7: =AC7*(1+Macroeconómicos_año!AC7) -> 2.166711286
A8: Min (IPP,IPC) | B8: Mínimo IPC y IPP index | E8: =MIN(E6:E7) -> 1 | F8: =MIN(F6:F7) -> 1.089 | G8: =MIN(G6:G7) -> 1.127115 | H8: 1.14740307 | I8: 1.178382953 | J8: 1.210199293 | K8: 1.242874674 | L8: 1.27643229 | M8: 1.310895962 | N8: 1.35022284 | O8: 1.390729526 | P8: 1.432451411 | Q8: 1.475424954 | R8: 1.519687702 | S8: 1.565278333 | T8: 1.612236683 | U8: 1.660603784 | V8: 1.710421897 | W8: 1.761734554 | X8: 1.814586591 | Y8: 1.869024189 | Z8: 1.925094914 | AA8: 1.982847762 | AB8: 2.042333195 | AC8: 2.10360319 | AD8: 2.166711286
A9: Esperado PBolsa | B9: Bolsa esperado | E9: 1 | F9: =E9*(1+Precios_año!D17) -> 0.8982964028 | G9: =F9*(1+Precios_año!E17) -> 1.013076233 | H9: =G9*(1+Precios_año!F17) -> 1.151520335 | I9: =H9*(1+Precios_año!G17) -> 1.065384046 | J9: =I9*(1+Precios_año!H17) -> 1.437773448 | K9: =J9*(1+Precios_año!I17) -> 1.417277613 | L9: =K9*(1+Precios_año!J17) -> 1.742990611 | M9: =L9*(1+Precios_año!K17) -> 0.9835344469 | N9: =M9*(1+Precios_año!L17) -> 1.122905908 | O9: =N9*(1+Precios_año!M17) -> 1.18082795 | P9: =O9*(1+Precios_año!N17) -> 1.185100418 | Q9: =P9*(1+Precios_año!O17) -> 1.231869422 | R9: =Q9*(1+Precios_año!P17) -> 1.253191009 | S9: =R9*(1+Precios_año!Q17) -> 1.493714556 | T9: =S9*(1+Precios_año!R17) -> 1.208963337 | U9: =T9*(1+Precios_año!S17) -> 1.341070816 | V9: =U9*(1+Precios_año!T17) -> 1.39728597 | W9: =V9*(1+Precios_año!U17) -> 1.791307643 | X9: =W9*(1+Precios_año!V17) -> 1.383113027 | Y9: =X9*(1+Precios_año!W17) -> 1.552332062 | Z9: =Y9*(1+Precios_año!X17) -> 1.57026939 | AA9: =Z9*(1+Precios_año!Y17) -> 2.076714341 | AB9: =AA9*(1+Precios_año!Z17) -> 2.257487543 | AC9: =AB9*(1+Precios_año!AA17) -> 2.519678683 | AD9: =AC9*(1+Precios_año!AB17) -> 2.86328776
A10: Esperdo MNR | B10: G MNR | E10: 1 | F10: =E10*(1+Precios_año!D18) -> 0.9680360581 | G10: =F10*(1+Precios_año!E18) -> 0.9802689549 | H10: =G10*(1+Precios_año!F18) -> 0.9953077448 | I10: =H10*(1+Precios_año!G18) -> 1.012733167 | J10: =I10*(1+Precios_año!H18) -> 1.009224228 | K10: =J10*(1+Precios_año!I18) -> 1.0536126 | L10: =K10*(1+Precios_año!J18) -> 1.043731723 | M10: =L10*(1+Precios_año!K18) -> 1.040832678 | N10: =M10*(1+Precios_año!L18) -> 1.026754626 | O10: =N10*(1+Precios_año!M18) -> 1.075703259 | P10: =O10*(1+Precios_año!N18) -> 1.081223101 | Q10: =P10*(1+Precios_año!O18) -> 1.086732869 | R10: =Q10*(1+Precios_año!P18) -> 1.065719099 | S10: =R10*(1+Precios_año!Q18) -> 1.086240862 | T10: =S10*(1+Precios_año!R18) -> 1.096616022 | U10: =T10*(1+Precios_año!S18) -> 1.081348672 | V10: =U10*(1+Precios_año!T18) -> 1.074678135 | W10: =V10*(1+Precios_año!U18) -> 1.098168675 | X10: =W10*(1+Precios_año!V18) -> 1.095823227 | Y10: =X10*(1+Precios_año!W18) -> 1.087349107 | Z10: =Y10*(1+Precios_año!X18) -> 1.07989639 | AA10: =Z10*(1+Precios_año!Y18) -> 1.114581157 | AB10: =AA10*(1+Precios_año!Z18) -> 1.121174267 | AC10: =AB10*(1+Precios_año!AA18) -> 1.134790292 | AD10: =AC10*(1+Precios_año!AB18) -> 1.155429231
A11: Perfil libre PPA | B11: Perfil de indexación libre - PPA | E11: 1 | F11: =E11*(1+Macroeconómicos_año!E4) -> 1.05 | G11: =F11*(1+Macroeconómicos_año!F4) -> 1.05 | H11: =G11*(1+Macroeconómicos_año!G4) -> 1.05 | I11: =H11*(1+Macroeconómicos_año!H4) -> 1.05 | J11: =I11*(1+Macroeconómicos_año!I4) -> 1.09725 | K11: =J11*(1+Macroeconómicos_año!J4) -> 1.09725 | L11: =K11*(1+Macroeconómicos_año!K4) -> 1.09725 | M11: =L11*(1+Macroeconómicos_año!L4) -> 1.09725 | N11: =M11*(1+Macroeconómicos_año!M4) -> 1.09725 | O11: =N11*(1+Macroeconómicos_año!N4) -> 1.14114 | P11: =O11*(1+Macroeconómicos_año!O4) -> 1.14114 | Q11: =P11*(1+Macroeconómicos_año!P4) -> 1.14114 | R11: =Q11*(1+Macroeconómicos_año!Q4) -> 1.14114 | S11: =R11*(1+Macroeconómicos_año!R4) -> 1.14114 | T11: =S11*(1+Macroeconómicos_año!S4) -> 1.1810799 | U11: =T11*(1+Macroeconómicos_año!T4) -> 1.1810799 | V11: =U11*(1+Macroeconómicos_año!U4) -> 1.1810799 | W11: =V11*(1+Macroeconómicos_año!V4) -> 1.1810799 | X11: =W11*(1+Macroeconómicos_año!W4) -> 1.1810799 | Y11: =X11*(1+Macroeconómicos_año!X4) -> 1.216512297 | Z11: =Y11*(1+Macroeconómicos_año!Y4) -> 1.216512297 | AA11: =Z11*(1+Macroeconómicos_año!Z4) -> 1.216512297 | AB11: =AA11*(1+Macroeconómicos_año!AA4) -> 1.216512297 | AC11: =AB11*(1+Macroeconómicos_año!AB4) -> 1.216512297 | AD11: =AC11*(1+Macroeconómicos_año!AC4) -> 1.246925104
A12: Perfil libre EPC | B12: Perfil de indexación libre - EPC | E12: 1 | F12: =E12*(1+Macroeconómicos_año!E5) -> 1.03 | G12: =F12*(1+Macroeconómicos_año!F5) -> 1.03 | H12: =G12*(1+Macroeconómicos_año!G5) -> 1.03 | I12: =H12*(1+Macroeconómicos_año!H5) -> 1.03 | J12: =I12*(1+Macroeconómicos_año!I5) -> 1.0609 | K12: =J12*(1+Macroeconómicos_año!J5) -> 1.0609 | L12: =K12*(1+Macroeconómicos_año!K5) -> 1.0609 | M12: =L12*(1+Macroeconómicos_año!L5) -> 1.0609 | N12: =M12*(1+Macroeconómicos_año!M5) -> 1.0609 | O12: =N12*(1+Macroeconómicos_año!N5) -> 1.092727 | P12: =O12*(1+Macroeconómicos_año!O5) -> 1.092727 | Q12: =P12*(1+Macroeconómicos_año!P5) -> 1.092727 | R12: =Q12*(1+Macroeconómicos_año!Q5) -> 1.092727 | S12: =R12*(1+Macroeconómicos_año!R5) -> 1.092727 | T12: =S12*(1+Macroeconómicos_año!S5) -> 1.12550881 | U12: =T12*(1+Macroeconómicos_año!T5) -> 1.12550881 | V12: =U12*(1+Macroeconómicos_año!U5) -> 1.12550881 | W12: =V12*(1+Macroeconómicos_año!V5) -> 1.12550881 | X12: =W12*(1+Macroeconómicos_año!W5) -> 1.12550881 | Y12: =X12*(1+Macroeconómicos_año!X5) -> 1.159274074 | Z12: =Y12*(1+Macroeconómicos_año!Y5) -> 1.159274074 | AA12: =Z12*(1+Macroeconómicos_año!Z5) -> 1.159274074 | AB12: =AA12*(1+Macroeconómicos_año!AA5) -> 1.159274074 | AC12: =AB12*(1+Macroeconómicos_año!AB5) -> 1.159274074 | AD12: =AC12*(1+Macroeconómicos_año!AC5) -> 1.194052297
B13: Nivel 1 Propiedad OR | E13: 1 | F13: =E13*(1+Precios_año!D19) -> 0.9558546781 | G13: =F13*(1+Precios_año!E19) -> 0.9870191874 | H13: =G13*(1+Precios_año!F19) -> 0.9630707582 | I13: =H13*(1+Precios_año!G19) -> 0.9676898533 | J13: =I13*(1+Precios_año!H19) -> 0.9822867471 | K13: =J13*(1+Precios_año!I19) -> 1.003593074 | L13: =K13*(1+Precios_año!J19) -> 1.024951998 | M13: =L13*(1+Precios_año!K19) -> 1.049224063 | N13: =M13*(1+Precios_año!L19) -> 1.054017158 | O13: =N13*(1+Precios_año!M19) -> 1.056761717 | P13: =O13*(1+Precios_año!N19) -> 1.07570201 | Q13: =P13*(1+Precios_año!O19) -> 1.10090567 | R13: =Q13*(1+Precios_año!P19) -> 1.127067646 | S13: =R13*(1+Precios_año!Q19) -> 1.162733484 | T13: =S13*(1+Precios_año!R19) -> 1.179090816 | U13: =T13*(1+Precios_año!S19) -> 1.208644493 | V13: =U13*(1+Precios_año!T19) -> 1.243882387 | W13: =V13*(1+Precios_año!U19) -> 1.26798203 | X13: =W13*(1+Precios_año!V19) -> 1.289220166 | Y13: =X13*(1+Precios_año!W19) -> 1.333508474 | Z13: =Y13*(1+Precios_año!X19) -> 1.375262275 | AA13: =Z13*(1+Precios_año!Y19) -> 1.404854324 | AB13: =AA13*(1+Precios_año!Z19) -> 1.442554208 | AC13: =AB13*(1+Precios_año!AA19) -> 1.478227133 | AD13: =AC13*(1+Precios_año!AB19) -> 1.5118731
B14: Nivel 1 Act. Cliente | E14: 1 | F14: =E14*(1+Precios_año!D20) -> 0.9494129007 | G14: =F14*(1+Precios_año!E20) -> 0.9757689609 | H14: =G14*(1+Precios_año!F20) -> 0.9490220622 | I14: =H14*(1+Precios_año!G20) -> 0.9536950119 | J14: =I14*(1+Precios_año!H20) -> 0.9677556219 | K14: =J14*(1+Precios_año!I20) -> 0.9906356599 | L14: =K14*(1+Precios_año!J20) -> 1.012524283 | M14: =L14*(1+Precios_año!K20) -> 1.037031461 | N14: =M14*(1+Precios_año!L20) -> 1.043480936 | O14: =N14*(1+Precios_año!M20) -> 1.046081226 | P14: =O14*(1+Precios_año!N20) -> 1.063776014 | Q14: =P14*(1+Precios_año!O20) -> 1.091432031 | R14: =Q14*(1+Precios_año!P20) -> 1.118922289 | S14: =R14*(1+Precios_año!Q20) -> 1.154077026 | T14: =S14*(1+Precios_año!R20) -> 1.172633821 | U14: =T14*(1+Precios_año!S20) -> 1.204726032 | V14: =U14*(1+Precios_año!T20) -> 1.240347518 | W14: =V14*(1+Precios_año!U20) -> 1.267086468 | X14: =W14*(1+Precios_año!V20) -> 1.290186676 | Y14: =X14*(1+Precios_año!W20) -> 1.338472086 | Z14: =Y14*(1+Precios_año!X20) -> 1.380263115 | AA14: =Z14*(1+Precios_año!Y20) -> 1.412092359 | AB14: =AA14*(1+Precios_año!Z20) -> 1.450562793 | AC14: =AB14*(1+Precios_año!AA20) -> 1.487372929 | AD14: =AC14*(1+Precios_año!AB20) -> 1.522522767
B15: Nivel 1 Act. Compartidos | E15: 1 | F15: =E15*(1+Precios_año!D21) -> 0.9527756032 | G15: =F15*(1+Precios_año!E21) -> 0.9816417445 | H15: =G15*(1+Precios_año!F21) -> 0.956355688 | I15: =H15*(1+Precios_año!G21) -> 0.9610005248 | J15: =I15*(1+Precios_año!H21) -> 0.9753410829 | K15: =J15*(1+Precios_año!I21) -> 0.9973996204 | L15: =K15*(1+Precios_año!J21) -> 1.019011733 | M15: =L15*(1+Precios_año!K21) -> 1.043396178 | N15: =M15*(1+Precios_año!L21) -> 1.048980999 | O15: =N15*(1+Precios_año!M21) -> 1.051656599 | P15: =O15*(1+Precios_año!N21) -> 1.070001559 | Q15: =P15*(1+Precios_año!O21) -> 1.09637741 | R15: =Q15*(1+Precios_año!P21) -> 1.123174285 | S15: =R15*(1+Precios_año!Q21) -> 1.158595824 | T15: =S15*(1+Precios_año!R21) -> 1.176004467 | U15: =T15*(1+Precios_año!S21) -> 1.206771526 | V15: =U15*(1+Precios_año!T21) -> 1.242192771 | W15: =V15*(1+Precios_año!U21) -> 1.267553964 | X15: =W15*(1+Precios_año!V21) -> 1.289682144 | Y15: =X15*(1+Precios_año!W21) -> 1.33924509 | Z15: =Y15*(1+Precios_año!X21) -> 1.381060254 | AA15: =Z15*(1+Precios_año!Y21) -> 1.41290788 | AB15: =AA15*(1+Precios_año!Z21) -> 1.451400531 | AC15: =AB15*(1+Precios_año!AA21) -> 1.488231926 | AD15: =AC15*(1+Precios_año!AB21) -> 1.523402065
B16: Nivel 2 | E16: 1 | F16: =E16*(1+Precios_año!D22) -> 0.9573735849 | G16: =F16*(1+Precios_año!E22) -> 0.9782255447 | H16: =G16*(1+Precios_año!F22) -> 0.9509565486 | I16: =H16*(1+Precios_año!G22) -> 0.9559722954 | J16: =I16*(1+Precios_año!H22) -> 0.9748210808 | K16: =J16*(1+Precios_año!I22) -> 1.00054565 | L16: =K16*(1+Precios_año!J22) -> 1.02394869 | M16: =L16*(1+Precios_año!K22) -> 1.048134241 | N16: =M16*(1+Precios_año!L22) -> 1.054215789 | O16: =N16*(1+Precios_año!M22) -> 1.056839027 | P16: =O16*(1+Precios_año!N22) -> 1.076037232 | Q16: =P16*(1+Precios_año!O22) -> 1.10324347 | R16: =Q16*(1+Precios_año!P22) -> 1.129748579 | S16: =R16*(1+Precios_año!Q22) -> 1.165891235 | T16: =S16*(1+Precios_año!R22) -> 1.184503709 | U16: =T16*(1+Precios_año!S22) -> 1.217751938 | V16: =U16*(1+Precios_año!T22) -> 1.256156524 | W16: =V16*(1+Precios_año!U22) -> 1.28237922 | X16: =W16*(1+Precios_año!V22) -> 1.306381425 | Y16: =X16*(1+Precios_año!W22) -> 1.352671787 | Z16: =Y16*(1+Precios_año!X22) -> 1.394968599 | AA16: =Z16*(1+Precios_año!Y22) -> 1.42601203 | AB16: =AA16*(1+Precios_año!Z22) -> 1.464557715 | AC16: =AB16*(1+Precios_año!AA22) -> 1.501227836 | AD16: =AC16*(1+Precios_año!AB22) -> 1.536022394
B17: Nivel 3 | E17: 1 | F17: =E17*(1+Precios_año!D23) -> 0.9727935067 | G17: =F17*(1+Precios_año!E23) -> 0.9864104818 | H17: =G17*(1+Precios_año!F23) -> 0.9560809391 | I17: =H17*(1+Precios_año!G23) -> 0.9644713798 | J17: =I17*(1+Precios_año!H23) -> 0.9824027447 | K17: =J17*(1+Precios_año!I23) -> 1.016783011 | L17: =K17*(1+Precios_año!J23) -> 1.041310854 | M17: =L17*(1+Precios_año!K23) -> 1.073209992 | N17: =M17*(1+Precios_año!L23) -> 1.079643835 | O17: =N17*(1+Precios_año!M23) -> 1.081630171 | P17: =O17*(1+Precios_año!N23) -> 1.102807883 | Q17: =P17*(1+Precios_año!O23) -> 1.136418992 | R17: =Q17*(1+Precios_año!P23) -> 1.167398181 | S17: =R17*(1+Precios_año!Q23) -> 1.206964966 | T17: =S17*(1+Precios_año!R23) -> 1.230637362 | U17: =T17*(1+Precios_año!S23) -> 1.269569023 | V17: =U17*(1+Precios_año!T23) -> 1.313829264 | W17: =V17*(1+Precios_año!U23) -> 1.346125118 | X17: =W17*(1+Precios_año!V23) -> 1.374971053 | Y17: =X17*(1+Precios_año!W23) -> 1.429580711 | Z17: =Y17*(1+Precios_año!X23) -> 1.472999716 | AA17: =Z17*(1+Precios_año!Y23) -> 1.505322339 | AB17: =AA17*(1+Precios_año!Z23) -> 1.54504255 | AC17: =AB17*(1+Precios_año!AA23) -> 1.582913364 | AD17: =AC17*(1+Precios_año!AB23) -> 1.618934781
B18: Nivel 4 | E18: 1 | F18: =E18*(1+Precios_año!D24) -> 0.9729419948 | G18: =F18*(1+Precios_año!E24) -> 0.9755454634 | H18: =G18*(1+Precios_año!F24) -> 0.9414917916 | I18: =H18*(1+Precios_año!G24) -> 0.9492589124 | J18: =I18*(1+Precios_año!H24) -> 0.9582960801 | K18: =J18*(1+Precios_año!I24) -> 0.9892738169 | L18: =K18*(1+Precios_año!J24) -> 1.014973923 | M18: =L18*(1+Precios_año!K24) -> 1.036725016 | N18: =M18*(1+Precios_año!L24) -> 1.052064581 | O18: =N18*(1+Precios_año!M24) -> 1.056819875 | P18: =O18*(1+Precios_año!N24) -> 1.067080978 | Q18: =P18*(1+Precios_año!O24) -> 1.106241076 | R18: =Q18*(1+Precios_año!P24) -> 1.140814822 | S18: =R18*(1+Precios_año!Q24) -> 1.170786848 | T18: =S18*(1+Precios_año!R24) -> 1.200502524 | U18: =T18*(1+Precios_año!S24) -> 1.244274799 | V18: =U18*(1+Precios_año!T24) -> 1.278223013 | W18: =V18*(1+Precios_año!U24) -> 1.317645777 | X18: =W18*(1+Precios_año!V24) -> 1.350493398 | Y18: =X18*(1+Precios_año!W24) -> 1.417832691 | Z18: =Y18*(1+Precios_año!X24) -> 1.461828105 | AA18: =Z18*(1+Precios_año!Y24) -> 1.501264268 | AB18: =AA18*(1+Precios_año!Z24) -> 1.543739932 | AC18: =AB18*(1+Precios_año!AA24) -> 1.585455721 | AD18: =AC18*(1+Precios_año!AB24) -> 1.626411634
A19: Esperdo MR | B19: Promedio mercado Regulado | E19: =AVERAGE(E13:E18) -> 1 | F19: =AVERAGE(F13:F18) -> 0.9601920447 | G19: =AVERAGE(G13:G18) -> 0.9807685638 | H19: 0.9528296313 | I19: 0.9586813296 | J19: 0.9734838929 | K19: =AVERAGE(K13:K18) -> 0.9997051386 | L19: =AVERAGE(L13:L18) -> 1.022786913 | M19: =AVERAGE(M13:M18) -> 1.047953492 | N19: 1.05540055 | O19: =AVERAGE(O13:O18) -> 1.058298103 | P19: =AVERAGE(P13:P18) -> 1.075900946 | Q19: =AVERAGE(Q13:Q18) -> 1.105769775 | R19: 1.134520967 | S19: =AVERAGE(S13:S18) -> 1.169841564 | T19: =AVERAGE(T13:T18) -> 1.190562116 | U19: =AVERAGE(U13:U18) -> 1.225289635 | V19: 1.262438579 | W19: =AVERAGE(W13:W18) -> 1.291462096 | X19: =AVERAGE(X13:X18) -> 1.316822477 | Y19: =AVERAGE(Y13:Y18) -> 1.368551806 | Z19: 1.411063678 | AA19: =AVERAGE(AA13:AA18) -> 1.4437422 | AB19: =AVERAGE(AB13:AB18) -> 1.482976288 | AC19: =AVERAGE(AC13:AC18) -> 1.520571485 | AD19: 1.55652779
B21: Indexador tarifa y Precio pactado (excedentes de energía) | D21: =Tablero!$H$7 -> Min (IPP,IPC) | E21: =SUMIF(FC_EPC!$A$6:$A$19,Tablero!$H$7,FC_EPC!E6:E19) -> 1 | F21: =SUMIF(FC_EPC!$A$6:$A$19,Tablero!$H$7,FC_EPC!F6:F19) -> 1.089 | G21: =SUMIF(FC_EPC!$A$6:$A$19,Tablero!$H$7,FC_EPC!G6:G19) -> 1.127115 | H21: =SUMIF(FC_EPC!$A$6:$A$19,Tablero!$H$7,FC_EPC!H6:H19) -> 1.14740307 | I21: =SUMIF(FC_EPC!$A$6:$A$19,Tablero!$H$7,FC_EPC!I6:I19) -> 1.178382953 | J21: =SUMIF(FC_EPC!$A$6:$A$19,Tablero!$H$7,FC_EPC!J6:J19) -> 1.210199293 | K21: =SUMIF(FC_EPC!$A$6:$A$19,Tablero!$H$7,FC_EPC!K6:K19) -> 1.242874674 | L21: =SUMIF(FC_EPC!$A$6:$A$19,Tablero!$H$7,FC_EPC!L6:L19) -> 1.27643229 | M21: =SUMIF(FC_EPC!$A$6:$A$19,Tablero!$H$7,FC_EPC!M6:M19) -> 1.310895962 | N21: =SUMIF(FC_EPC!$A$6:$A$19,Tablero!$H$7,FC_EPC!N6:N19) -> 1.35022284 | O21: =SUMIF(FC_EPC!$A$6:$A$19,Tablero!$H$7,FC_EPC!O6:O19) -> 1.390729526 | P21: =SUMIF(FC_EPC!$A$6:$A$19,Tablero!$H$7,FC_EPC!P6:P19) -> 1.432451411 | Q21: =SUMIF(FC_EPC!$A$6:$A$19,Tablero!$H$7,FC_EPC!Q6:Q19) -> 1.475424954 | R21: =SUMIF(FC_EPC!$A$6:$A$19,Tablero!$H$7,FC_EPC!R6:R19) -> 1.519687702 | S21: =SUMIF(FC_EPC!$A$6:$A$19,Tablero!$H$7,FC_EPC!S6:S19) -> 1.565278333 | T21: =SUMIF(FC_EPC!$A$6:$A$19,Tablero!$H$7,FC_EPC!T6:T19) -> 1.612236683 | U21: =SUMIF(FC_EPC!$A$6:$A$19,Tablero!$H$7,FC_EPC!U6:U19) -> 1.660603784 | V21: =SUMIF(FC_EPC!$A$6:$A$19,Tablero!$H$7,FC_EPC!V6:V19) -> 1.710421897 | W21: =SUMIF(FC_EPC!$A$6:$A$19,Tablero!$H$7,FC_EPC!W6:W19) -> 1.761734554 | X21: =SUMIF(FC_EPC!$A$6:$A$19,Tablero!$H$7,FC_EPC!X6:X19) -> 1.814586591 | Y21: =SUMIF(FC_EPC!$A$6:$A$19,Tablero!$H$7,FC_EPC!Y6:Y19) -> 1.869024189 | Z21: =SUMIF(FC_EPC!$A$6:$A$19,Tablero!$H$7,FC_EPC!Z6:Z19) -> 1.925094914 | AA21: =SUMIF(FC_EPC!$A$6:$A$19,Tablero!$H$7,FC_EPC!AA6:AA19) -> 1.982847762 | AB21: =SUMIF(FC_EPC!$A$6:$A$19,Tablero!$H$7,FC_EPC!AB6:AB19) -> 2.042333195 | AC21: =SUMIF(FC_EPC!$A$6:$A$19,Tablero!$H$7,FC_EPC!AC6:AC19) -> 2.10360319 | AD21: =SUMIF(FC_EPC!$A$6:$A$19,Tablero!$H$7,FC_EPC!AD6:AD19) -> 2.166711286
B23: Proyección tarifa EPC | C23: $/kWh
B24: CUVn,m,i,j - Tarifa servicio de energía | E24: =SUMIFS(Index_precios_meses!$D$40:$AY$40,Index_precios_meses!$D$3:$AY$3,$E$2) -> 494.8637971 | F24: =SUM(F25:F30) -> 516.2166422 | G24: =SUM(G25:G30) -> 530.2949857 | H24: 530.4514168 | I24: 541.3715117 | J24: 554.4051396 | K24: 570.907892 | L24: 585.7512226 | M24: 602.305305 | N24: 615.344186 | O24: 627.8681428 | P24: 644.5034173 | Q24: 663.941395 | R24: 683.2517301 | S24: 704.63669 | T24: 723.3279515 | U24: 745.4207509 | V24: 768.9887228 | W24: 790.6683514 | X24: 812.1355717 | Y24: 839.1083639 | Z24: 864.3854099 | AA24: 887.9997954 | AB24: 913.5777014 | AC24: 939.3291699 | AD24: 965.2702411
B25: Gm,i,j | E25: =SUMIFS(Index_precios_meses!$D41:$AY41,Index_precios_meses!$D$3:$AY$3,$E$2) -> 275.6168201 | F25: =$E$25*F21 -> 300.1467171 | G25: =$E$25*G21 -> 310.6518522 | H25: 316.2435855 | I25: 324.7821623 | J25: 333.5512807 | K25: 342.5571653 | L25: 351.8062087 | M25: 361.3049764 | N25: 372.1441257 | O25: 383.3084494 | P25: 394.8077029 | Q25: 406.651934 | R25: 418.851492 | S25: 431.4170368 | T25: 444.3595479 | U25: 457.6903343 | V25: 471.4210444 | W25: 485.5636757 | X25: 500.130586 | Y25: 515.1345035 | Z25: 530.5885386 | AA25: 546.5061948 | AB25: 562.9013806 | AC25: 579.7884221 | AD25: 597.1820747
B26: Tm | E26: =SUMIFS(Index_precios_meses!$D42:$AY42,Index_precios_meses!$D$3:$AY$3,$E$2) -> 44.9143166 | F26: =$E$26*SUMIF($B$13:$B$18,Tablero!$G$3,F$13:F$18) -> 43.69235555 | G26: =$E$26*SUMIF($B$13:$B$18,Tablero!$G$3,G$13:G$18) -> 44.30395268 | H26: =$E$26*SUMIF($B$13:$B$18,Tablero!$G$3,H$13:H$18) -> 42.941722 | I26: =$E$26*SUMIF($B$13:$B$18,Tablero!$G$3,I$13:I$18) -> 43.31857291 | J26: =$E$26*SUMIF($B$13:$B$18,Tablero!$G$3,J$13:J$18) -> 44.12394791 | K26: =$E$26*SUMIF($B$13:$B$18,Tablero!$G$3,K$13:K$18) -> 45.66811408 | L26: =$E$26*SUMIF($B$13:$B$18,Tablero!$G$3,L$13:L$18) -> 46.76976538 | M26: =$E$26*SUMIF($B$13:$B$18,Tablero!$G$3,M$13:M$18) -> 48.20249334 | N26: =$E$26*SUMIF($B$13:$B$18,Tablero!$G$3,N$13:N$18) -> 48.49146501 | O26: =$E$26*SUMIF($B$13:$B$18,Tablero!$G$3,O$13:O$18) -> 48.58067993 | P26: =$E$26*SUMIF($B$13:$B$18,Tablero!$G$3,P$13:P$18) -> 49.5318624 | Q26: =$E$26*SUMIF($B$13:$B$18,Tablero!$G$3,Q$13:Q$18) -> 51.0414824 | R26: =$E$26*SUMIF($B$13:$B$18,Tablero!$G$3,R$13:R$18) -> 52.4328915 | S26: =$E$26*SUMIF($B$13:$B$18,Tablero!$G$3,S$13:S$18) -> 54.21000663 | T26: =$E$26*SUMIF($B$13:$B$18,Tablero!$G$3,T$13:T$18) -> 55.27323612 | U26: =$E$26*SUMIF($B$13:$B$18,Tablero!$G$3,U$13:U$18) -> 57.02182506 | V26: =$E$26*SUMIF($B$13:$B$18,Tablero!$G$3,V$13:V$18) -> 59.00974352 | W26: =$E$26*SUMIF($B$13:$B$18,Tablero!$G$3,W$13:W$18) -> 60.46028975 | X26: =$E$26*SUMIF($B$13:$B$18,Tablero!$G$3,X$13:X$18) -> 61.75588518 | Y26: =$E$26*SUMIF($B$13:$B$18,Tablero!$G$3,Y$13:Y$18) -> 64.20864066 | Z26: =$E$26*SUMIF($B$13:$B$18,Tablero!$G$3,Z$13:Z$18) -> 66.15877561 | AA26: =$E$26*SUMIF($B$13:$B$18,Tablero!$G$3,AA$13:AA$18) -> 67.61052412 | AB26: =$E$26*SUMIF($B$13:$B$18,Tablero!$G$3,AB$13:AB$18) -> 69.39453025 | AC26: =$E$26*SUMIF($B$13:$B$18,Tablero!$G$3,AC$13:AC$18) -> 71.09547198 | AD26: =$E$26*SUMIF($B$13:$B$18,Tablero!$G$3,AD$13:AD$18) -> 72.71334931
B27: Dn,m | E27: =SUMIFS(Index_precios_meses!$D43:$AY43,Index_precios_meses!$D$3:$AY$3,$E$2) -> 88.79258786 | F27: =$E$27*SUMIF($B$13:$B$18,Tablero!$G$3,F$13:F$18) -> 86.37685292 | G27: =$E$27*SUMIF($B$13:$B$18,Tablero!$G$3,G$13:G$18) -> 87.58593937 | H27: =$E$27*SUMIF($B$13:$B$18,Tablero!$G$3,H$13:H$18) -> 84.89290079 | I27: =$E$27*SUMIF($B$13:$B$18,Tablero!$G$3,I$13:I$18) -> 85.63790973 | J27: =$E$27*SUMIF($B$13:$B$18,Tablero!$G$3,J$13:J$18) -> 87.23008202 | K27: =$E$27*SUMIF($B$13:$B$18,Tablero!$G$3,K$13:K$18) -> 90.28279484 | L27: =$E$27*SUMIF($B$13:$B$18,Tablero!$G$3,L$13:L$18) -> 92.46068549 | M27: =$E$27*SUMIF($B$13:$B$18,Tablero!$G$3,M$13:M$18) -> 95.29309247 | N27: =$E$27*SUMIF($B$13:$B$18,Tablero!$G$3,N$13:N$18) -> 95.86437005 | O27: =$E$27*SUMIF($B$13:$B$18,Tablero!$G$3,O$13:O$18) -> 96.04074195 | P27: =$E$27*SUMIF($B$13:$B$18,Tablero!$G$3,P$13:P$18) -> 97.92116582 | Q27: =$E$27*SUMIF($B$13:$B$18,Tablero!$G$3,Q$13:Q$18) -> 100.9055832 | R27: =$E$27*SUMIF($B$13:$B$18,Tablero!$G$3,R$13:R$18) -> 103.6563055 | S27: =$E$27*SUMIF($B$13:$B$18,Tablero!$G$3,S$13:S$18) -> 107.1695428 | T27: =$E$27*SUMIF($B$13:$B$18,Tablero!$G$3,T$13:T$18) -> 109.2714761 | U27: =$E$27*SUMIF($B$13:$B$18,Tablero!$G$3,U$13:U$18) -> 112.728319 | V27: =$E$27*SUMIF($B$13:$B$18,Tablero!$G$3,V$13:V$18) -> 116.6583003 | W27: =$E$27*SUMIF($B$13:$B$18,Tablero!$G$3,W$13:W$18) -> 119.5259328 | X27: =$E$27*SUMIF($B$13:$B$18,Tablero!$G$3,X$13:X$18) -> 122.087238 | Y27: =$E$27*SUMIF($B$13:$B$18,Tablero!$G$3,Y$13:Y$18) -> 126.9361709 | Z27: =$E$27*SUMIF($B$13:$B$18,Tablero!$G$3,Z$13:Z$18) -> 130.7914567 | AA27: =$E$27*SUMIF($B$13:$B$18,Tablero!$G$3,AA$13:AA$18) -> 133.661466 | AB27: =$E$27*SUMIF($B$13:$B$18,Tablero!$G$3,AB$13:AB$18) -> 137.1883264 | AC27: =$E$27*SUMIF($B$13:$B$18,Tablero!$G$3,AC$13:AC$18) -> 140.5509739 | AD27: =$E$27*SUMIF($B$13:$B$18,Tablero!$G$3,AD$13:AD$18) -> 143.7494088
B28: CVm,i,j | E28: =SUMIFS(Index_precios_meses!$D44:$AY44,Index_precios_meses!$D$3:$AY$3,$E$2) -> 23.9908239 | F28: =$E$28*F21 -> 26.12600723 | G28: =$E$28*G21 -> 27.04041748 | H28: 27.527145 | I28: 28.27037791 | J28: 29.03367811 | K28: 29.81758742 | L28: 30.62266228 | M28: 31.44947416 | N28: 32.39295839 | O28: 33.36474714 | P28: 34.36568956 | Q28: 35.39666024 | R28: 36.45856005 | S28: 37.55231685 | T28: 38.67888636 | U28: 39.83925295 | V28: 41.03443054 | W28: 42.26546345 | X28: 43.53342736 | Y28: 44.83943018 | Z28: 46.18461308 | AA28: 47.57015147 | AB28: 48.99725602 | AC28: 50.4671737 | AD28: 51.98118891
B29: PRn,m,i,j | E29: =SUMIFS(Index_precios_meses!$D45:$AY45,Index_precios_meses!$D$3:$AY$3,$E$2) -> 19.84238605 | F29: =$E$29*SUMIF($B$13:$B$18,Tablero!$G$3,F$13:F$18) -> 19.3025443 | G29: =$E$29*SUMIF($B$13:$B$18,Tablero!$G$3,G$13:G$18) -> 19.57273758 | H29: =$E$29*SUMIF($B$13:$B$18,Tablero!$G$3,H$13:H$18) -> 18.97092708 | I29: =$E$29*SUMIF($B$13:$B$18,Tablero!$G$3,I$13:I$18) -> 19.13741345 | J29: =$E$29*SUMIF($B$13:$B$18,Tablero!$G$3,J$13:J$18) -> 19.49321451 | K29: =$E$29*SUMIF($B$13:$B$18,Tablero!$G$3,K$13:K$18) -> 20.17540103 | L29: =$E$29*SUMIF($B$13:$B$18,Tablero!$G$3,L$13:L$18) -> 20.66209196 | M29: =$E$29*SUMIF($B$13:$B$18,Tablero!$G$3,M$13:M$18) -> 21.29504696 | N29: =$E$29*SUMIF($B$13:$B$18,Tablero!$G$3,N$13:N$18) -> 21.42270976 | O29: =$E$29*SUMIF($B$13:$B$18,Tablero!$G$3,O$13:O$18) -> 21.4621234 | P29: =$E$29*SUMIF($B$13:$B$18,Tablero!$G$3,P$13:P$18) -> 21.88233974 | Q29: =$E$29*SUMIF($B$13:$B$18,Tablero!$G$3,Q$13:Q$18) -> 22.54926435 | R29: =$E$29*SUMIF($B$13:$B$18,Tablero!$G$3,R$13:R$18) -> 23.16396537 | S29: =$E$29*SUMIF($B$13:$B$18,Tablero!$G$3,S$13:S$18) -> 23.94906481 | T29: =$E$29*SUMIF($B$13:$B$18,Tablero!$G$3,T$13:T$18) -> 24.41878163 | U29: =$E$29*SUMIF($B$13:$B$18,Tablero!$G$3,U$13:U$18) -> 25.19127867 | V29: =$E$29*SUMIF($B$13:$B$18,Tablero!$G$3,V$13:V$18) -> 26.06950745 | W29: =$E$29*SUMIF($B$13:$B$18,Tablero!$G$3,W$13:W$18) -> 26.71033426 | X29: =$E$29*SUMIF($B$13:$B$18,Tablero!$G$3,X$13:X$18) -> 27.28270643 | Y29: =$E$29*SUMIF($B$13:$B$18,Tablero!$G$3,Y$13:Y$18) -> 28.36629235 | Z29: =$E$29*SUMIF($B$13:$B$18,Tablero!$G$3,Z$13:Z$18) -> 29.22782901 | AA29: =$E$29*SUMIF($B$13:$B$18,Tablero!$G$3,AA$13:AA$18) -> 29.86918697 | AB29: =$E$29*SUMIF($B$13:$B$18,Tablero!$G$3,AB$13:AB$18) -> 30.65733073 | AC29: =$E$29*SUMIF($B$13:$B$18,Tablero!$G$3,AC$13:AC$18) -> 31.40877804 | AD29: =$E$29*SUMIF($B$13:$B$18,Tablero!$G$3,AD$13:AD$18) -> 32.1235289
B30: Rm,i | E30: =SUMIFS(Index_precios_meses!$D46:$AY46,Index_precios_meses!$D$3:$AY$3,$E$2) -> 41.70686264 | F30: =$E$30*SUMIF($B$13:$B$18,Tablero!$G$3,F$13:F$18) -> 40.57216516 | G30: =$E$30*SUMIF($B$13:$B$18,Tablero!$G$3,G$13:G$18) -> 41.14008647 | H30: =$E$30*SUMIF($B$13:$B$18,Tablero!$G$3,H$13:H$18) -> 39.8751364 | I30: =$E$30*SUMIF($B$13:$B$18,Tablero!$G$3,I$13:I$18) -> 40.22507535 | J30: =$E$30*SUMIF($B$13:$B$18,Tablero!$G$3,J$13:J$18) -> 40.97293633 | K30: =$E$30*SUMIF($B$13:$B$18,Tablero!$G$3,K$13:K$18) -> 42.40682937 | L30: =$E$30*SUMIF($B$13:$B$18,Tablero!$G$3,L$13:L$18) -> 43.42980875 | M30: =$E$30*SUMIF($B$13:$B$18,Tablero!$G$3,M$13:M$18) -> 44.7602217 | N30: =$E$30*SUMIF($B$13:$B$18,Tablero!$G$3,N$13:N$18) -> 45.02855711 | O30: =$E$30*SUMIF($B$13:$B$18,Tablero!$G$3,O$13:O$18) -> 45.11140095 | P30: =$E$30*SUMIF($B$13:$B$18,Tablero!$G$3,P$13:P$18) -> 45.99465688 | Q30: =$E$30*SUMIF($B$13:$B$18,Tablero!$G$3,Q$13:Q$18) -> 47.3964708 | R30: =$E$30*SUMIF($B$13:$B$18,Tablero!$G$3,R$13:R$18) -> 48.68851557 | S30: =$E$30*SUMIF($B$13:$B$18,Tablero!$G$3,S$13:S$18) -> 50.33872206 | T30: =$E$30*SUMIF($B$13:$B$18,Tablero!$G$3,T$13:T$18) -> 51.32602343 | U30: =$E$30*SUMIF($B$13:$B$18,Tablero!$G$3,U$13:U$18) -> 52.94974085 | V30: =$E$30*SUMIF($B$13:$B$18,Tablero!$G$3,V$13:V$18) -> 54.79569663 | W30: =$E$30*SUMIF($B$13:$B$18,Tablero!$G$3,W$13:W$18) -> 56.1426554 | X30: =$E$30*SUMIF($B$13:$B$18,Tablero!$G$3,X$13:X$18) -> 57.34572882 | Y30: =$E$30*SUMIF($B$13:$B$18,Tablero!$G$3,Y$13:Y$18) -> 59.62332633 | Z30: =$E$30*SUMIF($B$13:$B$18,Tablero!$G$3,Z$13:Z$18) -> 61.43419682 | AA30: =$E$30*SUMIF($B$13:$B$18,Tablero!$G$3,AA$13:AA$18) -> 62.78227201 | AB30: =$E$30*SUMIF($B$13:$B$18,Tablero!$G$3,AB$13:AB$18) -> 64.43887739 | AC30: =$E$30*SUMIF($B$13:$B$18,Tablero!$G$3,AC$13:AC$18) -> 66.01835023 | AD30: =$E$30*SUMIF($B$13:$B$18,Tablero!$G$3,AD$13:AD$18) -> 67.52069052
B33: Variación anual Dn,m | F33: =(F27-E27)/E27 -> -0.02720649325 | G33: =(G27-F27)/F27 -> 0.01399780631 | H33: -0.03074738485 | I33: 0.008775868576 | J33: 0.01859190979 | K33: 0.0349961017 | L33: 0.02412298658 | M33: 0.03063363592 | N33: 0.005994952692 | O33: 0.001839806676 | P33: 0.01957943913 | Q33: 0.0304777558 | R33: 0.02726035831 | S33: 0.03389313615 | T33: 0.01961315914 | U33: 0.03163536384 | V33: 0.03486241382 | W33: 0.02458146986 | X33: 0.0214288657 | Y33: 0.03971695122 | Z33: 0.03037184604 | AA33: 0.02194340052 | AB33: 0.0263865154 | AC33: 0.02451117867 | AD33: 0.02275640457
E34: 1 | F34: =E34*(1+F33) -> 0.9727935067 | G34: =F34*(1+G33) -> 0.9864104818 | H34: 0.9560809391 | I34: 0.9644713798 | J34: 0.9824027447 | K34: 1.016783011 | L34: 1.041310854 | M34: 1.073209992 | N34: 1.079643835 | O34: 1.081630171 | P34: 1.102807883 | Q34: 1.136418992 | R34: 1.167398181 | S34: 1.206964966 | T34: 1.230637362 | U34: 1.269569023 | V34: 1.313829264 | W34: 1.346125118 | X34: 1.374971053 | Y34: 1.429580711 | Z34: 1.472999716 | AA34: 1.505322339 | AB34: 1.54504255 | AC34: 1.582913364 | AD34: 1.618934781
B36: Precio de Bolsa | C36: $/kWh
B37: Pbolsa anual | C37: =Tablero!$G$12 -> Bolsa alta hidrología | E37: =SUMIFS(Precios_año!C$3:C$5,Precios_año!$B$3:$B$5,Tablero!$G$12) -> 185.8732602 | F37: =SUMIFS(Precios_año!D$3:D$5,Precios_año!$B$3:$B$5,Tablero!$G$12) -> 195.4855745 | G37: =SUMIFS(Precios_año!E$3:E$5,Precios_año!$B$3:$B$5,Tablero!$G$12) -> 169.6157431 | H37: =SUMIFS(Precios_año!F$3:F$5,Precios_año!$B$3:$B$5,Tablero!$G$12) -> 159.572956 | I37: =SUMIFS(Precios_año!G$3:G$5,Precios_año!$B$3:$B$5,Tablero!$G$12) -> 156.2006121 | J37: =SUMIFS(Precios_año!H$3:H$5,Precios_año!$B$3:$B$5,Tablero!$G$12) -> 157.4428236 | K37: =SUMIFS(Precios_año!I$3:I$5,Precios_año!$B$3:$B$5,Tablero!$G$12) -> 144.5758426 | L37: =SUMIFS(Precios_año!J$3:J$5,Precios_año!$B$3:$B$5,Tablero!$G$12) -> 150.8124723 | M37: =SUMIFS(Precios_año!K$3:K$5,Precios_año!$B$3:$B$5,Tablero!$G$12) -> 116.7475068 | N37: =SUMIFS(Precios_año!L$3:L$5,Precios_año!$B$3:$B$5,Tablero!$G$12) -> 151.9121024 | O37: =SUMIFS(Precios_año!M$3:M$5,Precios_año!$B$3:$B$5,Tablero!$G$12) -> 166.1994911 | P37: =SUMIFS(Precios_año!N$3:N$5,Precios_año!$B$3:$B$5,Tablero!$G$12) -> 181.5298879 | Q37: =SUMIFS(Precios_año!O$3:O$5,Precios_año!$B$3:$B$5,Tablero!$G$12) -> 162.2989569 | R37: =SUMIFS(Precios_año!P$3:P$5,Precios_año!$B$3:$B$5,Tablero!$G$12) -> 175.2145902 | S37: =SUMIFS(Precios_año!Q$3:Q$5,Precios_año!$B$3:$B$5,Tablero!$G$12) -> 195.3719746 | T37: =SUMIFS(Precios_año!R$3:R$5,Precios_año!$B$3:$B$5,Tablero!$G$12) -> 203.7846166 | U37: =SUMIFS(Precios_año!S$3:S$5,Precios_año!$B$3:$B$5,Tablero!$G$12) -> 179.1807097 | V37: =SUMIFS(Precios_año!T$3:T$5,Precios_año!$B$3:$B$5,Tablero!$G$12) -> 184.0467085 | W37: =SUMIFS(Precios_año!U$3:U$5,Precios_año!$B$3:$B$5,Tablero!$G$12) -> 191.6535311 | X37: =SUMIFS(Precios_año!V$3:V$5,Precios_año!$B$3:$B$5,Tablero!$G$12) -> 193.3119349 | Y37: =SUMIFS(Precios_año!W$3:W$5,Precios_año!$B$3:$B$5,Tablero!$G$12) -> 176.9070728 | Z37: =SUMIFS(Precios_año!X$3:X$5,Precios_año!$B$3:$B$5,Tablero!$G$12) -> 192.3538701 | AA37: =SUMIFS(Precios_año!Y$3:Y$5,Precios_año!$B$3:$B$5,Tablero!$G$12) -> 201.2626755 | AB37: =SUMIFS(Precios_año!Z$3:Z$5,Precios_año!$B$3:$B$5,Tablero!$G$12) -> 214.5301422 | AC37: =SUMIFS(Precios_año!AA$3:AA$5,Precios_año!$B$3:$B$5,Tablero!$G$12) -> 226.7079435 | AD37: =SUMIFS(Precios_año!AB$3:AB$5,Precios_año!$B$3:$B$5,Tablero!$G$12) -> 237.7960796
B39: Precio de venta de excedentes pactado libremente | D39: $/kWh
B40: Precio pactado (excedentes de energía) | E40: =SUMIFS(Index_precios_meses!$D$52:$AY$52,Index_precios_meses!$D$3:$AY$3,$E$2) -> 194.2952756 | F40: =$E$40*F21 -> 211.5875552 | G40: =$E$40*G21 -> 218.9931196 | H40: 222.9349957 | I40: 228.9542406 | J40: 235.1360051 | K40: 241.4846773 | L40: 248.0047635 | M40: 254.7008922 | N40: 262.3419189 | O40: 270.2121765 | P40: 278.3185418 | Q40: 286.668098 | R40: 295.268141 | S40: 304.1261852 | T40: 313.2499708 | U40: 322.6474699 | V40: 332.326894 | W40: 342.2967008 | X40: 352.5656018 | Y40: 363.1425699 | Z40: 374.036847 | AA40: 385.2579524 | AB40: 396.815691 | AC40: 408.7201617 | AD40: 420.9817665
B42: Gasto servicio de energía del cliente sin proyecto
B43: Demanda de energía anual | C43: kWh/año | E43: =Operación!E19 -> 523875.26 | F43: =Operación!F19 -> 801875.93 | G43: =Operación!G19 -> 780871.9762 | H43: =Operación!H19 -> 779950.4575 | I43: =Operación!I19 -> 819838.4396 | J43: =Operación!J19 -> 824918.2195 | K43: =Operación!K19 -> 822305.3318 | L43: =Operación!L19 -> 819967.1165 | M43: =Operación!M19 -> 780871.9762 | N43: =Operación!N19 -> 779950.4575 | O43: =Operación!O19 -> 819838.4396 | P43: =Operación!P19 -> 824918.2195 | Q43: =Operación!Q19 -> 822305.3318 | R43: =Operación!R19 -> 819967.1165 | S43: =Operación!S19 -> 780871.9762 | T43: =Operación!T19 -> 779950.4575 | U43: =Operación!U19 -> 819838.4396 | V43: =Operación!V19 -> 824918.2195 | W43: =Operación!W19 -> 822305.3318 | X43: =Operación!X19 -> 819967.1165 | Y43: =Operación!Y19 -> 780871.9762 | Z43: =Operación!Z19 -> 779950.4575 | AA43: =Operación!AA19 -> 819838.4396 | AB43: =Operación!AB19 -> 824918.2195 | AC43: =Operación!AC19 -> 814286.5725 | AD43: =Operación!AD19 -> 811948.3572
B44: Factura Servicio de energía | C44: $COP mm | E44: =E43*E24/Inputs!$C$5 -> 259.2469004 | F44: =F43*F24/Inputs!$C$5 -> 413.9417001 | G44: =G43*G24/Inputs!$C$5 -> 414.0924935 | H44: =H43*H24/Inputs!$C$5 -> 413.7258252 | I44: =I43*I24/Inputs!$C$5 -> 443.8371753 | J44: =J43*J24/Inputs!$C$5 -> 457.3389006 | K44: =K43*K24/Inputs!$C$5 -> 469.4606036 | L44: =L43*L24/Inputs!$C$5 -> 480.296741 | M44: =M43*M24/Inputs!$C$5 -> 470.3233338 | N44: =N43*N24/Inputs!$C$5 -> 479.9379794 | O44: =O43*O24/Inputs!$C$5 -> 514.7504384 | P44: =P43*P24/Inputs!$C$5 -> 531.6626115 | Q44: =Q43*Q24/Inputs!$C$5 -> 545.9625491 | R44: =R43*R24/Inputs!$C$5 -> 560.2439509 | S44: =S43*S24/Inputs!$C$5 -> 550.2310446 | T44: =T43*T24/Inputs!$C$5 -> 564.1599667 | U44: =U43*U24/Inputs!$C$5 -> 611.1245852 | V44: =V43*V24/Inputs!$C$5 -> 634.3528081 | W44: =W43*W24/Inputs!$C$5 -> 650.170801 | X44: =X43*X24/Inputs!$C$5 -> 665.9244629 | Y44: =Y43*Y24/Inputs!$C$5 -> 655.2362063 | Z44: =Z43*Z24/Inputs!$C$5 -> 674.1777959 | AA44: =AA43*AA24/Inputs!$C$5 -> 728.0163666 | AB44: =AB43*AB24/Inputs!$C$5 -> 753.6268908 | AC44: =AC43*AC24/Inputs!$C$5 -> 764.8831302 | AD44: =AD43*AD24/Inputs!$C$5 -> 783.7495865
B46: Liqudación y ahorro esperado | C46: Capacidad <= 1MW y excedentes vendidos al comercializdor que atiende al usuario
B47: Liquidación CREG 174 de 2021 | C47: $COP mm | D47: =E47/$E$44 -> 0.7039504158 | E47: =IF(Tablero!$D$13<=100,-(((Operación!E11-Operación!E23)*E24-(Operación!E11*E28))/Inputs!$C$5),IF(AND(Tablero!$D$13>100,Tablero!$D$13<=1000),-((Operación!E11-Operación!E23)*E24-(Operación!E11*(E28+E26+E27+E29+E30)))/Inputs!$C$5)) -> 182.4969633 | F47: =IF(Tablero!$D$13<=100,-(((Operación!F11-Operación!F23)*F24-(Operación!F11*F28)+Operación!F12*F37)/Inputs!$C$5),IF(AND(Tablero!$D$13>100,Tablero!$D$13<=1000),-((Operación!F11-Operación!F23)*F24-(Operación!F11*(F28+F26+F27+F29+F30))+Operación!F12*F37)/Inputs!$C$5)) -> 272.4117487 | G47: =IF(Tablero!$D$13<=100,-(((Operación!G11-Operación!G23)*G24-(Operación!G11*G28)+Operación!G12*G37)/Inputs!$C$5),IF(AND(Tablero!$D$13>100,Tablero!$D$13<=1000),-((Operación!G11-Operación!G23)*G24-(Operación!G11*(G28+G26+G27+G29+G30))+Operación!G12*G37)/Inputs!$C$5)) -> 266.6500674 | H47: =IF(Tablero!$D$13<=100,-(((Operación!H11-Operación!H23)*H24-(Operación!H11*H28)+Operación!H12*H37)/Inputs!$C$5),IF(AND(Tablero!$D$13>100,Tablero!$D$13<=1000),-((Operación!H11-Operación!H23)*H24-(Operación!H11*(H28+H26+H27+H29+H30))+Operación!H12*H37)/Inputs!$C$5)) -> 266.6847364 | I47: =IF(Tablero!$D$13<=100,-(((Operación!I11-Operación!I23)*I24-(Operación!I11*I28)+Operación!I12*I37)/Inputs!$C$5),IF(AND(Tablero!$D$13>100,Tablero!$D$13<=1000),-((Operación!I11-Operación!I23)*I24-(Operación!I11*(I28+I26+I27+I29+I30))+Operación!I12*I37)/Inputs!$C$5)) -> 300.6666739 | J47: =IF(Tablero!$D$13<=100,-(((Operación!J11-Operación!J23)*J24-(Operación!J11*J28)+Operación!J12*J37)/Inputs!$C$5),IF(AND(Tablero!$D$13>100,Tablero!$D$13<=1000),-((Operación!J11-Operación!J23)*J24-(Operación!J11*(J28+J26+J27+J29+J30))+Operación!J12*J37)/Inputs!$C$5)) -> 312.6526281 | K47: =IF(Tablero!$D$13<=100,-(((Operación!K11-Operación!K23)*K24-(Operación!K11*K28)+Operación!K12*K37)/Inputs!$C$5),IF(AND(Tablero!$D$13>100,Tablero!$D$13<=1000),-((Operación!K11-Operación!K23)*K24-(Operación!K11*(K28+K26+K27+K29+K30))+Operación!K12*K37)/Inputs!$C$5)) -> 320.9069383 | L47: =IF(Tablero!$D$13<=100,-(((Operación!L11-Operación!L23)*L24-(Operación!L11*L28)+Operación!L12*L37)/Inputs!$C$5),IF(AND(Tablero!$D$13>100,Tablero!$D$13<=1000),-((Operación!L11-Operación!L23)*L24-(Operación!L11*(L28+L26+L27+L29+L30))+Operación!L12*L37)/Inputs!$C$5)) -> 328.3799553 | M47: =IF(Tablero!$D$13<=100,-(((Operación!M11-Operación!M23)*M24-(Operación!M11*M28)+Operación!M12*M37)/Inputs!$C$5),IF(AND(Tablero!$D$13>100,Tablero!$D$13<=1000),-((Operación!M11-Operación!M23)*M24-(Operación!M11*(M28+M26+M27+M29+M30))+Operación!M12*M37)/Inputs!$C$5)) -> 309.5001731 | N47: =IF(Tablero!$D$13<=100,-(((Operación!N11-Operación!N23)*N24-(Operación!N11*N28)+Operación!N12*N37)/Inputs!$C$5),IF(AND(Tablero!$D$13>100,Tablero!$D$13<=1000),-((Operación!N11-Operación!N23)*N24-(Operación!N11*(N28+N26+N27+N29+N30))+Operación!N12*N37)/Inputs!$C$5)) -> 315.9297499 | O47: =IF(Tablero!$D$13<=100,-(((Operación!O11-Operación!O23)*O24-(Operación!O11*O28)+Operación!O12*O37)/Inputs!$C$5),IF(AND(Tablero!$D$13>100,Tablero!$D$13<=1000),-((Operación!O11-Operación!O23)*O24-(Operación!O11*(O28+O26+O27+O29+O30))+Operación!O12*O37)/Inputs!$C$5)) -> 355.1713874 | P47: =IF(Tablero!$D$13<=100,-(((Operación!P11-Operación!P23)*P24-(Operación!P11*P28)+Operación!P12*P37)/Inputs!$C$5),IF(AND(Tablero!$D$13>100,Tablero!$D$13<=1000),-((Operación!P11-Operación!P23)*P24-(Operación!P11*(P28+P26+P27+P29+P30))+Operación!P12*P37)/Inputs!$C$5)) -> 370.1607733 | Q47: =IF(Tablero!$D$13<=100,-(((Operación!Q11-Operación!Q23)*Q24-(Operación!Q11*Q28)+Operación!Q12*Q37)/Inputs!$C$5),IF(AND(Tablero!$D$13>100,Tablero!$D$13<=1000),-((Operación!Q11-Operación!Q23)*Q24-(Operación!Q11*(Q28+Q26+Q27+Q29+Q30))+Operación!Q12*Q37)/Inputs!$C$5)) -> 379.8637348 | R47: =IF(Tablero!$D$13<=100,-(((Operación!R11-Operación!R23)*R24-(Operación!R11*R28)+Operación!R12*R37)/Inputs!$C$5),IF(AND(Tablero!$D$13>100,Tablero!$D$13<=1000),-((Operación!R11-Operación!R23)*R24-(Operación!R11*(R28+R26+R27+R29+R30))+Operación!R12*R37)/Inputs!$C$5)) -> 389.4095065 | S47: =IF(Tablero!$D$13<=100,-(((Operación!S11-Operación!S23)*S24-(Operación!S11*S28)+Operación!S12*S37)/Inputs!$C$5),IF(AND(Tablero!$D$13>100,Tablero!$D$13<=1000),-((Operación!S11-Operación!S23)*S24-(Operación!S11*(S28+S26+S27+S29+S30))+Operación!S12*S37)/Inputs!$C$5)) -> 366.7944189 | T47: =IF(Tablero!$D$13<=100,-(((Operación!T11-Operación!T23)*T24-(Operación!T11*T28)+Operación!T12*T37)/Inputs!$C$5),IF(AND(Tablero!$D$13>100,Tablero!$D$13<=1000),-((Operación!T11-Operación!T23)*T24-(Operación!T11*(T28+T26+T27+T29+T30))+Operación!T12*T37)/Inputs!$C$5)) -> 376.4004377 | U47: =IF(Tablero!$D$13<=100,-(((Operación!U11-Operación!U23)*U24-(Operación!U11*U28)+Operación!U12*U37)/Inputs!$C$5),IF(AND(Tablero!$D$13>100,Tablero!$D$13<=1000),-((Operación!U11-Operación!U23)*U24-(Operación!U11*(U28+U26+U27+U29+U30))+Operación!U12*U37)/Inputs!$C$5)) -> 427.2218376 | V47: =IF(Tablero!$D$13<=100,-(((Operación!V11-Operación!V23)*V24-(Operación!V11*V28)+Operación!V12*V37)/Inputs!$C$5),IF(AND(Tablero!$D$13>100,Tablero!$D$13<=1000),-((Operación!V11-Operación!V23)*V24-(Operación!V11*(V28+V26+V27+V29+V30))+Operación!V12*V37)/Inputs!$C$5)) -> 447.1157312 | W47: =IF(Tablero!$D$13<=100,-(((Operación!W11-Operación!W23)*W24-(Operación!W11*W28)+Operación!W12*W37)/Inputs!$C$5),IF(AND(Tablero!$D$13>100,Tablero!$D$13<=1000),-((Operación!W11-Operación!W23)*W24-(Operación!W11*(W28+W26+W27+W29+W30))+Operación!W12*W37)/Inputs!$C$5)) -> 457.706638 | X47: =IF(Tablero!$D$13<=100,-(((Operación!X11-Operación!X23)*X24-(Operación!X11*X28)+Operación!X12*X37)/Inputs!$C$5),IF(AND(Tablero!$D$13>100,Tablero!$D$13<=1000),-((Operación!X11-Operación!X23)*X24-(Operación!X11*(X28+X26+X27+X29+X30))+Operación!X12*X37)/Inputs!$C$5)) -> 468.5017317 | Y47: =IF(Tablero!$D$13<=100,-(((Operación!Y11-Operación!Y23)*Y24-(Operación!Y11*Y28)+Operación!Y12*Y37)/Inputs!$C$5),IF(AND(Tablero!$D$13>100,Tablero!$D$13<=1000),-((Operación!Y11-Operación!Y23)*Y24-(Operación!Y11*(Y28+Y26+Y27+Y29+Y30))+Operación!Y12*Y37)/Inputs!$C$5)) -> 443.9426825 | Z47: =IF(Tablero!$D$13<=100,-(((Operación!Z11-Operación!Z23)*Z24-(Operación!Z11*Z28)+Operación!Z12*Z37)/Inputs!$C$5),IF(AND(Tablero!$D$13>100,Tablero!$D$13<=1000),-((Operación!Z11-Operación!Z23)*Z24-(Operación!Z11*(Z28+Z26+Z27+Z29+Z30))+Operación!Z12*Z37)/Inputs!$C$5)) -> 457.9777476 | AA47: =IF(Tablero!$D$13<=100,-(((Operación!AA11-Operación!AA23)*AA24-(Operación!AA11*AA28)+Operación!AA12*AA37)/Inputs!$C$5),IF(AND(Tablero!$D$13>100,Tablero!$D$13<=1000),-((Operación!AA11-Operación!AA23)*AA24-(Operación!AA11*(AA28+AA26+AA27+AA29+AA30))+Operación!AA12*AA37)/Inputs!$C$5)) -> 517.4739175 | AB47: =IF(Tablero!$D$13<=100,-(((Operación!AB11-Operación!AB23)*AB24-(Operación!AB11*AB28)+Operación!AB12*AB37)/Inputs!$C$5),IF(AND(Tablero!$D$13>100,Tablero!$D$13<=1000),-((Operación!AB11-Operación!AB23)*AB24-(Operación!AB11*(AB28+AB26+AB27+AB29+AB30))+Operación!AB12*AB37)/Inputs!$C$5)) -> 541.4368015 | AC47: =IF(Tablero!$D$13<=100,-(((Operación!AC11-Operación!AC23)*AC24-(Operación!AC11*AC28)+Operación!AC12*AC37)/Inputs!$C$5),IF(AND(Tablero!$D$13>100,Tablero!$D$13<=1000),-((Operación!AC11-Operación!AC23)*AC24-(Operación!AC11*(AC28+AC26+AC27+AC29+AC30))+Operación!AC12*AC37)/Inputs!$C$5)) -> 545.0484764 | AD47: =IF(Tablero!$D$13<=100,-(((Operación!AD11-Operación!AD23)*AD24-(Operación!AD11*AD28)+Operación!AD12*AD37)/Inputs!$C$5),IF(AND(Tablero!$D$13>100,Tablero!$D$13<=1000),-((Operación!AD11-Operación!AD23)*AD24-(Operación!AD11*(AD28+AD26+AD27+AD29+AD30))+Operación!AD12*AD37)/Inputs!$C$5)) -> 559.6030384
B48: Ingreso por venta de excedentes tipo 2 | C48: $COP mm | D48: =E48/$E$44 -> 0.001478593223 | E48: =Operación!E12*E37/Inputs!$C$5 -> 0.3833207099 | F48: =Operación!F12*F37/Inputs!$C$5 -> 1.069431063 | G48: =Operación!G12*G37/Inputs!$C$5 -> 3.239307804 | H48: =Operación!H12*H37/Inputs!$C$5 -> 3.136266092 | I48: =Operación!I12*I37/Inputs!$C$5 -> 0.8452694432 | J48: =Operación!J12*J37/Inputs!$C$5 -> 0.8476135497 | K48: =Operación!K12*K37/Inputs!$C$5 -> 0.7736283183 | L48: =Operación!L12*L37/Inputs!$C$5 -> 0.8013469659 | M48: =Operación!M12*M37/Inputs!$C$5 -> 2.207611831 | N48: =Operación!N12*N37/Inputs!$C$5 -> 2.955103011 | O48: =Operación!O12*O37/Inputs!$C$5 -> 0.8641552071 | P48: =Operación!P12*P37/Inputs!$C$5 -> 0.9381809666 | Q48: =Operación!Q12*Q37/Inputs!$C$5 -> 0.8344665803 | R48: =Operación!R12*R37/Inputs!$C$5 -> 0.896607107 | S48: =Operación!S12*S37/Inputs!$C$5 -> 3.659520865 | T48: =Operación!T12*T37/Inputs!$C$5 -> 3.931087075 | U48: =Operación!U12*U37/Inputs!$C$5 -> 0.9050240185 | V48: =Operación!V12*V37/Inputs!$C$5 -> 0.9259572242 | W48: =Operación!W12*W37/Inputs!$C$5 -> 0.9594668299 | X48: =Operación!X12*X37/Inputs!$C$5 -> 0.9624626829 | Y48: =Operación!Y12*Y37/Inputs!$C$5 -> 3.287741347 | Z48: =Operación!Z12*Z37/Inputs!$C$5 -> 3.678897093 | AA48: =Operación!AA12*AA37/Inputs!$C$5 -> 0.9781541294 | AB48: =Operación!AB12*AB37/Inputs!$C$5 -> 1.031087694 | AC48: =Operación!AC12*AC37/Inputs!$C$5 -> 1.076706558 | AD48: =Operación!AD12*AD37/Inputs!$C$5 -> 1.115683145
B49: Ahorro en autoconsumo | C49: $COP mm | D49: 0.2099258618 | E49: =Operación!E9*E24/Inputs!$C$5 -> 54.42262899 | F49: =Operación!F9*F24/Inputs!$C$5 -> 88.9304339 | G49: =Operación!G9*G24/Inputs!$C$5 -> 83.9814964 | H49: =Operación!H9*H24/Inputs!$C$5 -> 83.27596971 | I49: =Operación!I9*I24/Inputs!$C$5 -> 98.88277777 | J49: =Operación!J9*J24/Inputs!$C$5 -> 102.7514406 | K49: =Operación!K9*K24/Inputs!$C$5 -> 104.1753921 | L49: =Operación!L9*L24/Inputs!$C$5 -> 105.2354715 | M49: =Operación!M9*M24/Inputs!$C$5 -> 91.80776672 | N49: =Operación!N9*N24/Inputs!$C$5 -> 92.7006329 | O49: =Operación!O9*O24/Inputs!$C$5 -> 110.4913448 | P49: =Operación!P9*P24/Inputs!$C$5 -> 115.0774561 | Q49: =Operación!Q9*Q24/Inputs!$C$5 -> 116.7717167 | R49: =Operación!R9*R24/Inputs!$C$5 -> 118.5279073 | S49: =Operación!S9*S24/Inputs!$C$5 -> 103.4507895 | T49: =Operación!T9*T24/Inputs!$C$5 -> 105.2710138 | U49: =Operación!U9*U24/Inputs!$C$5 -> 127.6897799 | V49: =Operación!V9*V24/Inputs!$C$5 -> 133.9847923 | W49: =Operación!W9*W24/Inputs!$C$5 -> 135.6916597 | X49: =Operación!X9*X24/Inputs!$C$5 -> 137.3469671 | Y49: =Operación!Y9*Y24/Inputs!$C$5 -> 119.3226819 | Z49: =Operación!Z9*Z24/Inputs!$C$5 -> 121.3161757 | AA49: =Operación!AA9*AA24/Inputs!$C$5 -> 146.7775739 | AB49: =Operación!AB9*AB24/Inputs!$C$5 -> 152.7088571 | AC49: =Operación!AC9*AC24/Inputs!$C$5 -> 148.3766829 | AD49: =Operación!AD9*AD24/Inputs!$C$5 -> 149.1782337
B50: Ahorro en excedentes | C50: $COP mm | D50: =E50/$E$44 -> 0.08464512916 | E50: =E44-SUM(E47:E49) -> 21.94398737 | F50: =F44-SUM(F47:F49) -> 51.53008642 | G50: 60.22162191 | H50: 60.62885299 | I50: 43.44245421 | J50: 41.08721844 | K50: 43.60464489 | L50: 45.87996715 | M50: 66.80778215 | N50: 68.35249356 | O50: 48.22355111 | P50: 45.48620117 | Q50: 48.49263105 | R50: 51.40993006 | S50: 76.32631529 | T50: 78.55742816 | U50: 55.30794362 | V50: 52.32632739 | W50: 55.81303649 | X50: 59.11330145 | Y50: 88.68310067 | Z50: 91.20497553 | AA50: 62.78672098 | AB50: 58.45014461 | AC50: 70.3812644 | AD50: 73.85263124
B51: Ahorro e ingreso por el proyecto | C51: $COP mm | D51: =SUM(D47:D50) -> 1 | E51: =SUM(E48:E50) -> 76.74993707 | F51: =SUM(F48:F50) -> 141.5299514 | G51: =SUM(G48:G50) -> 147.4424261 | H51: =SUM(H48:H50) -> 147.0410888 | I51: 143.1705014 | J51: 144.6862726 | K51: 148.5536653 | L51: 151.9167856 | M51: 160.8231607 | N51: 164.0082295 | O51: 159.5790511 | P51: 161.5018382 | Q51: 166.0988143 | R51: 170.8344445 | S51: 183.4366256 | T51: 187.7595291 | U51: 183.9027476 | V51: 187.2370769 | W51: 192.464163 | X51: 197.4227313 | Y51: 211.2935239 | Z51: 216.2000483 | AA51: 210.542449 | AB51: 212.1900894 | AC51: 219.8346539 | AD51: 224.1465481
B53: Liqudación y ahorro esperado | C53: Capacidad > 1MW o precio de excedente pactado libremente
B54: Liquidación - Importaciónes de energía | C54: $COP mm | D54: =E54/$E$44 -> 0.7333504582 | E54: =Operación!E23*E24/Inputs!$C$5 -> 190.1188332 | F54: =Operación!F23*F24/Inputs!$C$5 -> 291.3885996 | G54: =Operación!G23*G24/Inputs!$C$5 -> 288.3944952 | H54: =Operación!H23*H24/Inputs!$C$5 -> 288.5721119 | I54: =Operación!I23*I24/Inputs!$C$5 -> 316.7030738 | J54: =Operación!J23*J24/Inputs!$C$5 -> 327.8130389 | K54: =Operación!K23*K24/Inputs!$C$5 -> 336.8870508 | L54: =Operación!L23*L24/Inputs!$C$5 -> 345.2292715 | M54: =Operación!M23*M24/Inputs!$C$5 -> 332.4869562 | N54: =Operación!N23*N24/Inputs!$C$5 -> 340.1330747 | O54: =Operación!O23*O24/Inputs!$C$5 -> 373.0782079 | P54: =Operación!P23*P24/Inputs!$C$5 -> 387.1126684 | Q54: =Operación!Q23*Q24/Inputs!$C$5 -> 397.8208955 | R54: =Operación!R23*R24/Inputs!$C$5 -> 408.5155532 | S54: =Operación!S23*S24/Inputs!$C$5 -> 394.4267325 | T54: =Operación!T23*T24/Inputs!$C$5 -> 404.9164134 | U54: =Operación!U23*U24/Inputs!$C$5 -> 447.7349312 | V54: =Operación!V23*V24/Inputs!$C$5 -> 466.4580789 | W54: =Operación!W23*W24/Inputs!$C$5 -> 478.395105 | X54: =Operación!X23*X24/Inputs!$C$5 -> 490.4523979 | Y54: =Operación!Y23*Y24/Inputs!$C$5 -> 475.0322891 | Z54: =Operación!Z23*Z24/Inputs!$C$5 -> 490.059075 | AA54: =Operación!AA23*AA24/Inputs!$C$5 -> 540.7278548 | AB54: =Operación!AB23*AB24/Inputs!$C$5 -> 563.0777496 | AC54: =Operación!AC23*AC24/Inputs!$C$5 -> 571.2843344 | AD54: =Operación!AD23*AD24/Inputs!$C$5 -> 587.21485
B55: Ahorro en autoconsumo | C55: $COP mm | D55: =E55/$E$44 -> 0.2099258618 | E55: =Operación!E9*E24/Inputs!$C$5 -> 54.42262899 | F55: =Operación!F9*F24/Inputs!$C$5 -> 88.9304339 | G55: =Operación!G9*G24/Inputs!$C$5 -> 83.9814964 | H55: =Operación!H9*H24/Inputs!$C$5 -> 83.27596971 | I55: =Operación!I9*I24/Inputs!$C$5 -> 98.88277777 | J55: =Operación!J9*J24/Inputs!$C$5 -> 102.7514406 | K55: =Operación!K9*K24/Inputs!$C$5 -> 104.1753921 | L55: =Operación!L9*L24/Inputs!$C$5 -> 105.2354715 | M55: =Operación!M9*M24/Inputs!$C$5 -> 91.80776672 | N55: =Operación!N9*N24/Inputs!$C$5 -> 92.7006329 | O55: =Operación!O9*O24/Inputs!$C$5 -> 110.4913448 | P55: =Operación!P9*P24/Inputs!$C$5 -> 115.0774561 | Q55: =Operación!Q9*Q24/Inputs!$C$5 -> 116.7717167 | R55: =Operación!R9*R24/Inputs!$C$5 -> 118.5279073 | S55: =Operación!S9*S24/Inputs!$C$5 -> 103.4507895 | T55: =Operación!T9*T24/Inputs!$C$5 -> 105.2710138 | U55: =Operación!U9*U24/Inputs!$C$5 -> 127.6897799 | V55: =Operación!V9*V24/Inputs!$C$5 -> 133.9847923 | W55: =Operación!W9*W24/Inputs!$C$5 -> 135.6916597 | X55: =Operación!X9*X24/Inputs!$C$5 -> 137.3469671 | Y55: =Operación!Y9*Y24/Inputs!$C$5 -> 119.3226819 | Z55: =Operación!Z9*Z24/Inputs!$C$5 -> 121.3161757 | AA55: =Operación!AA9*AA24/Inputs!$C$5 -> 146.7775739 | AB55: =Operación!AB9*AB24/Inputs!$C$5 -> 152.7088571 | AC55: =Operación!AC9*AC24/Inputs!$C$5 -> 148.3766829 | AD55: =Operación!AD9*AD24/Inputs!$C$5 -> 149.1782337
B56: Ingreso por venta de excedentes tipo 1 y 2 | C56: $COP mm | D56: 0.02227106346 | E56: =Operación!E10*E40/Inputs!$C$5 -> 5.77370417 | F56: =Operación!F10*F40/Inputs!$C$5 -> 13.78130272 | G56: =Operación!G10*G40/Inputs!$C$5 -> 17.22744348 | H56: =Operación!H10*H40/Inputs!$C$5 -> 17.6001313 | I56: =Operación!I10*I40/Inputs!$C$5 -> 11.9479142 | J56: =Operación!J10*J40/Inputs!$C$5 -> 11.35564949 | K56: =Operación!K10*K40/Inputs!$C$5 -> 12.01195632 | L56: =Operación!L10*L40/Inputs!$C$5 -> 12.63075058 | M56: =Operación!M10*M40/Inputs!$C$5 -> 19.46442801 | N56: =Operación!N10*N40/Inputs!$C$5 -> 20.08213504 | O56: =Operación!O10*O40/Inputs!$C$5 -> 13.41914715 | P56: =Operación!P10*P40/Inputs!$C$5 -> 12.72722437 | Q56: =Operación!Q10*Q40/Inputs!$C$5 -> 13.54450893 | R56: =Operación!R10*R40/Inputs!$C$5 -> 14.34763596 | S56: =Operación!S10*S40/Inputs!$C$5 -> 22.59615111 | T56: =Operación!T10*T40/Inputs!$C$5 -> 23.37376344 | U56: =Operación!U10*U40/Inputs!$C$5 -> 15.45231203 | V56: =Operación!V10*V40/Inputs!$C$5 -> 14.65455042 | W56: =Operación!W10*W40/Inputs!$C$5 -> 15.6215265 | X56: =Operación!X10*X40/Inputs!$C$5 -> 16.55092888 | Y56: =Operación!Y10*Y40/Inputs!$C$5 -> 26.34769147 | Z56: =Operación!Z10*Z40/Inputs!$C$5 -> 27.17591682 | AA56: =Operación!AA10*AA40/Inputs!$C$5 -> 17.57563575 | AB56: =Operación!AB10*AB40/Inputs!$C$5 -> 16.43606065 | AC56: =Operación!AC10*AC40/Inputs!$C$5 -> 19.67700984 | AD56: =Operación!AD10*AD40/Inputs!$C$5 -> 20.65351585
B57: Ahorro e ingreso por el proyecto | C57: $COP mm | D57: =SUM(D54:D56) -> 0.9655473835 | E57: =SUM(E55:E56) -> 60.19633316 | F57: =SUM(F55:F56) -> 102.7117366 | G57: 101.2089399 | H57: 100.876101 | I57: 110.830692 | J57: 114.1070901 | K57: 116.1873484 | L57: 117.8662221 | M57: 111.2721947 | N57: 112.7827679 | O57: 123.9104919 | P57: 127.8046804 | Q57: 130.3162256 | R57: 132.8755433 | S57: 126.0469406 | T57: 128.6447773 | U57: 143.142092 | V57: 148.6393427 | W57: 151.3131862 | X57: 153.897896 | Y57: 145.6703733 | Z57: 148.4920925 | AA57: 164.3532097 | AB57: 169.1449177 | AC57: 168.0536927 | AD57: 169.8317495
B58: Porcentaje de cobertura en la demanda total | D58: =AVERAGE(E58:AD58) -> 0.2349184701 | E58: =E57/E44 -> 0.2321969253 | F58: 0.2481309242 | G58: 0.2444114334 | H58: 0.2438235538 | I58: 0.2497102499 | J58: 0.2495022617 | K58: 0.247491158 | L58: 0.2454029187 | M58: 0.2365865921 | N58: 0.2349944634 | O58: 0.2407195461 | P58: 0.2403868124 | Q58: 0.238690778 | R58: 0.2371744363 | S58: 0.2290800234 | T58: 0.2280289011 | U58: 0.2342273498 | V58: 0.2343165204 | W58: 0.232728363 | X58: 0.2311041336 | Y58: 0.2223173444 | Z58: 0.2202565754 | AA58: 0.2257548281 | AB58: 0.224441192 | AC58: 0.2197115953 | AD58: 0.2166913418
B60: Margen sobre el LCOE del proyecto
B61: Precio de oportunidad | C61: $/kWh | E61: =IF(AND(Tablero!$D$13<=1000,Tablero!$L$24=Inputs!$Z$4),E51,E57)*Inputs!$C$5/Operación!E8 -> 549.4261134 | F61: =IF(AND(Tablero!$D$13<=1000,Tablero!$L$24=Inputs!$Z$4),F51,F57)*Inputs!$C$5/Operación!F8 -> 596.1506971 | G61: =IF(AND(Tablero!$D$13<=1000,Tablero!$L$24=Inputs!$Z$4),G51,G57)*Inputs!$C$5/Operación!G8 -> 622.0304245 | H61: =IF(AND(Tablero!$D$13<=1000,Tablero!$L$24=Inputs!$Z$4),H51,H57)*Inputs!$C$5/Operación!H8 -> 623.2188549 | I61: =IF(AND(Tablero!$D$13<=1000,Tablero!$L$24=Inputs!$Z$4),I51,I57)*Inputs!$C$5/Operación!I8 -> 609.6588552 | J61: =IF(AND(Tablero!$D$13<=1000,Tablero!$L$24=Inputs!$Z$4),J51,J57)*Inputs!$C$5/Operación!J8 -> 619.2957301 | K61: =IF(AND(Tablero!$D$13<=1000,Tablero!$L$24=Inputs!$Z$4),K51,K57)*Inputs!$C$5/Operación!K8 -> 639.7238223 | L61: =IF(AND(Tablero!$D$13<=1000,Tablero!$L$24=Inputs!$Z$4),L51,L57)*Inputs!$C$5/Operación!L8 -> 658.822167 | M61: =IF(AND(Tablero!$D$13<=1000,Tablero!$L$24=Inputs!$Z$4),M51,M57)*Inputs!$C$5/Operación!M8 -> 702.7509323 | N61: =IF(AND(Tablero!$D$13<=1000,Tablero!$L$24=Inputs!$Z$4),N51,N57)*Inputs!$C$5/Operación!N8 -> 721.8738907 | O61: =IF(AND(Tablero!$D$13<=1000,Tablero!$L$24=Inputs!$Z$4),O51,O57)*Inputs!$C$5/Operación!O8 -> 707.2282414 | P61: =IF(AND(Tablero!$D$13<=1000,Tablero!$L$24=Inputs!$Z$4),P51,P57)*Inputs!$C$5/Operación!P8 -> 720.0866664 | Q61: =IF(AND(Tablero!$D$13<=1000,Tablero!$L$24=Inputs!$Z$4),Q51,Q57)*Inputs!$C$5/Operación!Q8 -> 744.4218139 | R61: =IF(AND(Tablero!$D$13<=1000,Tablero!$L$24=Inputs!$Z$4),R51,R57)*Inputs!$C$5/Operación!R8 -> 769.2886202 | S61: =IF(AND(Tablero!$D$13<=1000,Tablero!$L$24=Inputs!$Z$4),S51,S57)*Inputs!$C$5/Operación!S8 -> 829.6059008 | T61: =IF(AND(Tablero!$D$13<=1000,Tablero!$L$24=Inputs!$Z$4),T51,T57)*Inputs!$C$5/Operación!T8 -> 852.8553444 | U61: =IF(AND(Tablero!$D$13<=1000,Tablero!$L$24=Inputs!$Z$4),U51,U57)*Inputs!$C$5/Operación!U8 -> 839.0061479 | V61: =IF(AND(Tablero!$D$13<=1000,Tablero!$L$24=Inputs!$Z$4),V51,V57)*Inputs!$C$5/Operación!V8 -> 857.5802308 | W61: =IF(AND(Tablero!$D$13<=1000,Tablero!$L$24=Inputs!$Z$4),W51,W57)*Inputs!$C$5/Operación!W8 -> 885.8955368 | X61: =IF(AND(Tablero!$D$13<=1000,Tablero!$L$24=Inputs!$Z$4),X51,X57)*Inputs!$C$5/Operación!X8 -> 913.7296167 | Y61: =IF(AND(Tablero!$D$13<=1000,Tablero!$L$24=Inputs!$Z$4),Y51,Y57)*Inputs!$C$5/Operación!Y8 -> 983.8751888 | Z61: =IF(AND(Tablero!$D$13<=1000,Tablero!$L$24=Inputs!$Z$4),Z51,Z57)*Inputs!$C$5/Operación!Z8 -> 1014.998184 | AA61: =IF(AND(Tablero!$D$13<=1000,Tablero!$L$24=Inputs!$Z$4),AA51,AA57)*Inputs!$C$5/Operación!AA8 -> 998.2547778 | AB61: =IF(AND(Tablero!$D$13<=1000,Tablero!$L$24=Inputs!$Z$4),AB51,AB57)*Inputs!$C$5/Operación!AB8 -> 1017.334074 | AC61: =IF(AND(Tablero!$D$13<=1000,Tablero!$L$24=Inputs!$Z$4),AC51,AC57)*Inputs!$C$5/Operación!AC8 -> 1066.623901 | AD61: =IF(AND(Tablero!$D$13<=1000,Tablero!$L$24=Inputs!$Z$4),AD51,AD57)*Inputs!$C$5/Operación!AD8 -> 1100.884232
B62: Precio nivelado LCOE - Precio de generación | C62: $/kWh | E62: =SUMIFS(Index_precios_meses!$D$55:$AY$55,Index_precios_meses!$D$3:$AY$3,$E$2) -> 261.2352878 | F62: =$E$62*F7 -> 284.4852285 | G62: 294.4422115 | H62: 299.7421713 | I62: 307.8352099 | J62: 316.1467606 | K62: 324.6827231 | L62: 333.4491566 | M62: 342.4522838 | N62: 352.7258524 | O62: 363.3076279 | P62: 374.2068568 | Q62: 385.4330625 | R62: 396.9960543 | S62: 408.905936 | T62: 421.1731141 | U62: 433.8083075 | V62: 446.8225567 | W62: 460.2272334 | X62: 474.0340504 | Y62: 488.2550719 | Z62: 502.9027241 | AA62: 517.9898058 | AB62: 533.5295 | AC62: 549.535385 | AD62: 566.0214465
B63: Margen retorno de la inversión | C63: $/kWh | E63: =E61-E62 -> 288.1908256 | F63: =F61-F62 -> 311.6654686 | G63: 327.5882131 | H63: 323.4766836 | I63: 301.8236453 | J63: 303.1489695 | K63: 315.0410992 | L63: 325.3730104 | M63: 360.2986485 | N63: 369.1480383 | O63: 343.9206135 | P63: 345.8798097 | Q63: 358.9887514 | R63: 372.2925659 | S63: 420.6999648 | T63: 431.6822303 | U63: 405.1978404 | V63: 410.7576741 | W63: 425.6683034 | X63: 439.6955662 | Y63: 495.6201169 | Z63: 512.09546 | AA63: 480.264972 | AB63: 483.8045738 | AC63: 517.0885164 | AD63: 534.8627856
B65: Certificado de reducción de emisiones de CO2
B66: Reducción de emisiones de efecto invernadero | C66: tonCO2eq | D66: =SUM(E66:AD66) -> 2873.587808 | E66: =Operación!E13 -> 70.40431341 | F66: =Operación!F13 -> 119.6527922 | G66: =Operación!G13 -> 119.4651899 | H66: =Operación!H13 -> 118.9128156 | I66: =Operación!I13 -> 118.3578851 | J66: =Operación!J13 -> 117.7496918 | K66: =Operación!K13 -> 117.0365159 | L66: =Operación!L13 -> 116.2165813 | M66: =Operación!M13 -> 115.339403 | N66: =Operación!N13 -> 114.5077398 | O66: =Operación!O13 -> 113.7226104 | P66: =Operación!P13 -> 113.0376804 | Q66: =Operación!Q13 -> 112.4547949 | R66: =Operación!R13 -> 111.9223108 | S66: =Operación!S13 -> 111.4409375 | T66: =Operación!T13 -> 110.957624 | U66: =Operación!U13 -> 110.4723547 | V66: =Operación!V13 -> 110.0392516 | W66: =Operación!W13 -> 109.4959102 | X66: =Operación!X13 -> 108.8955143 | Y66: =Operación!Y13 -> 108.2372411 | Z66: =Operación!Z13 -> 107.3546988 | AA66: =Operación!AA13 -> 106.2989095 | AB66: =Operación!AB13 -> 105.1216191 | AC66: =Operación!AC13 -> 103.8760386 | AD66: =Operación!AD13 -> 102.6173842
B67: Ingresos CER | C67: $COP mm | E67: =E66*Inputs!$Y$6/Inputs!$C$5 -> 0.7746868221 | F67: =F66*Inputs!$Y$6/Inputs!$C$5 -> 1.316587534 | G67: =G66*Inputs!$Y$6/Inputs!$C$5 -> 1.31452327 | H67: =H66*Inputs!$Y$6/Inputs!$C$5 -> 1.308445275 | I67: =I66*Inputs!$Y$6/Inputs!$C$5 -> 1.302339153 | J67: =J66*Inputs!$Y$6/Inputs!$C$5 -> 1.295646959 | K67: =K66*Inputs!$Y$6/Inputs!$C$5 -> 1.287799599 | L67: =L66*Inputs!$Y$6/Inputs!$C$5 -> 1.278777531 | M67: =M66*Inputs!$Y$6/Inputs!$C$5 -> 1.269125587 | N67: =N66*Inputs!$Y$6/Inputs!$C$5 -> 1.259974464 | O67: =O66*Inputs!$Y$6/Inputs!$C$5 -> 1.251335371 | P67: =P66*Inputs!$Y$6/Inputs!$C$5 -> 1.243798812 | Q67: =Q66*Inputs!$Y$6/Inputs!$C$5 -> 1.237385091 | R67: =R66*Inputs!$Y$6/Inputs!$C$5 -> 1.231525954 | S67: =S66*Inputs!$Y$6/Inputs!$C$5 -> 1.226229211 | T67: =T66*Inputs!$Y$6/Inputs!$C$5 -> 1.22091112 | U67: =U66*Inputs!$Y$6/Inputs!$C$5 -> 1.215571508 | V67: =V66*Inputs!$Y$6/Inputs!$C$5 -> 1.210805901 | W67: =W66*Inputs!$Y$6/Inputs!$C$5 -> 1.204827299 | X67: =X66*Inputs!$Y$6/Inputs!$C$5 -> 1.198220902 | Y67: =Y66*Inputs!$Y$6/Inputs!$C$5 -> 1.190977659 | Z67: =Z66*Inputs!$Y$6/Inputs!$C$5 -> 1.181266693 | AA67: =AA66*Inputs!$Y$6/Inputs!$C$5 -> 1.169649421 | AB67: =AB66*Inputs!$Y$6/Inputs!$C$5 -> 1.156695224 | AC67: =AC66*Inputs!$Y$6/Inputs!$C$5 -> 1.142989603 | AD67: =AD66*Inputs!$Y$6/Inputs!$C$5 -> 1.129140125
B69: Ahorros e ingresos del proyecto - EPC | E69: =Tablero!L24 -> Net Metering
B70: Ahorros | D70: $COP mm | E70: =IF($E$69=Inputs!$Z$4,E49+E50,E55) -> 76.36661636 | F70: =IF($E$69=Inputs!$Z$4,F49+F50,F55) -> 140.4605203 | G70: =IF($E$69=Inputs!$Z$4,G49+G50,G55) -> 144.2031183 | H70: =IF($E$69=Inputs!$Z$4,H49+H50,H55) -> 143.9048227 | I70: =IF($E$69=Inputs!$Z$4,I49+I50,I55) -> 142.325232 | J70: =IF($E$69=Inputs!$Z$4,J49+J50,J55) -> 143.838659 | K70: =IF($E$69=Inputs!$Z$4,K49+K50,K55) -> 147.780037 | L70: =IF($E$69=Inputs!$Z$4,L49+L50,L55) -> 151.1154386 | M70: =IF($E$69=Inputs!$Z$4,M49+M50,M55) -> 158.6155489 | N70: =IF($E$69=Inputs!$Z$4,N49+N50,N55) -> 161.0531265 | O70: =IF($E$69=Inputs!$Z$4,O49+O50,O55) -> 158.7148959 | P70: =IF($E$69=Inputs!$Z$4,P49+P50,P55) -> 160.5636572 | Q70: =IF($E$69=Inputs!$Z$4,Q49+Q50,Q55) -> 165.2643477 | R70: =IF($E$69=Inputs!$Z$4,R49+R50,R55) -> 169.9378374 | S70: =IF($E$69=Inputs!$Z$4,S49+S50,S55) -> 179.7771048 | T70: =IF($E$69=Inputs!$Z$4,T49+T50,T55) -> 183.828442 | U70: =IF($E$69=Inputs!$Z$4,U49+U50,U55) -> 182.9977236 | V70: =IF($E$69=Inputs!$Z$4,V49+V50,V55) -> 186.3111197 | W70: =IF($E$69=Inputs!$Z$4,W49+W50,W55) -> 191.5046962 | X70: =IF($E$69=Inputs!$Z$4,X49+X50,X55) -> 196.4602686 | Y70: =IF($E$69=Inputs!$Z$4,Y49+Y50,Y55) -> 208.0057825 | Z70: =IF($E$69=Inputs!$Z$4,Z49+Z50,Z55) -> 212.5211512 | AA70: =IF($E$69=Inputs!$Z$4,AA49+AA50,AA55) -> 209.5642949 | AB70: =IF($E$69=Inputs!$Z$4,AB49+AB50,AB55) -> 211.1590017 | AC70: =IF($E$69=Inputs!$Z$4,AC49+AC50,AC55) -> 218.7579473 | AD70: =IF($E$69=Inputs!$Z$4,AD49+AD50,AD55) -> 223.0308649
B71: Ingresos | D71: $COP mm | E71: =IF($E$69=Inputs!$Z$4,E48,E56) -> 0.3833207099 | F71: =IF($E$69=Inputs!$Z$4,F48,F56) -> 1.069431063 | G71: =IF($E$69=Inputs!$Z$4,G48,G56) -> 3.239307804 | H71: =IF($E$69=Inputs!$Z$4,H48,H56) -> 3.136266092 | I71: =IF($E$69=Inputs!$Z$4,I48,I56) -> 0.8452694432 | J71: =IF($E$69=Inputs!$Z$4,J48,J56) -> 0.8476135497 | K71: =IF($E$69=Inputs!$Z$4,K48,K56) -> 0.7736283183 | L71: =IF($E$69=Inputs!$Z$4,L48,L56) -> 0.8013469659 | M71: =IF($E$69=Inputs!$Z$4,M48,M56) -> 2.207611831 | N71: =IF($E$69=Inputs!$Z$4,N48,N56) -> 2.955103011 | O71: =IF($E$69=Inputs!$Z$4,O48,O56) -> 0.8641552071 | P71: =IF($E$69=Inputs!$Z$4,P48,P56) -> 0.9381809666 | Q71: =IF($E$69=Inputs!$Z$4,Q48,Q56) -> 0.8344665803 | R71: =IF($E$69=Inputs!$Z$4,R48,R56) -> 0.896607107 | S71: =IF($E$69=Inputs!$Z$4,S48,S56) -> 3.659520865 | T71: =IF($E$69=Inputs!$Z$4,T48,T56) -> 3.931087075 | U71: =IF($E$69=Inputs!$Z$4,U48,U56) -> 0.9050240185 | V71: =IF($E$69=Inputs!$Z$4,V48,V56) -> 0.9259572242 | W71: =IF($E$69=Inputs!$Z$4,W48,W56) -> 0.9594668299 | X71: =IF($E$69=Inputs!$Z$4,X48,X56) -> 0.9624626829 | Y71: =IF($E$69=Inputs!$Z$4,Y48,Y56) -> 3.287741347 | Z71: =IF($E$69=Inputs!$Z$4,Z48,Z56) -> 3.678897093 | AA71: =IF($E$69=Inputs!$Z$4,AA48,AA56) -> 0.9781541294 | AB71: =IF($E$69=Inputs!$Z$4,AB48,AB56) -> 1.031087694 | AC71: =IF($E$69=Inputs!$Z$4,AC48,AC56) -> 1.076706558 | AD71: =IF($E$69=Inputs!$Z$4,AD48,AD56) -> 1.115683145
B72: Otros ingresos (Ingreso CER - Capacidad > 1MW ) | D72: $COP mm | E72: =IF(Tablero!$D$13>1000,E67,0) -> 0 | F72: =IF(Tablero!$D$13>1000,F67,0) -> 0 | G72: =IF(Tablero!$D$13>1000,G67,0) -> 0 | H72: =IF(Tablero!$D$13>1000,H67,0) -> 0 | I72: =IF(Tablero!$D$13>1000,I67,0) -> 0 | J72: =IF(Tablero!$D$13>1000,J67,0) -> 0 | K72: =IF(Tablero!$D$13>1000,K67,0) -> 0 | L72: =IF(Tablero!$D$13>1000,L67,0) -> 0 | M72: =IF(Tablero!$D$13>1000,M67,0) -> 0 | N72: =IF(Tablero!$D$13>1000,N67,0) -> 0 | O72: =IF(Tablero!$D$13>1000,O67,0) -> 0 | P72: =IF(Tablero!$D$13>1000,P67,0) -> 0 | Q72: =IF(Tablero!$D$13>1000,Q67,0) -> 0 | R72: =IF(Tablero!$D$13>1000,R67,0) -> 0 | S72: =IF(Tablero!$D$13>1000,S67,0) -> 0 | T72: =IF(Tablero!$D$13>1000,T67,0) -> 0 | U72: =IF(Tablero!$D$13>1000,U67,0) -> 0 | V72: =IF(Tablero!$D$13>1000,V67,0) -> 0 | W72: =IF(Tablero!$D$13>1000,W67,0) -> 0 | X72: =IF(Tablero!$D$13>1000,X67,0) -> 0 | Y72: =IF(Tablero!$D$13>1000,Y67,0) -> 0 | Z72: =IF(Tablero!$D$13>1000,Z67,0) -> 0 | AA72: =IF(Tablero!$D$13>1000,AA67,0) -> 0 | AB72: =IF(Tablero!$D$13>1000,AB67,0) -> 0 | AC72: =IF(Tablero!$D$13>1000,AC67,0) -> 0 | AD72: =IF(Tablero!$D$13>1000,AD67,0) -> 0
B73: Total ahorros e ingresos | D73: $COP mm | E73: =SUM(E70:E72) -> 76.74993707 | F73: =SUM(F70:F72) -> 141.5299514 | G73: 147.4424261 | H73: 147.0410888 | I73: 143.1705014 | J73: 144.6862726 | K73: 148.5536653 | L73: 151.9167856 | M73: 160.8231607 | N73: 164.0082295 | O73: 159.5790511 | P73: 161.5018382 | Q73: 166.0988143 | R73: 170.8344445 | S73: 183.4366256 | T73: 187.7595291 | U73: 183.9027476 | V73: 187.2370769 | W73: 192.464163 | X73: 197.4227313 | Y73: 211.2935239 | Z73: 216.2000483 | AA73: 210.542449 | AB73: 212.1900894 | AC73: 219.8346539 | AD73: 224.1465481
B75: Desgloce ahorros e ingresos del nivelado de energía - LCOE
B76: Retorno por el LCOE | D76: $COP mm | E76: =E$62*Operación!E$8/Inputs!$C$5 -> 36.4922442 | F76: =F$62*Operación!F$8/Inputs!$C$5 -> 67.53859511 | G76: =G$62*Operación!G$8/Inputs!$C$5 -> 69.79284662 | H76: =H$62*Operación!H$8/Inputs!$C$5 -> 70.72060621 | I76: =I$62*Operación!I$8/Inputs!$C$5 -> 72.29111983 | J76: =J$62*Operación!J$8/Inputs!$C$5 -> 73.86147545 | K76: =K$62*Operación!K$8/Inputs!$C$5 -> 75.39629899 | L76: =L$62*Operación!L$8/Inputs!$C$5 -> 76.88952584 | M76: =M$62*Operación!M$8/Inputs!$C$5 -> 78.36952773 | N76: =N$62*Operación!N$8/Inputs!$C$5 -> 80.13857168 | O76: =O$62*Operación!O$8/Inputs!$C$5 -> 81.97676948 | P76: =P$62*Operación!P$8/Inputs!$C$5 -> 83.92752991 | Q76: =Q$62*Operación!Q$8/Inputs!$C$5 -> 85.99959524 | R76: =R$62*Operación!R$8/Inputs!$C$5 -> 88.16015033 | S76: =S$62*Operación!S$8/Inputs!$C$5 -> 90.41440643 | T76: =T$62*Operación!T$8/Inputs!$C$5 -> 92.72295246 | U76: =U$62*Operación!U$8/Inputs!$C$5 -> 95.08695481 | V76: =V$62*Operación!V$8/Inputs!$C$5 -> 97.55559469 | W76: =W$62*Operación!W$8/Inputs!$C$5 -> 99.98611077 | X76: =X$62*Operación!X$8/Inputs!$C$5 -> 102.4209955 | Y76: =Y$62*Operación!Y$8/Inputs!$C$5 -> 104.8559166 | Z76: =Z$62*Operación!Z$8/Inputs!$C$5 -> 107.1209732 | AA76: =AA$62*Operación!AA$8/Inputs!$C$5 -> 109.249507 | AB76: =AB$62*Operación!AB$8/Inputs!$C$5 -> 111.280724 | AC76: =AC$62*Operación!AC$8/Inputs!$C$5 -> 113.2610295 | AD76: =AD$62*Operación!AD$8/Inputs!$C$5 -> 115.245318
B77: Retorno por el margen del LCOE | D77: $COP mm | E77: =E$63*Operación!E$8/Inputs!$C$5 -> 40.25769286 | F77: =F$63*Operación!F$8/Inputs!$C$5 -> 73.99135627 | G77: =G$63*Operación!G$8/Inputs!$C$5 -> 77.6495795 | H77: =H$63*Operación!H$8/Inputs!$C$5 -> 76.32048258 | I77: =I$63*Operación!I$8/Inputs!$C$5 -> 70.87938159 | J77: =J$63*Operación!J$8/Inputs!$C$5 -> 70.8247971 | K77: =K$63*Operación!K$8/Inputs!$C$5 -> 73.15736632 | L77: =L$63*Operación!L$8/Inputs!$C$5 -> 75.02725976 | M77: =M$63*Operación!M$8/Inputs!$C$5 -> 82.45363297 | N77: =N$63*Operación!N$8/Inputs!$C$5 -> 83.86965778 | O77: =O$63*Operación!O$8/Inputs!$C$5 -> 77.60228161 | P77: =P$63*Operación!P$8/Inputs!$C$5 -> 77.57430829 | Q77: =Q$63*Operación!Q$8/Inputs!$C$5 -> 80.09921909 | R77: =R$63*Operación!R$8/Inputs!$C$5 -> 82.67429414 | S77: =S$63*Operación!S$8/Inputs!$C$5 -> 93.02221919 | T77: =T$63*Operación!T$8/Inputs!$C$5 -> 95.03657661 | U77: =U$63*Operación!U$8/Inputs!$C$5 -> 88.81579277 | V77: =V$63*Operación!V$8/Inputs!$C$5 -> 89.68148222 | W77: =W$63*Operación!W$8/Inputs!$C$5 -> 92.47805224 | X77: =X$63*Operación!X$8/Inputs!$C$5 -> 95.00173578 | Y77: =Y$63*Operación!Y$8/Inputs!$C$5 -> 106.4376073 | Z77: =Z$63*Operación!Z$8/Inputs!$C$5 -> 109.0790751 | AA77: =AA$63*Operación!AA$8/Inputs!$C$5 -> 101.2929421 | AB77: =AB$63*Operación!AB$8/Inputs!$C$5 -> 100.9093654 | AC77: =AC$63*Operación!AC$8/Inputs!$C$5 -> 106.5736244 | AD77: =AD$63*Operación!AD$8/Inputs!$C$5 -> 108.9012301
B78: Total Ahorros (LCOE) | D78: $COP mm | E78: =SUM(E76:E77)-E79 -> 76.36661636 | F78: =SUM(F76:F77)-F79 -> 140.4605203 | G78: 144.2031183 | H78: 143.9048227 | I78: 142.325232 | J78: 143.838659 | K78: 147.780037 | L78: 151.1154386 | M78: 158.6155489 | N78: 161.0531265 | O78: 158.7148959 | P78: 160.5636572 | Q78: 165.2643477 | R78: 169.9378374 | S78: 179.7771048 | T78: 183.828442 | U78: 182.9977236 | V78: 186.3111197 | W78: 191.5046962 | X78: 196.4602686 | Y78: 208.0057825 | Z78: 212.5211512 | AA78: 209.5642949 | AB78: 211.1590017 | AC78: 218.7579473 | AD78: 223.0308649
B79: Total Ingresos | D79: $COP mm | E79: =SUM(E71:E72) -> 0.3833207099 | F79: 1.069431063 | G79: 3.239307804 | H79: 3.136266092 | I79: 0.8452694432 | J79: 0.8476135497 | K79: 0.7736283183 | L79: 0.8013469659 | M79: 2.207611831 | N79: 2.955103011 | O79: 0.8641552071 | P79: 0.9381809666 | Q79: 0.8344665803 | R79: 0.896607107 | S79: 3.659520865 | T79: 3.931087075 | U79: 0.9050240185 | V79: 0.9259572242 | W79: 0.9594668299 | X79: 0.9624626829 | Y79: 3.287741347 | Z79: 3.678897093 | AA79: 0.9781541294 | AB79: 1.031087694 | AC79: 1.076706558 | AD79: 1.115683145
B81: Impuestos sobre los ingresos
B82: Rete Fuente | E82: =E79*Inputs!$V$5*Impuetos!D3 -> 0.003354056212 | F82: =F79*Inputs!$V$5*Impuetos!E3 -> 0.009357521798 | G82: =G79*Inputs!$V$5*Impuetos!F3 -> 0.03077342414 | H82: =H79*Inputs!$V$5*Impuetos!G3 -> 0.02979452787 | I82: =I79*Inputs!$V$5*Impuetos!H3 -> 0.00803005971 | J82: =J79*Inputs!$V$5*Impuetos!I3 -> 0.008052328722 | K82: =K79*Inputs!$V$5*Impuetos!J3 -> 0.007349469024 | L82: =L79*Inputs!$V$5*Impuetos!K3 -> 0.007612796176 | M82: =M79*Inputs!$V$5*Impuetos!L3 -> 0.02097231239 | N82: =N79*Inputs!$V$5*Impuetos!M3 -> 0.0280734786 | O82: =O79*Inputs!$V$5*Impuetos!N3 -> 0.008209474468 | P82: =P79*Inputs!$V$5*Impuetos!O3 -> 0.008912719183 | Q82: =Q79*Inputs!$V$5*Impuetos!P3 -> 0.007927432513 | R82: =R79*Inputs!$V$5*Impuetos!Q3 -> 0.008517767516 | S82: =S79*Inputs!$V$5*Impuetos!R3 -> 0.03476544822 | T82: =T79*Inputs!$V$5*Impuetos!S3 -> 0.03734532721 | U82: =U79*Inputs!$V$5*Impuetos!T3 -> 0.008597728176 | V82: =V79*Inputs!$V$5*Impuetos!U3 -> 0.00879659363 | W82: =W79*Inputs!$V$5*Impuetos!V3 -> 0.009114934884 | X82: =X79*Inputs!$V$5*Impuetos!W3 -> 0.009143395487 | Y82: =Y79*Inputs!$V$5*Impuetos!X3 -> 0.03123354279 | Z82: =Z79*Inputs!$V$5*Impuetos!Y3 -> 0.03494952238 | AA82: =AA79*Inputs!$V$5*Impuetos!Z3 -> 0.009292464229 | AB82: =AB79*Inputs!$V$5*Impuetos!AA3 -> 0.009795333096 | AC82: =AC79*Inputs!$V$5*Impuetos!AB3 -> 0.0102287123 | AD82: =AD79*Inputs!$V$5*Impuetos!AC3 -> 0.01059898988
B83: Rete ICA | E83: =E79*Inputs!$V$6*Impuetos!D4 -> 0.0007091433134 | F83: =F79*Inputs!$V$6*Impuetos!E4 -> 0.001978447466 | G83: =G79*Inputs!$V$6*Impuetos!F4 -> 0.005992719437 | H83: =H79*Inputs!$V$6*Impuetos!G4 -> 0.00580209227 | I83: =I79*Inputs!$V$6*Impuetos!H4 -> 0.00156374847 | J83: =J79*Inputs!$V$6*Impuetos!I4 -> 0.001568085067 | K83: =K79*Inputs!$V$6*Impuetos!J4 -> 0.001431212389 | L83: =L79*Inputs!$V$6*Impuetos!K4 -> 0.001482491887 | M83: =M79*Inputs!$V$6*Impuetos!L4 -> 0.004084081887 | N83: =N79*Inputs!$V$6*Impuetos!M4 -> 0.00546694057 | O83: =O79*Inputs!$V$6*Impuetos!N4 -> 0.001598687133 | P83: =P79*Inputs!$V$6*Impuetos!O4 -> 0.001735634788 | Q83: =Q79*Inputs!$V$6*Impuetos!P4 -> 0.001543763174 | R83: =R79*Inputs!$V$6*Impuetos!Q4 -> 0.001658723148 | S83: =S79*Inputs!$V$6*Impuetos!R4 -> 0.0067701136 | T83: =T79*Inputs!$V$6*Impuetos!S4 -> 0.007272511089 | U83: =U79*Inputs!$V$6*Impuetos!T4 -> 0.001674294434 | V83: =V79*Inputs!$V$6*Impuetos!U4 -> 0.001713020865 | W83: =W79*Inputs!$V$6*Impuetos!V4 -> 0.001775013635 | X83: =X79*Inputs!$V$6*Impuetos!W4 -> 0.001780555963 | Y83: =Y79*Inputs!$V$6*Impuetos!X4 -> 0.006082321491 | Z83: =Z79*Inputs!$V$6*Impuetos!Y4 -> 0.006805959622 | AA83: =AA79*Inputs!$V$6*Impuetos!Z4 -> 0.001809585139 | AB83: =AB79*Inputs!$V$6*Impuetos!AA4 -> 0.001907512234 | AC83: =AC79*Inputs!$V$6*Impuetos!AB4 -> 0.001991907132 | AD83: =AD79*Inputs!$V$6*Impuetos!AC4 -> 0.002064013818
B84: Movimientos financiero (GMF) | E84: =E79*Inputs!$V$4*Impuetos!D5 -> 0.0007666414199 | F84: =F79*Inputs!$V$4*Impuetos!E5 -> 0.002138862125 | G84: =G79*Inputs!$V$4*Impuetos!F5 -> 0.006478615608 | H84: =H79*Inputs!$V$4*Impuetos!G5 -> 0.006272532184 | I84: =I79*Inputs!$V$4*Impuetos!H5 -> 0.001690538886 | J84: =J79*Inputs!$V$4*Impuetos!I5 -> 0.001695227099 | K84: =K79*Inputs!$V$4*Impuetos!J5 -> 0.001547256637 | L84: =L79*Inputs!$V$4*Impuetos!K5 -> 0.001602693932 | M84: =M79*Inputs!$V$4*Impuetos!L5 -> 0.004415223662 | N84: =N79*Inputs!$V$4*Impuetos!M5 -> 0.005910206022 | O84: =O79*Inputs!$V$4*Impuetos!N5 -> 0.001728310414 | P84: =P79*Inputs!$V$4*Impuetos!O5 -> 0.001876361933 | Q84: =Q79*Inputs!$V$4*Impuetos!P5 -> 0.001668933161 | R84: =R79*Inputs!$V$4*Impuetos!Q5 -> 0.001793214214 | S84: =S79*Inputs!$V$4*Impuetos!R5 -> 0.00731904173 | T84: =T79*Inputs!$V$4*Impuetos!S5 -> 0.00786217415 | U84: =U79*Inputs!$V$4*Impuetos!T5 -> 0.001810048037 | V84: =V79*Inputs!$V$4*Impuetos!U5 -> 0.001851914448 | W84: =W79*Inputs!$V$4*Impuetos!V5 -> 0.00191893366 | X84: =X79*Inputs!$V$4*Impuetos!W5 -> 0.001924925366 | Y84: =Y79*Inputs!$V$4*Impuetos!X5 -> 0.006575482693 | Z84: =Z79*Inputs!$V$4*Impuetos!Y5 -> 0.007357794186 | AA84: =AA79*Inputs!$V$4*Impuetos!Z5 -> 0.001956308259 | AB84: =AB79*Inputs!$V$4*Impuetos!AA5 -> 0.002062175389 | AC84: =AC79*Inputs!$V$4*Impuetos!AB5 -> 0.002153413116 | AD84: =AD79*Inputs!$V$4*Impuetos!AC5 -> 0.00223136629
B85: Total Impuestos | E85: =SUM(E82:E84) -> 0.004829840945 | F85: =SUM(F82:F84) -> 0.01347483139 | G85: 0.04324475918 | H85: 0.04186915233 | I85: 0.01128434707 | J85: 0.01131564089 | K85: 0.01032793805 | L85: 0.01069798199 | M85: 0.02947161794 | N85: 0.03945062519 | O85: 0.01153647202 | P85: 0.0125247159 | Q85: 0.01114012885 | R85: 0.01196970488 | S85: 0.04885460355 | T85: 0.05248001245 | U85: 0.01208207065 | V85: 0.01236152894 | W85: 0.01280888218 | X85: 0.01284887682 | Y85: 0.04389134698 | Z85: 0.04911327619 | AA85: 0.01305835763 | AB85: 0.01376502072 | AC85: 0.01437403255 | AD85: 0.01489436998
B87: Costos de representación ante el mercado | E87: Capacidad > 1MW o precio de excedente pactado libremente
B88: FAZNI (Fondo de aportes a las Zonas no interconectadas) | D88: $COP mm | E88: =Inputs!$AG$4*E7*Operación!E10/Inputs!$C$5 -> 0.06418684637 | F88: =Inputs!$AG$4*F7*Operación!F10/Inputs!$C$5 -> 0.1532081199 | G88: =Inputs!$AG$4*G7*Operación!G10/Inputs!$C$5 -> 0.1915192111 | H88: =Inputs!$AG$4*H7*Operación!H10/Inputs!$C$5 -> 0.1956624189 | I88: =Inputs!$AG$4*I7*Operación!I10/Inputs!$C$5 -> 0.1328261565 | J88: =Inputs!$AG$4*J7*Operación!J10/Inputs!$C$5 -> 0.1262418905 | K88: =Inputs!$AG$4*K7*Operación!K10/Inputs!$C$5 -> 0.1335381191 | L88: =Inputs!$AG$4*L7*Operación!L10/Inputs!$C$5 -> 0.1404173167 | M88: =Inputs!$AG$4*M7*Operación!M10/Inputs!$C$5 -> 0.2163879918 | N88: =Inputs!$AG$4*N7*Operación!N10/Inputs!$C$5 -> 0.2232551026 | O88: =Inputs!$AG$4*O7*Operación!O10/Inputs!$C$5 -> 0.1491820002 | P88: =Inputs!$AG$4*P7*Operación!P10/Inputs!$C$5 -> 0.1414898254 | Q88: =Inputs!$AG$4*Q7*Operación!Q10/Inputs!$C$5 -> 0.1505756596 | R88: =Inputs!$AG$4*R7*Operación!R10/Inputs!$C$5 -> 0.159504103 | S88: =Inputs!$AG$4*S7*Operación!S10/Inputs!$C$5 -> 0.2512036705 | T88: =Inputs!$AG$4*T7*Operación!T10/Inputs!$C$5 -> 0.2598484645 | U88: =Inputs!$AG$4*U7*Operación!U10/Inputs!$C$5 -> 0.1717848974 | V88: =Inputs!$AG$4*V7*Operación!V10/Inputs!$C$5 -> 0.1629161018 | W88: =Inputs!$AG$4*W7*Operación!W10/Inputs!$C$5 -> 0.1736660715 | X88: =Inputs!$AG$4*X7*Operación!X10/Inputs!$C$5 -> 0.1839983307 | Y88: =Inputs!$AG$4*Y7*Operación!Y10/Inputs!$C$5 -> 0.2929099197 | Z88: =Inputs!$AG$4*Z7*Operación!Z10/Inputs!$C$5 -> 0.3021173836 | AA88: =Inputs!$AG$4*AA7*Operación!AA10/Inputs!$C$5 -> 0.1953900994 | AB88: =Inputs!$AG$4*AB7*Operación!AB10/Inputs!$C$5 -> 0.1827213291 | AC88: =Inputs!$AG$4*AC7*Operación!AC10/Inputs!$C$5 -> 0.2187512852 | AD88: =Inputs!$AG$4*AD7*Operación!AD10/Inputs!$C$5 -> 0.2296072001
B89: AGC (Costo del servicio de regulación secundaria de frecuencia) | D89: $COP mm | E89: =Inputs!$AG$5*E7*Operación!E10/Inputs!$C$5 -> 0.04457419887 | F89: =Inputs!$AG$5*F7*Operación!F10/Inputs!$C$5 -> 0.1063945277 | G89: =Inputs!$AG$5*G7*Operación!G10/Inputs!$C$5 -> 0.1329994522 | H89: =Inputs!$AG$5*H7*Operación!H10/Inputs!$C$5 -> 0.1358766798 | I89: =Inputs!$AG$5*I7*Operación!I10/Inputs!$C$5 -> 0.09224038643 | J89: =Inputs!$AG$5*J7*Operación!J10/Inputs!$C$5 -> 0.0876679795 | K89: =Inputs!$AG$5*K7*Operación!K10/Inputs!$C$5 -> 0.0927348049 | L89: =Inputs!$AG$5*L7*Operación!L10/Inputs!$C$5 -> 0.09751202548 | M89: =Inputs!$AG$5*M7*Operación!M10/Inputs!$C$5 -> 0.1502694387 | N89: =Inputs!$AG$5*N7*Operación!N10/Inputs!$C$5 -> 0.1550382657 | O89: =Inputs!$AG$5*O7*Operación!O10/Inputs!$C$5 -> 0.1035986112 | P89: =Inputs!$AG$5*P7*Operación!P10/Inputs!$C$5 -> 0.09825682323 | Q89: =Inputs!$AG$5*Q7*Operación!Q10/Inputs!$C$5 -> 0.1045664303 | R89: =Inputs!$AG$5*R7*Operación!R10/Inputs!$C$5 -> 0.1107667382 | S89: =Inputs!$AG$5*S7*Operación!S10/Inputs!$C$5 -> 0.1744469934 | T89: =Inputs!$AG$5*T7*Operación!T10/Inputs!$C$5 -> 0.1804503226 | U89: =Inputs!$AG$5*U7*Operación!U10/Inputs!$C$5 -> 0.1192950676 | V89: =Inputs!$AG$5*V7*Operación!V10/Inputs!$C$5 -> 0.1131361818 | W89: =Inputs!$AG$5*W7*Operación!W10/Inputs!$C$5 -> 0.1206014386 | X89: =Inputs!$AG$5*X7*Operación!X10/Inputs!$C$5 -> 0.1277766186 | Y89: =Inputs!$AG$5*Y7*Operación!Y10/Inputs!$C$5 -> 0.2034096664 | Z89: =Inputs!$AG$5*Z7*Operación!Z10/Inputs!$C$5 -> 0.2098037386 | AA89: =Inputs!$AG$5*AA7*Operación!AA10/Inputs!$C$5 -> 0.135687569 | AB89: =Inputs!$AG$5*AB7*Operación!AB10/Inputs!$C$5 -> 0.1268898119 | AC89: =Inputs!$AG$5*AC7*Operación!AC10/Inputs!$C$5 -> 0.1519106147 | AD89: =Inputs!$AG$5*AD7*Operación!AD10/Inputs!$C$5 -> 0.1594494445
B90: CND (Centro Nacional de Despacho) | D90: $COP mm | E90: =Inputs!$AG$6*E7*Operación!E10/Inputs!$C$5 -> 0.08381473292 | F90: =Inputs!$AG$6*F7*Operación!F10/Inputs!$C$5 -> 0.2000580863 | G90: =Inputs!$AG$6*G7*Operación!G10/Inputs!$C$5 -> 0.25008444 | H90: =Inputs!$AG$6*H7*Operación!H10/Inputs!$C$5 -> 0.2554946116 | I90: =Inputs!$AG$6*I7*Operación!I10/Inputs!$C$5 -> 0.1734434617 | J90: =Inputs!$AG$6*J7*Operación!J10/Inputs!$C$5 -> 0.1648457734 | K90: =Inputs!$AG$6*K7*Operación!K10/Inputs!$C$5 -> 0.1743731374 | L90: =Inputs!$AG$6*L7*Operación!L10/Inputs!$C$5 -> 0.1833559454 | M90: =Inputs!$AG$6*M7*Operación!M10/Inputs!$C$5 -> 0.282557919 | N90: =Inputs!$AG$6*N7*Operación!N10/Inputs!$C$5 -> 0.291524944 | O90: =Inputs!$AG$6*O7*Operación!O10/Inputs!$C$5 -> 0.1948008074 | P90: =Inputs!$AG$6*P7*Operación!P10/Inputs!$C$5 -> 0.1847564197 | Q90: =Inputs!$AG$6*Q7*Operación!Q10/Inputs!$C$5 -> 0.1966206381 | R90: =Inputs!$AG$6*R7*Operación!R10/Inputs!$C$5 -> 0.2082793368 | S90: =Inputs!$AG$6*S7*Operación!S10/Inputs!$C$5 -> 0.3280199876 | T90: =Inputs!$AG$6*T7*Operación!T10/Inputs!$C$5 -> 0.3393082988 | U90: =Inputs!$AG$6*U7*Operación!U10/Inputs!$C$5 -> 0.2243155118 | V90: =Inputs!$AG$6*V7*Operación!V10/Inputs!$C$5 -> 0.2127347009 | W90: =Inputs!$AG$6*W7*Operación!W10/Inputs!$C$5 -> 0.2267719358 | X90: =Inputs!$AG$6*X7*Operación!X10/Inputs!$C$5 -> 0.2402637272 | Y90: =Inputs!$AG$6*Y7*Operación!Y10/Inputs!$C$5 -> 0.3824797147 | Z90: =Inputs!$AG$6*Z7*Operación!Z10/Inputs!$C$5 -> 0.3945027564 | AA90: =Inputs!$AG$6*AA7*Operación!AA10/Inputs!$C$5 -> 0.2551390187 | AB90: =Inputs!$AG$6*AB7*Operación!AB10/Inputs!$C$5 -> 0.2385962275 | AC90: =Inputs!$AG$6*AC7*Operación!AC10/Inputs!$C$5 -> 0.2856438909 | AD90: =Inputs!$AG$6*AD7*Operación!AD10/Inputs!$C$5 -> 0.2998194683
B91: ASIC (Administrador del Sistema de Intercambios Comerciales) | D91: $COP mm | E91: =Inputs!$AG$7*E7*Operación!E10/Inputs!$C$5 -> 0.03863097235 | F91: =Inputs!$AG$7*F7*Operación!F10/Inputs!$C$5 -> 0.09220859068 | G91: =Inputs!$AG$7*G7*Operación!G10/Inputs!$C$5 -> 0.1152661919 | H91: =Inputs!$AG$7*H7*Operación!H10/Inputs!$C$5 -> 0.1177597892 | I91: =Inputs!$AG$7*I7*Operación!I10/Inputs!$C$5 -> 0.07994166824 | J91: =Inputs!$AG$7*J7*Operación!J10/Inputs!$C$5 -> 0.07597891556 | K91: =Inputs!$AG$7*K7*Operación!K10/Inputs!$C$5 -> 0.08037016425 | L91: =Inputs!$AG$7*L7*Operación!L10/Inputs!$C$5 -> 0.08451042209 | M91: =Inputs!$AG$7*M7*Operación!M10/Inputs!$C$5 -> 0.1302335136 | N91: =Inputs!$AG$7*N7*Operación!N10/Inputs!$C$5 -> 0.1343664969 | O91: =Inputs!$AG$7*O7*Operación!O10/Inputs!$C$5 -> 0.08978546306 | P91: =Inputs!$AG$7*P7*Operación!P10/Inputs!$C$5 -> 0.08515591346 | Q91: =Inputs!$AG$7*Q7*Operación!Q10/Inputs!$C$5 -> 0.09062423955 | R91: =Inputs!$AG$7*R7*Operación!R10/Inputs!$C$5 -> 0.0959978398 | S91: =Inputs!$AG$7*S7*Operación!S10/Inputs!$C$5 -> 0.1511873943 | T91: =Inputs!$AG$7*T7*Operación!T10/Inputs!$C$5 -> 0.1563902796 | U91: =Inputs!$AG$7*U7*Operación!U10/Inputs!$C$5 -> 0.1033890586 | V91: =Inputs!$AG$7*V7*Operación!V10/Inputs!$C$5 -> 0.09805135758 | W91: =Inputs!$AG$7*W7*Operación!W10/Inputs!$C$5 -> 0.1045212468 | X91: =Inputs!$AG$7*X7*Operación!X10/Inputs!$C$5 -> 0.1107397361 | Y91: =Inputs!$AG$7*Y7*Operación!Y10/Inputs!$C$5 -> 0.1762883776 | Z91: =Inputs!$AG$7*Z7*Operación!Z10/Inputs!$C$5 -> 0.1818299068 | AA91: =Inputs!$AG$7*AA7*Operación!AA10/Inputs!$C$5 -> 0.1175958932 | AB91: =Inputs!$AG$7*AB7*Operación!AB10/Inputs!$C$5 -> 0.1099711703 | AC91: =Inputs!$AG$7*AC7*Operación!AC10/Inputs!$C$5 -> 0.1316558661 | AD91: =Inputs!$AG$7*AD7*Operación!AD10/Inputs!$C$5 -> 0.1381895186
B92: Ley 99/93 (Aporte ambiental) | D92: $COP mm | E92: =Inputs!$AG$8*E71*E7/Inputs!$C$5 -> 3.833207099e-09 | F92: =Inputs!$AG$8*F71*F7/Inputs!$C$5 -> 1.164610427e-08 | G92: =Inputs!$AG$8*G71*G7/Inputs!$C$5 -> 3.651072415e-08 | H92: =Inputs!$AG$8*H71*H7/Inputs!$C$5 -> 3.598561342e-08 | I92: =Inputs!$AG$8*I71*I7/Inputs!$C$5 -> 9.960511024e-09 | J92: =Inputs!$AG$8*J71*J7/Inputs!$C$5 -> 1.025781318e-08 | K92: =Inputs!$AG$8*K71*K7/Inputs!$C$5 -> 9.615230436e-09 | L92: =Inputs!$AG$8*L71*L7/Inputs!$C$5 -> 1.022865142e-08 | M92: =Inputs!$AG$8*M71*M7/Inputs!$C$5 -> 2.893949434e-08 | N92: =Inputs!$AG$8*N71*N7/Inputs!$C$5 -> 3.990047581e-08 | O92: =Inputs!$AG$8*O71*O7/Inputs!$C$5 -> 1.201806161e-08 | P92: =Inputs!$AG$8*P71*P7/Inputs!$C$5 -> 1.34389865e-08 | Q92: =Inputs!$AG$8*Q71*Q7/Inputs!$C$5 -> 1.231192816e-08 | R92: =Inputs!$AG$8*R71*R7/Inputs!$C$5 -> 1.362562794e-08 | S92: =Inputs!$AG$8*S71*S7/Inputs!$C$5 -> 5.72816872e-08 | T92: =Inputs!$AG$8*T71*T7/Inputs!$C$5 -> 6.337842788e-08 | U92: =Inputs!$AG$8*U71*U7/Inputs!$C$5 -> 1.50288631e-08 | V92: =Inputs!$AG$8*V71*V7/Inputs!$C$5 -> 1.583777512e-08 | W92: =Inputs!$AG$8*W71*W7/Inputs!$C$5 -> 1.690325868e-08 | X92: =Inputs!$AG$8*X71*X7/Inputs!$C$5 -> 1.746471879e-08 | Y92: =Inputs!$AG$8*Y71*Y7/Inputs!$C$5 -> 6.144868103e-08 | Z92: =Inputs!$AG$8*Z71*Z7/Inputs!$C$5 -> 7.082226084e-08 | AA92: =Inputs!$AG$8*AA71*AA7/Inputs!$C$5 -> 1.939530726e-08 | AB92: =Inputs!$AG$8*AB71*AB7/Inputs!$C$5 -> 2.105824625e-08 | AC92: =Inputs!$AG$8*AC71*AC7/Inputs!$C$5 -> 2.26496335e-08 | AD92: =Inputs!$AG$8*AD71*AD7/Inputs!$C$5 -> 2.417363262e-08
B93: Costos del mercado o representación | E93: =IF(OR(Tablero!$D$13>1000,Tablero!$L$24=Inputs!$Z$5),SUM(E88:E92),0) -> 0 | F93: =IF(OR(Tablero!$D$13>1000,Tablero!$L$24=Inputs!$Z$5),SUM(F88:F92),0) -> 0 | G93: =IF(OR(Tablero!$D$13>1000,Tablero!$L$24=Inputs!$Z$5),SUM(G88:G92),0) -> 0 | H93: =IF(OR(Tablero!$D$13>1000,Tablero!$L$24=Inputs!$Z$5),SUM(H88:H92),0) -> 0 | I93: =IF(OR(Tablero!$D$13>1000,Tablero!$L$24=Inputs!$Z$5),SUM(I88:I92),0) -> 0 | J93: =IF(OR(Tablero!$D$13>1000,Tablero!$L$24=Inputs!$Z$5),SUM(J88:J92),0) -> 0 | K93: =IF(OR(Tablero!$D$13>1000,Tablero!$L$24=Inputs!$Z$5),SUM(K88:K92),0) -> 0 | L93: =IF(OR(Tablero!$D$13>1000,Tablero!$L$24=Inputs!$Z$5),SUM(L88:L92),0) -> 0 | M93: =IF(OR(Tablero!$D$13>1000,Tablero!$L$24=Inputs!$Z$5),SUM(M88:M92),0) -> 0 | N93: =IF(OR(Tablero!$D$13>1000,Tablero!$L$24=Inputs!$Z$5),SUM(N88:N92),0) -> 0 | O93: =IF(OR(Tablero!$D$13>1000,Tablero!$L$24=Inputs!$Z$5),SUM(O88:O92),0) -> 0 | P93: =IF(OR(Tablero!$D$13>1000,Tablero!$L$24=Inputs!$Z$5),SUM(P88:P92),0) -> 0 | Q93: =IF(OR(Tablero!$D$13>1000,Tablero!$L$24=Inputs!$Z$5),SUM(Q88:Q92),0) -> 0 | R93: =IF(OR(Tablero!$D$13>1000,Tablero!$L$24=Inputs!$Z$5),SUM(R88:R92),0) -> 0 | S93: =IF(OR(Tablero!$D$13>1000,Tablero!$L$24=Inputs!$Z$5),SUM(S88:S92),0) -> 0 | T93: =IF(OR(Tablero!$D$13>1000,Tablero!$L$24=Inputs!$Z$5),SUM(T88:T92),0) -> 0 | U93: =IF(OR(Tablero!$D$13>1000,Tablero!$L$24=Inputs!$Z$5),SUM(U88:U92),0) -> 0 | V93: =IF(OR(Tablero!$D$13>1000,Tablero!$L$24=Inputs!$Z$5),SUM(V88:V92),0) -> 0 | W93: =IF(OR(Tablero!$D$13>1000,Tablero!$L$24=Inputs!$Z$5),SUM(W88:W92),0) -> 0 | X93: =IF(OR(Tablero!$D$13>1000,Tablero!$L$24=Inputs!$Z$5),SUM(X88:X92),0) -> 0 | Y93: =IF(OR(Tablero!$D$13>1000,Tablero!$L$24=Inputs!$Z$5),SUM(Y88:Y92),0) -> 0 | Z93: =IF(OR(Tablero!$D$13>1000,Tablero!$L$24=Inputs!$Z$5),SUM(Z88:Z92),0) -> 0 | AA93: =IF(OR(Tablero!$D$13>1000,Tablero!$L$24=Inputs!$Z$5),SUM(AA88:AA92),0) -> 0 | AB93: =IF(OR(Tablero!$D$13>1000,Tablero!$L$24=Inputs!$Z$5),SUM(AB88:AB92),0) -> 0 | AC93: =IF(OR(Tablero!$D$13>1000,Tablero!$L$24=Inputs!$Z$5),SUM(AC88:AC92),0) -> 0 | AD93: =IF(OR(Tablero!$D$13>1000,Tablero!$L$24=Inputs!$Z$5),SUM(AD88:AD92),0) -> 0
B95: Costos de operación, mantenimiento y gestión de activos - A&OM
B96: OPEX incluido IVA | D96: $COP mm | E96: =Tablero!$H$45*E3/F3 -> 9.977662917 | F96: =Tablero!$H$45*F7 -> 18.62687129 | G96: =$F$96*G7 -> 20.99462603 | H96: =$F$96*H7 -> 21.3725293 | I96: 21.94958759 | J96: 22.54222645 | K96: 23.15086657 | L96: 23.77593996 | M96: 24.41789034 | N96: 25.15042705 | O96: 25.90493987 | P96: 26.68208806 | Q96: 27.4825507 | R96: 28.30702722 | S96: 29.15623804 | T96: 30.03092518 | U96: 30.93185294 | V96: 31.85980853 | W96: 32.81560278 | X96: 33.80007086 | Y96: 34.81407299 | Z96: 35.85849518 | AA96: 36.93425004 | AB96: 38.04227754 | AC96: 39.18354586 | AD96: 40.35905224
B97: Costos de representación de la frontera | D97: $COP mm | E97: =E93 -> 0 | F97: =F93 -> 0 | G97: 0 | H97: 0 | I97: 0 | J97: 0 | K97: 0 | L97: 0 | M97: 0 | N97: 0 | O97: 0 | P97: 0 | Q97: 0 | R97: 0 | S97: 0 | T97: 0 | U97: 0 | V97: 0 | W97: 0 | X97: 0 | Y97: 0 | Z97: 0 | AA97: 0 | AB97: 0 | AC97: 0 | AD97: 0
B98: Transporte de excesos de energía reactiva | D98: $COP mm | E98: =(SUMIFS(Balance!$N$8798:$N$8809,Balance!$P$8798:$P$8809,1)*E27+SUMIFS(Balance!$O$8798:$O$8809,Balance!$P$8798:$P$8809,1)*E24)/Inputs!$C$5 -> 5.211496233 | F98: =IF(Tablero!$D$41="Si",0,(Tablero!$D$43*F27+Tablero!$D$44*F24)/Inputs!$C$5) -> 0 | G98: =IF(Tablero!$D$41="Si",0,(Tablero!$D$43*G27+Tablero!$D$44*G24)/Inputs!$C$5) -> 0 | H98: =IF(Tablero!$D$41="Si",0,(Tablero!$D$43*H27+Tablero!$D$44*H24)/Inputs!$C$5) -> 0 | I98: =IF(Tablero!$D$41="Si",0,(Tablero!$D$43*I27+Tablero!$D$44*I24)/Inputs!$C$5) -> 0 | J98: =IF(Tablero!$D$41="Si",0,(Tablero!$D$43*J27+Tablero!$D$44*J24)/Inputs!$C$5) -> 0 | K98: =IF(Tablero!$D$41="Si",0,(Tablero!$D$43*K27+Tablero!$D$44*K24)/Inputs!$C$5) -> 0 | L98: =IF(Tablero!$D$41="Si",0,(Tablero!$D$43*L27+Tablero!$D$44*L24)/Inputs!$C$5) -> 0 | M98: =IF(Tablero!$D$41="Si",0,(Tablero!$D$43*M27+Tablero!$D$44*M24)/Inputs!$C$5) -> 0 | N98: =IF(Tablero!$D$41="Si",0,(Tablero!$D$43*N27+Tablero!$D$44*N24)/Inputs!$C$5) -> 0 | O98: =IF(Tablero!$D$41="Si",0,(Tablero!$D$43*O27+Tablero!$D$44*O24)/Inputs!$C$5) -> 0 | P98: =IF(Tablero!$D$41="Si",0,(Tablero!$D$43*P27+Tablero!$D$44*P24)/Inputs!$C$5) -> 0 | Q98: =IF(Tablero!$D$41="Si",0,(Tablero!$D$43*Q27+Tablero!$D$44*Q24)/Inputs!$C$5) -> 0 | R98: =IF(Tablero!$D$41="Si",0,(Tablero!$D$43*R27+Tablero!$D$44*R24)/Inputs!$C$5) -> 0 | S98: =IF(Tablero!$D$41="Si",0,(Tablero!$D$43*S27+Tablero!$D$44*S24)/Inputs!$C$5) -> 0 | T98: =IF(Tablero!$D$41="Si",0,(Tablero!$D$43*T27+Tablero!$D$44*T24)/Inputs!$C$5) -> 0 | U98: =IF(Tablero!$D$41="Si",0,(Tablero!$D$43*U27+Tablero!$D$44*U24)/Inputs!$C$5) -> 0 | V98: =IF(Tablero!$D$41="Si",0,(Tablero!$D$43*V27+Tablero!$D$44*V24)/Inputs!$C$5) -> 0 | W98: =IF(Tablero!$D$41="Si",0,(Tablero!$D$43*W27+Tablero!$D$44*W24)/Inputs!$C$5) -> 0 | X98: =IF(Tablero!$D$41="Si",0,(Tablero!$D$43*X27+Tablero!$D$44*X24)/Inputs!$C$5) -> 0 | Y98: =IF(Tablero!$D$41="Si",0,(Tablero!$D$43*Y27+Tablero!$D$44*Y24)/Inputs!$C$5) -> 0 | Z98: =IF(Tablero!$D$41="Si",0,(Tablero!$D$43*Z27+Tablero!$D$44*Z24)/Inputs!$C$5) -> 0 | AA98: =IF(Tablero!$D$41="Si",0,(Tablero!$D$43*AA27+Tablero!$D$44*AA24)/Inputs!$C$5) -> 0 | AB98: =IF(Tablero!$D$41="Si",0,(Tablero!$D$43*AB27+Tablero!$D$44*AB24)/Inputs!$C$5) -> 0 | AC98: =IF(Tablero!$D$41="Si",0,(Tablero!$D$43*AC27+Tablero!$D$44*AC24)/Inputs!$C$5) -> 0 | AD98: =IF(Tablero!$D$41="Si",0,(Tablero!$D$43*AD27+Tablero!$D$44*AD24)/Inputs!$C$5) -> 0
B99: Cargo de respaldo de red (> 100 kW) | D99: $COP mm | E99: =IF(Tablero!$D$13>100,'Respaldo de Red'!$C$8,0) -> 1.760516178 | F99: =$E$99*F34 -> 1.712618707 | G99: =$E$99*G34 -> 1.736591612 | H99: 1.683195961 | I99: 1.697967468 | J99: 1.729535926 | K99: 1.790062941 | L99: 1.833244605 | M99: 1.889403553 | N99: 1.900730438 | O99: 1.904227414 | P99: 1.941511119 | Q99: 2.000684021 | R99: 2.055223384 | S99: 2.12488135 | T99: 2.166556986 | U99: 2.235096805 | V99: 2.313017674 | W99: 2.369875049 | X99: 2.420658783 | Y99: 2.51679997 | Z99: 2.593239831 | AA99: 2.650144331 | AB99: 2.720072405 | AC99: 2.786744586 | AD99: 2.850160873
B100: Cargo de conexión del proyecto | D100: $COP mm | E100: 0 | F100: 0 | G100: 0 | H100: 0 | I100: 0 | J100: 0 | K100: 0 | L100: 0 | M100: 0 | N100: 0 | O100: 0 | P100: 0 | Q100: 0 | R100: 0 | S100: 0 | T100: 0 | U100: 0 | V100: 0 | W100: 0 | X100: 0 | Y100: 0 | Z100: 0 | AA100: 0 | AB100: 0 | AC100: 0 | AD100: 0
B101: Gastos certificado UPME incentivos tributarios | D101: $COP mm | E101: =IF(Tablero!$H$16="Si",Incentivos_UPME!$C$22/Inputs!$C$5,0) -> 1.674802258
B102: Otros costos o gastos | D102: $COP mm | E102: 0 | F102: 0 | G102: 0 | H102: 0 | I102: 0 | J102: 0 | K102: 0 | L102: 0 | M102: 0 | N102: 0 | O102: 0 | P102: 0 | Q102: 0 | R102: 0 | S102: 0 | T102: 0 | U102: 0 | V102: 0 | W102: 0 | X102: 0 | Y102: 0 | Z102: 0 | AA102: 0 | AB102: 0 | AC102: 0 | AD102: 0
B103: Total costos y gastos del proyecto | D103: $COP mm | E103: =SUM(E96:E102) -> 18.62447759 | F103: =SUM(F96:F102) -> 20.33948999 | G103: 22.73121764 | H103: 23.05572526 | I103: 23.64755506 | J103: 24.27176238 | K103: 24.94092951 | L103: 25.60918457 | M103: 26.3072939 | N103: 27.05115749 | O103: 27.80916728 | P103: 28.62359918 | Q103: 29.48323472 | R103: 30.36225061 | S103: 31.28111939 | T103: 32.19748217 | U103: 33.16694974 | V103: 34.1728262 | W103: 35.18547783 | X103: 36.22072965 | Y103: 37.33087296 | Z103: 38.45173501 | AA103: 39.58439437 | AB103: 40.76234994 | AC103: 41.97029045 | AD103: 43.20921311
B105: Impuestos sobre los costos
B106: Movimientos financiero (GMF) | E106: =E103*Inputs!$V$4*Impuetos!D5 -> 0.03724895517 | F106: =F103*Inputs!$V$4*Impuetos!E5 -> 0.04067897998 | G106: =G103*Inputs!$V$4*Impuetos!F5 -> 0.04546243528 | H106: =H103*Inputs!$V$4*Impuetos!G5 -> 0.04611145052 | I106: =I103*Inputs!$V$4*Impuetos!H5 -> 0.04729511011 | J106: =J103*Inputs!$V$4*Impuetos!I5 -> 0.04854352476 | K106: =K103*Inputs!$V$4*Impuetos!J5 -> 0.04988185902 | L106: =L103*Inputs!$V$4*Impuetos!K5 -> 0.05121836914 | M106: =M103*Inputs!$V$4*Impuetos!L5 -> 0.05261458779 | N106: =N103*Inputs!$V$4*Impuetos!M5 -> 0.05410231498 | O106: =O103*Inputs!$V$4*Impuetos!N5 -> 0.05561833456 | P106: =P103*Inputs!$V$4*Impuetos!O5 -> 0.05724719836 | Q106: =Q103*Inputs!$V$4*Impuetos!P5 -> 0.05896646945 | R106: =R103*Inputs!$V$4*Impuetos!Q5 -> 0.06072450122 | S106: =S103*Inputs!$V$4*Impuetos!R5 -> 0.06256223878 | T106: =T103*Inputs!$V$4*Impuetos!S5 -> 0.06439496434 | U106: =U103*Inputs!$V$4*Impuetos!T5 -> 0.06633389948 | V106: =V103*Inputs!$V$4*Impuetos!U5 -> 0.0683456524 | W106: =W103*Inputs!$V$4*Impuetos!V5 -> 0.07037095566 | X106: =X103*Inputs!$V$4*Impuetos!W5 -> 0.0724414593 | Y106: =Y103*Inputs!$V$4*Impuetos!X5 -> 0.07466174592 | Z106: =Z103*Inputs!$V$4*Impuetos!Y5 -> 0.07690347002 | AA106: =AA103*Inputs!$V$4*Impuetos!Z5 -> 0.07916878873 | AB106: =AB103*Inputs!$V$4*Impuetos!AA5 -> 0.08152469988 | AC106: =AC103*Inputs!$V$4*Impuetos!AB5 -> 0.0839405809 | AD106: =AD103*Inputs!$V$4*Impuetos!AC5 -> 0.08641842622
B107: Total Impuestos | E107: =E106 -> 0.03724895517 | F107: =F106 -> 0.04067897998 | G107: 0.04546243528 | H107: 0.04611145052 | I107: 0.04729511011 | J107: 0.04854352476 | K107: 0.04988185902 | L107: 0.05121836914 | M107: 0.05261458779 | N107: 0.05410231498 | O107: 0.05561833456 | P107: 0.05724719836 | Q107: 0.05896646945 | R107: 0.06072450122 | S107: 0.06256223878 | T107: 0.06439496434 | U107: 0.06633389948 | V107: 0.0683456524 | W107: 0.07037095566 | X107: 0.0724414593 | Y107: 0.07466174592 | Z107: 0.07690347002 | AA107: 0.07916878873 | AB107: 0.08152469988 | AC107: 0.0839405809 | AD107: 0.08641842622
B109: Proyecciones
B110: Ahorro operacional EPC | E110: =IF(Tablero!$G$24="Si",E76,E78) -> 76.36661636 | F110: =IF(Tablero!$G$24="Si",F76,F78) -> 140.4605203 | G110: =IF(Tablero!$G$24="Si",G76,G78) -> 144.2031183 | H110: =IF(Tablero!$G$24="Si",H76,H78) -> 143.9048227 | I110: =IF(Tablero!$G$24="Si",I76,I78) -> 142.325232 | J110: =IF(Tablero!$G$24="Si",J76,J78) -> 143.838659 | K110: =IF(Tablero!$G$24="Si",K76,K78) -> 147.780037 | L110: =IF(Tablero!$G$24="Si",L76,L78) -> 151.1154386 | M110: =IF(Tablero!$G$24="Si",M76,M78) -> 158.6155489 | N110: =IF(Tablero!$G$24="Si",N76,N78) -> 161.0531265 | O110: =IF(Tablero!$G$24="Si",O76,O78) -> 158.7148959 | P110: =IF(Tablero!$G$24="Si",P76,P78) -> 160.5636572 | Q110: =IF(Tablero!$G$24="Si",Q76,Q78) -> 165.2643477 | R110: =IF(Tablero!$G$24="Si",R76,R78) -> 169.9378374 | S110: =IF(Tablero!$G$24="Si",S76,S78) -> 179.7771048 | T110: =IF(Tablero!$G$24="Si",T76,T78) -> 183.828442 | U110: =IF(Tablero!$G$24="Si",U76,U78) -> 182.9977236 | V110: =IF(Tablero!$G$24="Si",V76,V78) -> 186.3111197 | W110: =IF(Tablero!$G$24="Si",W76,W78) -> 191.5046962 | X110: =IF(Tablero!$G$24="Si",X76,X78) -> 196.4602686 | Y110: =IF(Tablero!$G$24="Si",Y76,Y78) -> 208.0057825 | Z110: =IF(Tablero!$G$24="Si",Z76,Z78) -> 212.5211512 | AA110: =IF(Tablero!$G$24="Si",AA76,AA78) -> 209.5642949 | AB110: =IF(Tablero!$G$24="Si",AB76,AB78) -> 211.1590017 | AC110: =IF(Tablero!$G$24="Si",AC76,AC78) -> 218.7579473 | AD110: =IF(Tablero!$G$24="Si",AD76,AD78) -> 223.0308649
B111: Ingreso operacional EPC | E111: =E79 -> 0.3833207099 | F111: 1.069431063 | G111: 3.239307804 | H111: 3.136266092 | I111: 0.8452694432 | J111: 0.8476135497 | K111: 0.7736283183 | L111: 0.8013469659 | M111: 2.207611831 | N111: 2.955103011 | O111: 0.8641552071 | P111: 0.9381809666 | Q111: 0.8344665803 | R111: 0.896607107 | S111: 3.659520865 | T111: 3.931087075 | U111: 0.9050240185 | V111: 0.9259572242 | W111: 0.9594668299 | X111: 0.9624626829 | Y111: 3.287741347 | Z111: 3.678897093 | AA111: 0.9781541294 | AB111: 1.031087694 | AC111: 1.076706558 | AD111: 1.115683145
B112: Costos y Gastos operacionales | E112: =-E103 -> -18.62447759 | F112: =-F103 -> -20.33948999 | G112: -22.73121764 | H112: -23.05572526 | I112: -23.64755506 | J112: -24.27176238 | K112: -24.94092951 | L112: -25.60918457 | M112: -26.3072939 | N112: -27.05115749 | O112: -27.80916728 | P112: -28.62359918 | Q112: -29.48323472 | R112: -30.36225061 | S112: -31.28111939 | T112: -32.19748217 | U112: -33.16694974 | V112: -34.1728262 | W112: -35.18547783 | X112: -36.22072965 | Y112: -37.33087296 | Z112: -38.45173501 | AA112: -39.58439437 | AB112: -40.76234994 | AC112: -41.97029045 | AD112: -43.20921311
B113: Impuestos operacionales | E113: =-(E107+E85) -> -0.04207879612 | F113: =-(F107+F85) -> -0.05415381137 | G113: -0.08870719446 | H113: -0.08798060284 | I113: -0.05857945718 | J113: -0.05985916565 | K113: -0.06020979707 | L113: -0.06191635113 | M113: -0.08208620573 | N113: -0.09355294018 | O113: -0.06715480657 | P113: -0.06977191427 | Q113: -0.0701065983 | R113: -0.07269420609 | S113: -0.1114168423 | T113: -0.1168749768 | U113: -0.07841597013 | V113: -0.08070718134 | W113: -0.08317983784 | X113: -0.08529033611 | Y113: -0.1185530929 | Z113: -0.1260167462 | AA113: -0.09222714636 | AB113: -0.0952897206 | AC113: -0.09831461345 | AD113: -0.1013127962
B114: NOPLAT | E114: =E110+E111*(1-Impuetos!D3)+E112+E113 -> 57.94921844 | F114: =F110+F111*(1-Impuetos!E3)+F112+F113 -> 120.7620067 | G114: =G110+G111*(1-Impuetos!F3)+G112+G113 -> 123.3915643 | H114: =H110+H111*(1-Impuetos!G3)+H112+H113 -> 122.7056018 | I114: =I110+I111*(1-Impuetos!H3)+I112+I113 -> 119.1431645 | J114: =J110+J111*(1-Impuetos!I3)+J112+J113 -> 120.0325579 | K114: =K110+K111*(1-Impuetos!J3)+K112+K113 -> 123.2585472 | L114: =L110+L111*(1-Impuetos!K3)+L112+L113 -> 125.9411728 | M114: =M110+M111*(1-Impuetos!L3)+M112+M113 -> 133.5948881 | N114: =N110+N111*(1-Impuetos!M3)+N112+N113 -> 135.7405799 | O114: =O110+O111*(1-Impuetos!N3)+O112+O113 -> 131.37435 | P114: =P110+P111*(1-Impuetos!O3)+P112+P113 -> 132.4519583 | Q114: =Q110+Q111*(1-Impuetos!P3)+Q112+Q113 -> 136.2283757 | R114: =R110+R111*(1-Impuetos!Q3)+R112+R113 -> 140.058789 | S114: =S110+S111*(1-Impuetos!R3)+S112+S113 -> 150.6534715 | T114: =T110+T111*(1-Impuetos!S3)+T112+T113 -> 153.9513588 | U114: =U110+U111*(1-Impuetos!T3)+U112+U113 -> 150.3134727 | V114: =V110+V111*(1-Impuetos!U3)+V112+V113 -> 152.6316798 | W114: =W110+W111*(1-Impuetos!V3)+W112+W113 -> 156.8309079 | X114: =X110+X111*(1-Impuetos!W3)+X112+X113 -> 160.7509755 | Y114: =Y110+Y111*(1-Impuetos!X3)+Y112+Y113 -> 172.5947561 | Z114: =Z110+Z111*(1-Impuetos!Y3)+Z112+Z113 -> 176.2243157 | AA114: =AA110+AA111*(1-Impuetos!Z3)+AA112+AA113 -> 170.4941289 | AB114: =AB110+AB111*(1-Impuetos!AA3)+AB112+AB113 -> 170.9406364 | AC114: =AC110+AC111*(1-Impuetos!AB3)+AC112+AC113 -> 177.3569003 | AD114: =AD110+AD111*(1-Impuetos!AC3)+AD112+AD113 -> 180.4120626
B115: =CONCATENATE("Depreciación",IF(Tablero!$H$19="Si", " Acelerada"," Lineal")) -> Depreciación Acelerada | E115: =Depreciación!F45 -> 0 | F115: =Depreciación!G45 -> 91.77828777 | G115: =Depreciación!H45 -> 82.600459 | H115: =Depreciación!I45 -> 73.42263022 | I115: =Depreciación!J45 -> 64.24480144 | J115: =Depreciación!K45 -> 55.06697266 | K115: =Depreciación!L45 -> 45.88914389 | L115: =Depreciación!M45 -> 36.71131511 | M115: =Depreciación!N45 -> 27.53348633 | N115: =Depreciación!O45 -> 18.35565755 | O115: =Depreciación!P45 -> 9.177828777 | P115: =Depreciación!Q45 -> 0 | Q115: =Depreciación!R45 -> 0 | R115: =Depreciación!S45 -> 0 | S115: =Depreciación!T45 -> 0 | T115: =Depreciación!U45 -> 0 | U115: =Depreciación!V45 -> 0 | V115: =Depreciación!W45 -> 0 | W115: =Depreciación!X45 -> 0 | X115: =Depreciación!Y45 -> 0 | Y115: =Depreciación!Z45 -> 0 | Z115: =Depreciación!AA45 -> 0 | AA115: =Depreciación!AB45 -> 0 | AB115: =Depreciación!AC45 -> 0 | AC115: =Depreciación!AD45 -> 0 | AD115: =Depreciación!AE45 -> 0
B116: Inversión en capital de trabajo (CAPEX Sostenimiento y CAPEX de exlusiones del EPC) | E116: =-Exclusiones!$T$22/Inputs!C5 -> -45.85784088 | P116: =E117*Inputs!$R$4 -> -105.3275527 | U116: =E117*Inputs!R5 -> -140.436737 | Z116: =E117*Inputs!R6 -> -70.2183685 | AD116: =E117*Inputs!R7 -> -210.6551055
B117: CAPEX de inversión | E117: =-Construcción!F36 -> -702.183685
B118: Flujo de Caja Libre Desapalancado (FCL) | E118: =SUM(E114:E117) -> -690.0923074 | F118: 212.5402945 | G118: 205.9920233 | H118: 196.128232 | I118: 183.387966 | J118: 175.0995305 | K118: 169.1476911 | L118: 162.6524879 | M118: 161.1283744 | N118: 154.0962374 | O118: 140.5521788 | P118: 27.12440559 | Q118: 136.2283757 | R118: 140.058789 | S118: 150.6534715 | T118: 153.9513588 | U118: 9.876735746 | V118: 152.6316798 | W118: 156.8309079 | X118: 160.7509755 | Y118: 172.5947561 | Z118: 106.0059472 | AA118: 170.4941289 | AB118: 170.9406364 | AC118: 177.3569003 | AD118: -30.24304293
B119: Intereses Deuda | E119: =-Deuda!E20 -> 0 | F119: =-Deuda!F20 -> -91.96671438 | G119: =-Deuda!G20 -> -79.16116614 | H119: =-Deuda!H20 -> -65.25046997 | I119: =-Deuda!I20 -> -50.48393654 | J119: =-Deuda!J20 -> -35.09334726 | K119: =-Deuda!K20 -> -18.42693435 | L119: =-Deuda!L20 -> 0 | M119: =-Deuda!M20 -> 0 | N119: =-Deuda!N20 -> 0 | O119: =-Deuda!O20 -> 0 | P119: =-Deuda!P20 -> 0 | Q119: =-Deuda!Q20 -> 0 | R119: =-Deuda!R20 -> 0 | S119: =-Deuda!S20 -> 0 | T119: =-Deuda!T20 -> 0 | U119: =-Deuda!U20 -> 0 | V119: =-Deuda!V20 -> 0 | W119: =-Deuda!W20 -> 0 | X119: =-Deuda!X20 -> 0 | Y119: =-Deuda!Y20 -> 0 | Z119: =-Deuda!Z20 -> 0 | AA119: =-Deuda!AA20 -> 0 | AB119: =-Deuda!AB20 -> 0 | AC119: =-Deuda!AC20 -> 0 | AD119: =-Deuda!AD20 -> 0
B120: Desembolso Deuda | E120: =Deuda!E17 -> 611.5305459 | F120: =Deuda!F17 -> 0 | G120: =Deuda!G17 -> 0 | H120: =Deuda!H17 -> 0 | I120: =Deuda!I17 -> 0 | J120: =Deuda!J17 -> 0 | K120: =Deuda!K17 -> 0 | L120: =Deuda!L17 -> 0 | M120: =Deuda!M17 -> 0 | N120: =Deuda!N17 -> 0 | O120: =Deuda!O17 -> 0 | P120: =Deuda!P17 -> 0 | Q120: =Deuda!Q17 -> 0 | R120: =Deuda!R17 -> 0 | S120: =Deuda!S17 -> 0 | T120: =Deuda!T17 -> 0 | U120: =Deuda!U17 -> 0 | V120: =Deuda!V17 -> 0 | W120: =Deuda!W17 -> 0 | X120: =Deuda!X17 -> 0 | Y120: =Deuda!Y17 -> 0 | Z120: =Deuda!Z17 -> 0 | AA120: =Deuda!AA17 -> 0 | AB120: =Deuda!AB17 -> 0 | AC120: =Deuda!AC17 -> 0 | AD120: =Deuda!AD17 -> 0
B121: Amortización Deuda | E121: =Deuda!E18 -> 0 | F121: =Deuda!F18 -> -85.15019768 | G121: =Deuda!G18 -> -92.49885329 | H121: =Deuda!H18 -> -98.1897234 | I121: =Deuda!I18 -> -102.3393684 | J121: =Deuda!J18 -> -110.8229282 | K121: =Deuda!K18 -> -122.5294749 | L121: =Deuda!L18 -> 0 | M121: =Deuda!M18 -> 0 | N121: =Deuda!N18 -> 0 | O121: =Deuda!O18 -> 0 | P121: =Deuda!P18 -> 0 | Q121: =Deuda!Q18 -> 0 | R121: =Deuda!R18 -> 0 | S121: =Deuda!S18 -> 0 | T121: =Deuda!T18 -> 0 | U121: =Deuda!U18 -> 0 | V121: =Deuda!V18 -> 0 | W121: =Deuda!W18 -> 0 | X121: =Deuda!X18 -> 0 | Y121: =Deuda!Y18 -> 0 | Z121: =Deuda!Z18 -> 0 | AA121: =Deuda!AA18 -> 0 | AB121: =Deuda!AB18 -> 0 | AC121: =Deuda!AC18 -> 0 | AD121: =Deuda!AD18 -> 0
B122: Beneficio tributario de la Deuda (BTD) | E122: =-E119*Impuetos!D3 -> 0 | F122: =-F119*Impuetos!E3 -> 32.18835003 | G122: =-G119*Impuetos!F3 -> 30.08124313 | H122: =-H119*Impuetos!G3 -> 24.79517859 | I122: =-I119*Impuetos!H3 -> 19.18389589 | J122: =-J119*Impuetos!I3 -> 13.33547196 | K122: =-K119*Impuetos!J3 -> 7.002235054 | L122: =-L119*Impuetos!K3 -> 0 | M122: =-M119*Impuetos!L3 -> 0 | N122: =-N119*Impuetos!M3 -> 0 | O122: =-O119*Impuetos!N3 -> 0 | P122: =-P119*Impuetos!O3 -> 0 | Q122: =-Q119*Impuetos!P3 -> 0 | R122: =-R119*Impuetos!Q3 -> 0 | S122: =-S119*Impuetos!R3 -> 0 | T122: =-T119*Impuetos!S3 -> 0 | U122: =-U119*Impuetos!T3 -> 0 | V122: =-V119*Impuetos!U3 -> 0 | W122: =-W119*Impuetos!V3 -> 0 | X122: =-X119*Impuetos!W3 -> 0 | Y122: =-Y119*Impuetos!X3 -> 0 | Z122: =-Z119*Impuetos!Y3 -> 0 | AA122: =-AA119*Impuetos!Z3 -> 0 | AB122: =-AB119*Impuetos!AA3 -> 0 | AC122: =-AC119*Impuetos!AB3 -> 0 | AD122: =-AD119*Impuetos!AC3 -> 0
B123: Beneficio tributario Deducción de renta | F123: =IF(Tablero!$H$18="Si",IF(F$5<=Tablero!$G$18,Incentivos_UPME!$F$3/Tablero!$G$18,0),0) -> 23.37037498 | G123: =IF(Tablero!$H$18="Si",IF(G$5<=Tablero!$G$18,Incentivos_UPME!$F$3/Tablero!$G$18,0),0) -> 23.37037498 | H123: =IF(Tablero!$H$18="Si",IF(H$5<=Tablero!$G$18,Incentivos_UPME!$F$3/Tablero!$G$18,0),0) -> 23.37037498 | I123: =IF(Tablero!$H$18="Si",IF(I$5<=Tablero!$G$18,Incentivos_UPME!$F$3/Tablero!$G$18,0),0) -> 23.37037498 | J123: =IF(Tablero!$H$18="Si",IF(J$5<=Tablero!$G$18,Incentivos_UPME!$F$3/Tablero!$G$18,0),0) -> 23.37037498 | K123: =IF(Tablero!$H$18="Si",IF(K$5<=Tablero!$G$18,Incentivos_UPME!$F$3/Tablero!$G$18,0),0) -> 23.37037498 | L123: =IF(Tablero!$H$18="Si",IF(L$5<=Tablero!$G$18,Incentivos_UPME!$F$3/Tablero!$G$18,0),0) -> 23.37037498 | M123: =IF(Tablero!$H$18="Si",IF(M$5<=Tablero!$G$18,Incentivos_UPME!$F$3/Tablero!$G$18,0),0) -> 23.37037498 | N123: =IF(Tablero!$H$18="Si",IF(N$5<=Tablero!$G$18,Incentivos_UPME!$F$3/Tablero!$G$18,0),0) -> 23.37037498 | O123: =IF(Tablero!$H$18="Si",IF(O$5<=Tablero!$G$18,Incentivos_UPME!$F$3/Tablero!$G$18,0),0) -> 23.37037498 | P123: =IF(Tablero!$H$18="Si",IF(P$5<=Tablero!$G$18,Incentivos_UPME!$F$3/Tablero!$G$18,0),0) -> 23.37037498 | Q123: =IF(Tablero!$H$18="Si",IF(Q$5<=Tablero!$G$18,Incentivos_UPME!$F$3/Tablero!$G$18,0),0) -> 23.37037498 | R123: =IF(Tablero!$H$18="Si",IF(R$5<=Tablero!$G$18,Incentivos_UPME!$F$3/Tablero!$G$18,0),0) -> 23.37037498 | S123: =IF(Tablero!$H$18="Si",IF(S$5<=Tablero!$G$18,Incentivos_UPME!$F$3/Tablero!$G$18,0),0) -> 23.37037498 | T123: =IF(Tablero!$H$18="Si",IF(T$5<=Tablero!$G$18,Incentivos_UPME!$F$3/Tablero!$G$18,0),0) -> 23.37037498 | U123: =IF(Tablero!$H$18="Si",IF(U$5<=Tablero!$G$18,Incentivos_UPME!$F$3/Tablero!$G$18,0),0) -> 0 | V123: =IF(Tablero!$H$18="Si",IF(V$5<=Tablero!$G$18,Incentivos_UPME!$F$3/Tablero!$G$18,0),0) -> 0 | W123: =IF(Tablero!$H$18="Si",IF(W$5<=Tablero!$G$18,Incentivos_UPME!$F$3/Tablero!$G$18,0),0) -> 0 | X123: =IF(Tablero!$H$18="Si",IF(X$5<=Tablero!$G$18,Incentivos_UPME!$F$3/Tablero!$G$18,0),0) -> 0 | Y123: =IF(Tablero!$H$18="Si",IF(Y$5<=Tablero!$G$18,Incentivos_UPME!$F$3/Tablero!$G$18,0),0) -> 0 | Z123: =IF(Tablero!$H$18="Si",IF(Z$5<=Tablero!$G$18,Incentivos_UPME!$F$3/Tablero!$G$18,0),0) -> 0 | AA123: =IF(Tablero!$H$18="Si",IF(AA$5<=Tablero!$G$18,Incentivos_UPME!$F$3/Tablero!$G$18,0),0) -> 0 | AB123: =IF(Tablero!$H$18="Si",IF(AB$5<=Tablero!$G$18,Incentivos_UPME!$F$3/Tablero!$G$18,0),0) -> 0 | AC123: =IF(Tablero!$H$18="Si",IF(AC$5<=Tablero!$G$18,Incentivos_UPME!$F$3/Tablero!$G$18,0),0) -> 0 | AD123: =IF(Tablero!$H$18="Si",IF(AD$5<=Tablero!$G$18,Incentivos_UPME!$F$3/Tablero!$G$18,0),0) -> 0
B124: Beneficio tributario Exclusión del IVA | F124: =IF(Tablero!H16="Si",Incentivos_UPME!F5,0) -> 40.07614853
B125: Beneficio tributario Arancel (bienes importados, con arancel gravado) | F125: =IF(Tablero!$H$17="Si",Incentivos_UPME!F6,0) -> 0
B126: Flujo de Caja al Accionista (FCA) | E126: =SUM(E118:E125) -> -78.56176152 | F126: =SUM(F118:F125) -> 131.058256 | G126: 87.78362199 | H126: 80.85359224 | I126: 73.11893185 | J126: 65.88910202 | K126: 58.56389188 | L126: 186.0228629 | M126: 184.4987494 | N126: 177.4666124 | O126: 163.9225538 | P126: 50.49478057 | Q126: 159.5987507 | R126: 163.4291639 | S126: 174.0238464 | T126: 177.3217338 | U126: 9.876735746 | V126: 152.6316798 | W126: 156.8309079 | X126: 160.7509755 | Y126: 172.5947561 | Z126: 106.0059472 | AA126: 170.4941289 | AB126: 170.9406364 | AC126: 177.3569003 | AD126: -30.24304293
B127: Saldo Inicial Deuda | E127: =Deuda!E16 -> 0 | F127: =Deuda!F16 -> 611.5305459 | G127: =Deuda!G16 -> 526.3803482 | H127: =Deuda!H16 -> 433.8814949 | I127: =Deuda!I16 -> 335.6917715 | J127: =Deuda!J16 -> 233.3524031 | K127: =Deuda!K16 -> 122.5294749 | L127: =Deuda!L16 -> 0 | M127: =Deuda!M16 -> 0 | N127: =Deuda!N16 -> 0 | O127: =Deuda!O16 -> 0 | P127: =Deuda!P16 -> 0 | Q127: =Deuda!Q16 -> 0 | R127: =Deuda!R16 -> 0 | S127: =Deuda!S16 -> 0 | T127: =Deuda!T16 -> 0 | U127: =Deuda!U16 -> 0 | V127: =Deuda!V16 -> 0 | W127: =Deuda!W16 -> 0 | X127: =Deuda!X16 -> 0 | Y127: =Deuda!Y16 -> 0 | Z127: =Deuda!Z16 -> 0 | AA127: =Deuda!AA16 -> 0 | AB127: =Deuda!AB16 -> 0 | AC127: =Deuda!AC16 -> 0 | AD127: =Deuda!AD16 -> 0
B128: Desembolsos | E128: =Deuda!E17 -> 611.5305459 | F128: =Deuda!F17 -> 0 | G128: =Deuda!G17 -> 0 | H128: =Deuda!H17 -> 0 | I128: =Deuda!I17 -> 0 | J128: =Deuda!J17 -> 0 | K128: =Deuda!K17 -> 0 | L128: =Deuda!L17 -> 0 | M128: =Deuda!M17 -> 0 | N128: =Deuda!N17 -> 0 | O128: =Deuda!O17 -> 0 | P128: =Deuda!P17 -> 0 | Q128: =Deuda!Q17 -> 0 | R128: =Deuda!R17 -> 0 | S128: =Deuda!S17 -> 0 | T128: =Deuda!T17 -> 0 | U128: =Deuda!U17 -> 0 | V128: =Deuda!V17 -> 0 | W128: =Deuda!W17 -> 0 | X128: =Deuda!X17 -> 0 | Y128: =Deuda!Y17 -> 0 | Z128: =Deuda!Z17 -> 0 | AA128: =Deuda!AA17 -> 0 | AB128: =Deuda!AB17 -> 0 | AC128: =Deuda!AC17 -> 0 | AD128: =Deuda!AD17 -> 0
B129: Amortización Deuda | E129: =Deuda!E18 -> 0 | F129: =Deuda!F18 -> -85.15019768 | G129: =Deuda!G18 -> -92.49885329 | H129: =Deuda!H18 -> -98.1897234 | I129: =Deuda!I18 -> -102.3393684 | J129: =Deuda!J18 -> -110.8229282 | K129: =Deuda!K18 -> -122.5294749 | L129: =Deuda!L18 -> 0 | M129: =Deuda!M18 -> 0 | N129: =Deuda!N18 -> 0 | O129: =Deuda!O18 -> 0 | P129: =Deuda!P18 -> 0 | Q129: =Deuda!Q18 -> 0 | R129: =Deuda!R18 -> 0 | S129: =Deuda!S18 -> 0 | T129: =Deuda!T18 -> 0 | U129: =Deuda!U18 -> 0 | V129: =Deuda!V18 -> 0 | W129: =Deuda!W18 -> 0 | X129: =Deuda!X18 -> 0 | Y129: =Deuda!Y18 -> 0 | Z129: =Deuda!Z18 -> 0 | AA129: =Deuda!AA18 -> 0 | AB129: =Deuda!AB18 -> 0 | AC129: =Deuda!AC18 -> 0 | AD129: =Deuda!AD18 -> 0
B130: Saldo Final Deuda | E130: =SUM(E127:E129) -> 611.5305459 | F130: =SUM(F127:F129) -> 526.3803482 | G130: 433.8814949 | H130: 335.6917715 | I130: 233.3524031 | J130: 122.5294749 | K130: 0 | L130: 0 | M130: 0 | N130: 0 | O130: 0 | P130: 0 | Q130: 0 | R130: 0 | S130: 0 | T130: 0 | U130: 0 | V130: 0 | W130: 0 | X130: 0 | Y130: 0 | Z130: 0 | AA130: 0 | AB130: 0 | AC130: 0 | AD130: 0
B131: VP FCL@Ku | F131: =(F118+G131)/(1+Rollin_WACC!E4) -> 1271.684576 | G131: =(G118+H131)/(1+Rollin_WACC!F4) -> 1215.743335 | H131: =(H118+I131)/(1+Rollin_WACC!G4) -> 1159.461593 | I131: =(I118+J131)/(1+Rollin_WACC!H4) -> 1106.11294 | J131: =(J118+K131)/(1+Rollin_WACC!I4) -> 1058.93504 | K131: =(K118+L131)/(1+Rollin_WACC!J4) -> 1014.235947 | L131: =(L118+M131)/(1+Rollin_WACC!K4) -> 969.9843131 | M131: =(M118+N131)/(1+Rollin_WACC!L4) -> 926.7786034 | N131: =(N118+O131)/(1+Rollin_WACC!M4) -> 879.7765265 | O131: =(O118+P131)/(1+Rollin_WACC!N4) -> 834.0186099 | P131: =(P118+Q131)/(1+Rollin_WACC!O4) -> 796.1699847 | Q131: =(Q118+R131)/(1+Rollin_WACC!P4) -> 867.0883396 | R131: =(R118+S131)/(1+Rollin_WACC!Q4) -> 837.6358233 | S131: =(S118+T131)/(1+Rollin_WACC!R4) -> 800.7260225 | T131: =(T118+U131)/(1+Rollin_WACC!S4) -> 748.6763556 | U131: =(U118+V131)/(1+Rollin_WACC!T4) -> 686.9192493 | V131: =(V118+W131)/(1+Rollin_WACC!U4) -> 761.6318106 | W131: =(W118+X131)/(1+Rollin_WACC!V4) -> 702.7897569 | X131: =(X118+Y131)/(1+Rollin_WACC!W4) -> 632.502488 | Y131: =(Y118+Z131)/(1+Rollin_WACC!X4) -> 549.6397664 | Z131: =(Z118+AA131)/(1+Rollin_WACC!Y4) -> 444.7293001 | AA131: =(AA118+AB131)/(1+Rollin_WACC!Z4) -> 393.4886531 | AB131: =(AB118+AC131)/(1+Rollin_WACC!AA4) -> 271.4498974 | AC131: =(AC118+AD131)/(1+Rollin_WACC!AB4) -> 133.9364157 | AD131: =AD118/(1+Rollin_WACC!AC4) -> -26.92715258
B132: VP BTD@Ku | F132: =(F122+G132)/(1+Rollin_WACC!E4) -> 93.0125338 | G132: =(G122+H132)/(1+Rollin_WACC!F4) -> 72.27802622 | H132: =(H122+I132)/(1+Rollin_WACC!G4) -> 51.09731607 | I132: =(I122+J132)/(1+Rollin_WACC!H4) -> 32.59441427 | J132: =(J122+K132)/(1+Rollin_WACC!I4) -> 17.42429234 | K132: =(K122+L132)/(1+Rollin_WACC!J4) -> 6.234500018 | L132: =(L122+M132)/(1+Rollin_WACC!K4) -> 0 | M132: =(M122+N132)/(1+Rollin_WACC!L4) -> 0 | N132: =(N122+O132)/(1+Rollin_WACC!M4) -> 0 | O132: =(O122+P132)/(1+Rollin_WACC!N4) -> 0 | P132: =(P122+Q132)/(1+Rollin_WACC!O4) -> 0 | Q132: =(Q122+R132)/(1+Rollin_WACC!P4) -> 0 | R132: =(R122+S132)/(1+Rollin_WACC!Q4) -> 0 | S132: =(S122+T132)/(1+Rollin_WACC!R4) -> 0 | T132: =(T122+U132)/(1+Rollin_WACC!S4) -> 0 | U132: =(U122+V132)/(1+Rollin_WACC!T4) -> 0 | V132: =(V122+W132)/(1+Rollin_WACC!U4) -> 0 | W132: =(W122+X132)/(1+Rollin_WACC!V4) -> 0 | X132: =(X122+Y132)/(1+Rollin_WACC!W4) -> 0 | Y132: =(Y122+Z132)/(1+Rollin_WACC!X4) -> 0 | Z132: =(Z122+AA132)/(1+Rollin_WACC!Y4) -> 0 | AA132: =(AA122+AB132)/(1+Rollin_WACC!Z4) -> 0 | AB132: =(AB122+AC132)/(1+Rollin_WACC!AA4) -> 0 | AC132: =(AC122+AD132)/(1+Rollin_WACC!AB4) -> 0 | AD132: =AD122/(1+Rollin_WACC!AC4) -> 0
B133: Valor Proyecto en Marcha t | F133: =SUM(F131:F132) -> 1364.69711 | G133: =SUM(G131:G132) -> 1288.021361 | H133: 1210.558909 | I133: 1138.707354 | J133: 1076.359332 | K133: 1020.470447 | L133: 969.9843131 | M133: 926.7786034 | N133: 879.7765265 | O133: 834.0186099 | P133: 796.1699847 | Q133: 867.0883396 | R133: 837.6358233 | S133: 800.7260225 | T133: 748.6763556 | U133: 686.9192493 | V133: 761.6318106 | W133: 702.7897569 | X133: 632.502488 | Y133: 549.6397664 | Z133: 444.7293001 | AA133: 393.4886531 | AB133: 271.4498974 | AC133: 133.9364157 | AD133: -26.92715258
B134: Incentivos tributarios ley transición energetica | F134: =(SUM(F123:F125)+G134)/(1+Rollin_WACC!E12) -> 204.7111959 | G134: =(SUM(G123:G125)+H134)/(1+Rollin_WACC!F12) -> 161.6450143 | H134: =(SUM(H123:H125)+I134)/(1+Rollin_WACC!G12) -> 154.4049342 | I134: =(SUM(I123:I125)+J134)/(1+Rollin_WACC!H12) -> 146.885859 | J134: =(SUM(J123:J125)+K134)/(1+Rollin_WACC!I12) -> 139.1288513 | K134: =(SUM(K123:K125)+L134)/(1+Rollin_WACC!J12) -> 131.1674941 | L134: =(SUM(L123:L125)+M134)/(1+Rollin_WACC!K12) -> 123.0494365 | M134: =(SUM(M123:M125)+N134)/(1+Rollin_WACC!L12) -> 114.8317383 | N134: =(SUM(N123:N125)+O134)/(1+Rollin_WACC!M12) -> 105.6020881 | O134: =(SUM(O123:O125)+P134)/(1+Rollin_WACC!N12) -> 95.23587103 | P134: =(SUM(P123:P125)+Q134)/(1+Rollin_WACC!O12) -> 83.59312692 | Q134: =(SUM(Q123:Q125)+R134)/(1+Rollin_WACC!P12) -> 70.51666037 | R134: =(SUM(R123:R125)+S134)/(1+Rollin_WACC!Q12) -> 55.8299185 | S134: =(SUM(S123:S125)+T134)/(1+Rollin_WACC!R12) -> 39.33460718 | T134: =(SUM(T123:T125)+U134)/(1+Rollin_WACC!S12) -> 20.80801374 | U134: =(SUM(U123:U125)+V134)/(1+Rollin_WACC!T12) -> 0 | V134: =(SUM(V123:V125)+W134)/(1+Rollin_WACC!U12) -> 0 | W134: =(SUM(W123:W125)+X134)/(1+Rollin_WACC!V12) -> 0 | X134: =(SUM(X123:X125)+Y134)/(1+Rollin_WACC!W12) -> 0 | Y134: =(SUM(Y123:Y125)+Z134)/(1+Rollin_WACC!X12) -> 0 | Z134: =(SUM(Z123:Z125)+AA134)/(1+Rollin_WACC!Y12) -> 0 | AA134: =(SUM(AA123:AA125)+AB134)/(1+Rollin_WACC!Z12) -> 0 | AB134: =(SUM(AB123:AB125)+AC134)/(1+Rollin_WACC!AA12) -> 0 | AC134: =(SUM(AC123:AC125)+AD134)/(1+Rollin_WACC!AB12) -> 0 | AD134: =SUM(AD123:AD125)/(1+Rollin_WACC!AC12) -> 0
B135: APV (VPN FCL@Ku + VPN BTD@Ku - Inversión) | E135: =F133+E118+F134 -> 879.315998 | F135: ADJUSTED PRESENT VALUE
B136: VPN FCL@WACC | E136: =E118+F136+F134 -> 879.315998 | F136: =(F118+G136)/(1+Rollin_WACC!E12) -> 1364.69711 | G136: =(G118+H136)/(1+Rollin_WACC!F12) -> 1288.021361 | H136: =(H118+I136)/(1+Rollin_WACC!G12) -> 1210.558909 | I136: =(I118+J136)/(1+Rollin_WACC!H12) -> 1138.707354 | J136: =(J118+K136)/(1+Rollin_WACC!I12) -> 1076.359332 | K136: =(K118+L136)/(1+Rollin_WACC!J12) -> 1020.470447 | L136: =(L118+M136)/(1+Rollin_WACC!K12) -> 969.9843131 | M136: =(M118+N136)/(1+Rollin_WACC!L12) -> 926.7786034 | N136: =(N118+O136)/(1+Rollin_WACC!M12) -> 879.7765265 | O136: =(O118+P136)/(1+Rollin_WACC!N12) -> 834.0186099 | P136: =(P118+Q136)/(1+Rollin_WACC!O12) -> 796.1699847 | Q136: =(Q118+R136)/(1+Rollin_WACC!P12) -> 867.0883396 | R136: =(R118+S136)/(1+Rollin_WACC!Q12) -> 837.6358233 | S136: =(S118+T136)/(1+Rollin_WACC!R12) -> 800.7260225 | T136: =(T118+U136)/(1+Rollin_WACC!S12) -> 748.6763556 | U136: =(U118+V136)/(1+Rollin_WACC!T12) -> 686.9192493 | V136: =(V118+W136)/(1+Rollin_WACC!U12) -> 761.6318106 | W136: =(W118+X136)/(1+Rollin_WACC!V12) -> 702.7897569 | X136: =(X118+Y136)/(1+Rollin_WACC!W12) -> 632.502488 | Y136: =(Y118+Z136)/(1+Rollin_WACC!X12) -> 549.6397664 | Z136: =(Z118+AA136)/(1+Rollin_WACC!Y12) -> 444.7293001 | AA136: =(AA118+AB136)/(1+Rollin_WACC!Z12) -> 393.4886531 | AB136: =(AB118+AC136)/(1+Rollin_WACC!AA12) -> 271.4498974 | AC136: =(AC118+AD136)/(1+Rollin_WACC!AB12) -> 133.9364157 | AD136: =AD118/(1+Rollin_WACC!AC12) -> -26.92715258
B137: VPN FCA@Ke | E137: =F137+E126+F134 -> 879.315998 | F137: =(SUM(F118:F122)+G137)/(1+Rollin_WACC!E11) -> 753.1665636 | G137: =(SUM(G118:G122)+H137)/(1+Rollin_WACC!F11) -> 761.641013 | H137: =(SUM(H118:H122)+I137)/(1+Rollin_WACC!G11) -> 776.6774143 | I137: =(SUM(I118:I122)+J137)/(1+Rollin_WACC!H11) -> 803.0155828 | J137: =(SUM(J118:J122)+K137)/(1+Rollin_WACC!I11) -> 843.0069291 | K137: =(SUM(K118:K122)+L137)/(1+Rollin_WACC!J11) -> 897.9409721 | L137: =(SUM(L118:L122)+M137)/(1+Rollin_WACC!K11) -> 969.9843131 | M137: =(SUM(M118:M122)+N137)/(1+Rollin_WACC!L11) -> 926.7786034 | N137: =(SUM(N118:N122)+O137)/(1+Rollin_WACC!M11) -> 879.7765265 | O137: =(SUM(O118:O122)+P137)/(1+Rollin_WACC!N11) -> 834.0186099 | P137: =(SUM(P118:P122)+Q137)/(1+Rollin_WACC!O11) -> 796.1699847 | Q137: =(SUM(Q118:Q122)+R137)/(1+Rollin_WACC!P11) -> 867.0883396 | R137: =(SUM(R118:R122)+S137)/(1+Rollin_WACC!Q11) -> 837.6358233 | S137: =(SUM(S118:S122)+T137)/(1+Rollin_WACC!R11) -> 800.7260225 | T137: =(SUM(T118:T122)+U137)/(1+Rollin_WACC!S11) -> 748.6763556 | U137: =(SUM(U118:U122)+V137)/(1+Rollin_WACC!T11) -> 686.9192493 | V137: =(SUM(V118:V122)+W137)/(1+Rollin_WACC!U11) -> 761.6318106 | W137: =(SUM(W118:W122)+X137)/(1+Rollin_WACC!V11) -> 702.7897569 | X137: =(SUM(X118:X122)+Y137)/(1+Rollin_WACC!W11) -> 632.502488 | Y137: =(SUM(Y118:Y122)+Z137)/(1+Rollin_WACC!X11) -> 549.6397664 | Z137: =(SUM(Z118:Z122)+AA137)/(1+Rollin_WACC!Y11) -> 444.7293001 | AA137: =(SUM(AA118:AA122)+AB137)/(1+Rollin_WACC!Z11) -> 393.4886531 | AB137: =(SUM(AB118:AB122)+AC137)/(1+Rollin_WACC!AA11) -> 271.4498974 | AC137: =(SUM(AC118:AC122)+AD137)/(1+Rollin_WACC!AB11) -> 133.9364157 | AD137: =SUM(AD118:AD122)/(1+Rollin_WACC!AC11) -> -26.92715258
B139: Tasa Interna del proyecto (TIR) | E139: =XIRR(E118:AD118,E2:AD2) -> 0.2285588562
B141: Flujo de caja acomulado | E141: =SUM($E$118:E118) -> -690.0923074 | F141: =SUM($E$118:F118) -> -477.5520129 | G141: =SUM($E$118:G118) -> -271.5599896 | H141: =SUM($E$118:H118) -> -75.43175758 | I141: =SUM($E$118:I118) -> 107.9562084 | J141: =SUM($E$118:J118) -> 283.0557389 | K141: =SUM($E$118:K118) -> 452.20343 | L141: =SUM($E$118:L118) -> 614.855918 | M141: =SUM($E$118:M118) -> 775.9842924 | N141: =SUM($E$118:N118) -> 930.0805298 | O141: =SUM($E$118:O118) -> 1070.632709 | P141: =SUM($E$118:P118) -> 1097.757114 | Q141: =SUM($E$118:Q118) -> 1233.98549 | R141: =SUM($E$118:R118) -> 1374.044279 | S141: =SUM($E$118:S118) -> 1524.69775 | T141: =SUM($E$118:T118) -> 1678.649109 | U141: =SUM($E$118:U118) -> 1688.525845 | V141: =SUM($E$118:V118) -> 1841.157525 | W141: =SUM($E$118:W118) -> 1997.988433 | X141: =SUM($E$118:X118) -> 2158.739408 | Y141: =SUM($E$118:Y118) -> 2331.334164 | Z141: =SUM($E$118:Z118) -> 2437.340111 | AA141: =SUM($E$118:AA118) -> 2607.83424 | AB141: =SUM($E$118:AB118) -> 2778.774877 | AC141: =SUM($E$118:AC118) -> 2956.131777 | AD141: =SUM($E$118:AD118) -> 2925.888734
B142: Flujo de caja acomulado descontado @WACC | E142: =E141/(1+Rollin_WACC!D12)^E5 -> -690.0923074 | F142: =F141/(1+Rollin_WACC!E12)^F5 -> -434.3132781 | G142: =G141/(1+Rollin_WACC!F12)^G5 -> -224.5161188 | H142: =H141/(1+Rollin_WACC!G12)^H5 -> -56.26375107 | I142: =I141/(1+Rollin_WACC!H12)^I5 -> 72.07130448 | J142: =J141/(1+Rollin_WACC!I12)^J5 -> 167.4107584 | K142: =K141/(1+Rollin_WACC!J12)^K5 -> 233.717979 | L142: =L141/(1+Rollin_WACC!K12)^L5 -> 272.726899 | M142: =M141/(1+Rollin_WACC!L12)^M5 -> 306.4590794 | N142: =N141/(1+Rollin_WACC!M12)^N5 -> 327.0431526 | O142: =O141/(1+Rollin_WACC!N12)^O5 -> 335.1891562 | P142: =P141/(1+Rollin_WACC!O12)^P5 -> 305.9994589 | Q142: =Q141/(1+Rollin_WACC!P12)^Q5 -> 306.2593782 | R142: =R141/(1+Rollin_WACC!Q12)^R5 -> 303.6302359 | S142: =S141/(1+Rollin_WACC!R12)^S5 -> 299.9804785 | T142: =T141/(1+Rollin_WACC!S12)^T5 -> 294.0587479 | U142: =U141/(1+Rollin_WACC!T12)^U5 -> 263.3581951 | V142: =V141/(1+Rollin_WACC!U12)^V5 -> 255.6789753 | W142: =W141/(1+Rollin_WACC!V12)^W5 -> 247.0369887 | X142: =X141/(1+Rollin_WACC!W12)^X5 -> 237.648009 | Y142: =Y141/(1+Rollin_WACC!X12)^Y5 -> 228.5090653 | Z142: =Z141/(1+Rollin_WACC!Y12)^Z5 -> 212.7061206 | AA142: =AA141/(1+Rollin_WACC!Z12)^AA5 -> 202.6323493 | AB142: =AB141/(1+Rollin_WACC!AA12)^AB5 -> 192.2414818 | AC142: =AC141/(1+Rollin_WACC!AB12)^AC5 -> 182.0884826 | AD142: =AD141/(1+Rollin_WACC!AC12)^AD5 -> 160.4654133
B143: Ajuste PRI ultimo año de recuperación | E143: =IF((F142-E142)/E142<0.9,(F142-E142)/E142,0) -> -0.3706446609 | F143: =IF((G142-F142)/F142<0.9,(G142-F142)/F142,0) -> -0.483054905 | G143: -0.7493999479 | H143: -2.280954489 | I143: 0 | J143: 0.3960750272 | K143: 0.1669059444 | L143: 0.1236848307 | M143: 0.06716744458 | N143: 0.0249080389 | O143: -0.08708425302 | P143: 0.0008494110825 | Q143: -0.008584691723 | R143: -0.01202040153 | S143: -0.01974038662 | T143: -0.1044027871 | U143: -0.02915884093 | V143: -0.03380014577 | W143: -0.03800637188 | X143: -0.03845579766 | Y143: -0.06915675175 | Z143: -0.0473600443 | AA143: -0.05127941081 | AB143: -0.05281377922 | AC143: -0.1187503407 | AD143: -1
B144: Periodo de Recuperación de la Inversión (PRI) | E144: =COUNTIF($E$142:$AD$142,"<0")-($E$3/Inputs!$C$10) -> 3.416666667
B146: Flujo del EPC
B147: Facturación sin proyecto | E147: =E44 -> 259.2469004 | F147: 413.9417001 | G147: 414.0924935 | H147: 413.7258252 | I147: 443.8371753 | J147: 457.3389006 | K147: 469.4606036 | L147: 480.296741 | M147: 470.3233338 | N147: 479.9379794 | O147: 514.7504384 | P147: 531.6626115 | Q147: 545.9625491 | R147: 560.2439509 | S147: 550.2310446 | T147: 564.1599667 | U147: 611.1245852 | V147: 634.3528081 | W147: 650.170801 | X147: 665.9244629 | Y147: 655.2362063 | Z147: 674.1777959 | AA147: 728.0163666 | AB147: 753.6268908 | AC147: 764.8831302 | AD147: 783.7495865
B148: Facturación con proyecto | E148: =IF($E$69=Inputs!$Z$4,E47,E54) -> 182.4969633 | F148: =IF($E$69=Inputs!$Z$4,F47,F54) -> 272.4117487 | G148: =IF($E$69=Inputs!$Z$4,G47,G54) -> 266.6500674 | H148: =IF($E$69=Inputs!$Z$4,H47,H54) -> 266.6847364 | I148: =IF($E$69=Inputs!$Z$4,I47,I54) -> 300.6666739 | J148: =IF($E$69=Inputs!$Z$4,J47,J54) -> 312.6526281 | K148: =IF($E$69=Inputs!$Z$4,K47,K54) -> 320.9069383 | L148: =IF($E$69=Inputs!$Z$4,L47,L54) -> 328.3799553 | M148: =IF($E$69=Inputs!$Z$4,M47,M54) -> 309.5001731 | N148: =IF($E$69=Inputs!$Z$4,N47,N54) -> 315.9297499 | O148: =IF($E$69=Inputs!$Z$4,O47,O54) -> 355.1713874 | P148: =IF($E$69=Inputs!$Z$4,P47,P54) -> 370.1607733 | Q148: =IF($E$69=Inputs!$Z$4,Q47,Q54) -> 379.8637348 | R148: =IF($E$69=Inputs!$Z$4,R47,R54) -> 389.4095065 | S148: =IF($E$69=Inputs!$Z$4,S47,S54) -> 366.7944189 | T148: =IF($E$69=Inputs!$Z$4,T47,T54) -> 376.4004377 | U148: =IF($E$69=Inputs!$Z$4,U47,U54) -> 427.2218376 | V148: =IF($E$69=Inputs!$Z$4,V47,V54) -> 447.1157312 | W148: =IF($E$69=Inputs!$Z$4,W47,W54) -> 457.706638 | X148: =IF($E$69=Inputs!$Z$4,X47,X54) -> 468.5017317 | Y148: =IF($E$69=Inputs!$Z$4,Y47,Y54) -> 443.9426825 | Z148: =IF($E$69=Inputs!$Z$4,Z47,Z54) -> 457.9777476 | AA148: =IF($E$69=Inputs!$Z$4,AA47,AA54) -> 517.4739175 | AB148: =IF($E$69=Inputs!$Z$4,AB47,AB54) -> 541.4368015 | AC148: =IF($E$69=Inputs!$Z$4,AC47,AC54) -> 545.0484764 | AD148: =IF($E$69=Inputs!$Z$4,AD47,AD54) -> 559.6030384
B149: Ahorros estimados - EPC | E149: =E147-E148 -> 76.74993707 | F149: =F147-F148 -> 141.5299514 | G149: 147.4424261 | H149: 147.0410888 | I149: 143.1705014 | J149: 144.6862726 | K149: 148.5536653 | L149: 151.9167856 | M149: 160.8231607 | N149: 164.0082295 | O149: 159.5790511 | P149: 161.5018382 | Q149: 166.0988143 | R149: 170.8344445 | S149: 183.4366256 | T149: 187.7595291 | U149: 183.9027476 | V149: 187.2370769 | W149: 192.464163 | X149: 197.4227313 | Y149: 211.2935239 | Z149: 216.2000483 | AA149: 210.542449 | AB149: 212.1900894 | AC149: 219.8346539 | AD149: 224.1465481
B150: Costos del proyecto (CAPEX + OPEX + Sostenimiento) | E150: =SUM(E116:E117)-E103 -> -766.6660034 | F150: =SUM(F116:F117)-F103 -> -20.33948999 | G150: -22.73121764 | H150: -23.05572526 | I150: -23.64755506 | J150: -24.27176238 | K150: -24.94092951 | L150: -25.60918457 | M150: -26.3072939 | N150: -27.05115749 | O150: -27.80916728 | P150: -133.9511519 | Q150: -29.48323472 | R150: -30.36225061 | S150: -31.28111939 | T150: -32.19748217 | U150: -173.6036867 | V150: -34.1728262 | W150: -35.18547783 | X150: -36.22072965 | Y150: -37.33087296 | Z150: -108.6701035 | AA150: -39.58439437 | AB150: -40.76234994 | AC150: -41.97029045 | AD150: -253.8643186
B151: Reducción gastos de energía eléctrica - sin OPEX | E151: =((E147-E148)/E147) -> 0.2960495842 | F151: =((F147-F148)/F147) -> 0.3419079338 | G151: 0.3560615767 | H151: 0.3554070833 | I151: 0.3225743795 | J151: 0.3163655494 | K151: 0.3164347853 | L151: 0.3162977648 | M151: 0.3419417009 | N151: 0.3417279659 | O151: 0.3100124627 | P151: 0.3037675298 | Q151: 0.3042311503 | R151: 0.3049286729 | S151: 0.3333810904 | T151: 0.3328125712 | U151: 0.3009251338 | V151: 0.2951623679 | W151: 0.2960209267 | X151: 0.2964641521 | Y151: 0.3224692437 | Z151: 0.3206869903 | AA151: 0.2892001591 | AB151: 0.281558543 | AC151: 0.2874094684 | AD151: 0.2859925567
B152: Reducción gastos de energía eléctrica - incluyendo OPEX | E152: =((E147-E148)/E147)-(E109/E147) -> 0.2960495842 | F152: =((F147-F148)/F147)-(F109/F147) -> 0.3419079338 | G152: 0.3560615767 | H152: 0.3554070833 | I152: 0.3225743795 | J152: 0.3163655494 | K152: 0.3164347853 | L152: 0.3162977648 | M152: 0.3419417009 | N152: 0.3417279659 | O152: 0.3100124627 | P152: 0.3037675298 | Q152: 0.3042311503 | R152: 0.3049286729 | S152: 0.3333810904 | T152: 0.3328125712 | U152: 0.3009251338 | V152: 0.2951623679 | W152: 0.2960209267 | X152: 0.2964641521 | Y152: 0.3224692437 | Z152: 0.3206869903 | AA152: 0.2892001591 | AB152: 0.281558543 | AC152: 0.2874094684 | AD152: 0.2859925567
B154: Análisis del retorno de la inversión
B155: Beneficio durante el proyecto | D155: =SUM(E155:AD155) -> 4510.366352 | E155: =E147*E152 -> 76.74993707 | F155: 141.5299514 | G155: 147.4424261 | H155: 147.0410888 | I155: 143.1705014 | J155: 144.6862726 | K155: 148.5536653 | L155: 151.9167856 | M155: 160.8231607 | N155: 164.0082295 | O155: 159.5790511 | P155: 161.5018382 | Q155: 166.0988143 | R155: 170.8344445 | S155: 183.4366256 | T155: 187.7595291 | U155: 183.9027476 | V155: 187.2370769 | W155: 192.464163 | X155: 197.4227313 | Y155: 211.2935239 | Z155: 216.2000483 | AA155: 210.542449 | AB155: 212.1900894 | AC155: 219.8346539 | AD155: 224.1465481
B156: Beneficios descontados @WACC | D156: =SUM(E156:AD156) -> 1323.143417 | E156: =E155/(1+Rollin_WACC!D12)^E5 -> 76.74993707 | F156: =F155/(1+Rollin_WACC!E12)^F5 -> 128.7154812 | G156: =G155/(1+Rollin_WACC!F12)^G5 -> 121.9001419 | H156: =H155/(1+Rollin_WACC!G12)^H5 -> 109.6763947 | I156: =I155/(1+Rollin_WACC!H12)^I5 -> 95.58028162 | J156: =J155/(1+Rollin_WACC!I12)^J5 -> 85.57338815 | K156: =K155/(1+Rollin_WACC!J12)^K5 -> 76.77885687 | L156: =L155/(1+Rollin_WACC!K12)^L5 -> 67.38455732 | M156: =M155/(1+Rollin_WACC!L12)^M5 -> 63.51380853 | N156: =N155/(1+Rollin_WACC!M12)^N5 -> 57.67002609 | O156: =O155/(1+Rollin_WACC!N12)^O5 -> 49.96033378 | P156: =P155/(1+Rollin_WACC!O12)^P5 -> 45.01858786 | Q156: =Q155/(1+Rollin_WACC!P12)^Q5 -> 41.22359624 | R156: =R155/(1+Rollin_WACC!Q12)^R5 -> 37.750241 | S156: =S155/(1+Rollin_WACC!R12)^S5 -> 36.09069845 | T156: =T155/(1+Rollin_WACC!S12)^T5 -> 32.890931 | U156: =U155/(1+Rollin_WACC!T12)^U5 -> 28.68318292 | V156: =V155/(1+Rollin_WACC!U12)^V5 -> 26.0013515 | W156: =W155/(1+Rollin_WACC!V12)^W5 -> 23.79681808 | X156: =X155/(1+Rollin_WACC!W12)^X5 -> 21.73357231 | Y156: =Y155/(1+Rollin_WACC!X12)^Y5 -> 20.71023811 | Z156: =Z155/(1+Rollin_WACC!Y12)^Z5 -> 18.86772935 | AA156: =AA155/(1+Rollin_WACC!Z12)^AA5 -> 16.35944126 | AB156: =AB155/(1+Rollin_WACC!AA12)^AB5 -> 14.67975601 | AC156: =AC155/(1+Rollin_WACC!AB12)^AC5 -> 13.54112792 | AD156: =AD155/(1+Rollin_WACC!AC12)^AD5 -> 12.29293789
B157: Incentivos tributarios | D157: =F134 -> 204.7111959
B158: Rentabilidad de la inversión | D158: =D156+E117+D157 -> 825.670928
B159: Retorno sobre la inversión (ROI) | D159: =D158/D156 -> 0.6240222468

Sheet FC_PPA
D2: Fecha | E2: =Inputs!G15 -> 2023-05-31 | F2: =EDATE(E2,E3+F3) -> 2024-12-31 | G2: =EDATE(F2,G3) -> 2025-12-31 | H2: =EDATE(G2,H3) -> 2026-12-31 | I2: 2027-12-31 | J2: 2028-12-31 | K2: 2029-12-31 | L2: 2030-12-31 | M2: 2031-12-31 | N2: 2032-12-31 | O2: 2033-12-31 | P2: 2034-12-31 | Q2: 2035-12-31 | R2: 2036-12-31 | S2: 2037-12-31 | T2: 2038-12-31 | U2: 2039-12-31 | V2: 2040-12-31 | W2: 2041-12-31 | X2: 2042-12-31 | Y2: 2043-12-31 | Z2: 2044-12-31 | AA2: 2045-12-31 | AB2: 2046-12-31 | AC2: 2047-12-31 | AD2: 2048-12-31
D3: Meses del año | E3: =Inputs!$C$10-MONTH(E2) -> 7 | F3: =Inputs!$C$10 -> 12 | G3: =F3 -> 12 | H3: =G3 -> 12 | I3: 12 | J3: 12 | K3: 12 | L3: 12 | M3: 12 | N3: 12 | O3: 12 | P3: 12 | Q3: 12 | R3: 12 | S3: 12 | T3: 12 | U3: 12 | V3: 12 | W3: 12 | X3: 12 | Y3: 12 | Z3: 12 | AA3: 12 | AB3: 12 | AC3: 12 | AD3: 12
D4: Año | E4: =YEAR(E2) -> 2023 | F4: =YEAR(F2) -> 2024 | G4: =YEAR(G2) -> 2025 | H4: =YEAR(H2) -> 2026 | I4: 2027 | J4: 2028 | K4: 2029 | L4: 2030 | M4: 2031 | N4: 2032 | O4: 2033 | P4: 2034 | Q4: 2035 | R4: 2036 | S4: 2037 | T4: 2038 | U4: 2039 | V4: 2040 | W4: 2041 | X4: 2042 | Y4: 2043 | Z4: 2044 | AA4: 2045 | AB4: 2046 | AC4: 2047 | AD4: 2048
D5: Periodo | E5: 0 | F5: =E5+1 -> 1 | G5: =F5+1 -> 2 | H5: 3 | I5: 4 | J5: 5 | K5: 6 | L5: 7 | M5: 8 | N5: 9 | O5: 10 | P5: 11 | Q5: 12 | R5: 13 | S5: 14 | T5: 15 | U5: 16 | V5: 17 | W5: 18 | X5: 19 | Y5: 20 | Z5: 21 | AA5: 22 | AB5: 23 | AC5: 24 | AD5: 25
B6: Indexador del precio del PPA | C6: =Tablero!$L$46 -> Min (IPP,IPC) | E6: =SUMIF(FC_EPC!$A$6:$A$19,Tablero!$L$46,FC_EPC!E6:E19) -> 1 | F6: =SUMIF(FC_EPC!$A$6:$A$19,Tablero!$L$46,FC_EPC!F6:F19) -> 1.089 | G6: =SUMIF(FC_EPC!$A$6:$A$19,Tablero!$L$46,FC_EPC!G6:G19) -> 1.127115 | H6: =SUMIF(FC_EPC!$A$6:$A$19,Tablero!$L$46,FC_EPC!H6:H19) -> 1.14740307 | I6: =SUMIF(FC_EPC!$A$6:$A$19,Tablero!$L$46,FC_EPC!I6:I19) -> 1.178382953 | J6: =SUMIF(FC_EPC!$A$6:$A$19,Tablero!$L$46,FC_EPC!J6:J19) -> 1.210199293 | K6: =SUMIF(FC_EPC!$A$6:$A$19,Tablero!$L$46,FC_EPC!K6:K19) -> 1.242874674 | L6: =SUMIF(FC_EPC!$A$6:$A$19,Tablero!$L$46,FC_EPC!L6:L19) -> 1.27643229 | M6: =SUMIF(FC_EPC!$A$6:$A$19,Tablero!$L$46,FC_EPC!M6:M19) -> 1.310895962 | N6: =SUMIF(FC_EPC!$A$6:$A$19,Tablero!$L$46,FC_EPC!N6:N19) -> 1.35022284 | O6: =SUMIF(FC_EPC!$A$6:$A$19,Tablero!$L$46,FC_EPC!O6:O19) -> 1.390729526 | P6: =SUMIF(FC_EPC!$A$6:$A$19,Tablero!$L$46,FC_EPC!P6:P19) -> 1.432451411 | Q6: =SUMIF(FC_EPC!$A$6:$A$19,Tablero!$L$46,FC_EPC!Q6:Q19) -> 1.475424954 | R6: =SUMIF(FC_EPC!$A$6:$A$19,Tablero!$L$46,FC_EPC!R6:R19) -> 1.519687702 | S6: =SUMIF(FC_EPC!$A$6:$A$19,Tablero!$L$46,FC_EPC!S6:S19) -> 1.565278333 | T6: =SUMIF(FC_EPC!$A$6:$A$19,Tablero!$L$46,FC_EPC!T6:T19) -> 1.612236683 | U6: =SUMIF(FC_EPC!$A$6:$A$19,Tablero!$L$46,FC_EPC!U6:U19) -> 1.660603784 | V6: =SUMIF(FC_EPC!$A$6:$A$19,Tablero!$L$46,FC_EPC!V6:V19) -> 1.710421897 | W6: =SUMIF(FC_EPC!$A$6:$A$19,Tablero!$L$46,FC_EPC!W6:W19) -> 1.761734554 | X6: =SUMIF(FC_EPC!$A$6:$A$19,Tablero!$L$46,FC_EPC!X6:X19) -> 1.814586591 | Y6: =SUMIF(FC_EPC!$A$6:$A$19,Tablero!$L$46,FC_EPC!Y6:Y19) -> 1.869024189 | Z6: =SUMIF(FC_EPC!$A$6:$A$19,Tablero!$L$46,FC_EPC!Z6:Z19) -> 1.925094914 | AA6: =SUMIF(FC_EPC!$A$6:$A$19,Tablero!$L$46,FC_EPC!AA6:AA19) -> 1.982847762 | AB6: =SUMIF(FC_EPC!$A$6:$A$19,Tablero!$L$46,FC_EPC!AB6:AB19) -> 2.042333195 | AC6: =SUMIF(FC_EPC!$A$6:$A$19,Tablero!$L$46,FC_EPC!AC6:AC19) -> 2.10360319 | AD6: =SUMIF(FC_EPC!$A$6:$A$19,Tablero!$L$46,FC_EPC!AD6:AD19) -> 2.166711286
B8: Precio de pactado del PPA PLG | C8: $/kWh
B9: Precio pactado (PPA) | E9: =SUMIFS(Index_precios_meses!$D$49:$AY$49,Index_precios_meses!$D$3:$AY$3,$E$2) -> 314.6536051 | F9: =$E$9*F6 -> 342.657776 | G9: =$E$9*G6 -> 354.6507981 | H9: 361.0345125 | I9: 370.7824443 | J9: 380.7935703 | K9: 391.0749967 | L9: 401.6340217 | M9: 412.4781402 | N9: 424.8524844 | O9: 437.598059 | P9: 450.7260008 | Q9: 464.2477808 | R9: 478.1752142 | S9: 492.5204706 | T9: 507.2960847 | U9: 522.5149673 | V9: 538.1904163 | W9: 554.3361288 | X9: 570.9662127 | Y9: 588.095199 | Z9: 605.738055 | AA9: 623.9101967 | AB9: 642.6275026 | AC9: 661.9063276 | AD9: 681.7635175
B11: PPA - PLG
B12: Factura PPA - PLG | E12: =Operación!E8*E9/Inputs!$C$5 -> 43.9543076 | F12: =Operación!F8*F9/Inputs!$C$5 -> 81.34912634 | G12: =Operación!G8*G9/Inputs!$C$5 -> 84.06433518 | H12: =Operación!H8*H9/Inputs!$C$5 -> 85.18180635 | I12: =Operación!I8*I9/Inputs!$C$5 -> 87.07346416 | J12: =Operación!J8*J9/Inputs!$C$5 -> 88.96493166 | K12: =Operación!K8*K9/Inputs!$C$5 -> 90.81360135 | L12: =Operación!L8*L9/Inputs!$C$5 -> 92.61216852 | M12: =Operación!M8*M9/Inputs!$C$5 -> 94.39480644 | N12: =Operación!N8*N9/Inputs!$C$5 -> 96.52559077 | O12: =Operación!O8*O9/Inputs!$C$5 -> 98.73966977 | P12: =Operación!P8*P9/Inputs!$C$5 -> 101.0893286 | Q12: =Operación!Q8*Q9/Inputs!$C$5 -> 103.5850972 | R12: =Operación!R8*R9/Inputs!$C$5 -> 106.1874502 | S12: =Operación!S8*S9/Inputs!$C$5 -> 108.9026646 | T12: =Operación!T8*T9/Inputs!$C$5 -> 111.6832703 | U12: =Operación!U8*U9/Inputs!$C$5 -> 114.5306722 | V12: =Operación!V8*V9/Inputs!$C$5 -> 117.5041084 | W12: =Operación!W8*W9/Inputs!$C$5 -> 120.431625 | X12: =Operación!X8*X9/Inputs!$C$5 -> 123.3644035 | Y12: =Operación!Y8*Y9/Inputs!$C$5 -> 126.2972259 | Z12: =Operación!Z8*Z9/Inputs!$C$5 -> 129.0254493 | AA12: =Operación!AA8*AA9/Inputs!$C$5 -> 131.5892332 | AB12: =Operación!AB8*AB9/Inputs!$C$5 -> 134.0358007 | AC12: =Operación!AC8*AC9/Inputs!$C$5 -> 136.4210461 | AD12: =Operación!AD8*AD9/Inputs!$C$5 -> 138.8110889
B13: Factura con proyecto (PPA - PLG) | E13: =FC_EPC!E148 -> 182.4969633 | F13: =FC_EPC!F148 -> 272.4117487 | G13: =FC_EPC!G148 -> 266.6500674 | H13: =FC_EPC!H148 -> 266.6847364 | I13: =FC_EPC!I148 -> 300.6666739 | J13: =FC_EPC!J148 -> 312.6526281 | K13: =FC_EPC!K148 -> 320.9069383 | L13: =FC_EPC!L148 -> 328.3799553 | M13: =FC_EPC!M148 -> 309.5001731 | N13: =FC_EPC!N148 -> 315.9297499 | O13: =FC_EPC!O148 -> 355.1713874 | P13: =FC_EPC!P148 -> 370.1607733 | Q13: =FC_EPC!Q148 -> 379.8637348 | R13: =FC_EPC!R148 -> 389.4095065 | S13: =FC_EPC!S148 -> 366.7944189 | T13: =FC_EPC!T148 -> 376.4004377 | U13: =FC_EPC!U148 -> 427.2218376 | V13: =FC_EPC!V148 -> 447.1157312 | W13: =FC_EPC!W148 -> 457.706638 | X13: =FC_EPC!X148 -> 468.5017317 | Y13: =FC_EPC!Y148 -> 443.9426825 | Z13: =FC_EPC!Z148 -> 457.9777476 | AA13: =FC_EPC!AA148 -> 517.4739175 | AB13: =FC_EPC!AB148 -> 541.4368015 | AC13: =FC_EPC!AC148 -> 545.0484764 | AD13: =FC_EPC!AD148 -> 559.6030384
B14: Factura Sin proyecto - servicio de energía contratado | E14: =FC_EPC!E147 -> 259.2469004 | F14: =FC_EPC!F147 -> 413.9417001 | G14: =FC_EPC!G147 -> 414.0924935 | H14: =FC_EPC!H147 -> 413.7258252 | I14: =FC_EPC!I147 -> 443.8371753 | J14: =FC_EPC!J147 -> 457.3389006 | K14: =FC_EPC!K147 -> 469.4606036 | L14: =FC_EPC!L147 -> 480.296741 | M14: =FC_EPC!M147 -> 470.3233338 | N14: =FC_EPC!N147 -> 479.9379794 | O14: =FC_EPC!O147 -> 514.7504384 | P14: =FC_EPC!P147 -> 531.6626115 | Q14: =FC_EPC!Q147 -> 545.9625491 | R14: =FC_EPC!R147 -> 560.2439509 | S14: =FC_EPC!S147 -> 550.2310446 | T14: =FC_EPC!T147 -> 564.1599667 | U14: =FC_EPC!U147 -> 611.1245852 | V14: =FC_EPC!V147 -> 634.3528081 | W14: =FC_EPC!W147 -> 650.170801 | X14: =FC_EPC!X147 -> 665.9244629 | Y14: =FC_EPC!Y147 -> 655.2362063 | Z14: =FC_EPC!Z147 -> 674.1777959 | AA14: =FC_EPC!AA147 -> 728.0163666 | AB14: =FC_EPC!AB147 -> 753.6268908 | AC14: =FC_EPC!AC147 -> 764.8831302 | AD14: =FC_EPC!AD147 -> 783.7495865
B15: Ahorro esperado en el gasto del servicio de energía | E15: =E14-SUM(E12:E13) -> 32.79562947 | F15: 60.18082504 | G15: 63.37809093 | H15: 61.85928244 | I15: 56.09703726 | J15: 55.72134089 | K15: 57.74006395 | L15: 59.30461708 | M15: 66.42835426 | N15: 67.48263869 | O15: 60.83938132 | P15: 60.4125096 | Q15: 62.51371714 | R15: 64.64699423 | S15: 74.533961 | T15: 76.07625875 | U15: 69.37207533 | V15: 69.73296855 | W15: 72.03253803 | X15: 74.05832772 | Y15: 84.99629798 | Z15: 87.17459899 | AA15: 78.9532158 | AB15: 78.15428863 | AC15: 83.41360776 | AD15: 85.33545914
B16: Ingresos Excedentes | E16: =FC_EPC!E71 -> 0.3833207099 | F16: =FC_EPC!F71 -> 1.069431063 | G16: =FC_EPC!G71 -> 3.239307804 | H16: =FC_EPC!H71 -> 3.136266092 | I16: =FC_EPC!I71 -> 0.8452694432 | J16: =FC_EPC!J71 -> 0.8476135497 | K16: =FC_EPC!K71 -> 0.7736283183 | L16: =FC_EPC!L71 -> 0.8013469659 | M16: =FC_EPC!M71 -> 2.207611831 | N16: =FC_EPC!N71 -> 2.955103011 | O16: =FC_EPC!O71 -> 0.8641552071 | P16: =FC_EPC!P71 -> 0.9381809666 | Q16: =FC_EPC!Q71 -> 0.8344665803 | R16: =FC_EPC!R71 -> 0.896607107 | S16: =FC_EPC!S71 -> 3.659520865 | T16: =FC_EPC!T71 -> 3.931087075 | U16: =FC_EPC!U71 -> 0.9050240185 | V16: =FC_EPC!V71 -> 0.9259572242 | W16: =FC_EPC!W71 -> 0.9594668299 | X16: =FC_EPC!X71 -> 0.9624626829 | Y16: =FC_EPC!Y71 -> 3.287741347 | Z16: =FC_EPC!Z71 -> 3.678897093 | AA16: =FC_EPC!AA71 -> 0.9781541294 | AB16: =FC_EPC!AB71 -> 1.031087694 | AC16: =FC_EPC!AC71 -> 1.076706558 | AD16: =FC_EPC!AD71 -> 1.115683145
B17: Otros ingresos (Ingreso CER - Capacidad > 1MW ) | E17: =FC_EPC!T72 -> 0 | F17: =FC_EPC!U72 -> 0 | G17: =FC_EPC!V72 -> 0 | H17: =FC_EPC!W72 -> 0 | I17: =FC_EPC!X72 -> 0 | J17: =FC_EPC!Y72 -> 0 | K17: =FC_EPC!Z72 -> 0 | L17: =FC_EPC!AA72 -> 0 | M17: =FC_EPC!AB72 -> 0 | N17: =FC_EPC!AC72 -> 0 | O17: =FC_EPC!AD72 -> 0 | P17: =FC_EPC!AE72 -> 0 | Q17: =FC_EPC!AF72 -> 0 | R17: =FC_EPC!AG72 -> 0 | S17: =FC_EPC!AH72 -> 0 | T17: =FC_EPC!AI72 -> 0 | U17: =FC_EPC!AJ72 -> 0 | V17: =FC_EPC!AK72 -> 0 | W17: =FC_EPC!AL72 -> 0 | X17: =FC_EPC!AM72 -> 0 | Y17: =FC_EPC!AN72 -> 0 | Z17: =FC_EPC!AO72 -> 0 | AA17: =FC_EPC!AP72 -> 0 | AB17: =FC_EPC!AQ72 -> 0 | AC17: =FC_EPC!AR72 -> 0 | AD17: =FC_EPC!AS72 -> 0
B18: Total ingresos esperados | E18: =SUM(E16:E17) -> 0.3833207099 | F18: =SUM(F16:F17) -> 1.069431063 | G18: 3.239307804 | H18: 3.136266092 | I18: 0.8452694432 | J18: 0.8476135497 | K18: 0.7736283183 | L18: 0.8013469659 | M18: 2.207611831 | N18: 2.955103011 | O18: 0.8641552071 | P18: 0.9381809666 | Q18: 0.8344665803 | R18: 0.896607107 | S18: 3.659520865 | T18: 3.931087075 | U18: 0.9050240185 | V18: 0.9259572242 | W18: 0.9594668299 | X18: 0.9624626829 | Y18: 3.287741347 | Z18: 3.678897093 | AA18: 0.9781541294 | AB18: 1.031087694 | AC18: 1.076706558 | AD18: 1.115683145
B19: Reducción gastos de energía eléctrica | E19: =(E15+E16+E17)/E14 -> 0.1279820516 | F19: =(F15+F16+F17)/F14 -> 0.1479683156 | G19: 0.1608756493 | H19: 0.1570981181 | I19: 0.1282954873 | J19: 0.1236915433 | K19: 0.1246402612 | L19: 0.1251433935 | M19: 0.1459335763 | N19: 0.1467642586 | O19: 0.1198707799 | P19: 0.1153940285 | Q19: 0.1160302732 | R19: 0.1169911808 | S19: 0.1421102692 | T19: 0.1418167728 | U19: 0.1149963543 | V19: 0.1113874249 | W19: 0.1122658919 | X19: 0.1126566068 | Y19: 0.1347362042 | Z19: 0.1347619228 | AA19: 0.1097933695 | AB19: 0.105072387 | AC19: 0.1104617307 | AD19: 0.110304546
B21: Impuestos sobre los ingresos
B22: Rete Fuente | E22: =E18*Inputs!$V$5*Impuetos!D3 -> 0.003354056212 | F22: =F18*Inputs!$V$5*Impuetos!E3 -> 0.009357521798 | G22: =G18*Inputs!$V$5*Impuetos!F3 -> 0.03077342414 | H22: =H18*Inputs!$V$5*Impuetos!G3 -> 0.02979452787 | I22: =I18*Inputs!$V$5*Impuetos!H3 -> 0.00803005971 | J22: =J18*Inputs!$V$5*Impuetos!I3 -> 0.008052328722 | K22: =K18*Inputs!$V$5*Impuetos!J3 -> 0.007349469024 | L22: =L18*Inputs!$V$5*Impuetos!K3 -> 0.007612796176 | M22: =M18*Inputs!$V$5*Impuetos!L3 -> 0.02097231239 | N22: =N18*Inputs!$V$5*Impuetos!M3 -> 0.0280734786 | O22: =O18*Inputs!$V$5*Impuetos!N3 -> 0.008209474468 | P22: =P18*Inputs!$V$5*Impuetos!O3 -> 0.008912719183 | Q22: =Q18*Inputs!$V$5*Impuetos!P3 -> 0.007927432513 | R22: =R18*Inputs!$V$5*Impuetos!Q3 -> 0.008517767516 | S22: =S18*Inputs!$V$5*Impuetos!R3 -> 0.03476544822 | T22: =T18*Inputs!$V$5*Impuetos!S3 -> 0.03734532721 | U22: =U18*Inputs!$V$5*Impuetos!T3 -> 0.008597728176 | V22: =V18*Inputs!$V$5*Impuetos!U3 -> 0.00879659363 | W22: =W18*Inputs!$V$5*Impuetos!V3 -> 0.009114934884 | X22: =X18*Inputs!$V$5*Impuetos!W3 -> 0.009143395487 | Y22: =Y18*Inputs!$V$5*Impuetos!X3 -> 0.03123354279 | Z22: =Z18*Inputs!$V$5*Impuetos!Y3 -> 0.03494952238 | AA22: =AA18*Inputs!$V$5*Impuetos!Z3 -> 0.009292464229 | AB22: =AB18*Inputs!$V$5*Impuetos!AA3 -> 0.009795333096 | AC22: =AC18*Inputs!$V$5*Impuetos!AB3 -> 0.0102287123 | AD22: =AD18*Inputs!$V$5*Impuetos!AC3 -> 0.01059898988
B23: Rete ICA | E23: =E18*Inputs!$V$6*Impuetos!D4 -> 0.0007091433134 | F23: =F18*Inputs!$V$6*Impuetos!E4 -> 0.001978447466 | G23: =G18*Inputs!$V$6*Impuetos!F4 -> 0.005992719437 | H23: =H18*Inputs!$V$6*Impuetos!G4 -> 0.00580209227 | I23: =I18*Inputs!$V$6*Impuetos!H4 -> 0.00156374847 | J23: =J18*Inputs!$V$6*Impuetos!I4 -> 0.001568085067 | K23: =K18*Inputs!$V$6*Impuetos!J4 -> 0.001431212389 | L23: =L18*Inputs!$V$6*Impuetos!K4 -> 0.001482491887 | M23: =M18*Inputs!$V$6*Impuetos!L4 -> 0.004084081887 | N23: =N18*Inputs!$V$6*Impuetos!M4 -> 0.00546694057 | O23: =O18*Inputs!$V$6*Impuetos!N4 -> 0.001598687133 | P23: =P18*Inputs!$V$6*Impuetos!O4 -> 0.001735634788 | Q23: =Q18*Inputs!$V$6*Impuetos!P4 -> 0.001543763174 | R23: =R18*Inputs!$V$6*Impuetos!Q4 -> 0.001658723148 | S23: =S18*Inputs!$V$6*Impuetos!R4 -> 0.0067701136 | T23: =T18*Inputs!$V$6*Impuetos!S4 -> 0.007272511089 | U23: =U18*Inputs!$V$6*Impuetos!T4 -> 0.001674294434 | V23: =V18*Inputs!$V$6*Impuetos!U4 -> 0.001713020865 | W23: =W18*Inputs!$V$6*Impuetos!V4 -> 0.001775013635 | X23: =X18*Inputs!$V$6*Impuetos!W4 -> 0.001780555963 | Y23: =Y18*Inputs!$V$6*Impuetos!X4 -> 0.006082321491 | Z23: =Z18*Inputs!$V$6*Impuetos!Y4 -> 0.006805959622 | AA23: =AA18*Inputs!$V$6*Impuetos!Z4 -> 0.001809585139 | AB23: =AB18*Inputs!$V$6*Impuetos!AA4 -> 0.001907512234 | AC23: =AC18*Inputs!$V$6*Impuetos!AB4 -> 0.001991907132 | AD23: =AD18*Inputs!$V$6*Impuetos!AC4 -> 0.002064013818
B24: Movimientos financiero (GMF) | E24: =E18*Inputs!$V$4*Impuetos!D5 -> 0.0007666414199 | F24: =F18*Inputs!$V$4*Impuetos!E5 -> 0.002138862125 | G24: =G18*Inputs!$V$4*Impuetos!F5 -> 0.006478615608 | H24: =H18*Inputs!$V$4*Impuetos!G5 -> 0.006272532184 | I24: =I18*Inputs!$V$4*Impuetos!H5 -> 0.001690538886 | J24: =J18*Inputs!$V$4*Impuetos!I5 -> 0.001695227099 | K24: =K18*Inputs!$V$4*Impuetos!J5 -> 0.001547256637 | L24: =L18*Inputs!$V$4*Impuetos!K5 -> 0.001602693932 | M24: =M18*Inputs!$V$4*Impuetos!L5 -> 0.004415223662 | N24: =N18*Inputs!$V$4*Impuetos!M5 -> 0.005910206022 | O24: =O18*Inputs!$V$4*Impuetos!N5 -> 0.001728310414 | P24: =P18*Inputs!$V$4*Impuetos!O5 -> 0.001876361933 | Q24: =Q18*Inputs!$V$4*Impuetos!P5 -> 0.001668933161 | R24: =R18*Inputs!$V$4*Impuetos!Q5 -> 0.001793214214 | S24: =S18*Inputs!$V$4*Impuetos!R5 -> 0.00731904173 | T24: =T18*Inputs!$V$4*Impuetos!S5 -> 0.00786217415 | U24: =U18*Inputs!$V$4*Impuetos!T5 -> 0.001810048037 | V24: =V18*Inputs!$V$4*Impuetos!U5 -> 0.001851914448 | W24: =W18*Inputs!$V$4*Impuetos!V5 -> 0.00191893366 | X24: =X18*Inputs!$V$4*Impuetos!W5 -> 0.001924925366 | Y24: =Y18*Inputs!$V$4*Impuetos!X5 -> 0.006575482693 | Z24: =Z18*Inputs!$V$4*Impuetos!Y5 -> 0.007357794186 | AA24: =AA18*Inputs!$V$4*Impuetos!Z5 -> 0.001956308259 | AB24: =AB18*Inputs!$V$4*Impuetos!AA5 -> 0.002062175389 | AC24: =AC18*Inputs!$V$4*Impuetos!AB5 -> 0.002153413116 | AD24: =AD18*Inputs!$V$4*Impuetos!AC5 -> 0.00223136629
B25: Total Impuestos | E25: =SUM(E22:E24) -> 0.004829840945 | F25: =SUM(F22:F24) -> 0.01347483139 | G25: 0.04324475918 | H25: 0.04186915233 | I25: 0.01128434707 | J25: 0.01131564089 | K25: 0.01032793805 | L25: 0.01069798199 | M25: 0.02947161794 | N25: 0.03945062519 | O25: 0.01153647202 | P25: 0.0125247159 | Q25: 0.01114012885 | R25: 0.01196970488 | S25: 0.04885460355 | T25: 0.05248001245 | U25: 0.01208207065 | V25: 0.01236152894 | W25: 0.01280888218 | X25: 0.01284887682 | Y25: 0.04389134698 | Z25: 0.04911327619 | AA25: 0.01305835763 | AB25: 0.01376502072 | AC25: 0.01437403255 | AD25: 0.01489436998
B27: Costos de operación, mantenimiento y gestión de activos - A&OM
B28: Costos de representación de la frontera | E28: =FC_EPC!E97 -> 0 | F28: =FC_EPC!F97 -> 0 | G28: =FC_EPC!G97 -> 0 | H28: =FC_EPC!H97 -> 0 | I28: =FC_EPC!I97 -> 0 | J28: =FC_EPC!J97 -> 0 | K28: =FC_EPC!K97 -> 0 | L28: =FC_EPC!L97 -> 0 | M28: =FC_EPC!M97 -> 0 | N28: =FC_EPC!N97 -> 0 | O28: =FC_EPC!O97 -> 0 | P28: =FC_EPC!P97 -> 0 | Q28: =FC_EPC!Q97 -> 0 | R28: =FC_EPC!R97 -> 0 | S28: =FC_EPC!S97 -> 0 | T28: =FC_EPC!T97 -> 0 | U28: =FC_EPC!U97 -> 0 | V28: =FC_EPC!V97 -> 0 | W28: =FC_EPC!W97 -> 0 | X28: =FC_EPC!X97 -> 0 | Y28: =FC_EPC!Y97 -> 0 | Z28: =FC_EPC!Z97 -> 0 | AA28: =FC_EPC!AA97 -> 0 | AB28: =FC_EPC!AB97 -> 0 | AC28: =FC_EPC!AC97 -> 0 | AD28: =FC_EPC!AD97 -> 0
B29: Transporte de excesos de energía reactiva | E29: =FC_EPC!E98 -> 5.211496233 | F29: =FC_EPC!F98 -> 0 | G29: =FC_EPC!G98 -> 0 | H29: =FC_EPC!H98 -> 0 | I29: =FC_EPC!I98 -> 0 | J29: =FC_EPC!J98 -> 0 | K29: =FC_EPC!K98 -> 0 | L29: =FC_EPC!L98 -> 0 | M29: =FC_EPC!M98 -> 0 | N29: =FC_EPC!N98 -> 0 | O29: =FC_EPC!O98 -> 0 | P29: =FC_EPC!P98 -> 0 | Q29: =FC_EPC!Q98 -> 0 | R29: =FC_EPC!R98 -> 0 | S29: =FC_EPC!S98 -> 0 | T29: =FC_EPC!T98 -> 0 | U29: =FC_EPC!U98 -> 0 | V29: =FC_EPC!V98 -> 0 | W29: =FC_EPC!W98 -> 0 | X29: =FC_EPC!X98 -> 0 | Y29: =FC_EPC!Y98 -> 0 | Z29: =FC_EPC!Z98 -> 0 | AA29: =FC_EPC!AA98 -> 0 | AB29: =FC_EPC!AB98 -> 0 | AC29: =FC_EPC!AC98 -> 0 | AD29: =FC_EPC!AD98 -> 0
B30: Cargo de respaldo de red (> 100 kW) | E30: =FC_EPC!E99 -> 1.760516178 | F30: =FC_EPC!F99 -> 1.712618707 | G30: =FC_EPC!G99 -> 1.736591612 | H30: =FC_EPC!H99 -> 1.683195961 | I30: =FC_EPC!I99 -> 1.697967468 | J30: =FC_EPC!J99 -> 1.729535926 | K30: =FC_EPC!K99 -> 1.790062941 | L30: =FC_EPC!L99 -> 1.833244605 | M30: =FC_EPC!M99 -> 1.889403553 | N30: =FC_EPC!N99 -> 1.900730438 | O30: =FC_EPC!O99 -> 1.904227414 | P30: =FC_EPC!P99 -> 1.941511119 | Q30: =FC_EPC!Q99 -> 2.000684021 | R30: =FC_EPC!R99 -> 2.055223384 | S30: =FC_EPC!S99 -> 2.12488135 | T30: =FC_EPC!T99 -> 2.166556986 | U30: =FC_EPC!U99 -> 2.235096805 | V30: =FC_EPC!V99 -> 2.313017674 | W30: =FC_EPC!W99 -> 2.369875049 | X30: =FC_EPC!X99 -> 2.420658783 | Y30: =FC_EPC!Y99 -> 2.51679997 | Z30: =FC_EPC!Z99 -> 2.593239831 | AA30: =FC_EPC!AA99 -> 2.650144331 | AB30: =FC_EPC!AB99 -> 2.720072405 | AC30: =FC_EPC!AC99 -> 2.786744586 | AD30: =FC_EPC!AD99 -> 2.850160873
B31: Cargo de conexión del proyecto | E31: 0 | F31: 0 | G31: 0 | H31: 0 | I31: 0 | J31: 0 | K31: 0 | L31: 0 | M31: 0 | N31: 0 | O31: 0 | P31: 0 | Q31: 0 | R31: 0 | S31: 0 | T31: 0 | U31: 0 | V31: 0 | W31: 0 | X31: 0 | Y31: 0 | Z31: 0 | AA31: 0 | AB31: 0 | AC31: 0 | AD31: 0
B32: Costo anual de oportunidad de predios o terrenos a utilizar - estimado | E32: 0 | F32: 0 | G32: 0 | H32: 0 | I32: 0 | J32: 0 | K32: 0 | L32: 0 | M32: 0 | N32: 0 | O32: 0 | P32: 0 | Q32: 0 | R32: 0 | S32: 0 | T32: 0 | U32: 0 | V32: 0 | W32: 0 | X32: 0 | Y32: 0 | Z32: 0 | AA32: 0 | AB32: 0 | AC32: 0 | AD32: 0
B33: Otros costos o gastos | E33: 0 | F33: 0 | G33: 0 | H33: 0 | I33: 0 | J33: 0 | K33: 0 | L33: 0 | M33: 0 | N33: 0 | O33: 0 | P33: 0 | Q33: 0 | R33: 0 | S33: 0 | T33: 0 | U33: 0 | V33: 0 | W33: 0 | X33: 0 | Y33: 0 | Z33: 0 | AA33: 0 | AB33: 0 | AC33: 0 | AD33: 0
B34: Total costos y gastos del proyecto | C34: $COP mm | E34: =SUM(E28:E33) -> 6.972012411 | F34: 1.712618707 | G34: 1.736591612 | H34: 1.683195961 | I34: 1.697967468 | J34: 1.729535926 | K34: 1.790062941 | L34: 1.833244605 | M34: 1.889403553 | N34: 1.900730438 | O34: 1.904227414 | P34: 1.941511119 | Q34: 2.000684021 | R34: 2.055223384 | S34: 2.12488135 | T34: 2.166556986 | U34: 2.235096805 | V34: 2.313017674 | W34: 2.369875049 | X34: 2.420658783 | Y34: 2.51679997 | Z34: 2.593239831 | AA34: 2.650144331 | AB34: 2.720072405 | AC34: 2.786744586 | AD34: 2.850160873
B36: Impuestos sobre los ingresos y los costos
B37: Movimientos financiero (GMF) | E37: =E34*Inputs!$V$4*Impuetos!D5 -> 0.01394402482 | F37: =F34*Inputs!$V$4*Impuetos!E5 -> 0.003425237414 | G37: =G34*Inputs!$V$4*Impuetos!F5 -> 0.003473183223 | H37: =H34*Inputs!$V$4*Impuetos!G5 -> 0.003366391922 | I37: =I34*Inputs!$V$4*Impuetos!H5 -> 0.003395934935 | J37: =J34*Inputs!$V$4*Impuetos!I5 -> 0.003459071851 | K37: =K34*Inputs!$V$4*Impuetos!J5 -> 0.003580125882 | L37: =L34*Inputs!$V$4*Impuetos!K5 -> 0.00366648921 | M37: =M34*Inputs!$V$4*Impuetos!L5 -> 0.003778807106 | N37: =N34*Inputs!$V$4*Impuetos!M5 -> 0.003801460876 | O37: =O34*Inputs!$V$4*Impuetos!N5 -> 0.003808454829 | P37: =P34*Inputs!$V$4*Impuetos!O5 -> 0.003883022238 | Q37: =Q34*Inputs!$V$4*Impuetos!P5 -> 0.004001368042 | R37: =R34*Inputs!$V$4*Impuetos!Q5 -> 0.004110446768 | S37: =S34*Inputs!$V$4*Impuetos!R5 -> 0.0042497627 | T37: =T34*Inputs!$V$4*Impuetos!S5 -> 0.004333113972 | U37: =U34*Inputs!$V$4*Impuetos!T5 -> 0.004470193609 | V37: =V34*Inputs!$V$4*Impuetos!U5 -> 0.004626035349 | W37: =W34*Inputs!$V$4*Impuetos!V5 -> 0.004739750097 | X37: =X34*Inputs!$V$4*Impuetos!W5 -> 0.004841317566 | Y37: =Y34*Inputs!$V$4*Impuetos!X5 -> 0.005033599939 | Z37: =Z34*Inputs!$V$4*Impuetos!Y5 -> 0.005186479662 | AA37: =AA34*Inputs!$V$4*Impuetos!Z5 -> 0.005300288662 | AB37: =AB34*Inputs!$V$4*Impuetos!AA5 -> 0.005440144811 | AC37: =AC34*Inputs!$V$4*Impuetos!AB5 -> 0.005573489172 | AD37: =AD34*Inputs!$V$4*Impuetos!AC5 -> 0.005700321746
B39: Proyecciones
B40: Ahorros PPA | E40: =E15 -> 32.79562947 | F40: =F15 -> 60.18082504 | G40: 63.37809093 | H40: 61.85928244 | I40: 56.09703726 | J40: 55.72134089 | K40: 57.74006395 | L40: 59.30461708 | M40: 66.42835426 | N40: 67.48263869 | O40: 60.83938132 | P40: 60.4125096 | Q40: 62.51371714 | R40: 64.64699423 | S40: 74.533961 | T40: 76.07625875 | U40: 69.37207533 | V40: 69.73296855 | W40: 72.03253803 | X40: 74.05832772 | Y40: 84.99629798 | Z40: 87.17459899 | AA40: 78.9532158 | AB40: 78.15428863 | AC40: 83.41360776 | AD40: 85.33545914
B41: Ingresos PPA | E41: =E18 -> 0.3833207099 | F41: =F18 -> 1.069431063 | G41: 3.239307804 | H41: 3.136266092 | I41: 0.8452694432 | J41: 0.8476135497 | K41: 0.7736283183 | L41: 0.8013469659 | M41: 2.207611831 | N41: 2.955103011 | O41: 0.8641552071 | P41: 0.9381809666 | Q41: 0.8344665803 | R41: 0.896607107 | S41: 3.659520865 | T41: 3.931087075 | U41: 0.9050240185 | V41: 0.9259572242 | W41: 0.9594668299 | X41: 0.9624626829 | Y41: 3.287741347 | Z41: 3.678897093 | AA41: 0.9781541294 | AB41: 1.031087694 | AC41: 1.076706558 | AD41: 1.115683145
B42: Costos y gastos operacionales | E42: =-E34 -> -6.972012411 | F42: =-F34 -> -1.712618707 | G42: -1.736591612 | H42: -1.683195961 | I42: -1.697967468 | J42: -1.729535926 | K42: -1.790062941 | L42: -1.833244605 | M42: -1.889403553 | N42: -1.900730438 | O42: -1.904227414 | P42: -1.941511119 | Q42: -2.000684021 | R42: -2.055223384 | S42: -2.12488135 | T42: -2.166556986 | U42: -2.235096805 | V42: -2.313017674 | W42: -2.369875049 | X42: -2.420658783 | Y42: -2.51679997 | Z42: -2.593239831 | AA42: -2.650144331 | AB42: -2.720072405 | AC42: -2.786744586 | AD42: -2.850160873
B43: Impuestos operacionales | E43: =-(E25+E37) -> -0.01877386577 | F43: =-(F25+F37) -> -0.0169000688 | G43: -0.04671794241 | H43: -0.04523554425 | I43: -0.014680282 | J43: -0.01477471274 | K43: -0.01390806393 | L43: -0.0143644712 | M43: -0.03325042505 | N43: -0.04325208607 | O43: -0.01534492684 | P43: -0.01640773814 | Q43: -0.01514149689 | R43: -0.01608015165 | S43: -0.05310436625 | T43: -0.05681312643 | U43: -0.01655226426 | V43: -0.01698756429 | W43: -0.01754863228 | X43: -0.01769019438 | Y43: -0.04892494692 | Z43: -0.05429975585 | AA43: -0.01835864629 | AB43: -0.01920516553 | AC43: -0.01994752172 | AD43: -0.02059469173
B44: NOPLAT | E44: =E40+E41*(1-Impuetos!D3)+E42+E43 -> 26.05400165 | F44: =F40+F41*(1-Impuetos!E3)+F42+F43 -> 59.14643646 | G44: =G40+G41*(1-Impuetos!F3)+G42+G43 -> 63.60315222 | H44: =H40+H41*(1-Impuetos!G3)+H42+H43 -> 62.07533592 | I44: =I40+I41*(1-Impuetos!H3)+I42+I43 -> 54.90845656 | J44: =J40+J41*(1-Impuetos!I3)+J42+J43 -> 54.50255065 | K44: =K40+K41*(1-Impuetos!J3)+K42+K43 -> 56.41574251 | L44: =L40+L41*(1-Impuetos!K3)+L42+L43 -> 57.95384312 | M44: =M40+M41*(1-Impuetos!L3)+M42+M43 -> 65.87441962 | N44: =N40+N41*(1-Impuetos!M3)+N42+N43 -> 67.37082004 | O44: =O40+O41*(1-Impuetos!N3)+O42+O43 -> 59.45558521 | P44: =P40+P41*(1-Impuetos!O3)+P42+P43 -> 59.03626294 | Q44: =Q40+Q41*(1-Impuetos!P3)+Q42+Q43 -> 61.0152609 | R44: =R40+R41*(1-Impuetos!Q3)+R42+R43 -> 63.1315871 | S44: =S40+S41*(1-Impuetos!R3)+S42+S43 -> 74.62487822 | T44: =T40+T41*(1-Impuetos!S3)+T42+T43 -> 76.29016262 | U44: =U40+U41*(1-Impuetos!T3)+U42+U43 -> 67.68154115 | V44: =V40+V41*(1-Impuetos!U3)+V42+V43 -> 67.97705679 | W44: =W40+W41*(1-Impuetos!V3)+W42+W43 -> 70.23998379 | X44: =X40+X41*(1-Impuetos!W3)+X42+X43 -> 72.2167056 | Y44: =Y40+Y41*(1-Impuetos!X3)+Y42+Y43 -> 84.4689727 | Z44: =Z40+Z41*(1-Impuetos!Y3)+Z42+Z43 -> 86.8079756 | AA44: =AA40+AA41*(1-Impuetos!Z3)+AA42+AA43 -> 76.89116838 | AB44: =AB40+AB41*(1-Impuetos!AA3)+AB42+AB43 -> 76.05428542 | AC44: =AC40+AC41*(1-Impuetos!AB3)+AC42+AC43 -> 81.27447371 | AD44: =AD40+AD41*(1-Impuetos!AC3)+AD42+AD43 -> 83.15642713
B45: Depreciación Lineal | F45: =IF(Exclusiones!$D$14<FC_PPA!F5,0,-$E$47/Exclusiones!$D$14) -> 3.057189392 | G45: =IF(Exclusiones!$D$14<FC_PPA!G5,0,-$E$47/Exclusiones!$D$14) -> 3.057189392 | H45: =IF(Exclusiones!$D$14<FC_PPA!H5,0,-$E$47/Exclusiones!$D$14) -> 3.057189392 | I45: =IF(Exclusiones!$D$14<FC_PPA!I5,0,-$E$47/Exclusiones!$D$14) -> 3.057189392 | J45: =IF(Exclusiones!$D$14<FC_PPA!J5,0,-$E$47/Exclusiones!$D$14) -> 3.057189392 | K45: =IF(Exclusiones!$D$14<FC_PPA!K5,0,-$E$47/Exclusiones!$D$14) -> 3.057189392 | L45: =IF(Exclusiones!$D$14<FC_PPA!L5,0,-$E$47/Exclusiones!$D$14) -> 3.057189392 | M45: =IF(Exclusiones!$D$14<FC_PPA!M5,0,-$E$47/Exclusiones!$D$14) -> 3.057189392 | N45: =IF(Exclusiones!$D$14<FC_PPA!N5,0,-$E$47/Exclusiones!$D$14) -> 3.057189392 | O45: =IF(Exclusiones!$D$14<FC_PPA!O5,0,-$E$47/Exclusiones!$D$14) -> 3.057189392 | P45: =IF(Exclusiones!$D$14<FC_PPA!P5,0,-$E$47/Exclusiones!$D$14) -> 3.057189392 | Q45: =IF(Exclusiones!$D$14<FC_PPA!Q5,0,-$E$47/Exclusiones!$D$14) -> 3.057189392 | R45: =IF(Exclusiones!$D$14<FC_PPA!R5,0,-$E$47/Exclusiones!$D$14) -> 3.057189392 | S45: =IF(Exclusiones!$D$14<FC_PPA!S5,0,-$E$47/Exclusiones!$D$14) -> 3.057189392 | T45: =IF(Exclusiones!$D$14<FC_PPA!T5,0,-$E$47/Exclusiones!$D$14) -> 3.057189392 | U45: =IF(Exclusiones!$D$14<FC_PPA!U5,0,-$E$47/Exclusiones!$D$14) -> 0 | V45: =IF(Exclusiones!$D$14<FC_PPA!V5,0,-$E$47/Exclusiones!$D$14) -> 0 | W45: =IF(Exclusiones!$D$14<FC_PPA!W5,0,-$E$47/Exclusiones!$D$14) -> 0 | X45: =IF(Exclusiones!$D$14<FC_PPA!X5,0,-$E$47/Exclusiones!$D$14) -> 0 | Y45: =IF(Exclusiones!$D$14<FC_PPA!Y5,0,-$E$47/Exclusiones!$D$14) -> 0 | Z45: =IF(Exclusiones!$D$14<FC_PPA!Z5,0,-$E$47/Exclusiones!$D$14) -> 0 | AA45: =IF(Exclusiones!$D$14<FC_PPA!AA5,0,-$E$47/Exclusiones!$D$14) -> 0 | AB45: =IF(Exclusiones!$D$14<FC_PPA!AB5,0,-$E$47/Exclusiones!$D$14) -> 0 | AC45: =IF(Exclusiones!$D$14<FC_PPA!AC5,0,-$E$47/Exclusiones!$D$14) -> 0 | AD45: =IF(Exclusiones!$D$14<FC_PPA!AD5,0,-$E$47/Exclusiones!$D$14) -> 0
B46: Inversión en capital de trabajo (CAPEX Sostenimiento)
B47: CAPEX exclusiones del PPA | E47: =-Exclusiones!T22/Inputs!C5 -> -45.85784088
B48: Flujo de Caja Libre Desapalancado (FCL) | E48: =SUM(E44:E47) -> -19.80383923 | F48: =SUM(F44:F47) -> 62.20362585 | G48: 66.66034161 | H48: 65.13252531 | I48: 57.96564596 | J48: 57.55974005 | K48: 59.4729319 | L48: 61.01103252 | M48: 68.93160901 | N48: 70.42800943 | O48: 62.5127746 | P48: 62.09345233 | Q48: 64.07245029 | R48: 66.1887765 | S48: 77.68206761 | T48: 79.34735202 | U48: 67.68154115 | V48: 67.97705679 | W48: 70.23998379 | X48: 72.2167056 | Y48: 84.4689727 | Z48: 86.8079756 | AA48: 76.89116838 | AB48: 76.05428542 | AC48: 81.27447371 | AD48: 83.15642713
B49: Intereses Deuda | E49: =-Deuda!E86 -> 0 | F49: =-Deuda!F86 -> -6.77645744 | G49: =-Deuda!G86 -> 0 | H49: =-Deuda!H86 -> 0 | I49: =-Deuda!I86 -> 0 | J49: =-Deuda!J86 -> 0 | K49: =-Deuda!K86 -> 0 | L49: =-Deuda!L86 -> 0 | M49: =-Deuda!M86 -> 0 | N49: =-Deuda!N86 -> 0 | O49: =-Deuda!O86 -> 0 | P49: =-Deuda!P86 -> 0 | Q49: =-Deuda!Q86 -> 0 | R49: =-Deuda!R86 -> 0 | S49: =-Deuda!S86 -> 0 | T49: =-Deuda!T86 -> 0 | U49: =-Deuda!U86 -> 0 | V49: =-Deuda!V86 -> 0 | W49: =-Deuda!W86 -> 0 | X49: =-Deuda!X86 -> 0 | Y49: =-Deuda!Y86 -> 0 | Z49: =-Deuda!Z86 -> 0 | AA49: =-Deuda!AA86 -> 0 | AB49: =-Deuda!AB86 -> 0 | AC49: =-Deuda!AC86 -> 0 | AD49: =-Deuda!AD86 -> 0
B50: Desembolso Deuda | E50: =Deuda!E83 -> 45.05989743 | F50: =Deuda!F83 -> 0 | G50: =Deuda!G83 -> 0 | H50: =Deuda!H83 -> 0 | I50: =Deuda!I83 -> 0 | J50: =Deuda!J83 -> 0 | K50: =Deuda!K83 -> 0 | L50: =Deuda!L83 -> 0 | M50: =Deuda!M83 -> 0 | N50: =Deuda!N83 -> 0 | O50: =Deuda!O83 -> 0 | P50: =Deuda!P83 -> 0 | Q50: =Deuda!Q83 -> 0 | R50: =Deuda!R83 -> 0 | S50: =Deuda!S83 -> 0 | T50: =Deuda!T83 -> 0 | U50: =Deuda!U83 -> 0 | V50: =Deuda!V83 -> 0 | W50: =Deuda!W83 -> 0 | X50: =Deuda!X83 -> 0 | Y50: =Deuda!Y83 -> 0 | Z50: =Deuda!Z83 -> 0 | AA50: =Deuda!AA83 -> 0 | AB50: =Deuda!AB83 -> 0 | AC50: =Deuda!AC83 -> 0 | AD50: =Deuda!AD83 -> 0
B51: Amortización Deuda | E51: =Deuda!E84 -> 0 | F51: =Deuda!F84 -> -45.05989743 | G51: =Deuda!G84 -> 0 | H51: =Deuda!H84 -> 0 | I51: =Deuda!I84 -> 0 | J51: =Deuda!J84 -> 0 | K51: =Deuda!K84 -> 0 | L51: =Deuda!L84 -> 0 | M51: =Deuda!M84 -> 0 | N51: =Deuda!N84 -> 0 | O51: =Deuda!O84 -> 0 | P51: =Deuda!P84 -> 0 | Q51: =Deuda!Q84 -> 0 | R51: =Deuda!R84 -> 0 | S51: =Deuda!S84 -> 0 | T51: =Deuda!T84 -> 0 | U51: =Deuda!U84 -> 0 | V51: =Deuda!V84 -> 0 | W51: =Deuda!W84 -> 0 | X51: =Deuda!X84 -> 0 | Y51: =Deuda!Y84 -> 0 | Z51: =Deuda!Z84 -> 0 | AA51: =Deuda!AA84 -> 0 | AB51: =Deuda!AB84 -> 0 | AC51: =Deuda!AC84 -> 0 | AD51: =Deuda!AD84 -> 0
B52: Beneficio tributario de la Deuda (BTD) | E52: =-E49*Impuetos!D3 -> 0 | F52: =-F49*Impuetos!E3 -> 2.371760104 | G52: =-G49*Impuetos!F3 -> 0 | H52: =-H49*Impuetos!G3 -> 0 | I52: =-I49*Impuetos!H3 -> 0 | J52: =-J49*Impuetos!I3 -> 0 | K52: =-K49*Impuetos!J3 -> 0 | L52: =-L49*Impuetos!K3 -> 0 | M52: =-M49*Impuetos!L3 -> 0 | N52: =-N49*Impuetos!M3 -> 0 | O52: =-O49*Impuetos!N3 -> 0 | P52: =-P49*Impuetos!O3 -> 0 | Q52: =-Q49*Impuetos!P3 -> 0 | R52: =-R49*Impuetos!Q3 -> 0 | S52: =-S49*Impuetos!R3 -> 0 | T52: =-T49*Impuetos!S3 -> 0 | U52: =-U49*Impuetos!T3 -> 0 | V52: =-V49*Impuetos!U3 -> 0 | W52: =-W49*Impuetos!V3 -> 0 | X52: =-X49*Impuetos!W3 -> 0 | Y52: =-Y49*Impuetos!X3 -> 0 | Z52: =-Z49*Impuetos!Y3 -> 0 | AA52: =-AA49*Impuetos!Z3 -> 0 | AB52: =-AB49*Impuetos!AA3 -> 0 | AC52: =-AC49*Impuetos!AB3 -> 0 | AD52: =-AD49*Impuetos!AC3 -> 0
B53: Flujo de Caja al Accionista (FCA) | E53: =SUM(E48:E52) -> 25.2560582 | F53: =SUM(F48:F52) -> 12.73903108 | G53: 66.66034161 | H53: 65.13252531 | I53: 57.96564596 | J53: 57.55974005 | K53: 59.4729319 | L53: 61.01103252 | M53: 68.93160901 | N53: 70.42800943 | O53: 62.5127746 | P53: 62.09345233 | Q53: 64.07245029 | R53: 66.1887765 | S53: 77.68206761 | T53: 79.34735202 | U53: 67.68154115 | V53: 67.97705679 | W53: 70.23998379 | X53: 72.2167056 | Y53: 84.4689727 | Z53: 86.8079756 | AA53: 76.89116838 | AB53: 76.05428542 | AC53: 81.27447371 | AD53: 83.15642713
B54: Saldo Inicial Deuda | E54: =Deuda!E82 -> 0 | F54: =Deuda!F82 -> 45.05989743 | G54: =Deuda!G82 -> 0 | H54: =Deuda!H82 -> 0 | I54: =Deuda!I82 -> 0 | J54: =Deuda!J82 -> 0 | K54: =Deuda!K82 -> 0 | L54: =Deuda!L82 -> 0 | M54: =Deuda!M82 -> 0 | N54: =Deuda!N82 -> 0 | O54: =Deuda!O82 -> 0 | P54: =Deuda!P82 -> 0 | Q54: =Deuda!Q82 -> 0 | R54: =Deuda!R82 -> 0 | S54: =Deuda!S82 -> 0 | T54: =Deuda!T82 -> 0 | U54: =Deuda!U82 -> 0 | V54: =Deuda!V82 -> 0 | W54: =Deuda!W82 -> 0 | X54: =Deuda!X82 -> 0 | Y54: =Deuda!Y82 -> 0 | Z54: =Deuda!Z82 -> 0 | AA54: =Deuda!AA82 -> 0 | AB54: =Deuda!AB82 -> 0 | AC54: =Deuda!AC82 -> 0 | AD54: =Deuda!AD82 -> 0
B55: Desembolsos | E55: =Deuda!E83 -> 45.05989743 | F55: =Deuda!F83 -> 0 | G55: =Deuda!G83 -> 0 | H55: =Deuda!H83 -> 0 | I55: =Deuda!I83 -> 0 | J55: =Deuda!J83 -> 0 | K55: =Deuda!K83 -> 0 | L55: =Deuda!L83 -> 0 | M55: =Deuda!M83 -> 0 | N55: =Deuda!N83 -> 0 | O55: =Deuda!O83 -> 0 | P55: =Deuda!P83 -> 0 | Q55: =Deuda!Q83 -> 0 | R55: =Deuda!R83 -> 0 | S55: =Deuda!S83 -> 0 | T55: =Deuda!T83 -> 0 | U55: =Deuda!U83 -> 0 | V55: =Deuda!V83 -> 0 | W55: =Deuda!W83 -> 0 | X55: =Deuda!X83 -> 0 | Y55: =Deuda!Y83 -> 0 | Z55: =Deuda!Z83 -> 0 | AA55: =Deuda!AA83 -> 0 | AB55: =Deuda!AB83 -> 0 | AC55: =Deuda!AC83 -> 0 | AD55: =Deuda!AD83 -> 0
B56: Amortización Deuda | E56: =Deuda!E84 -> 0 | F56: =Deuda!F84 -> -45.05989743 | G56: =Deuda!G84 -> 0 | H56: =Deuda!H84 -> 0 | I56: =Deuda!I84 -> 0 | J56: =Deuda!J84 -> 0 | K56: =Deuda!K84 -> 0 | L56: =Deuda!L84 -> 0 | M56: =Deuda!M84 -> 0 | N56: =Deuda!N84 -> 0 | O56: =Deuda!O84 -> 0 | P56: =Deuda!P84 -> 0 | Q56: =Deuda!Q84 -> 0 | R56: =Deuda!R84 -> 0 | S56: =Deuda!S84 -> 0 | T56: =Deuda!T84 -> 0 | U56: =Deuda!U84 -> 0 | V56: =Deuda!V84 -> 0 | W56: =Deuda!W84 -> 0 | X56: =Deuda!X84 -> 0 | Y56: =Deuda!Y84 -> 0 | Z56: =Deuda!Z84 -> 0 | AA56: =Deuda!AA84 -> 0 | AB56: =Deuda!AB84 -> 0 | AC56: =Deuda!AC84 -> 0 | AD56: =Deuda!AD84 -> 0
B57: Saldo Final Deuda | E57: =SUM(E54:E56) -> 45.05989743 | F57: =SUM(F54:F56) -> 0 | G57: 0 | H57: 0 | I57: 0 | J57: 0 | K57: 0 | L57: 0 | M57: 0 | N57: 0 | O57: 0 | P57: 0 | Q57: 0 | R57: 0 | S57: 0 | T57: 0 | U57: 0 | V57: 0 | W57: 0 | X57: 0 | Y57: 0 | Z57: 0 | AA57: 0 | AB57: 0 | AC57: 0 | AD57: 0
B58: VP FCL@Ku | F58: =(F48+G58)/(1+Rollin_WACC!E38) -> 501.3922933 | G58: =(G48+H58)/(1+Rollin_WACC!F38) -> 500.9316187 | H58: =(H48+I58)/(1+Rollin_WACC!G38) -> 495.9574994 | I58: =(I48+J58)/(1+Rollin_WACC!H38) -> 491.8986684 | J58: =(J48+K58)/(1+Rollin_WACC!I38) -> 494.5069002 | K58: =(K48+L58)/(1+Rollin_WACC!J38) -> 497.8422233 | L58: =(L48+M58)/(1+Rollin_WACC!K38) -> 499.6750763 | M58: =(M48+N58)/(1+Rollin_WACC!L38) -> 500.1955317 | N58: =(N48+O58)/(1+Rollin_WACC!M38) -> 492.8595011 | O58: =(O48+P58)/(1+Rollin_WACC!N38) -> 483.1236892 | P58: =(P48+Q58)/(1+Rollin_WACC!O38) -> 480.1042151 | Q58: =(Q48+R58)/(1+Rollin_WACC!P38) -> 477.1322361 | R58: =(R48+S58)/(1+Rollin_WACC!Q38) -> 471.8152807 | S58: =(S48+T58)/(1+Rollin_WACC!R38) -> 463.7272534 | T58: =(T48+U58)/(1+Rollin_WACC!S38) -> 443.1499509 | U58: =(U48+V58)/(1+Rollin_WACC!T38) -> 418.3734133 | V58: =(V48+W58)/(1+Rollin_WACC!U38) -> 402.2116294 | W58: =(W48+X58)/(1+Rollin_WACC!V38) -> 383.7641193 | X58: =(X48+Y58)/(1+Rollin_WACC!W38) -> 360.7820004 | Y58: =(Y48+Z58)/(1+Rollin_WACC!X38) -> 332.9930727 | Z58: =(Z48+AA58)/(1+Rollin_WACC!Y38) -> 289.5298659 | AA58: =(AA48+AB58)/(1+Rollin_WACC!Z38) -> 238.3754666 | AB58: =(AB48+AC58)/(1+Rollin_WACC!AA38) -> 190.8385683 | AC58: =(AC48+AD58)/(1+Rollin_WACC!AB38) -> 138.2847167 | AD58: =AD48/(1+Rollin_WACC!AC38) -> 74.03903789
B59: VP BTD@Ku | F59: =(F52+G59)/(1+Rollin_WACC!E38) -> 2.111716944 | G59: =(G52+H59)/(1+Rollin_WACC!F38) -> 0 | H59: =(H52+I59)/(1+Rollin_WACC!G38) -> 0 | I59: =(I52+J59)/(1+Rollin_WACC!H38) -> 0 | J59: =(J52+K59)/(1+Rollin_WACC!I38) -> 0 | K59: =(K52+L59)/(1+Rollin_WACC!J38) -> 0 | L59: =(L52+M59)/(1+Rollin_WACC!K38) -> 0 | M59: =(M52+N59)/(1+Rollin_WACC!L38) -> 0 | N59: =(N52+O59)/(1+Rollin_WACC!M38) -> 0 | O59: =(O52+P59)/(1+Rollin_WACC!N38) -> 0 | P59: =(P52+Q59)/(1+Rollin_WACC!O38) -> 0 | Q59: =(Q52+R59)/(1+Rollin_WACC!P38) -> 0 | R59: =(R52+S59)/(1+Rollin_WACC!Q38) -> 0 | S59: =(S52+T59)/(1+Rollin_WACC!R38) -> 0 | T59: =(T52+U59)/(1+Rollin_WACC!S38) -> 0 | U59: =(U52+V59)/(1+Rollin_WACC!T38) -> 0 | V59: =(V52+W59)/(1+Rollin_WACC!U38) -> 0 | W59: =(W52+X59)/(1+Rollin_WACC!V38) -> 0 | X59: =(X52+Y59)/(1+Rollin_WACC!W38) -> 0 | Y59: =(Y52+Z59)/(1+Rollin_WACC!X38) -> 0 | Z59: =(Z52+AA59)/(1+Rollin_WACC!Y38) -> 0 | AA59: =(AA52+AB59)/(1+Rollin_WACC!Z38) -> 0 | AB59: =(AB52+AC59)/(1+Rollin_WACC!AA38) -> 0 | AC59: =(AC52+AD59)/(1+Rollin_WACC!AB38) -> 0 | AD59: =AD52/(1+Rollin_WACC!AC38) -> 0
B60: Valor Proyecto en Marcha t | F60: =SUM(F58:F59) -> 503.5040103 | G60: =SUM(G58:G59) -> 500.9316187 | H60: 495.9574994 | I60: 491.8986684 | J60: 494.5069002 | K60: 497.8422233 | L60: 499.6750763 | M60: 500.1955317 | N60: 492.8595011 | O60: 483.1236892 | P60: 480.1042151 | Q60: 477.1322361 | R60: 471.8152807 | S60: 463.7272534 | T60: 443.1499509 | U60: 418.3734133 | V60: 402.2116294 | W60: 383.7641193 | X60: 360.7820004 | Y60: 332.9930727 | Z60: 289.5298659 | AA60: 238.3754666 | AB60: 190.8385683 | AC60: 138.2847167 | AD60: 74.03903789
B61: APV (VPN FCL@Ku + VPN BTD@Ku - Inversión) | E61: =F60+E48 -> 483.700171 | F61: ADJUSTED PRESENT VALUE
B62: VPN FCL@WACC | E62: =F62+E48 -> 483.700171 | F62: =(F48+G62)/(1+Rollin_WACC!E46) -> 503.5040103 | G62: =(G48+H62)/(1+Rollin_WACC!F46) -> 500.9316187 | H62: =(H48+I62)/(1+Rollin_WACC!G46) -> 495.9574994 | I62: =(I48+J62)/(1+Rollin_WACC!H46) -> 491.8986684 | J62: =(J48+K62)/(1+Rollin_WACC!I46) -> 494.5069002 | K62: =(K48+L62)/(1+Rollin_WACC!J46) -> 497.8422233 | L62: =(L48+M62)/(1+Rollin_WACC!K46) -> 499.6750763 | M62: =(M48+N62)/(1+Rollin_WACC!L46) -> 500.1955317 | N62: =(N48+O62)/(1+Rollin_WACC!M46) -> 492.8595011 | O62: =(O48+P62)/(1+Rollin_WACC!N46) -> 483.1236892 | P62: =(P48+Q62)/(1+Rollin_WACC!O46) -> 480.1042151 | Q62: =(Q48+R62)/(1+Rollin_WACC!P46) -> 477.1322361 | R62: =(R48+S62)/(1+Rollin_WACC!Q46) -> 471.8152807 | S62: =(S48+T62)/(1+Rollin_WACC!R46) -> 463.7272534 | T62: =(T48+U62)/(1+Rollin_WACC!S46) -> 443.1499509 | U62: =(U48+V62)/(1+Rollin_WACC!T46) -> 418.3734133 | V62: =(V48+W62)/(1+Rollin_WACC!U46) -> 402.2116294 | W62: =(W48+X62)/(1+Rollin_WACC!V46) -> 383.7641193 | X62: =(X48+Y62)/(1+Rollin_WACC!W46) -> 360.7820004 | Y62: =(Y48+Z62)/(1+Rollin_WACC!X46) -> 332.9930727 | Z62: =(Z48+AA62)/(1+Rollin_WACC!Y46) -> 289.5298659 | AA62: =(AA48+AB62)/(1+Rollin_WACC!Z46) -> 238.3754666 | AB62: =(AB48+AC62)/(1+Rollin_WACC!AA46) -> 190.8385683 | AC62: =(AC48+AD62)/(1+Rollin_WACC!AB46) -> 138.2847167 | AD62: =AD48/(1+Rollin_WACC!AC46) -> 74.03903789
B63: VPN FCA@Ke | E63: =F63+E53 -> 483.700171 | F63: =(F53+G63)/(1+Rollin_WACC!E45) -> 458.4441128 | G63: =(G53+H63)/(1+Rollin_WACC!F45) -> 500.9316187 | H63: =(H53+I63)/(1+Rollin_WACC!G45) -> 495.9574994 | I63: =(I53+J63)/(1+Rollin_WACC!H45) -> 491.8986684 | J63: =(J53+K63)/(1+Rollin_WACC!I45) -> 494.5069002 | K63: =(K53+L63)/(1+Rollin_WACC!J45) -> 497.8422233 | L63: =(L53+M63)/(1+Rollin_WACC!K45) -> 499.6750763 | M63: =(M53+N63)/(1+Rollin_WACC!L45) -> 500.1955317 | N63: =(N53+O63)/(1+Rollin_WACC!M45) -> 492.8595011 | O63: =(O53+P63)/(1+Rollin_WACC!N45) -> 483.1236892 | P63: =(P53+Q63)/(1+Rollin_WACC!O45) -> 480.1042151 | Q63: =(Q53+R63)/(1+Rollin_WACC!P45) -> 477.1322361 | R63: =(R53+S63)/(1+Rollin_WACC!Q45) -> 471.8152807 | S63: =(S53+T63)/(1+Rollin_WACC!R45) -> 463.7272534 | T63: =(T53+U63)/(1+Rollin_WACC!S45) -> 443.1499509 | U63: =(U53+V63)/(1+Rollin_WACC!T45) -> 418.3734133 | V63: =(V53+W63)/(1+Rollin_WACC!U45) -> 402.2116294 | W63: =(W53+X63)/(1+Rollin_WACC!V45) -> 383.7641193 | X63: =(X53+Y63)/(1+Rollin_WACC!W45) -> 360.7820004 | Y63: =(Y53+Z63)/(1+Rollin_WACC!X45) -> 332.9930727 | Z63: =(Z53+AA63)/(1+Rollin_WACC!Y45) -> 289.5298659 | AA63: =(AA53+AB63)/(1+Rollin_WACC!Z45) -> 238.3754666 | AB63: =(AB53+AC63)/(1+Rollin_WACC!AA45) -> 190.8385683 | AC63: =(AC53+AD63)/(1+Rollin_WACC!AB45) -> 138.2847167 | AD63: =AD53/(1+Rollin_WACC!AC45) -> 74.03903789
B65: Tasa Interna del proyecto (TIR) | E65: =XIRR(E48:AD48,E2:AD2) -> 1.758089864
B67: Flujo de caja acomulado | E67: =SUM($E$48:E48) -> -19.80383923 | F67: =SUM($E$48:F48) -> 42.39978662 | G67: =SUM($E$48:G48) -> 109.0601282 | H67: =SUM($E$48:H48) -> 174.1926535 | I67: =SUM($E$48:I48) -> 232.1582995 | J67: =SUM($E$48:J48) -> 289.7180395 | K67: =SUM($E$48:K48) -> 349.1909714 | L67: =SUM($E$48:L48) -> 410.202004 | M67: =SUM($E$48:M48) -> 479.133613 | N67: =SUM($E$48:N48) -> 549.5616224 | O67: =SUM($E$48:O48) -> 612.074397 | P67: =SUM($E$48:P48) -> 674.1678493 | Q67: =SUM($E$48:Q48) -> 738.2402996 | R67: =SUM($E$48:R48) -> 804.4290761 | S67: =SUM($E$48:S48) -> 882.1111437 | T67: =SUM($E$48:T48) -> 961.4584957 | U67: =SUM($E$48:U48) -> 1029.140037 | V67: =SUM($E$48:V48) -> 1097.117094 | W67: =SUM($E$48:W48) -> 1167.357077 | X67: =SUM($E$48:X48) -> 1239.573783 | Y67: =SUM($E$48:Y48) -> 1324.042756 | Z67: =SUM($E$48:Z48) -> 1410.850731 | AA67: =SUM($E$48:AA48) -> 1487.7419 | AB67: =SUM($E$48:AB48) -> 1563.796185 | AC67: =SUM($E$48:AC48) -> 1645.070659 | AD67: =SUM($E$48:AD48) -> 1728.227086
B68: Flujo de caja acomulado descontado @WACC | E68: =E67/(1+Rollin_WACC!D46)^E5 -> -19.80383923 | F68: =F67/(1+Rollin_WACC!E46)^F5 -> 37.91000973 | G68: =G67/(1+Rollin_WACC!F46)^G5 -> 86.45615052 | H68: =H67/(1+Rollin_WACC!G46)^H5 -> 122.9489066 | I68: =I67/(1+Rollin_WACC!H46)^I5 -> 145.8962049 | J68: =J67/(1+Rollin_WACC!I46)^J5 -> 162.1064384 | K68: =K67/(1+Rollin_WACC!J46)^K5 -> 173.9613134 | L68: =L67/(1+Rollin_WACC!K46)^L5 -> 181.9501403 | M68: =M67/(1+Rollin_WACC!L46)^M5 -> 189.2239925 | N68: =N67/(1+Rollin_WACC!M46)^N5 -> 193.2417245 | O68: =O67/(1+Rollin_WACC!N46)^O5 -> 191.6256612 | P68: =P67/(1+Rollin_WACC!O46)^P5 -> 187.9240812 | Q68: =Q67/(1+Rollin_WACC!P46)^Q5 -> 183.2217777 | R68: =R67/(1+Rollin_WACC!Q46)^R5 -> 177.7591842 | S68: =S67/(1+Rollin_WACC!R46)^S5 -> 173.5531668 | T68: =T67/(1+Rollin_WACC!S46)^T5 -> 168.4242882 | U68: =U67/(1+Rollin_WACC!T46)^U5 -> 160.5142518 | V68: =V67/(1+Rollin_WACC!U46)^V5 -> 152.3551193 | W68: =W67/(1+Rollin_WACC!V46)^W5 -> 144.3353587 | X68: =X67/(1+Rollin_WACC!W46)^X5 -> 136.4603066 | Y68: =Y67/(1+Rollin_WACC!X46)^Y5 -> 129.7779517 | Z68: =Z67/(1+Rollin_WACC!Y46)^Z5 -> 123.1246244 | AA68: =AA67/(1+Rollin_WACC!Z46)^AA5 -> 115.5996158 | AB68: =AB67/(1+Rollin_WACC!AA46)^AB5 -> 108.1867043 | AC68: =AC67/(1+Rollin_WACC!AB46)^AC5 -> 101.3312135 | AD68: =AD67/(1+Rollin_WACC!AC46)^AD5 -> 94.78168817
B69: Ajuste PRI ultimo año de recuperación | E69: =IF((F68-E68)/E68<0.9,(F68-E68)/E68,0) -> -2.914275777 | F69: =IF((G68-F68)/F68<0.9,(G68-F68)/F68,0) -> 0 | G69: 0.4220955462 | H69: 0.1866409306 | I69: 0.111107986 | J69: 0.07313019209 | K69: 0.04592300835 | L69: 0.03997717304 | M69: 0.02123267761 | N69: -0.008362911185 | O69: -0.01931672361 | P69: -0.0250223573 | Q69: -0.02981410585 | R69: -0.02366132272 | S69: -0.02955220391 | T69: -0.04696493934 | U69: -0.05083120261 | V69: -0.05263860261 | W69: -0.05456079609 | X69: -0.04896922137 | Y69: -0.05126700781 | Z69: -0.0611170076 | AA69: -0.06412574529 | AB69: -0.06336722135 | AC69: -0.06463482542 | AD69: -1
B70: Periodo de Recuperación de la Inversión (PRI) | E70: =COUNTIF($E$68:$AD$68,"<0")-($E$3/Inputs!$C$10)+SUMIFS($E$69:$AD$69,$E$5:$AD$5,INT(COUNTIF($E$68:$AD$68,"<0"))) -> 0.4166666667
B72: Flujo del PPA
B73: Facturación sin proyecto | E73: =E14 -> 259.2469004 | F73: =F14 -> 413.9417001 | G73: 414.0924935 | H73: 413.7258252 | I73: 443.8371753 | J73: 457.3389006 | K73: 469.4606036 | L73: 480.296741 | M73: 470.3233338 | N73: 479.9379794 | O73: 514.7504384 | P73: 531.6626115 | Q73: 545.9625491 | R73: 560.2439509 | S73: 550.2310446 | T73: 564.1599667 | U73: 611.1245852 | V73: 634.3528081 | W73: 650.170801 | X73: 665.9244629 | Y73: 655.2362063 | Z73: 674.1777959 | AA73: 728.0163666 | AB73: 753.6268908 | AC73: 764.8831302 | AD73: 783.7495865
B74: Facturación con proyecto | E74: =SUM(E12:E13) -> 226.4512709 | F74: =SUM(F12:F13) -> 353.760875 | G74: 350.7144025 | H74: 351.8665427 | I74: 387.7401381 | J74: 401.6175597 | K74: 411.7205396 | L74: 420.9921239 | M74: 403.8949795 | N74: 412.4553407 | O74: 453.9110571 | P74: 471.2501019 | Q74: 483.448832 | R74: 495.5969567 | S74: 475.6970836 | T74: 488.083708 | U74: 541.7525099 | V74: 564.6198395 | W74: 578.138263 | X74: 591.8661352 | Y74: 570.2399084 | Z74: 587.0031969 | AA74: 649.0631508 | AB74: 675.4726022 | AC74: 681.4695225 | AD74: 698.4141273
B75: Ahorros estimados - PPA | E75: =E73-E74 -> 32.79562947 | F75: =F73-F74 -> 60.18082504 | G75: 63.37809093 | H75: 61.85928244 | I75: 56.09703726 | J75: 55.72134089 | K75: 57.74006395 | L75: 59.30461708 | M75: 66.42835426 | N75: 67.48263869 | O75: 60.83938132 | P75: 60.4125096 | Q75: 62.51371714 | R75: 64.64699423 | S75: 74.533961 | T75: 76.07625875 | U75: 69.37207533 | V75: 69.73296855 | W75: 72.03253803 | X75: 74.05832772 | Y75: 84.99629798 | Z75: 87.17459899 | AA75: 78.9532158 | AB75: 78.15428863 | AC75: 83.41360776 | AD75: 85.33545914
B76: Costos del proyecto (Exclusiones) | E76: =SUM(E46:E47)-E34 -> -52.8298533 | F76: =SUM(F46:F47)-F34 -> -1.712618707 | G76: -1.736591612 | H76: -1.683195961 | I76: -1.697967468 | J76: -1.729535926 | K76: -1.790062941 | L76: -1.833244605 | M76: -1.889403553 | N76: -1.900730438 | O76: -1.904227414 | P76: -1.941511119 | Q76: -2.000684021 | R76: -2.055223384 | S76: -2.12488135 | T76: -2.166556986 | U76: -2.235096805 | V76: -2.313017674 | W76: -2.369875049 | X76: -2.420658783 | Y76: -2.51679997 | Z76: -2.593239831 | AA76: -2.650144331 | AB76: -2.720072405 | AC76: -2.786744586 | AD76: -2.850160873
B77: Reducción gastos de energía eléctrica | E77: =((E73-E74)/E73)-(E34/E73) -> 0.09961012849 | F77: =((F73-F74)/F73)-(F34/F73) -> 0.1412474422 | G77: 0.1488592532 | H77: 0.1454491908 | I77: 0.1225653749 | J77: 0.1180564454 | K77: 0.1191793317 | L77: 0.1196580521 | M77: 0.137222515 | N77: 0.1366466316 | O77: 0.1144926735 | P77: 0.1099776385 | Q77: 0.1108373335 | R77: 0.1117223501 | S77: 0.1315975904 | T77: 0.1310084127 | U77: 0.1098580881 | V77: 0.1062814731 | W77: 0.107145173 | X77: 0.1075762687 | Y77: 0.1258775037 | Z77: 0.1254585358 | AA77: 0.1048095551 | AB77: 0.1000949105 | AC77: 0.1054106961 | AD77: 0.1052444552
B79: Análisis del retorno de la inversión
B80: Beneficio durante el proyecto | E80: =E73*E77 -> 25.82361706 | F80: =F73*F77 -> 58.46820633 | G80: 61.64149932 | H80: 60.17608648 | I80: 54.39906979 | J80: 53.99180496 | K80: 55.95000101 | L80: 57.47137248 | M80: 64.53895071 | N80: 65.58190826 | O80: 58.93515391 | P80: 58.47099848 | Q80: 60.51303312 | R80: 62.59177085 | S80: 72.40907965 | T80: 73.90970176 | U80: 67.13697853 | V80: 67.41995088 | W80: 69.66266298 | X80: 71.63766893 | Y80: 82.47949801 | Z80: 84.58135916 | AA80: 76.30307147 | AB80: 75.43421622 | AC80: 80.62686317 | AD80: 82.48529827
B81: Beneficios descontados @WACC | D81: =SUM(E81:AD81) -> 498.9805293 | E81: =E80/(1+Rollin_WACC!D46)^E5 -> 25.82361706 | F81: =F80/(1+Rollin_WACC!E46)^F5 -> 52.27692042 | G81: =G80/(1+Rollin_WACC!F46)^G5 -> 48.86558296 | H81: =H80/(1+Rollin_WACC!G46)^H5 -> 42.47357099 | I81: =I80/(1+Rollin_WACC!H46)^I5 -> 34.1862335 | J81: =J80/(1+Rollin_WACC!I46)^J5 -> 30.21012851 | K81: =K80/(1+Rollin_WACC!J46)^K5 -> 27.87338866 | L81: =L80/(1+Rollin_WACC!K46)^L5 -> 25.49213359 | M81: =M80/(1+Rollin_WACC!L46)^M5 -> 25.48833477 | N81: =N80/(1+Rollin_WACC!M46)^N5 -> 23.06049137 | O81: =O80/(1+Rollin_WACC!N46)^O5 -> 18.4511685 | P81: =P80/(1+Rollin_WACC!O46)^P5 -> 16.29877289 | Q81: =Q80/(1+Rollin_WACC!P46)^Q5 -> 15.01855901 | R81: =R80/(1+Rollin_WACC!Q46)^R5 -> 13.83125307 | S81: =S80/(1+Rollin_WACC!R46)^S5 -> 14.24630577 | T81: =T80/(1+Rollin_WACC!S46)^T5 -> 12.94719322 | U81: =U80/(1+Rollin_WACC!T46)^U5 -> 10.47130758 | V81: =V80/(1+Rollin_WACC!U46)^V5 -> 9.362514465 | W81: =W80/(1+Rollin_WACC!V46)^W5 -> 8.613290351 | X81: =X80/(1+Rollin_WACC!W46)^X5 -> 7.886338356 | Y81: =Y80/(1+Rollin_WACC!X46)^Y5 -> 8.084346417 | Z81: =Z80/(1+Rollin_WACC!Y46)^Z5 -> 7.381396095 | AA81: =AA80/(1+Rollin_WACC!Z46)^AA5 -> 5.928854829 | AB81: =AB80/(1+Rollin_WACC!AA46)^AB5 -> 5.218697501 | AC81: =AC80/(1+Rollin_WACC!AB46)^AC5 -> 4.966362896 | AD81: =AD80/(1+Rollin_WACC!AC46)^AD5 -> 4.523766513
B82: Incentivos tributarios | D82: 0
B83: Rentabilidad de la inversión | D83: =D81+E47+D82 -> 453.1226884
B84: Retorno sobre la inversión (ROI) | D84: =D83/D81 -> 0.9080969333

Sheet Deuda
D2: Fecha | E2: =Inputs!G15 -> 2023-05-31 | F2: =EDATE(E2,E3+F3) -> 2024-12-31 | G2: =EDATE(F2,F3+G3) -> 2026-12-31 | H2: 2028-12-31 | I2: 2030-12-31 | J2: 2032-12-31 | K2: 2034-12-31 | L2: 2036-12-31 | M2: 2038-12-31 | N2: 2040-12-31 | O2: 2042-12-31 | P2: 2044-12-31 | Q2: 2046-12-31 | R2: 2048-12-31 | S2: 2050-12-31 | T2: 2052-12-31 | U2: 2054-12-31 | V2: 2056-12-31 | W2: =EDATE(V2,V3+W3) -> 2058-12-31 | X2: =EDATE(W2,W3+X3) -> 2060-12-31 | Y2: =EDATE(X2,X3+Y3) -> 2062-12-31 | Z2: =EDATE(Y2,Y3+Z3) -> 2064-12-31 | AA2: =EDATE(Z2,Z3+AA3) -> 2066-12-31 | AB2: =EDATE(AA2,AA3+AB3) -> 2068-12-31 | AC2: =EDATE(AB2,AB3+AC3) -> 2070-12-31 | AD2: 2072-12-31
D3: Meses del año | E3: =Inputs!$C$10-MONTH(E2) -> 7 | F3: =Inputs!$C$10 -> 12 | G3: =Inputs!$C$10 -> 12 | H3: =Inputs!$C$10 -> 12 | I3: =Inputs!$C$10 -> 12 | J3: =Inputs!$C$10 -> 12 | K3: =Inputs!$C$10 -> 12 | L3: =Inputs!$C$10 -> 12 | M3: =Inputs!$C$10 -> 12 | N3: =Inputs!$C$10 -> 12 | O3: =Inputs!$C$10 -> 12 | P3: =Inputs!$C$10 -> 12 | Q3: =Inputs!$C$10 -> 12 | R3: =Inputs!$C$10 -> 12 | S3: =Inputs!$C$10 -> 12 | T3: =Inputs!$C$10 -> 12 | U3: =Inputs!$C$10 -> 12 | V3: =Inputs!$C$10 -> 12 | W3: =Inputs!$C$10 -> 12 | X3: =Inputs!$C$10 -> 12 | Y3: =Inputs!$C$10 -> 12 | Z3: =Inputs!$C$10 -> 12 | AA3: =Inputs!$C$10 -> 12 | AB3: =Inputs!$C$10 -> 12 | AC3: =Inputs!$C$10 -> 12 | AD3: =Inputs!$C$10 -> 12
D4: Año | E4: =YEAR(E2) -> 2023 | F4: =YEAR(F2) -> 2024 | G4: =YEAR(G2) -> 2026 | H4: 2028 | I4: 2030 | J4: 2032 | K4: 2034 | L4: 2036 | M4: 2038 | N4: 2040 | O4: 2042 | P4: 2044 | Q4: 2046 | R4: 2048 | S4: 2050 | T4: 2052 | U4: 2054 | V4: 2056 | W4: =YEAR(W2) -> 2058 | X4: =YEAR(X2) -> 2060 | Y4: 2062 | Z4: =YEAR(Z2) -> 2064 | AA4: 2066 | AB4: 2068 | AC4: 2070 | AD4: 2072
D5: Periodo | E5: 0 | F5: =E5+1 -> 1 | G5: =F5+1 -> 2 | H5: 3 | I5: 4 | J5: 5 | K5: 6 | L5: 7 | M5: 8 | N5: 9 | O5: 10 | P5: 11 | Q5: 12 | R5: 13 | S5: 14 | T5: 15 | U5: 16 | V5: 17 | W5: =V5+1 -> 18 | X5: =W5+1 -> 19 | Y5: 20 | Z5: =Y5+1 -> 21 | AA5: =Z5+1 -> 22 | AB5: =AA5+1 -> 23 | AC5: =AB5+1 -> 24 | AD5: 25
B6: =CONCATENATE("Tasa de interes ",Tablero!L3) -> Tasa de interes Fija | C6: =Tablero!L4 -> DTF (E.A.) | E6: =IF(Tablero!$L$3="Variable",((1+SUMIFS(Macroeconómicos_año!D$6:D$14,Macroeconómicos_año!$B$6:$B$14,$C$6))*(1+Tablero!$L$6)-1),Tablero!$L$7) -> 0.1503877689 | F6: =IF(Tablero!$L$3="Variable",((1+SUMIFS(Macroeconómicos_año!E$6:E$14,Macroeconómicos_año!$B$6:$B$14,$C$6))*(1+Tablero!$L$6)-1),Tablero!$L$7) -> 0.1503877689 | G6: =IF(Tablero!$L$3="Variable",((1+SUMIFS(Macroeconómicos_año!F$6:F$14,Macroeconómicos_año!$B$6:$B$14,$C$6))*(1+Tablero!$L$6)-1),Tablero!$L$7) -> 0.1503877689 | H6: =IF(Tablero!$L$3="Variable",((1+SUMIFS(Macroeconómicos_año!G$6:G$14,Macroeconómicos_año!$B$6:$B$14,$C$6))*(1+Tablero!$L$6)-1),Tablero!$L$7) -> 0.1503877689 | I6: =IF(Tablero!$L$3="Variable",((1+SUMIFS(Macroeconómicos_año!H$6:H$14,Macroeconómicos_año!$B$6:$B$14,$C$6))*(1+Tablero!$L$6)-1),Tablero!$L$7) -> 0.1503877689 | J6: =IF(Tablero!$L$3="Variable",((1+SUMIFS(Macroeconómicos_año!I$6:I$14,Macroeconómicos_año!$B$6:$B$14,$C$6))*(1+Tablero!$L$6)-1),Tablero!$L$7) -> 0.1503877689 | K6: =IF(Tablero!$L$3="Variable",((1+SUMIFS(Macroeconómicos_año!J$6:J$14,Macroeconómicos_año!$B$6:$B$14,$C$6))*(1+Tablero!$L$6)-1),Tablero!$L$7) -> 0.1503877689 | L6: =IF(Tablero!$L$3="Variable",((1+SUMIFS(Macroeconómicos_año!K$6:K$14,Macroeconómicos_año!$B$6:$B$14,$C$6))*(1+Tablero!$L$6)-1),Tablero!$L$7) -> 0.1503877689 | M6: =IF(Tablero!$L$3="Variable",((1+SUMIFS(Macroeconómicos_año!L$6:L$14,Macroeconómicos_año!$B$6:$B$14,$C$6))*(1+Tablero!$L$6)-1),Tablero!$L$7) -> 0.1503877689 | N6: =IF(Tablero!$L$3="Variable",((1+SUMIFS(Macroeconómicos_año!M$6:M$14,Macroeconómicos_año!$B$6:$B$14,$C$6))*(1+Tablero!$L$6)-1),Tablero!$L$7) -> 0.1503877689 | O6: =IF(Tablero!$L$3="Variable",((1+SUMIFS(Macroeconómicos_año!N$6:N$14,Macroeconómicos_año!$B$6:$B$14,$C$6))*(1+Tablero!$L$6)-1),Tablero!$L$7) -> 0.1503877689 | P6: =IF(Tablero!$L$3="Variable",((1+SUMIFS(Macroeconómicos_año!O$6:O$14,Macroeconómicos_año!$B$6:$B$14,$C$6))*(1+Tablero!$L$6)-1),Tablero!$L$7) -> 0.1503877689 | Q6: =IF(Tablero!$L$3="Variable",((1+SUMIFS(Macroeconómicos_año!P$6:P$14,Macroeconómicos_año!$B$6:$B$14,$C$6))*(1+Tablero!$L$6)-1),Tablero!$L$7) -> 0.1503877689 | R6: =IF(Tablero!$L$3="Variable",((1+SUMIFS(Macroeconómicos_año!Q$6:Q$14,Macroeconómicos_año!$B$6:$B$14,$C$6))*(1+Tablero!$L$6)-1),Tablero!$L$7) -> 0.1503877689 | S6: =IF(Tablero!$L$3="Variable",((1+SUMIFS(Macroeconómicos_año!R$6:R$14,Macroeconómicos_año!$B$6:$B$14,$C$6))*(1+Tablero!$L$6)-1),Tablero!$L$7) -> 0.1503877689 | T6: =IF(Tablero!$L$3="Variable",((1+SUMIFS(Macroeconómicos_año!S$6:S$14,Macroeconómicos_año!$B$6:$B$14,$C$6))*(1+Tablero!$L$6)-1),Tablero!$L$7) -> 0.1503877689 | U6: =IF(Tablero!$L$3="Variable",((1+SUMIFS(Macroeconómicos_año!T$6:T$14,Macroeconómicos_año!$B$6:$B$14,$C$6))*(1+Tablero!$L$6)-1),Tablero!$L$7) -> 0.1503877689 | V6: =IF(Tablero!$L$3="Variable",((1+SUMIFS(Macroeconómicos_año!U$6:U$14,Macroeconómicos_año!$B$6:$B$14,$C$6))*(1+Tablero!$L$6)-1),Tablero!$L$7) -> 0.1503877689 | W6: =IF(Tablero!$L$3="Variable",((1+SUMIFS(Macroeconómicos_año!V$6:V$14,Macroeconómicos_año!$B$6:$B$14,$C$6))*(1+Tablero!$L$6)-1),Tablero!$L$7) -> 0.1503877689 | X6: =IF(Tablero!$L$3="Variable",((1+SUMIFS(Macroeconómicos_año!W$6:W$14,Macroeconómicos_año!$B$6:$B$14,$C$6))*(1+Tablero!$L$6)-1),Tablero!$L$7) -> 0.1503877689 | Y6: =IF(Tablero!$L$3="Variable",((1+SUMIFS(Macroeconómicos_año!X$6:X$14,Macroeconómicos_año!$B$6:$B$14,$C$6))*(1+Tablero!$L$6)-1),Tablero!$L$7) -> 0.1503877689 | Z6: =IF(Tablero!$L$3="Variable",((1+SUMIFS(Macroeconómicos_año!Y$6:Y$14,Macroeconómicos_año!$B$6:$B$14,$C$6))*(1+Tablero!$L$6)-1),Tablero!$L$7) -> 0.1503877689 | AA6: =IF(Tablero!$L$3="Variable",((1+SUMIFS(Macroeconómicos_año!Z$6:Z$14,Macroeconómicos_año!$B$6:$B$14,$C$6))*(1+Tablero!$L$6)-1),Tablero!$L$7) -> 0.1503877689 | AB6: =IF(Tablero!$L$3="Variable",((1+SUMIFS(Macroeconómicos_año!AA$6:AA$14,Macroeconómicos_año!$B$6:$B$14,$C$6))*(1+Tablero!$L$6)-1),Tablero!$L$7) -> 0.1503877689 | AC6: =IF(Tablero!$L$3="Variable",((1+SUMIFS(Macroeconómicos_año!AB$6:AB$14,Macroeconómicos_año!$B$6:$B$14,$C$6))*(1+Tablero!$L$6)-1),Tablero!$L$7) -> 0.1503877689 | AD6: =IF(Tablero!$L$3="Variable",((1+SUMIFS(Macroeconómicos_año!AC$6:AC$14,Macroeconómicos_año!$B$6:$B$14,$C$6))*(1+Tablero!$L$6)-1),Tablero!$L$7) -> 0.1503877689
B7: =CONCATENATE("DSCR ",Tablero!L3) -> DSCR Fija | E7: =IF(Tablero!$K$11="Perfil",Macroeconómicos_año!D$16,Tablero!$L$11) -> 1.2 | F7: =IF(Tablero!$K$11="Perfil",Macroeconómicos_año!E$16,Tablero!$L$11) -> 1.2 | G7: =IF(Tablero!$K$11="Perfil",Macroeconómicos_año!F$16,Tablero!$L$11) -> 1.2 | H7: =IF(Tablero!$K$11="Perfil",Macroeconómicos_año!G$16,Tablero!$L$11) -> 1.2 | I7: =IF(Tablero!$K$11="Perfil",Macroeconómicos_año!H$16,Tablero!$L$11) -> 1.2 | J7: =IF(Tablero!$K$11="Perfil",Macroeconómicos_año!I$16,Tablero!$L$11) -> 1.2 | K7: =IF(Tablero!$K$11="Perfil",Macroeconómicos_año!J$16,Tablero!$L$11) -> 1.2 | L7: =IF(Tablero!$K$11="Perfil",Macroeconómicos_año!K$16,Tablero!$L$11) -> 1.2 | M7: =IF(Tablero!$K$11="Perfil",Macroeconómicos_año!L$16,Tablero!$L$11) -> 1.2 | N7: =IF(Tablero!$K$11="Perfil",Macroeconómicos_año!M$16,Tablero!$L$11) -> 1.2 | O7: =IF(Tablero!$K$11="Perfil",Macroeconómicos_año!N$16,Tablero!$L$11) -> 1.2 | P7: =IF(Tablero!$K$11="Perfil",Macroeconómicos_año!O$16,Tablero!$L$11) -> 1.2 | Q7: =IF(Tablero!$K$11="Perfil",Macroeconómicos_año!P$16,Tablero!$L$11) -> 1.2 | R7: =IF(Tablero!$K$11="Perfil",Macroeconómicos_año!Q$16,Tablero!$L$11) -> 1.2 | S7: =IF(Tablero!$K$11="Perfil",Macroeconómicos_año!R$16,Tablero!$L$11) -> 1.2 | T7: =IF(Tablero!$K$11="Perfil",Macroeconómicos_año!S$16,Tablero!$L$11) -> 1.2 | U7: =IF(Tablero!$K$11="Perfil",Macroeconómicos_año!T$16,Tablero!$L$11) -> 1.2 | V7: =IF(Tablero!$K$11="Perfil",Macroeconómicos_año!U$16,Tablero!$L$11) -> 1.2 | W7: =IF(Tablero!$K$11="Perfil",Macroeconómicos_año!V$16,Tablero!$L$11) -> 1.2 | X7: =IF(Tablero!$K$11="Perfil",Macroeconómicos_año!W$16,Tablero!$L$11) -> 1.2 | Y7: =IF(Tablero!$K$11="Perfil",Macroeconómicos_año!X$16,Tablero!$L$11) -> 1.2 | Z7: =IF(Tablero!$K$11="Perfil",Macroeconómicos_año!Y$16,Tablero!$L$11) -> 1.2 | AA7: =IF(Tablero!$K$11="Perfil",Macroeconómicos_año!Z$16,Tablero!$L$11) -> 1.2 | AB7: =IF(Tablero!$K$11="Perfil",Macroeconómicos_año!AA$16,Tablero!$L$11) -> 1.2 | AC7: =IF(Tablero!$K$11="Perfil",Macroeconómicos_año!AB$16,Tablero!$L$11) -> 1.2 | AD7: =IF(Tablero!$K$11="Perfil",Macroeconómicos_año!AC$16,Tablero!$L$11) -> 1.2
B9: Flujo de efectivo disponible para el servicio de la deuda (CFADS) | F9: =IF(F$5<=Tablero!$L$12,FC_EPC!F118,0) -> 212.5402945 | G9: =IF(G$5<=Tablero!$L$12,FC_EPC!G118,0) -> 205.9920233 | H9: =IF(H$5<=Tablero!$L$12,FC_EPC!H118,0) -> 196.128232 | I9: =IF(I$5<=Tablero!$L$12,FC_EPC!I118,0) -> 183.387966 | J9: =IF(J$5<=Tablero!$L$12,FC_EPC!J118,0) -> 175.0995305 | K9: =IF(K$5<=Tablero!$L$12,FC_EPC!K118,0) -> 169.1476911 | L9: =IF(L$5<=Tablero!$L$12,FC_EPC!L118,0) -> 0 | M9: =IF(M$5<=Tablero!$L$12,FC_EPC!M118,0) -> 0 | N9: =IF(N$5<=Tablero!$L$12,FC_EPC!N118,0) -> 0 | O9: =IF(O$5<=Tablero!$L$12,FC_EPC!O118,0) -> 0 | P9: =IF(P$5<=Tablero!$L$12,FC_EPC!P118,0) -> 0 | Q9: =IF(Q$5<=Tablero!$L$12,FC_EPC!Q118,0) -> 0 | R9: =IF(R$5<=Tablero!$L$12,FC_EPC!R118,0) -> 0 | S9: =IF(S$5<=Tablero!$L$12,FC_EPC!S118,0) -> 0 | T9: =IF(T$5<=Tablero!$L$12,FC_EPC!T118,0) -> 0 | U9: =IF(U$5<=Tablero!$L$12,FC_EPC!U118,0) -> 0 | V9: =IF(V$5<=Tablero!$L$12,FC_EPC!V118,0) -> 0 | W9: =IF(W$5<=Tablero!$L$12,FC_EPC!W118,0) -> 0 | X9: =IF(X$5<=Tablero!$L$12,FC_EPC!X118,0) -> 0 | Y9: =IF(Y$5<=Tablero!$L$12,FC_EPC!Y118,0) -> 0 | Z9: =IF(Z$5<=Tablero!$L$12,FC_EPC!Z118,0) -> 0 | AA9: =IF(AA$5<=Tablero!$L$12,FC_EPC!AA118,0) -> 0 | AB9: =IF(AB$5<=Tablero!$L$12,FC_EPC!AB118,0) -> 0 | AC9: =IF(AC$5<=Tablero!$L$12,FC_EPC!AC118,0) -> 0 | AD9: =IF(AD$5<=Tablero!$L$12,FC_EPC!AD118,0) -> 0
B10: Servicio de la Deuda (DS) | F10: =F9/F7 -> 177.1169121 | G10: =G9/G7 -> 171.6600194 | H10: 163.4401934 | I10: 152.823305 | J10: 145.9162754 | K10: 140.9564093 | L10: 0 | M10: 0 | N10: 0 | O10: 0 | P10: 0 | Q10: 0 | R10: 0 | S10: 0 | T10: 0 | U10: 0 | V10: 0 | W10: 0 | X10: 0 | Y10: 0 | Z10: =Z9/Z7 -> 0 | AA10: =AA9/AA7 -> 0 | AB10: =AB9/AB7 -> 0 | AC10: =AC9/AC7 -> 0 | AD10: 0
B11: Factor de descuento (tasa Variable) | E11: 1 | F11: =E11*(1+F6) -> 1.150387769 | G11: 1.323392019 | H11: 1.522413992 | I11: 1.751366435 | J11: 2.014750526 | K11: 2.317744362 | L11: 2.666304766 | M11: 3.06728439 | N11: 3.528566446 | O11: 4.059219681 | P11: 4.669676673 | Q11: 5.371938929 | R11: 6.179812839 | S11: 7.109181103 | T11: 8.178314988 | U11: 9.408233532 | V11: 10.82311678 | W11: 12.45078117 | X11: 14.32322637 | Y11: 16.47726442 | Z11: =Y11*(1+Z6) -> 18.95524346 | AA11: =Z11*(1+AA6) -> 21.80588023 | AB11: =AA11*(1+AB6) -> 25.0852179 | AC11: =AB11*(1+AC6) -> 28.85772785 | AD11: 33.19757716
B12: VP @ TASA INT. | F12: =F10/(IF(Tablero!$L$3="Variable",F11,(1+Tablero!$L$7)^F5)) -> 153.9627914 | G12: =G10/(IF(Tablero!$L$3="Variable",G11,(1+Tablero!$L$7)^G5)) -> 129.7121465 | H12: =H10/(IF(Tablero!$L$3="Variable",H11,(1+Tablero!$L$7)^H5)) -> 107.3559454 | I12: =I10/(IF(Tablero!$L$3="Variable",I11,(1+Tablero!$L$7)^I5)) -> 87.25946889 | J12: =J10/(IF(Tablero!$L$3="Variable",J11,(1+Tablero!$L$7)^J5)) -> 72.42399174 | K12: =K10/(IF(Tablero!$L$3="Variable",K11,(1+Tablero!$L$7)^K5)) -> 60.81620198 | L12: =L10/(IF(Tablero!$L$3="Variable",L11,(1+Tablero!$L$7)^L5)) -> 0 | M12: =M10/(IF(Tablero!$L$3="Variable",M11,(1+Tablero!$L$7)^M5)) -> 0 | N12: =N10/(IF(Tablero!$L$3="Variable",N11,(1+Tablero!$L$7)^N5)) -> 0 | O12: =O10/(IF(Tablero!$L$3="Variable",O11,(1+Tablero!$L$7)^O5)) -> 0 | P12: =P10/(IF(Tablero!$L$3="Variable",P11,(1+Tablero!$L$7)^P5)) -> 0 | Q12: =Q10/(IF(Tablero!$L$3="Variable",Q11,(1+Tablero!$L$7)^Q5)) -> 0 | R12: =R10/(IF(Tablero!$L$3="Variable",R11,(1+Tablero!$L$7)^R5)) -> 0 | S12: =S10/(IF(Tablero!$L$3="Variable",S11,(1+Tablero!$L$7)^S5)) -> 0 | T12: =T10/(IF(Tablero!$L$3="Variable",T11,(1+Tablero!$L$7)^T5)) -> 0 | U12: =U10/(IF(Tablero!$L$3="Variable",U11,(1+Tablero!$L$7)^U5)) -> 0 | V12: =V10/(IF(Tablero!$L$3="Variable",V11,(1+Tablero!$L$7)^V5)) -> 0 | W12: =W10/(IF(Tablero!$L$3="Variable",W11,(1+Tablero!$L$7)^W5)) -> 0 | X12: =X10/(IF(Tablero!$L$3="Variable",X11,(1+Tablero!$L$7)^X5)) -> 0 | Y12: =Y10/(IF(Tablero!$L$3="Variable",Y11,(1+Tablero!$L$7)^Y5)) -> 0 | Z12: =Z10/(IF(Tablero!$L$3="Variable",Z11,(1+Tablero!$L$7)^Z5)) -> 0 | AA12: =AA10/(IF(Tablero!$L$3="Variable",AA11,(1+Tablero!$L$7)^AA5)) -> 0 | AB12: =AB10/(IF(Tablero!$L$3="Variable",AB11,(1+Tablero!$L$7)^AB5)) -> 0 | AC12: =AC10/(IF(Tablero!$L$3="Variable",AC11,(1+Tablero!$L$7)^AC5)) -> 0 | AD12: =AD10/(IF(Tablero!$L$3="Variable",AD11,(1+Tablero!$L$7)^AD5)) -> 0
B13: DEBT SIZING - EPC | E13: =SUM(F12:Y12) -> 611.5305459
B15: TABLA DE AMORTIZACION
B16: (+) Saldo Inicial | F16: =E19 -> 611.5305459 | G16: =F19 -> 526.3803482 | H16: 433.8814949 | I16: 335.6917715 | J16: 233.3524031 | K16: 122.5294749 | L16: 0 | M16: 0 | N16: 0 | O16: 0 | P16: 0 | Q16: 0 | R16: 0 | S16: 0 | T16: 0 | U16: 0 | V16: 0 | W16: 0 | X16: 0 | Y16: 0 | Z16: =Y19 -> 0 | AA16: =Z19 -> 0 | AB16: =AA19 -> 0 | AC16: =AB19 -> 0 | AD16: 0
B17: (+) Desembolso | E17: =E13 -> 611.5305459
B18: (-) Amortización Capital | F18: =F20-F10 -> -85.15019768 | G18: =G20-G10 -> -92.49885329 | H18: -98.1897234 | I18: -102.3393684 | J18: -110.8229282 | K18: -122.5294749 | L18: 0 | M18: 0 | N18: 0 | O18: 0 | P18: 0 | Q18: 0 | R18: 0 | S18: 0 | T18: 0 | U18: 0 | V18: 0 | W18: 0 | X18: 0 | Y18: 0 | Z18: =Z20-Z10 -> 0 | AA18: 0 | AB18: 0 | AC18: 0 | AD18: 0
B19: (=) Saldo Final | E19: =SUM(E16:E18) -> 611.5305459 | F19: =SUM(F16:F18) -> 526.3803482 | G19: =SUM(G16:G18) -> 433.8814949 | H19: =SUM(H16:H18) -> 335.6917715 | I19: =SUM(I16:I18) -> 233.3524031 | J19: 122.5294749 | K19: 0 | L19: 0 | M19: 0 | N19: 0 | O19: 0 | P19: 0 | Q19: 0 | R19: 0 | S19: 0 | T19: 0 | U19: 0 | V19: 0 | W19: 0 | X19: 0 | Y19: 0 | Z19: =SUM(Z16:Z18) -> 0 | AA19: 0 | AB19: 0 | AC19: 0 | AD19: 0
B20: Intereses | E20: =E6*E16 -> 0 | F20: =F6*F16 -> 91.96671438 | G20: 79.16116614 | H20: 65.25046997 | I20: 50.48393654 | J20: 35.09334726 | K20: 18.42693435 | L20: 0 | M20: 0 | N20: 0 | O20: 0 | P20: 0 | Q20: 0 | R20: 0 | S20: 0 | T20: 0 | U20: 0 | V20: 0 | W20: 0 | X20: 0 | Y20: 0 | Z20: =Z6*Z16 -> 0 | AA20: 0 | AB20: 0 | AC20: 0 | AD20: 0
B22: Servicio Deuda | F22: =F10 -> 177.1169121 | G22: =G10 -> 171.6600194 | H22: 163.4401934 | I22: 152.823305 | J22: 145.9162754 | K22: 140.9564093 | L22: 0 | M22: 0 | N22: 0 | O22: 0 | P22: 0 | Q22: 0 | R22: 0 | S22: 0 | T22: 0 | U22: 0 | V22: 0 | W22: 0 | X22: 0 | Y22: 0 | Z22: 0 | AA22: 0 | AB22: 0 | AC22: 0 | AD22: 0
B23: - Intereses | F23: =-F20 -> -91.96671438 | G23: =-G20 -> -79.16116614 | H23: -65.25046997 | I23: -50.48393654 | J23: -35.09334726 | K23: -18.42693435 | L23: 0 | M23: 0 | N23: 0 | O23: 0 | P23: 0 | Q23: 0 | R23: 0 | S23: 0 | T23: 0 | U23: 0 | V23: 0 | W23: 0 | X23: 0 | Y23: 0 | Z23: 0 | AA23: 0 | AB23: 0 | AC23: 0 | AD23: 0
B24: = Amortización K | F24: =SUM(F22:F23) -> 85.15019768 | G24: =SUM(G22:G23) -> 92.49885329 | H24: 98.1897234 | I24: 102.3393684 | J24: 110.8229282 | K24: 122.5294749 | L24: 0 | M24: 0 | N24: 0 | O24: 0 | P24: 0 | Q24: 0 | R24: 0 | S24: 0 | T24: 0 | U24: 0 | V24: 0 | W24: 0 | X24: 0 | Y24: 0 | Z24: 0 | AA24: 0 | AB24: 0 | AC24: 0 | AD24: 0
B26: BALLOON PAYMENT (GRADIENTE) - Perfil de la deuda | E26: =SUM(F26:Y26) -> 1 | F26: =IFERROR(-F18/$E$17,"") -> 0.1392411193 | G26: =IFERROR(-G18/$E$17,"") -> 0.1512579444 | H26: 0.1605638902 | I26: 0.167349561 | J26: 0.1812222283 | K26: 0.2003652569 | L26: 0 | M26: 0 | N26: 0 | O26: 0 | P26: 0 | Q26: 0 | R26: 0 | S26: 0 | T26: 0 | U26: 0 | V26: 0 | W26: 0 | X26: 0 | Y26: 0 | Z26: 0 | AA26: 0 | AB26: 0 | AC26: 0 | AD26: 0
B28: DSCR: REFLEJA LA CAPACIDAD DE CUBRIR EL SERVICIO DE LA DEUDA EN EL MOMENTO EN EL QUE SE ESTÁ EFECTUANDO DICHO SERVICIO (PRESENTE)
B29: DSCR = CFADS / DS | F29: =IFERROR(F9/F10,"") -> 1.2 | G29: =IFERROR(G9/G10,"") -> 1.2 | H29: 1.2 | I29: 1.2 | J29: 1.2 | K29: 1.2 | Z29: =IFERROR(Z9/Z10,"") -> 
B30: DSCR Minimo | C30: =MIN(E29:AD29) -> 1.2
B31: DSCR Promedio | C31: =IFERROR(AVERAGE(E29:AD29),0) -> 1.2
B32: DSCR Maximo | C32: =MAX(E29:AD29) -> 1.2
B34: LLCR: REFLEJA LA CAPACIDAD QUE TIENE EL PROYECTO, DURANTE EL TENOR QUE LE QUEDA, PARA CUBRIR (EN VALOR PRESENTE) EL SALDO ADEUDADO
C35: VP CFADS - Acotados | F35: =(F9+G35)/(1+F6) -> 733.8366551 | G35: 631.6564179 | H35: 520.6577939 | I35: 402.8301258 | J35: 280.0228837 | K35: 147.0353699 | L35: 0 | M35: 0 | N35: 0 | O35: 0 | P35: 0 | Q35: 0 | R35: 0 | S35: 0 | T35: 0 | U35: 0 | V35: 0 | W35: 0 | X35: 0 | Y35: 0 | Z35: 0 | AA35: 0 | AB35: 0 | AC35: 0 | AD35: =(AD9+AE35)/(1+AD6) -> 0
C36: Outstanding | F36: =F16 -> 611.5305459 | G36: =G16 -> 526.3803482 | H36: 433.8814949 | I36: 335.6917715 | J36: 233.3524031 | K36: 122.5294749 | L36: 0 | M36: 0 | N36: 0 | O36: 0 | P36: 0 | Q36: 0 | R36: 0 | S36: 0 | T36: 0 | U36: 0 | V36: 0 | W36: 0 | X36: 0 | Y36: 0 | Z36: 0 | AA36: 0 | AB36: 0 | AC36: 0 | AD36: 0
B37: LLCR = VP CFADS / Outstanding | F37: =IF(Tablero!$L$12>=Deuda!F5,IFERROR(F35/F36,""),"") -> 1.2 | G37: =IF(Tablero!$L$12>=Deuda!G5,IFERROR(G35/G36,""),"") -> 1.2 | H37: =IF(Tablero!$L$12>=Deuda!H5,IFERROR(H35/H36,""),"") -> 1.2 | I37: =IF(Tablero!$L$12>=Deuda!I5,IFERROR(I35/I36,""),"") -> 1.2 | J37: =IF(Tablero!$L$12>=Deuda!J5,IFERROR(J35/J36,""),"") -> 1.2 | K37: =IF(Tablero!$L$12>=Deuda!K5,IFERROR(K35/K36,""),"") -> 1.2 | L37: =IF(Tablero!$L$12>=Deuda!L5,IFERROR(L35/L36,""),"") ->  | M37: =IF(Tablero!$L$12>=Deuda!M5,IFERROR(M35/M36,""),"") ->  | N37: =IF(Tablero!$L$12>=Deuda!N5,IFERROR(N35/N36,""),"") ->  | O37: =IF(Tablero!$L$12>=Deuda!O5,IFERROR(O35/O36,""),"") ->  | P37: =IF(Tablero!$L$12>=Deuda!P5,IFERROR(P35/P36,""),"") ->  | Q37: =IF(Tablero!$L$12>=Deuda!Q5,IFERROR(Q35/Q36,""),"") ->  | R37: =IF(Tablero!$L$12>=Deuda!R5,IFERROR(R35/R36,""),"") ->  | S37: =IF(Tablero!$L$12>=Deuda!S5,IFERROR(S35/S36,""),"") ->  | T37: =IF(Tablero!$L$12>=Deuda!T5,IFERROR(T35/T36,""),"") ->  | U37: =IF(Tablero!$L$12>=Deuda!U5,IFERROR(U35/U36,""),"") ->  | V37: =IF(Tablero!$L$12>=Deuda!V5,IFERROR(V35/V36,""),"") ->  | W37: =IF(Tablero!$L$12>=Deuda!W5,IFERROR(W35/W36,""),"") ->  | X37: =IF(Tablero!$L$12>=Deuda!X5,IFERROR(X35/X36,""),"") ->  | Y37: =IF(Tablero!$L$12>=Deuda!Y5,IFERROR(Y35/Y36,""),"") ->  | Z37: =IF(Tablero!$L$12>=Deuda!Z5,IFERROR(Z35/Z36,""),"") ->  | AA37: =IF(Tablero!$L$12>=Deuda!AA5,IFERROR(AA35/AA36,""),"") ->  | AB37: =IF(Tablero!$L$12>=Deuda!AB5,IFERROR(AB35/AB36,""),"") ->  | AC37: =IF(Tablero!$L$12>=Deuda!AC5,IFERROR(AC35/AC36,""),"") ->  | AD37: =IF(Tablero!$L$12>=Deuda!AD5,IFERROR(AD35/AD36,""),"") -> 
B38: LLCR Promedio | C38: =IFERROR(AVERAGE(E37:AD37),0) -> 1.2
B40: PLCR: REFLEJA LA CAPACIDAD QUE TIENE EL PROYECTO, DURANTE LA VIDA QUE LE QUEDA AL PROYECTO, PARA CUBRIR (EN VALOR PRESENTE) EL SALDO ADEUDADO
C41: VP CFADS - No acotados | F41: =(FC_EPC!F118+G41)/(1+F6) -> 1094.421434 | G41: =(FC_EPC!G118+H41)/(1+G6) -> 1046.468737 | H41: =(FC_EPC!H118+I41)/(1+H6) -> 997.8528125 | I41: =(FC_EPC!I118+J41)/(1+I6) -> 951.7894385 | J41: =(FC_EPC!J118+K41)/(1+J6) -> 911.5389627 | K41: =(FC_EPC!K118+L41)/(1+K6) -> 873.5237429 | L41: =(FC_EPC!L118+M41)/(1+L6) -> 835.7433386 | M41: =(FC_EPC!M118+N41)/(1+M6) -> 798.7764266 | N41: =(FC_EPC!N118+O41)/(1+N6) -> 757.7742568 | O41: =(FC_EPC!O118+P41)/(1+O6) -> 717.6379992 | P41: =(FC_EPC!P118+Q41)/(1+P6) -> 685.0097979 | Q41: =(FC_EPC!Q118+R41)/(1+Q6) -> 760.9024874 | R41: =(FC_EPC!R118+S41)/(1+R6) -> 739.1045391 | S41: =(FC_EPC!S118+T41)/(1+S6) -> 710.1980328 | T41: =(FC_EPC!T118+U41)/(1+T6) -> 666.3496589 | U41: =(FC_EPC!U118+V41)/(1+U6) -> 612.6091385 | V41: =(FC_EPC!V118+W41)/(1+V6) -> 694.8613243 | W41: =(FC_EPC!W118+X41)/(1+W6) -> 646.7282888 | X41: =(FC_EPC!X118+Y41)/(1+X6) -> 587.1574052 | Y41: =(FC_EPC!Y118+Z41)/(1+Y6) -> 514.7077219 | Z41: =(FC_EPC!Z118+AA41)/(1+Z6) -> 419.5187117 | AA41: =(FC_EPC!AA118+AB41)/(1+AA6) -> 376.6032476 | AB41: =(FC_EPC!AB118+AC41)/(1+AB6) -> 262.7456408 | AC41: =(FC_EPC!AC118+AD41)/(1+AC6) -> 131.3187351 | AD41: =(FC_EPC!AD118+AE41)/(1+AD6) -> -26.28943366
B42: PLCR = VP CFADS / Outstanding | F42: =IFERROR(F41/ROUND(F36,1),"") -> 1.789732517 | G42: =IFERROR(G41/ROUND(G36,1),"") -> 1.987972525 | H42: 2.29972992 | I42: 2.835238125 | J42: 3.905479703 | K42: 7.130806065
B43: PLCR Promedio | C43: =IFERROR(AVERAGE(E42:AD42),0) -> 3.324826476
B45: WAL: ES EL TIEMPO PROMEDIO PONDERADO QUE SE TOMA EL PROYECTO, EN AMORTIZAR EL 50% DEL CAPITAL ADEUDADO
B46: (Pi / P)*ti | F46: =IFERROR((-F18/$E$17)*F5,"") -> 0.1392411193 | G46: =IFERROR((-G18/$E$17)*G5,"") -> 0.3025158887 | H46: 0.4816916705 | I46: 0.6693982442 | J46: 0.9061111413 | K46: 1.202191541 | L46: 0 | M46: 0 | N46: 0 | O46: 0 | P46: 0 | Q46: 0 | R46: 0 | S46: 0 | T46: 0 | U46: 0 | V46: 0 | W46: 0 | X46: 0 | Y46: 0 | Z46: 0 | AA46: 0 | AB46: 0 | AC46: 0 | AD46: 0
B47: WAL | C47: =SUM(E46:AD46) -> 3.701149605
B50: Encontrar deuda objetivo EPC
B52: DEUDA OBJETIVO EPC | C52: 1 | E52: =Tablero!H38*C52 -> 748.0415259
B53: CFADS | F53: =IF(FC_EPC!F118>0,FC_EPC!F118,0) -> 212.5402945 | G53: =IF(FC_EPC!G118>0,FC_EPC!G118,0) -> 205.9920233 | H53: =IF(FC_EPC!H118>0,FC_EPC!H118,0) -> 196.128232 | I53: =IF(FC_EPC!I118>0,FC_EPC!I118,0) -> 183.387966 | J53: =IF(FC_EPC!J118>0,FC_EPC!J118,0) -> 175.0995305 | K53: =IF(FC_EPC!K118>0,FC_EPC!K118,0) -> 169.1476911 | L53: =IF(FC_EPC!L118>0,FC_EPC!L118,0) -> 162.6524879 | M53: =IF(FC_EPC!M118>0,FC_EPC!M118,0) -> 161.1283744 | N53: =IF(FC_EPC!N118>0,FC_EPC!N118,0) -> 154.0962374 | O53: =IF(FC_EPC!O118>0,FC_EPC!O118,0) -> 140.5521788 | P53: =IF(FC_EPC!P118>0,FC_EPC!P118,0) -> 27.12440559 | Q53: =IF(FC_EPC!Q118>0,FC_EPC!Q118,0) -> 136.2283757 | R53: =IF(FC_EPC!R118>0,FC_EPC!R118,0) -> 140.058789 | S53: =IF(FC_EPC!S118>0,FC_EPC!S118,0) -> 150.6534715 | T53: =IF(FC_EPC!T118>0,FC_EPC!T118,0) -> 153.9513588 | U53: =IF(FC_EPC!U118>0,FC_EPC!U118,0) -> 9.876735746 | V53: =IF(FC_EPC!V118>0,FC_EPC!V118,0) -> 152.6316798 | W53: =IF(FC_EPC!W118>0,FC_EPC!W118,0) -> 156.8309079 | X53: =IF(FC_EPC!X118>0,FC_EPC!X118,0) -> 160.7509755 | Y53: =IF(FC_EPC!Y118>0,FC_EPC!Y118,0) -> 172.5947561 | Z53: =IF(FC_EPC!Z118>0,FC_EPC!Z118,0) -> 106.0059472 | AA53: =IF(FC_EPC!AA118>0,FC_EPC!AA118,0) -> 170.4941289 | AB53: =IF(FC_EPC!AB118>0,FC_EPC!AB118,0) -> 170.9406364 | AC53: =IF(FC_EPC!AC118>0,FC_EPC!AC118,0) -> 177.3569003 | AD53: =IF(FC_EPC!AD118>0,FC_EPC!AD118,0) -> 0
B54: DS | F54: =F53/F7 -> 177.1169121 | G54: 171.6600194 | H54: 163.4401934 | I54: 152.823305 | J54: 145.9162754 | K54: 140.9564093 | L54: 135.54374 | M54: 134.2736454 | N54: 128.4135312 | O54: 117.1268157 | P54: 22.60367133 | Q54: 113.5236464 | R54: 116.7156575 | S54: 125.5445595 | T54: 128.292799 | U54: 8.230613121 | V54: 127.1930665 | W54: 130.6924233 | X54: 133.9591462 | Y54: 143.8289634 | Z54: 88.3382893 | AA54: 142.0784408 | AB54: 142.4505303 | AC54: 147.7974169 | AD54: 0
B56: TABLA DE AMORTIZACION
B57: (+) Saldo Inicial | F57: =E60 -> 748.0415259 | G57: =F60 -> 683.4209099 | H57: 614.5390363 | I57: 543.5179974 | J57: 472.4331514 | K57: 397.5650436 | L57: 316.3975542 | M57: 228.4361365 | N57: 128.516492 | O57: 19.43026927 | P57: 0 | Q57: 0 | R57: 0 | S57: 0 | T57: 0 | U57: 0 | V57: 0 | W57: 0 | X57: 0 | Y57: 0 | Z57: =Y60 -> 0 | AA57: =Z60 -> 0 | AB57: =AA60 -> 0 | AC57: =AB60 -> 0 | AD57: 0
B58: (+) Desembolso | E58: =E52 -> 748.0415259
B59: (-) Amortización Capital | F59: =-IF(F54-F61>F57,F57,F54-F61) -> -64.62061599 | G59: =-IF(G54-G61>G57,G57,G54-G61) -> -68.88187361 | H59: -71.02103883 | I59: -71.084846 | J59: -74.86810786 | K59: -81.1674894 | L59: -87.96141771 | M59: -99.91964448 | N59: -109.0862227 | O59: -19.43026927 | P59: 0 | Q59: 0 | R59: 0 | S59: 0 | T59: 0 | U59: 0 | V59: 0 | W59: 0 | X59: 0 | Y59: 0 | Z59: =-IF(Z54-Z61>Z57,Z57,Z54-Z61) -> 0 | AA59: 0 | AB59: 0 | AC59: 0 | AD59: 0
B60: (=) Saldo Final | E60: =SUM(E57:E59) -> 748.0415259 | F60: =SUM(F57:F59) -> 683.4209099 | G60: 614.5390363 | H60: 543.5179974 | I60: 472.4331514 | J60: 397.5650436 | K60: 316.3975542 | L60: 228.4361365 | M60: 128.516492 | N60: 19.43026927 | O60: 0 | P60: 0 | Q60: 0 | R60: 0 | S60: 0 | T60: 0 | U60: 0 | V60: 0 | W60: 0 | X60: 0 | Y60: 0 | Z60: =SUM(Z57:Z59) -> 0 | AA60: 0 | AB60: 0 | AC60: 0 | AD60: 0
B61: Intereses | E61: =E6*E57 -> 0 | F61: 112.4962961 | G61: 102.7781458 | H61: 92.41915454 | I61: 81.73845896 | J61: 71.04816757 | K61: 59.78891988 | L61: 47.58232224 | M61: 34.35400089 | N61: 19.32730849 | O61: 2.922074844 | P61: 0 | Q61: 0 | R61: 0 | S61: 0 | T61: 0 | U61: 0 | V61: 0 | W61: 0 | X61: 0 | Y61: 0 | Z61: 0 | AA61: 0 | AB61: 0 | AC61: 0 | AD61: 0
B63: Periodo máximo de la deuda | C63: =COUNTIF($F$59:$Y$59,"<0") -> 10
B64: Servicio de Deuda (DS) - Ajustada | E64: =+E61-E59 -> 0 | F64: =+F61-F59 -> 177.1169121 | G64: 171.6600194 | H64: 163.4401934 | I64: 152.823305 | J64: 145.9162754 | K64: 140.9564093 | L64: 135.54374 | M64: 134.2736454 | N64: 128.4135312 | O64: 22.35234411 | P64: 0 | Q64: 0 | R64: 0 | S64: 0 | T64: 0 | U64: 0 | V64: 0 | W64: 0 | X64: 0 | Y64: 0 | Z64: =+Z61-Z59 -> 0 | AA64: 0 | AB64: 0 | AC64: 0 | AD64: 0
B65: DSCR = CFADS / DS | F65: =IFERROR(F53/F64,"") -> 1.2 | G65: =IFERROR(G53/G64,"") -> 1.2 | H65: 1.2 | I65: 1.2 | J65: 1.2 | K65: 1.2 | L65: 1.2 | M65: 1.2 | N65: =IFERROR(N53/N64,"") -> 1.2 | O65: 6.288028588 | Z65: =IFERROR(Z53/Z64,"") -> 
B67: BALLOON PAYMENT (GRADIENTE) - Perfil de la deuda | E67: =SUM(F67:Y67) -> 1 | F67: =IFERROR(-F59/$E$58," ") -> 0.08638640203 | G67: =IFERROR(-G59/$E$58," ") -> 0.09208295426 | H67: 0.09494264206 | I67: 0.09502794102 | J67: 0.100085497 | K67: 0.1085066625 | L67: 0.1175889502 | M67: 0.1335749969 | N67: 0.1458291003 | O67: 0.0259748538 | P67: 0 | Q67: 0 | R67: 0 | S67: 0 | T67: 0 | U67: 0 | V67: 0 | W67: 0 | X67: 0 | Y67: 0 | Z67: =IFERROR(-Z59/$E$58," ") -> 0 | AA67: 0 | AB67: 0 | AC67: 0 | AD67: 0
B71: Deuda propietario por inversiones PPA
B72: =CONCATENATE("Tasa de interes ",Tablero!L33) -> Tasa de interes Fija | C72: =Tablero!L34 -> DTF (E.A.) | E72: =IF(Tablero!$L$33="Variable",((1+SUMIFS(Macroeconómicos_año!D$6:D$14,Macroeconómicos_año!$B$6:$B$14,$C$72))*(1+Tablero!$L$36)-1),Tablero!$L$37) -> 0.1503877689 | F72: =IF(Tablero!$L$33="Variable",((1+SUMIFS(Macroeconómicos_año!E$6:E$14,Macroeconómicos_año!$B$6:$B$14,$C$72))*(1+Tablero!$L$36)-1),Tablero!$L$37) -> 0.1503877689 | G72: =IF(Tablero!$L$33="Variable",((1+SUMIFS(Macroeconómicos_año!F$6:F$14,Macroeconómicos_año!$B$6:$B$14,$C$72))*(1+Tablero!$L$36)-1),Tablero!$L$37) -> 0.1503877689 | H72: =IF(Tablero!$L$33="Variable",((1+SUMIFS(Macroeconómicos_año!G$6:G$14,Macroeconómicos_año!$B$6:$B$14,$C$72))*(1+Tablero!$L$36)-1),Tablero!$L$37) -> 0.1503877689 | I72: =IF(Tablero!$L$33="Variable",((1+SUMIFS(Macroeconómicos_año!H$6:H$14,Macroeconómicos_año!$B$6:$B$14,$C$72))*(1+Tablero!$L$36)-1),Tablero!$L$37) -> 0.1503877689 | J72: =IF(Tablero!$L$33="Variable",((1+SUMIFS(Macroeconómicos_año!I$6:I$14,Macroeconómicos_año!$B$6:$B$14,$C$72))*(1+Tablero!$L$36)-1),Tablero!$L$37) -> 0.1503877689 | K72: =IF(Tablero!$L$33="Variable",((1+SUMIFS(Macroeconómicos_año!J$6:J$14,Macroeconómicos_año!$B$6:$B$14,$C$72))*(1+Tablero!$L$36)-1),Tablero!$L$37) -> 0.1503877689 | L72: =IF(Tablero!$L$33="Variable",((1+SUMIFS(Macroeconómicos_año!K$6:K$14,Macroeconómicos_año!$B$6:$B$14,$C$72))*(1+Tablero!$L$36)-1),Tablero!$L$37) -> 0.1503877689 | M72: =IF(Tablero!$L$33="Variable",((1+SUMIFS(Macroeconómicos_año!L$6:L$14,Macroeconómicos_año!$B$6:$B$14,$C$72))*(1+Tablero!$L$36)-1),Tablero!$L$37) -> 0.1503877689 | N72: =IF(Tablero!$L$33="Variable",((1+SUMIFS(Macroeconómicos_año!M$6:M$14,Macroeconómicos_año!$B$6:$B$14,$C$72))*(1+Tablero!$L$36)-1),Tablero!$L$37) -> 0.1503877689 | O72: =IF(Tablero!$L$33="Variable",((1+SUMIFS(Macroeconómicos_año!N$6:N$14,Macroeconómicos_año!$B$6:$B$14,$C$72))*(1+Tablero!$L$36)-1),Tablero!$L$37) -> 0.1503877689 | P72: =IF(Tablero!$L$33="Variable",((1+SUMIFS(Macroeconómicos_año!O$6:O$14,Macroeconómicos_año!$B$6:$B$14,$C$72))*(1+Tablero!$L$36)-1),Tablero!$L$37) -> 0.1503877689 | Q72: =IF(Tablero!$L$33="Variable",((1+SUMIFS(Macroeconómicos_año!P$6:P$14,Macroeconómicos_año!$B$6:$B$14,$C$72))*(1+Tablero!$L$36)-1),Tablero!$L$37) -> 0.1503877689 | R72: =IF(Tablero!$L$33="Variable",((1+SUMIFS(Macroeconómicos_año!Q$6:Q$14,Macroeconómicos_año!$B$6:$B$14,$C$72))*(1+Tablero!$L$36)-1),Tablero!$L$37) -> 0.1503877689 | S72: =IF(Tablero!$L$33="Variable",((1+SUMIFS(Macroeconómicos_año!R$6:R$14,Macroeconómicos_año!$B$6:$B$14,$C$72))*(1+Tablero!$L$36)-1),Tablero!$L$37) -> 0.1503877689 | T72: =IF(Tablero!$L$33="Variable",((1+SUMIFS(Macroeconómicos_año!S$6:S$14,Macroeconómicos_año!$B$6:$B$14,$C$72))*(1+Tablero!$L$36)-1),Tablero!$L$37) -> 0.1503877689 | U72: =IF(Tablero!$L$33="Variable",((1+SUMIFS(Macroeconómicos_año!T$6:T$14,Macroeconómicos_año!$B$6:$B$14,$C$72))*(1+Tablero!$L$36)-1),Tablero!$L$37) -> 0.1503877689 | V72: =IF(Tablero!$L$33="Variable",((1+SUMIFS(Macroeconómicos_año!U$6:U$14,Macroeconómicos_año!$B$6:$B$14,$C$72))*(1+Tablero!$L$36)-1),Tablero!$L$37) -> 0.1503877689 | W72: =IF(Tablero!$L$33="Variable",((1+SUMIFS(Macroeconómicos_año!V$6:V$14,Macroeconómicos_año!$B$6:$B$14,$C$72))*(1+Tablero!$L$36)-1),Tablero!$L$37) -> 0.1503877689 | X72: =IF(Tablero!$L$33="Variable",((1+SUMIFS(Macroeconómicos_año!W$6:W$14,Macroeconómicos_año!$B$6:$B$14,$C$72))*(1+Tablero!$L$36)-1),Tablero!$L$37) -> 0.1503877689 | Y72: =IF(Tablero!$L$33="Variable",((1+SUMIFS(Macroeconómicos_año!X$6:X$14,Macroeconómicos_año!$B$6:$B$14,$C$72))*(1+Tablero!$L$36)-1),Tablero!$L$37) -> 0.1503877689 | Z72: =IF(Tablero!$L$33="Variable",((1+SUMIFS(Macroeconómicos_año!Y$6:Y$14,Macroeconómicos_año!$B$6:$B$14,$C$72))*(1+Tablero!$L$36)-1),Tablero!$L$37) -> 0.1503877689 | AA72: =IF(Tablero!$L$33="Variable",((1+SUMIFS(Macroeconómicos_año!Z$6:Z$14,Macroeconómicos_año!$B$6:$B$14,$C$72))*(1+Tablero!$L$36)-1),Tablero!$L$37) -> 0.1503877689 | AB72: =IF(Tablero!$L$33="Variable",((1+SUMIFS(Macroeconómicos_año!AA$6:AA$14,Macroeconómicos_año!$B$6:$B$14,$C$72))*(1+Tablero!$L$36)-1),Tablero!$L$37) -> 0.1503877689 | AC72: =IF(Tablero!$L$33="Variable",((1+SUMIFS(Macroeconómicos_año!AB$6:AB$14,Macroeconómicos_año!$B$6:$B$14,$C$72))*(1+Tablero!$L$36)-1),Tablero!$L$37) -> 0.1503877689 | AD72: =IF(Tablero!$L$33="Variable",((1+SUMIFS(Macroeconómicos_año!AC$6:AC$14,Macroeconómicos_año!$B$6:$B$14,$C$72))*(1+Tablero!$L$36)-1),Tablero!$L$37) -> 0.1503877689
B73: =CONCATENATE("DSCR ",Tablero!L33) -> DSCR Fija | E73: =IF(Tablero!$L$33="Variable",Macroeconómicos_año!D$16,Tablero!$L$41) -> 1.2 | F73: =IF(Tablero!$L$33="Variable",Macroeconómicos_año!E$16,Tablero!$L$41) -> 1.2 | G73: =IF(Tablero!$L$33="Variable",Macroeconómicos_año!F$16,Tablero!$L$41) -> 1.2 | H73: =IF(Tablero!$L$33="Variable",Macroeconómicos_año!G$16,Tablero!$L$41) -> 1.2 | I73: =IF(Tablero!$L$33="Variable",Macroeconómicos_año!H$16,Tablero!$L$41) -> 1.2 | J73: =IF(Tablero!$L$33="Variable",Macroeconómicos_año!I$16,Tablero!$L$41) -> 1.2 | K73: =IF(Tablero!$L$33="Variable",Macroeconómicos_año!J$16,Tablero!$L$41) -> 1.2 | L73: =IF(Tablero!$L$33="Variable",Macroeconómicos_año!K$16,Tablero!$L$41) -> 1.2 | M73: =IF(Tablero!$L$33="Variable",Macroeconómicos_año!L$16,Tablero!$L$41) -> 1.2 | N73: =IF(Tablero!$L$33="Variable",Macroeconómicos_año!M$16,Tablero!$L$41) -> 1.2 | O73: =IF(Tablero!$L$33="Variable",Macroeconómicos_año!N$16,Tablero!$L$41) -> 1.2 | P73: =IF(Tablero!$L$33="Variable",Macroeconómicos_año!O$16,Tablero!$L$41) -> 1.2 | Q73: =IF(Tablero!$L$33="Variable",Macroeconómicos_año!P$16,Tablero!$L$41) -> 1.2 | R73: =IF(Tablero!$L$33="Variable",Macroeconómicos_año!Q$16,Tablero!$L$41) -> 1.2 | S73: =IF(Tablero!$L$33="Variable",Macroeconómicos_año!R$16,Tablero!$L$41) -> 1.2 | T73: =IF(Tablero!$L$33="Variable",Macroeconómicos_año!S$16,Tablero!$L$41) -> 1.2 | U73: =IF(Tablero!$L$33="Variable",Macroeconómicos_año!T$16,Tablero!$L$41) -> 1.2 | V73: =IF(Tablero!$L$33="Variable",Macroeconómicos_año!U$16,Tablero!$L$41) -> 1.2 | W73: =IF(Tablero!$L$33="Variable",Macroeconómicos_año!V$16,Tablero!$L$41) -> 1.2 | X73: =IF(Tablero!$L$33="Variable",Macroeconómicos_año!W$16,Tablero!$L$41) -> 1.2 | Y73: =IF(Tablero!$L$33="Variable",Macroeconómicos_año!X$16,Tablero!$L$41) -> 1.2 | Z73: =IF(Tablero!$L$33="Variable",Macroeconómicos_año!Y$16,Tablero!$L$41) -> 1.2 | AA73: =IF(Tablero!$L$33="Variable",Macroeconómicos_año!Z$16,Tablero!$L$41) -> 1.2 | AB73: =IF(Tablero!$L$33="Variable",Macroeconómicos_año!AA$16,Tablero!$L$41) -> 1.2 | AC73: =IF(Tablero!$L$33="Variable",Macroeconómicos_año!AB$16,Tablero!$L$41) -> 1.2 | AD73: =IF(Tablero!$L$33="Variable",Macroeconómicos_año!AC$16,Tablero!$L$41) -> 1.2
B75: Flujo de efectivo disponible para el servicio de la deuda (CFADS) | F75: =IF(F$5<=Tablero!$L$42,FC_PPA!F48,0) -> 62.20362585 | G75: =IF(G$5<=Tablero!$L$42,FC_PPA!G48,0) -> 0 | H75: =IF(H$5<=Tablero!$L$42,FC_PPA!H48,0) -> 0 | I75: =IF(I$5<=Tablero!$L$42,FC_PPA!I48,0) -> 0 | J75: =IF(J$5<=Tablero!$L$42,FC_PPA!J48,0) -> 0 | K75: =IF(K$5<=Tablero!$L$42,FC_PPA!K48,0) -> 0 | L75: =IF(L$5<=Tablero!$L$42,FC_PPA!L48,0) -> 0 | M75: =IF(M$5<=Tablero!$L$42,FC_PPA!M48,0) -> 0 | N75: =IF(N$5<=Tablero!$L$42,FC_PPA!N48,0) -> 0 | O75: =IF(O$5<=Tablero!$L$42,FC_PPA!O48,0) -> 0 | P75: =IF(P$5<=Tablero!$L$42,FC_PPA!P48,0) -> 0 | Q75: =IF(Q$5<=Tablero!$L$42,FC_PPA!Q48,0) -> 0 | R75: =IF(R$5<=Tablero!$L$42,FC_PPA!R48,0) -> 0 | S75: =IF(S$5<=Tablero!$L$42,FC_PPA!S48,0) -> 0 | T75: =IF(T$5<=Tablero!$L$42,FC_PPA!T48,0) -> 0 | U75: =IF(U$5<=Tablero!$L$42,FC_PPA!U48,0) -> 0 | V75: =IF(V$5<=Tablero!$L$42,FC_PPA!V48,0) -> 0 | W75: =IF(W$5<=Tablero!$L$42,FC_PPA!W48,0) -> 0 | X75: =IF(X$5<=Tablero!$L$42,FC_PPA!X48,0) -> 0 | Y75: =IF(Y$5<=Tablero!$L$42,FC_PPA!Y48,0) -> 0 | Z75: =IF(Z$5<=Tablero!$L$42,FC_PPA!Z48,0) -> 0 | AA75: =IF(AA$5<=Tablero!$L$42,FC_PPA!AA48,0) -> 0 | AB75: =IF(AB$5<=Tablero!$L$42,FC_PPA!AB48,0) -> 0 | AC75: =IF(AC$5<=Tablero!$L$42,FC_PPA!AC48,0) -> 0 | AD75: =IF(AD$5<=Tablero!$L$42,FC_PPA!AD48,0) -> 0
B76: Servicio de la Deuda (DS) | F76: =F75/F73 -> 51.83635487 | G76: =G75/G73 -> 0 | H76: 0 | I76: 0 | J76: 0 | K76: 0 | L76: 0 | M76: 0 | N76: =N75/N73 -> 0 | O76: =O75/O73 -> 0 | P76: =P75/P73 -> 0 | Q76: =Q75/Q73 -> 0 | R76: =R75/R73 -> 0 | S76: =S75/S73 -> 0 | T76: 0 | U76: =U75/U73 -> 0 | V76: =V75/V73 -> 0 | W76: =W75/W73 -> 0 | X76: =X75/X73 -> 0 | Y76: =Y75/Y73 -> 0 | Z76: =Z75/Z73 -> 0 | AA76: =AA75/AA73 -> 0 | AB76: =AB75/AB73 -> 0 | AC76: =AC75/AC73 -> 0 | AD76: 0
B77: Factor de descuento (tasa Variable) | E77: 1 | F77: =E77*(1+F72) -> 1.150387769 | G77: =F77*(1+G72) -> 1.323392019 | H77: =G77*(1+H72) -> 1.522413992 | I77: =H77*(1+I72) -> 1.751366435 | J77: =I77*(1+J72) -> 2.014750526 | K77: =J77*(1+K72) -> 2.317744362 | L77: =K77*(1+L72) -> 2.666304766 | M77: =L77*(1+M72) -> 3.06728439 | N77: =M77*(1+N72) -> 3.528566446 | O77: =N77*(1+O72) -> 4.059219681 | P77: =O77*(1+P72) -> 4.669676673 | Q77: =P77*(1+Q72) -> 5.371938929 | R77: =Q77*(1+R72) -> 6.179812839 | S77: =R77*(1+S72) -> 7.109181103 | T77: =S77*(1+T72) -> 8.178314988 | U77: =T77*(1+U72) -> 9.408233532 | V77: =U77*(1+V72) -> 10.82311678 | W77: =V77*(1+W72) -> 12.45078117 | X77: =W77*(1+X72) -> 14.32322637 | Y77: =X77*(1+Y72) -> 16.47726442 | Z77: =Y77*(1+Z72) -> 18.95524346 | AA77: =Z77*(1+AA72) -> 21.80588023 | AB77: =AA77*(1+AB72) -> 25.0852179 | AC77: =AB77*(1+AC72) -> 28.85772785 | AD77: 33.19757716
B78: VP @ TASA INT. | F78: =F76/(IF(Tablero!$L$33="Variable",F77,(1+Tablero!$L$37)^F5)) -> 45.05989743 | G78: =G76/(IF(Tablero!$L$33="Variable",G77,(1+Tablero!$L$37)^G5)) -> 0 | H78: =H76/(IF(Tablero!$L$33="Variable",H77,(1+Tablero!$L$37)^H5)) -> 0 | I78: =I76/(IF(Tablero!$L$33="Variable",I77,(1+Tablero!$L$37)^I5)) -> 0 | J78: =J76/(IF(Tablero!$L$33="Variable",J77,(1+Tablero!$L$37)^J5)) -> 0 | K78: =K76/(IF(Tablero!$L$33="Variable",K77,(1+Tablero!$L$37)^K5)) -> 0 | L78: =L76/(IF(Tablero!$L$33="Variable",L77,(1+Tablero!$L$37)^L5)) -> 0 | M78: =M76/(IF(Tablero!$L$33="Variable",M77,(1+Tablero!$L$37)^M5)) -> 0 | N78: =N76/(IF(Tablero!$L$33="Variable",N77,(1+Tablero!$L$37)^N5)) -> 0 | O78: =O76/(IF(Tablero!$L$33="Variable",O77,(1+Tablero!$L$37)^O5)) -> 0 | P78: =P76/(IF(Tablero!$L$33="Variable",P77,(1+Tablero!$L$37)^P5)) -> 0 | Q78: =Q76/(IF(Tablero!$L$33="Variable",Q77,(1+Tablero!$L$37)^Q5)) -> 0 | R78: =R76/(IF(Tablero!$L$33="Variable",R77,(1+Tablero!$L$37)^R5)) -> 0 | S78: =S76/(IF(Tablero!$L$33="Variable",S77,(1+Tablero!$L$37)^S5)) -> 0 | T78: =T76/(IF(Tablero!$L$33="Variable",T77,(1+Tablero!$L$37)^T5)) -> 0 | U78: =U76/(IF(Tablero!$L$33="Variable",U77,(1+Tablero!$L$37)^U5)) -> 0 | V78: =V76/(IF(Tablero!$L$33="Variable",V77,(1+Tablero!$L$37)^V5)) -> 0 | W78: =W76/(IF(Tablero!$L$33="Variable",W77,(1+Tablero!$L$37)^W5)) -> 0 | X78: =X76/(IF(Tablero!$L$33="Variable",X77,(1+Tablero!$L$37)^X5)) -> 0 | Y78: =Y76/(IF(Tablero!$L$33="Variable",Y77,(1+Tablero!$L$37)^Y5)) -> 0 | Z78: =Z76/(IF(Tablero!$L$33="Variable",Z77,(1+Tablero!$L$37)^Z5)) -> 0 | AA78: =AA76/(IF(Tablero!$L$33="Variable",AA77,(1+Tablero!$L$37)^AA5)) -> 0 | AB78: =AB76/(IF(Tablero!$L$33="Variable",AB77,(1+Tablero!$L$37)^AB5)) -> 0 | AC78: =AC76/(IF(Tablero!$L$33="Variable",AC77,(1+Tablero!$L$37)^AC5)) -> 0 | AD78: =AD76/(IF(Tablero!$L$33="Variable",AD77,(1+Tablero!$L$37)^AD5)) -> 0
B79: DEBT SIZING - PPA | E79: =SUM(F78:Y78) -> 45.05989743
B81: TABLA DE AMORTIZACION
B82: (+) Saldo Inicial | F82: =E85 -> 45.05989743 | G82: =F85 -> 0 | H82: 0 | I82: 0 | J82: 0 | K82: 0 | L82: 0 | M82: 0 | N82: 0 | O82: 0 | P82: 0 | Q82: 0 | R82: 0 | S82: 0 | T82: 0 | U82: 0 | V82: 0 | W82: 0 | X82: 0 | Y82: 0 | Z82: =Y85 -> 0 | AA82: 0 | AB82: 0 | AC82: 0 | AD82: 0
B83: (+) Desembolso | E83: =E79 -> 45.05989743
B84: (-) Amortización Capital | F84: =F86-F76 -> -45.05989743 | G84: =G86-G76 -> 0 | H84: 0 | I84: 0 | J84: 0 | K84: 0 | L84: 0 | M84: 0 | N84: 0 | O84: 0 | P84: 0 | Q84: 0 | R84: 0 | S84: 0 | T84: 0 | U84: 0 | V84: 0 | W84: 0 | X84: 0 | Y84: 0 | Z84: =Z86-Z76 -> 0 | AA84: 0 | AB84: 0 | AC84: 0 | AD84: 0
B85: (=) Saldo Final | E85: =SUM(E82:E84) -> 45.05989743 | F85: =SUM(F82:F84) -> 0 | G85: =SUM(G82:G84) -> 0 | H85: 0 | I85: 0 | J85: 0 | K85: 0 | L85: 0 | M85: 0 | N85: 0 | O85: 0 | P85: 0 | Q85: 0 | R85: 0 | S85: 0 | T85: 0 | U85: 0 | V85: 0 | W85: 0 | X85: 0 | Y85: 0 | Z85: =SUM(Z82:Z84) -> 0 | AA85: =SUM(AA82:AA84) -> 0 | AB85: =SUM(AB82:AB84) -> 0 | AC85: =SUM(AC82:AC84) -> 0 | AD85: 0
B86: Intereses | E86: =E72*E82 -> 0 | F86: =F72*F82 -> 6.77645744 | G86: =G72*G82 -> 0 | H86: 0 | I86: 0 | J86: 0 | K86: 0 | L86: 0 | M86: 0 | N86: 0 | O86: 0 | P86: 0 | Q86: 0 | R86: 0 | S86: 0 | T86: 0 | U86: 0 | V86: 0 | W86: 0 | X86: 0 | Y86: 0 | Z86: =Z72*Z82 -> 0 | AA86: 0 | AB86: 0 | AC86: 0 | AD86: 0
B88: DSCR = CFADS / DS | F88: =IFERROR(F75/F76,"") -> 1.2 | G88: =IFERROR(G75/G76,"") ->  | Z88: =IFERROR(Z75/Z76,"") -> 
B90: BALLOON PAYMENT (GRADIENTE) - Perfil de la deuda | E90: =SUM(F90:Y90) -> 1 | F90: =IFERROR(-F84/$E$83," ") -> 1 | G90: =IFERROR(-G84/$E$83," ") -> 0 | H90: 0 | I90: 0 | J90: 0 | K90: 0 | L90: 0 | M90: 0 | N90: 0 | O90: 0 | P90: 0 | Q90: 0 | R90: 0 | S90: 0 | T90: 0 | U90: 0 | V90: 0 | W90: 0 | X90: 0 | Y90: 0 | Z90: =IFERROR(-Z84/$E$83," ") -> 0 | AA90: 0 | AB90: 0 | AC90: 0 | AD90: 0
B92: Encontrar deuda objetivo PPA
B94: DEUDA OBJETIVO PPA | C94: 1 | E94: =(Exclusiones!T22/Inputs!C5)*C94 -> 45.85784088
B95: CFADS | F95: =IF(FC_PPA!F48>0,FC_PPA!F48,0) -> 62.20362585 | G95: =IF(FC_PPA!G48>0,FC_PPA!G48,0) -> 66.66034161 | H95: =IF(FC_PPA!H48>0,FC_PPA!H48,0) -> 65.13252531 | I95: =IF(FC_PPA!I48>0,FC_PPA!I48,0) -> 57.96564596 | J95: =IF(FC_PPA!J48>0,FC_PPA!J48,0) -> 57.55974005 | K95: =IF(FC_PPA!K48>0,FC_PPA!K48,0) -> 59.4729319 | L95: =IF(FC_PPA!L48>0,FC_PPA!L48,0) -> 61.01103252 | M95: =IF(FC_PPA!M48>0,FC_PPA!M48,0) -> 68.93160901 | N95: =IF(FC_PPA!N48>0,FC_PPA!N48,0) -> 70.42800943 | O95: =IF(FC_PPA!O48>0,FC_PPA!O48,0) -> 62.5127746 | P95: =IF(FC_PPA!P48>0,FC_PPA!P48,0) -> 62.09345233 | Q95: =IF(FC_PPA!Q48>0,FC_PPA!Q48,0) -> 64.07245029 | R95: =IF(FC_PPA!R48>0,FC_PPA!R48,0) -> 66.1887765 | S95: =IF(FC_PPA!S48>0,FC_PPA!S48,0) -> 77.68206761 | T95: =IF(FC_PPA!T48>0,FC_PPA!T48,0) -> 79.34735202 | U95: =IF(FC_PPA!U48>0,FC_PPA!U48,0) -> 67.68154115 | V95: =IF(FC_PPA!V48>0,FC_PPA!V48,0) -> 67.97705679 | W95: =IF(FC_PPA!W48>0,FC_PPA!W48,0) -> 70.23998379 | X95: =IF(FC_PPA!X48>0,FC_PPA!X48,0) -> 72.2167056 | Y95: =IF(FC_PPA!Y48>0,FC_PPA!Y48,0) -> 84.4689727 | Z95: =IF(FC_PPA!Z48>0,FC_PPA!Z48,0) -> 86.8079756 | AA95: =IF(FC_PPA!AA48>0,FC_PPA!AA48,0) -> 76.89116838 | AB95: =IF(FC_PPA!AB48>0,FC_PPA!AB48,0) -> 76.05428542 | AC95: =IF(FC_PPA!AC48>0,FC_PPA!AC48,0) -> 81.27447371 | AD95: =IF(FC_PPA!AD48>0,FC_PPA!AD48,0) -> 83.15642713
B96: DS | F96: =F95/F73 -> 51.83635487 | G96: =G95/G73 -> 55.55028467 | H96: 54.27710442 | I96: 48.30470496 | J96: 47.96645004 | K96: 49.56077658 | L96: 50.8425271 | M96: 57.44300751 | N96: 58.69000786 | O96: 52.09397883 | P96: 51.74454361 | Q96: 53.39370858 | R96: 55.15731375 | S96: 64.73505635 | T96: 66.12279335 | U96: 56.40128429 | V96: 56.64754733 | W96: 58.53331982 | X96: 60.180588 | Y96: 70.39081058 | Z96: =Z95/Z73 -> 72.33997967 | AA96: =AA95/AA73 -> 64.07597365 | AB96: =AB95/AB73 -> 63.37857119 | AC96: =AC95/AC73 -> 67.7287281 | AD96: 69.29702261
B98: TABLA DE AMORTIZACION
B99: (+) Saldo Inicial | F99: =E102 -> 45.85784088 | G99: =F102 -> 0.917944386 | H99: 0 | I99: 0 | J99: 0 | K99: 0 | L99: 0 | M99: 0 | N99: 0 | O99: 0 | P99: 0 | Q99: 0 | R99: 0 | S99: 0 | T99: 0 | U99: 0 | V99: 0 | W99: 0 | X99: 0 | Y99: 0 | Z99: =Y102 -> 0 | AA99: 0 | AB99: 0 | AC99: 0 | AD99: 0
B100: (+) Desembolso | E100: =E94 -> 45.85784088
B101: (-) Amortización Capital | F101: =-IF(F96-F103>F99,F99,F96-F103) -> -44.9398965 | G101: =-IF(G96-G103>G99,G99,G96-G103) -> -0.917944386 | H101: 0 | I101: 0 | J101: 0 | K101: 0 | L101: 0 | M101: 0 | N101: 0 | O101: 0 | P101: 0 | Q101: 0 | R101: 0 | S101: 0 | T101: 0 | U101: 0 | V101: 0 | W101: 0 | X101: 0 | Y101: 0 | Z101: =-IF(Z96-Z103>Z99,Z99,Z96-Z103) -> 0 | AA101: 0 | AB101: 0 | AC101: 0 | AD101: 0
B102: (=) Saldo Final | E102: =SUM(E99:E101) -> 45.85784088 | F102: =SUM(F99:F101) -> 0.917944386 | G102: 0 | H102: =SUM(H99:H101) -> 0 | I102: 0 | J102: 0 | K102: 0 | L102: 0 | M102: 0 | N102: 0 | O102: 0 | P102: 0 | Q102: 0 | R102: 0 | S102: 0 | T102: 0 | U102: 0 | V102: 0 | W102: 0 | X102: 0 | Y102: 0 | Z102: =SUM(Z99:Z101) -> 0 | AA102: 0 | AB102: 0 | AC102: 0 | AD102: 0
B103: Intereses | E103: =E72*E99 -> 0 | F103: =F72*F99 -> 6.896458375 | G103: 0.1380476081 | H103: 0 | I103: 0 | J103: 0 | K103: 0 | L103: 0 | M103: 0 | N103: 0 | O103: 0 | P103: 0 | Q103: 0 | R103: 0 | S103: 0 | T103: 0 | U103: 0 | V103: 0 | W103: 0 | X103: 0 | Y103: 0 | Z103: =Z72*Z99 -> 0 | AA103: 0 | AB103: 0 | AC103: 0 | AD103: 0
B105: Periodo máximo de la deuda | C105: =COUNTIF($F$101:$Y$101,"<0") -> 2
B106: Servicio de Deuda (DS) - Ajustada | E106: =+E103-E101 -> 0 | F106: =+F103-F101 -> 51.83635487 | G106: 1.055991994 | H106: 0 | I106: 0 | J106: 0 | K106: =+K103-K101 -> 0 | L106: 0 | M106: 0 | N106: 0 | O106: 0 | P106: 0 | Q106: 0 | R106: 0 | S106: 0 | T106: 0 | U106: 0 | V106: 0 | W106: 0 | X106: 0 | Y106: 0 | Z106: =+Z103-Z101 -> 0 | AA106: 0 | AB106: 0 | AC106: 0 | AD106: 0
B107: DSCR = CFADS / DS | F107: =IFERROR(F95/F106,"") -> 1.2 | G107: =IFERROR(G95/G106,"") -> 63.12580207 | Z107: =IFERROR(Z95/Z106,"") ->  | AA107: =IFERROR(AA95/AA106,"") ->  | AB107: =IFERROR(AB95/AB106,"") ->  | AC107: =IFERROR(AC95/AC106,"") -> 
B109: BALLOON PAYMENT (GRADIENTE) - Perfil de la deuda | E109: =SUM(F109:Y109) -> 1 | F109: =-F101/$E$100 -> 0.9799828259 | G109: =-G101/$E$100 -> 0.02001717413 | H109: 0 | I109: 0 | J109: 0 | K109: 0 | L109: 0 | M109: 0 | N109: 0 | O109: 0 | P109: 0 | Q109: 0 | R109: 0 | S109: 0 | T109: 0 | U109: 0 | V109: 0 | W109: 0 | X109: 0 | Y109: 0 | Z109: =-Z101/$E$100 -> 0 | AA109: 0 | AB109: 0 | AC109: 0 | AD109: 0

Sheet CAPEX
B2: Ítem | C2: Descripción | D2: Tipo contabilidad | E2: Categoría UPME | F2: Categoría Tecnología | G2: Categoría entregables | H2: Vida útil [año] | I2: Cambio [año] | J2: Unidad | K2: Cantidad | L2: Valor Unitario DDP [$USD/$COP] | M2: Contingencia [%] | N2: Valor DDP [$USD/$COP] | O2: Contingencia [$USD/$COP] | P2: Divisa | Q2: TRM | R2: ARANCEL [%] | S2: IVA [%] | T2: ARANCEL [$COP] | U2: IVA [$COP] | V2: Subtotal DDP [$COP] | W2: Subtotal DDP [$USD] | X2: Observaciones
B3: 1 | C3: Paneles/modulos o celdas fotovoltaicas | D3: Panel | E3: Bien | F3: Fotovoltaica | G3: Módulos PV | H3: 25 | J3: Und | K3: 311 | L3: =Tablero!D16*Inputs!AR4 -> 186.2903226 | M3: =VLOOKUP($G3,Inputs!$AN$4:$AO$27,2,FALSE) -> 0.03 | N3: =K3*L3 -> 57936.29032 | O3: =$M3*N3 -> 1738.08871 | P3: $USD | Q3: =IF($P3="$USD",Inputs!$AQ$5,Inputs!$AQ$4) -> 4801 | R3: 0 | S3: =VLOOKUP($D3,Inputs!$AX$4:$AY$11,2,FALSE) -> 0 | T3: =$N3*$R3 -> 0 | U3: =$N3*$S3 -> 0 | V3: =($N3+$O3+$T3+$U3)*$Q3*(1+Tablero!$H$31) -> 286496693.7 | W3: =V3/IF($P3="COP",Inputs!$AQ$4,Inputs!$AQ$5) -> 59674.37903
B4: 2 | C4: Optimizadores | D4: Bien | E4: Bien | F4: Fotovoltaica | G4: Módulos PV | H4: 10 | I4: 11 | J4: Und | L4: 0 | M4: =VLOOKUP($G4,Inputs!$AN$4:$AO$27,2,FALSE) -> 0.03 | N4: 0 | O4: =$M4*N4 -> 0 | P4: $COP | Q4: =IF($P4="$USD",Inputs!$AQ$5,Inputs!$AQ$4) -> 1 | R4: 0 | S4: =VLOOKUP($D4,Inputs!$AX$4:$AY$11,2,FALSE) -> 0.19 | T4: 0 | U4: 0 | V4: =($N4+$O4+$T4+$U4)*$Q4*(1+Tablero!$H$31) -> 0 | W4: =V4/IF($P4="COP",Inputs!$AQ$4,Inputs!$AQ$5) -> 0
B5: 3 | C5: Conectores MC4 | D5: Bien | E5: Bien | F5: Fotovoltaica | G5: Cableado en DC | H5: 25 | I5: 16 | J5: Und | K5: 90 | L5: 7200 | M5: =VLOOKUP($G5,Inputs!$AN$4:$AO$27,2,FALSE) -> 0.05 | N5: 648000 | O5: 32400 | P5: $COP | Q5: =IF($P5="$USD",Inputs!$AQ$5,Inputs!$AQ$4) -> 1 | R5: 0 | S5: =VLOOKUP($D5,Inputs!$AX$4:$AY$11,2,FALSE) -> 0.19 | T5: 0 | U5: 123120 | V5: =($N5+$O5+$T5+$U5)*$Q5*(1+Tablero!$H$31) -> 803520 | W5: =V5/IF($P5="COP",Inputs!$AQ$4,Inputs!$AQ$5) -> 167.3651323
B6: 4 | C6: Cables solares DC | D6: Bien | E6: Bien | F6: Fotovoltaica | G6: Cableado en DC | H6: 30 | J6: ml | K6: 2631.2 | L6: 4593 | M6: =VLOOKUP($G6,Inputs!$AN$4:$AO$27,2,FALSE) -> 0.05 | N6: 12085101.6 | O6: 604255.08 | P6: $COP | Q6: =IF($P6="$USD",Inputs!$AQ$5,Inputs!$AQ$4) -> 1 | R6: 0 | S6: =VLOOKUP($D6,Inputs!$AX$4:$AY$11,2,FALSE) -> 0.19 | T6: 0 | U6: 2296169.304 | V6: =($N6+$O6+$T6+$U6)*$Q6*(1+Tablero!$H$31) -> 14985525.98 | W6: =V6/IF($P6="COP",Inputs!$AQ$4,Inputs!$AQ$5) -> 3121.334302
B7: 5 | C7: Fusibles y porta fusibles | D7: Bien | E7: Bien | F7: Fotovoltaica | G7: Protecciones | H7: 30 | J7: Und | K7: 36 | L7: 65000 | M7: =VLOOKUP($G7,Inputs!$AN$4:$AO$27,2,FALSE) -> 0.05 | N7: 2340000 | O7: 117000 | P7: $COP | Q7: =IF($P7="$USD",Inputs!$AQ$5,Inputs!$AQ$4) -> 1 | R7: 0 | S7: =VLOOKUP($D7,Inputs!$AX$4:$AY$11,2,FALSE) -> 0.19 | T7: 0 | U7: 444600 | V7: =($N7+$O7+$T7+$U7)*$Q7*(1+Tablero!$H$31) -> 2901600 | W7: =V7/IF($P7="COP",Inputs!$AQ$4,Inputs!$AQ$5) -> 604.3740887
B8: 6 | C8: Cajas combinadoras | D8: Bien | E8: Bien | F8: Fotovoltaica | G8: Protecciones | H8: 25 | J8: Und | K8: 2 | L8: 1600000 | M8: =VLOOKUP($G8,Inputs!$AN$4:$AO$27,2,FALSE) -> 0.05 | N8: 3200000 | O8: 160000 | P8: $COP | Q8: =IF($P8="$USD",Inputs!$AQ$5,Inputs!$AQ$4) -> 1 | R8: 0 | S8: =VLOOKUP($D8,Inputs!$AX$4:$AY$11,2,FALSE) -> 0.19 | T8: 0 | U8: 608000 | V8: =($N8+$O8+$T8+$U8)*$Q8*(1+Tablero!$H$31) -> 3968000 | W8: =V8/IF($P8="COP",Inputs!$AQ$4,Inputs!$AQ$5) -> 826.4944803
B9: 7 | C9: Equipos de medición del recurso solar | D9: Bien | E9: Bien | F9: Fotovoltaica | G9: Formulación | H9: 10 | I9: 11 | J9: Und | L9: 0 | M9: =VLOOKUP($G9,Inputs!$AN$4:$AO$27,2,FALSE) -> 0.02 | N9: 0 | O9: 0 | P9: $COP | Q9: =IF($P9="$USD",Inputs!$AQ$5,Inputs!$AQ$4) -> 1 | R9: 0 | S9: =VLOOKUP($D9,Inputs!$AX$4:$AY$11,2,FALSE) -> 0.19 | T9: 0 | U9: 0 | V9: =($N9+$O9+$T9+$U9)*$Q9*(1+Tablero!$H$31) -> 0 | W9: =V9/IF($P9="COP",Inputs!$AQ$4,Inputs!$AQ$5) -> 0
B10: 8 | C10: Estaciones meteorológicas | D10: Bien | E10: Bien | F10: Fotovoltaica | G10: Formulación | H10: 10 | I10: 11 | J10: Und | L10: 0 | M10: =VLOOKUP($G10,Inputs!$AN$4:$AO$27,2,FALSE) -> 0.02 | N10: 0 | O10: 0 | P10: $COP | Q10: =IF($P10="$USD",Inputs!$AQ$5,Inputs!$AQ$4) -> 1 | R10: 0 | S10: =VLOOKUP($D10,Inputs!$AX$4:$AY$11,2,FALSE) -> 0.19 | T10: 0 | U10: 0 | V10: =($N10+$O10+$T10+$U10)*$Q10*(1+Tablero!$H$31) -> 0 | W10: =V10/IF($P10="COP",Inputs!$AQ$4,Inputs!$AQ$5) -> 0
B11: 9 | C11: Datalogger | D11: Bien | E11: Bien | F11: Fotovoltaica | G11: Comunicaciones | H11: 10 | I11: 11 | J11: Und | K11: 1 | L11: 799.94 | M11: =VLOOKUP($G11,Inputs!$AN$4:$AO$27,2,FALSE) -> 0.05 | N11: 799.94 | O11: 39.997 | P11: $USD | Q11: =IF($P11="$USD",Inputs!$AQ$5,Inputs!$AQ$4) -> 4801 | R11: 0 | S11: =VLOOKUP($D11,Inputs!$AX$4:$AY$11,2,FALSE) -> 0.19 | T11: 0 | U11: 151.9886 | V11: =($N11+$O11+$T11+$U11)*$Q11*(1+Tablero!$H$31) -> 4762234.806 | W11: =V11/IF($P11="COP",Inputs!$AQ$4,Inputs!$AQ$5) -> 991.9256
B12: 10 | C12: Bases / marcos / estructuras diseñadas para montar, anclar e instalar paneles | D12: Bien | E12: Bien | F12: Fotovoltaica | G12: Estructura solar | H12: 25 | J12: gl | K12: 1 | L12: 35541250 | M12: =VLOOKUP($G12,Inputs!$AN$4:$AO$27,2,FALSE) -> 0.03 | N12: 35541250 | O12: 1066237.5 | P12: $COP | Q12: =IF($P12="$USD",Inputs!$AQ$5,Inputs!$AQ$4) -> 1 | R12: 0 | S12: =VLOOKUP($D12,Inputs!$AX$4:$AY$11,2,FALSE) -> 0.19 | T12: 0 | U12: 6752837.5 | V12: =($N12+$O12+$T12+$U12)*$Q12*(1+Tablero!$H$31) -> 43360325 | W12: =V12/IF($P12="COP",Inputs!$AQ$4,Inputs!$AQ$5) -> 9031.519475
B13: 11 | C13: Sistemas de tracking | D13: Bien | E13: Bien | F13: Fotovoltaica | G13: Estructura solar | H13: 25 | J13: gl | L13: 0 | M13: =VLOOKUP($G13,Inputs!$AN$4:$AO$27,2,FALSE) -> 0.03 | N13: 0 | O13: 0 | P13: $COP | Q13: =IF($P13="$USD",Inputs!$AQ$5,Inputs!$AQ$4) -> 1 | R13: 0 | S13: =VLOOKUP($D13,Inputs!$AX$4:$AY$11,2,FALSE) -> 0.19 | T13: 0 | U13: 0 | V13: =($N13+$O13+$T13+$U13)*$Q13*(1+Tablero!$H$31) -> 0 | W13: =V13/IF($P13="COP",Inputs!$AQ$4,Inputs!$AQ$5) -> 0
B14: 12 | C14: Seguidores solares | D14: Bien | E14: Bien | F14: Fotovoltaica | G14: Estructura solar | H14: 25 | J14: Und | L14: 0 | M14: =VLOOKUP($G14,Inputs!$AN$4:$AO$27,2,FALSE) -> 0.03 | N14: 0 | O14: 0 | P14: $COP | Q14: =IF($P14="$USD",Inputs!$AQ$5,Inputs!$AQ$4) -> 1 | R14: 0 | S14: =VLOOKUP($D14,Inputs!$AX$4:$AY$11,2,FALSE) -> 0.19 | T14: 0 | U14: 0 | V14: =($N14+$O14+$T14+$U14)*$Q14*(1+Tablero!$H$31) -> 0 | W14: =V14/IF($P14="COP",Inputs!$AQ$4,Inputs!$AQ$5) -> 0
B15: 13 | C15: Inversores o microinversores (Off Gid, Grid Tie o Híbrido) | D15: Inversor | E15: Bien | F15: Fotovoltaica | G15: Inversor o controlador | H15: 15 | I15: 18 | J15: Und | K15: 1 | L15: 2626.78 | M15: =VLOOKUP($G15,Inputs!$AN$4:$AO$27,2,FALSE) -> 0.03 | N15: =K15*L15 -> 2626.78 | O15: =$M15*N15 -> 78.8034 | P15: $USD | Q15: =IF($P15="$USD",Inputs!$AQ$5,Inputs!$AQ$4) -> 4801 | R15: 0 | S15: =VLOOKUP($D15,Inputs!$AX$4:$AY$11,2,FALSE) -> 0 | T15: 0 | U15: 0 | V15: =($N15+$O15+$T15+$U15)*$Q15*(1+Tablero!$H$31) -> 12989505.9 | W15: =V15/IF($P15="COP",Inputs!$AQ$4,Inputs!$AQ$5) -> 2705.5834 | X15: Inversor de 40 kW
B16: 14 | C16: Inversores o microinversores (Off Gid, Grid Tie o Híbrido) | D16: Inversor | E16: Bien | F16: Fotovoltaica | G16: Inversor o controlador | H16: 15 | I16: 18 | J16: Und | K16: 1 | L16: 4902.86 | M16: =VLOOKUP($G16,Inputs!$AN$4:$AO$27,2,FALSE) -> 0.03 | N16: 4902.86 | O16: 147.0858 | P16: $USD | Q16: =IF($P16="$USD",Inputs!$AQ$5,Inputs!$AQ$4) -> 4801 | R16: 0 | S16: =VLOOKUP($D16,Inputs!$AX$4:$AY$11,2,FALSE) -> 0 | T16: 0 | U16: 0 | V16: =($N16+$O16+$T16+$U16)*$Q16*(1+Tablero!$H$31) -> 24244789.79 | W16: =V16/IF($P16="COP",Inputs!$AQ$4,Inputs!$AQ$5) -> 5049.9458 | X16: Inversor de 100 kW
B17: 15 | C17: Asesoría y consultoría especializada | D17: Servicio | E17: Servicio | F17: Fotovoltaica | G17: Ingeniería | J17: Und | L17: 0 | M17: =VLOOKUP($G17,Inputs!$AN$4:$AO$27,2,FALSE) -> 0.05 | N17: 0 | O17: 0 | P17: $COP | Q17: =IF($P17="$USD",Inputs!$AQ$5,Inputs!$AQ$4) -> 1 | R17: 0 | S17: =VLOOKUP($D17,Inputs!$AX$4:$AY$11,2,FALSE) -> 0.19 | T17: 0 | U17: 0 | V17: =($N17+$O17+$T17+$U17)*$Q17*(1+Tablero!$H$31) -> 0 | W17: =V17/IF($P17="COP",Inputs!$AQ$4,Inputs!$AQ$5) -> 0
B18: 16 | C18: Estudios de valoración de potencial | D18: Servicio | E18: Servicio | F18: Fotovoltaica | G18: Formulación | J18: Und | L18: 0 | M18: =VLOOKUP($G18,Inputs!$AN$4:$AO$27,2,FALSE) -> 0.02 | N18: 0 | O18: 0 | P18: $COP | Q18: =IF($P18="$USD",Inputs!$AQ$5,Inputs!$AQ$4) -> 1 | R18: 0 | S18: =VLOOKUP($D18,Inputs!$AX$4:$AY$11,2,FALSE) -> 0.19 | T18: 0 | U18: 0 | V18: =($N18+$O18+$T18+$U18)*$Q18*(1+Tablero!$H$31) -> 0 | W18: =V18/IF($P18="COP",Inputs!$AQ$4,Inputs!$AQ$5) -> 0
B19: 17 | C19: Estudio de pre-factibilidad | D19: Servicio | E19: Servicio | F19: Fotovoltaica | G19: Formulación | J19: Und | K19: 1 | L19: 850000 | M19: =VLOOKUP($G19,Inputs!$AN$4:$AO$27,2,FALSE) -> 0.02 | N19: 850000 | O19: 17000 | P19: $COP | Q19: =IF($P19="$USD",Inputs!$AQ$5,Inputs!$AQ$4) -> 1 | R19: 0 | S19: =VLOOKUP($D19,Inputs!$AX$4:$AY$11,2,FALSE) -> 0.19 | T19: 0 | U19: 161500 | V19: =($N19+$O19+$T19+$U19)*$Q19*(1+Tablero!$H$31) -> 1028500 | W19: =V19/IF($P19="COP",Inputs!$AQ$4,Inputs!$AQ$5) -> 214.2262029
B20: 18 | C20: Estudio de factibilidad | D20: Servicio | E20: Servicio | F20: Fotovoltaica | G20: Ingeniería | J20: Und | K20: 1 | L20: 2300000 | M20: =VLOOKUP($G20,Inputs!$AN$4:$AO$27,2,FALSE) -> 0.05 | N20: 2300000 | O20: 115000 | P20: $COP | Q20: =IF($P20="$USD",Inputs!$AQ$5,Inputs!$AQ$4) -> 1 | R20: 0 | S20: =VLOOKUP($D20,Inputs!$AX$4:$AY$11,2,FALSE) -> 0.19 | T20: 0 | U20: 437000 | V20: =($N20+$O20+$T20+$U20)*$Q20*(1+Tablero!$H$31) -> 2852000 | W20: =V20/IF($P20="COP",Inputs!$AQ$4,Inputs!$AQ$5) -> 594.0429077
B21: 19 | C21: Estudios estructurales | D21: Servicio | E21: Servicio | F21: Fotovoltaica | G21: Ingeniería | J21: Und | L21: 0 | M21: =VLOOKUP($G21,Inputs!$AN$4:$AO$27,2,FALSE) -> 0.05 | N21: 0 | O21: 0 | P21: $COP | Q21: =IF($P21="$USD",Inputs!$AQ$5,Inputs!$AQ$4) -> 1 | R21: 0 | S21: =VLOOKUP($D21,Inputs!$AX$4:$AY$11,2,FALSE) -> 0.19 | T21: 0 | U21: 0 | V21: =($N21+$O21+$T21+$U21)*$Q21*(1+Tablero!$H$31) -> 0 | W21: =V21/IF($P21="COP",Inputs!$AQ$4,Inputs!$AQ$5) -> 0
B22: 20 | C22: Estudios ambientales | D22: Servicio | E22: Servicio | F22: Fotovoltaica | G22: Ingeniería | J22: Und | L22: 0 | M22: =VLOOKUP($G22,Inputs!$AN$4:$AO$27,2,FALSE) -> 0.05 | N22: 0 | O22: 0 | P22: $COP | Q22: =IF($P22="$USD",Inputs!$AQ$5,Inputs!$AQ$4) -> 1 | R22: 0 | S22: =VLOOKUP($D22,Inputs!$AX$4:$AY$11,2,FALSE) -> 0.19 | T22: 0 | U22: 0 | V22: =($N22+$O22+$T22+$U22)*$Q22*(1+Tablero!$H$31) -> 0 | W22: =V22/IF($P22="COP",Inputs!$AQ$4,Inputs!$AQ$5) -> 0
B23: 21 | C23: Estudios de conexión | D23: Servicio | E23: Servicio | F23: Fotovoltaica | G23: Ingeniería | J23: Und | K23: 1 | L23: 3800000 | M23: =VLOOKUP($G23,Inputs!$AN$4:$AO$27,2,FALSE) -> 0.05 | N23: 3800000 | O23: 190000 | P23: $COP | Q23: =IF($P23="$USD",Inputs!$AQ$5,Inputs!$AQ$4) -> 1 | R23: 0 | S23: =VLOOKUP($D23,Inputs!$AX$4:$AY$11,2,FALSE) -> 0.19 | T23: 0 | U23: 722000 | V23: =($N23+$O23+$T23+$U23)*$Q23*(1+Tablero!$H$31) -> 4712000 | W23: =V23/IF($P23="COP",Inputs!$AQ$4,Inputs!$AQ$5) -> 981.4621954
B24: 22 | C24: Transporte asociado al traslado de componentes al sitio de instalación | D24: Servicio | E24: Servicio | F24: Fotovoltaica | G24: Transporte | J24: Und | K24: 26 | L24: 60000 | M24: =VLOOKUP($G24,Inputs!$AN$4:$AO$27,2,FALSE) -> 0.03 | N24: 1560000 | O24: 46800 | P24: $COP | Q24: =IF($P24="$USD",Inputs!$AQ$5,Inputs!$AQ$4) -> 1 | R24: 0 | S24: =VLOOKUP($D24,Inputs!$AX$4:$AY$11,2,FALSE) -> 0.19 | T24: 0 | U24: 296400 | V24: =($N24+$O24+$T24+$U24)*$Q24*(1+Tablero!$H$31) -> 1903200 | W24: =V24/IF($P24="COP",Inputs!$AQ$4,Inputs!$AQ$5) -> 396.417413
B25: 23 | C25: Certificación RETIE | D25: Servicio | E25: Servicio | F25: Fotovoltaica | G25: Certificaciones | J25: Und | K25: 1 | L25: 4200000 | M25: =VLOOKUP($G25,Inputs!$AN$4:$AO$27,2,FALSE) -> 0.03 | N25: 4200000 | O25: 126000 | P25: $COP | Q25: =IF($P25="$USD",Inputs!$AQ$5,Inputs!$AQ$4) -> 1 | R25: 0 | S25: =VLOOKUP($D25,Inputs!$AX$4:$AY$11,2,FALSE) -> 0.19 | T25: 0 | U25: 798000 | V25: =($N25+$O25+$T25+$U25)*$Q25*(1+Tablero!$H$31) -> 5124000 | W25: =V25/IF($P25="COP",Inputs!$AQ$4,Inputs!$AQ$5) -> 1067.27765
B26: 24 | C26: Alquiler de equipos LIDAR | D26: Servicio | E26: Servicio | F26: Fotovoltaica | G26: Formulación | J26: Und | L26: 0 | M26: =VLOOKUP($G26,Inputs!$AN$4:$AO$27,2,FALSE) -> 0.02 | N26: 0 | O26: 0 | P26: $COP | Q26: =IF($P26="$USD",Inputs!$AQ$5,Inputs!$AQ$4) -> 1 | R26: 0 | S26: =VLOOKUP($D26,Inputs!$AX$4:$AY$11,2,FALSE) -> 0.19 | T26: 0 | U26: 0 | V26: =($N26+$O26+$T26+$U26)*$Q26*(1+Tablero!$H$31) -> 0 | W26: =V26/IF($P26="COP",Inputs!$AQ$4,Inputs!$AQ$5) -> 0
B27: 25 | C27: Diseño e ingeniería del sistema (Incluyendo software especializado) | D27: Servicio | E27: Servicio | F27: Fotovoltaica | G27: Ingeniería | J27: Und | K27: 1 | L27: 3650000 | M27: =VLOOKUP($G27,Inputs!$AN$4:$AO$27,2,FALSE) -> 0.05 | N27: 3650000 | O27: 182500 | P27: $COP | Q27: =IF($P27="$USD",Inputs!$AQ$5,Inputs!$AQ$4) -> 1 | R27: 0 | S27: =VLOOKUP($D27,Inputs!$AX$4:$AY$11,2,FALSE) -> 0.19 | T27: 0 | U27: 693500 | V27: =($N27+$O27+$T27+$U27)*$Q27*(1+Tablero!$H$31) -> 4526000 | W27: =V27/IF($P27="COP",Inputs!$AQ$4,Inputs!$AQ$5) -> 942.7202666
B28: 26 | C28: Preparación / adaptación del terreno para instalación del sistema | D28: Obra | E28: Obra | F28: Fotovoltaica | G28: Obra Civil | H28: 30 | J28: m2 | L28: 0 | M28: =VLOOKUP($G28,Inputs!$AN$4:$AO$27,2,FALSE) -> 0.05 | N28: 0 | O28: 0 | P28: $COP | Q28: =IF($P28="$USD",Inputs!$AQ$5,Inputs!$AQ$4) -> 1 | R28: 0 | S28: =VLOOKUP($D28,Inputs!$AX$4:$AY$11,2,FALSE) -> 0.0114 | T28: 0 | U28: 0 | V28: =($N28+$O28+$T28+$U28)*$Q28*(1+Tablero!$H$31) -> 0 | W28: =V28/IF($P28="COP",Inputs!$AQ$4,Inputs!$AQ$5) -> 0
B29: 27 | C29: Suministro, instalación y puesta en operación del sistema | D29: Servicio | E29: Servicio | F29: Fotovoltaica | G29: Montaje | J29: día | K29: 35 | L29: =Inputs!AU7 -> 740338.9888 | M29: =VLOOKUP($G29,Inputs!$AN$4:$AO$27,2,FALSE) -> 0.03 | N29: 25911864.61 | O29: 777355.9383 | P29: $COP | Q29: =IF($P29="$USD",Inputs!$AQ$5,Inputs!$AQ$4) -> 1 | R29: 0 | S29: =VLOOKUP($D29,Inputs!$AX$4:$AY$11,2,FALSE) -> 0.19 | T29: 0 | U29: 4923254.276 | V29: =($N29+$O29+$T29+$U29)*$Q29*(1+Tablero!$H$31) -> 31612474.82 | W29: =V29/IF($P29="COP",Inputs!$AQ$4,Inputs!$AQ$5) -> 6584.560471
B30: 28 | C30: Construcción de obras civiles y estructurales para el montaje del sistema | D30: Obra | E30: Obra | F30: Fotovoltaica | G30: Obra Civil | H30: 30 | J30: gl | K30: 1 | L30: 18542000 | M30: =VLOOKUP($G30,Inputs!$AN$4:$AO$27,2,FALSE) -> 0.05 | N30: 18542000 | O30: 927100 | P30: $COP | Q30: =IF($P30="$USD",Inputs!$AQ$5,Inputs!$AQ$4) -> 1 | R30: 0 | S30: =VLOOKUP($D30,Inputs!$AX$4:$AY$11,2,FALSE) -> 0.0114 | T30: 0 | U30: 211378.8 | V30: =($N30+$O30+$T30+$U30)*$Q30*(1+Tablero!$H$31) -> 19680478.8 | W30: =V30/IF($P30="COP",Inputs!$AQ$4,Inputs!$AQ$5) -> 4099.24574
B31: 29 | C31: Dispositivos de protección contra sobretensiones transitorias (DPS), descargadores de rayos, apantallemiento | D31: Bien | E31: Bien | F31: Fotovoltaica | G31: Protecciones | H31: 10 | I31: 11 | J31: Und | L31: 0 | M31: =VLOOKUP($G31,Inputs!$AN$4:$AO$27,2,FALSE) -> 0.05 | N31: 0 | O31: 0 | P31: $COP | Q31: =IF($P31="$USD",Inputs!$AQ$5,Inputs!$AQ$4) -> 1 | R31: 0 | S31: =VLOOKUP($D31,Inputs!$AX$4:$AY$11,2,FALSE) -> 0.19 | T31: 0 | U31: 0 | V31: =($N31+$O31+$T31+$U31)*$Q31*(1+Tablero!$H$31) -> 0 | W31: =V31/IF($P31="COP",Inputs!$AQ$4,Inputs!$AQ$5) -> 0
B32: 30 | C32: Tableros de baja tensión AC/DC | D32: Bien | E32: Bien | F32: Fotovoltaica | G32: Protecciones | H32: 30 | J32: Und | K32: 2 | L32: 5835000 | M32: =VLOOKUP($G32,Inputs!$AN$4:$AO$27,2,FALSE) -> 0.05 | N32: 11670000 | O32: 583500 | P32: $COP | Q32: =IF($P32="$USD",Inputs!$AQ$5,Inputs!$AQ$4) -> 1 | R32: 0 | S32: =VLOOKUP($D32,Inputs!$AX$4:$AY$11,2,FALSE) -> 0.19 | T32: 0 | U32: 2217300 | V32: =($N32+$O32+$T32+$U32)*$Q32*(1+Tablero!$H$31) -> 14470800 | W32: =V32/IF($P32="COP",Inputs!$AQ$4,Inputs!$AQ$5) -> 3014.122058
B33: 31 | C33: Celdas AC/DC | D33: Bien | E33: Bien | F33: Fotovoltaica | G33: Protecciones | H33: 30 | J33: Und | L33: 0 | M33: =VLOOKUP($G33,Inputs!$AN$4:$AO$27,2,FALSE) -> 0.05 | N33: 0 | O33: 0 | P33: $COP | Q33: =IF($P33="$USD",Inputs!$AQ$5,Inputs!$AQ$4) -> 1 | R33: 0 | S33: =VLOOKUP($D33,Inputs!$AX$4:$AY$11,2,FALSE) -> 0.19 | T33: 0 | U33: 0 | V33: =($N33+$O33+$T33+$U33)*$Q33*(1+Tablero!$H$31) -> 0 | W33: =V33/IF($P33="COP",Inputs!$AQ$4,Inputs!$AQ$5) -> 0
B34: 32 | C34: Alambres y cables en AC | D34: Bien | E34: Bien | F34: Fotovoltaica | G34: Cableado en AC | H34: 30 | J34: ml | K34: 288 | L34: 62104 | M34: =VLOOKUP($G34,Inputs!$AN$4:$AO$27,2,FALSE) -> 0.05 | N34: =K34*L34 -> 17885952 | O34: =$M34*N34 -> 894297.6 | P34: $COP | Q34: =IF($P34="$USD",Inputs!$AQ$5,Inputs!$AQ$4) -> 1 | R34: 0 | S34: =VLOOKUP($D34,Inputs!$AX$4:$AY$11,2,FALSE) -> 0.19 | T34: 0 | U34: 3398330.88 | V34: =($N34+$O34+$T34+$U34)*$Q34*(1+Tablero!$H$31) -> 22178580.48 | W34: =V34/IF($P34="COP",Inputs!$AQ$4,Inputs!$AQ$5) -> 4619.575189 | X34: Acometida principal conexión de gabinete de inversores a gabinete de conexión - Calibre 4/0 AWG
B35: 33 | C35: Alambres y cables en AC | D35: Bien | E35: Bien | F35: Fotovoltaica | G35: Cableado en AC | H35: 30 | J35: ml | K35: 120 | L35: 24083 | M35: =VLOOKUP($G35,Inputs!$AN$4:$AO$27,2,FALSE) -> 0.05 | N35: 2889960 | O35: 144498 | P35: $COP | Q35: =IF($P35="$USD",Inputs!$AQ$5,Inputs!$AQ$4) -> 1 | R35: 0 | S35: =VLOOKUP($D35,Inputs!$AX$4:$AY$11,2,FALSE) -> 0.19 | T35: 0 | U35: 549092.4 | V35: =($N35+$O35+$T35+$U35)*$Q35*(1+Tablero!$H$31) -> 3583550.4 | W35: =V35/IF($P35="COP",Inputs!$AQ$4,Inputs!$AQ$5) -> 746.4174964 | X35: Cableado de puesta a tierra equipos 2/0 AWG
B36: 34 | C36: Alambres y cables en AC | D36: Bien | E36: Bien | F36: Fotovoltaica | G36: Cableado en AC | H36: 30 | J36: ml | K36: 650 | L36: 14084 | M36: =VLOOKUP($G36,Inputs!$AN$4:$AO$27,2,FALSE) -> 0.05 | N36: 9154600 | O36: 457730 | P36: $COP | Q36: =IF($P36="$USD",Inputs!$AQ$5,Inputs!$AQ$4) -> 1 | R36: 0 | S36: =VLOOKUP($D36,Inputs!$AX$4:$AY$11,2,FALSE) -> 0.19 | T36: 0 | U36: 1739374 | V36: =($N36+$O36+$T36+$U36)*$Q36*(1+Tablero!$H$31) -> 11351704 | W36: =V36/IF($P36="COP",Inputs!$AQ$4,Inputs!$AQ$5) -> 2364.44574 | X36: Cableado de tierra de panales calibre No 8 AWG y 10 AWG
B37: 35 | C37: Alambres y cables en AC | D37: Bien | E37: Bien | F37: Fotovoltaica | G37: Cableado en AC | H37: 30 | J37: ml | K37: 20 | L37: 38880 | M37: =VLOOKUP($G37,Inputs!$AN$4:$AO$27,2,FALSE) -> 0.05 | N37: 777600 | O37: 38880 | P37: $COP | Q37: =IF($P37="$USD",Inputs!$AQ$5,Inputs!$AQ$4) -> 1 | R37: 0 | S37: =VLOOKUP($D37,Inputs!$AX$4:$AY$11,2,FALSE) -> 0.19 | T37: 0 | U37: 147744 | V37: =($N37+$O37+$T37+$U37)*$Q37*(1+Tablero!$H$31) -> 964224 | W37: =V37/IF($P37="COP",Inputs!$AQ$4,Inputs!$AQ$5) -> 200.8381587 | X37: Cableado inversor 100 kW a tablero de inversores No. 2/0 AWG
B38: 36 | C38: Alambres y cables en AC | D38: Bien | E38: Bien | F38: Fotovoltaica | G38: Cableado en AC | H38: 30 | J38: ml | K38: 12.5 | L38: 12300 | M38: =VLOOKUP($G38,Inputs!$AN$4:$AO$27,2,FALSE) -> 0.05 | N38: 153750 | O38: 7687.5 | P38: $COP | Q38: =IF($P38="$USD",Inputs!$AQ$5,Inputs!$AQ$4) -> 1 | R38: 0 | S38: =VLOOKUP($D38,Inputs!$AX$4:$AY$11,2,FALSE) -> 0.19 | T38: 0 | U38: 29212.5 | V38: =($N38+$O38+$T38+$U38)*$Q38*(1+Tablero!$H$31) -> 190650 | W38: =V38/IF($P38="COP",Inputs!$AQ$4,Inputs!$AQ$5) -> 39.71047698 | X38: Cableado inversor 40 kW a tablero de inversores No. 4 AWG
B39: 32 | C39: Canalizaciones: canaletas, tubos, prefabricadas con barras o con cables, ductos subterráneos | D39: Bien | E39: Bien | F39: Fotovoltaica | G39: Canalizaciones | H39: 35 | J39: Und | K39: 64 | L39: 98000 | M39: =VLOOKUP($G39,Inputs!$AN$4:$AO$27,2,FALSE) -> 0.05 | N39: =K39*L39 -> 6272000 | O39: =$M39*N39 -> 313600 | P39: $COP | Q39: =IF($P39="$USD",Inputs!$AQ$5,Inputs!$AQ$4) -> 1 | R39: 0 | S39: =VLOOKUP($D39,Inputs!$AX$4:$AY$11,2,FALSE) -> 0.19 | T39: 0 | U39: 1191680 | V39: =($N39+$O39+$T39+$U39)*$Q39*(1+Tablero!$H$31) -> 7777280 | W39: =V39/IF($P39="COP",Inputs!$AQ$4,Inputs!$AQ$5) -> 1619.929181 | X39: Canalización subterranea conexión a subestación
B40: 33 | C40: Canalizaciones: canaletas, tubos, prefabricadas con barras o con cables, ductos subterráneos | D40: Bien | E40: Bien | F40: Fotovoltaica | G40: Canalizaciones | H40: 35 | J40: Und | K40: 11 | L40: 220000 | M40: =VLOOKUP($G40,Inputs!$AN$4:$AO$27,2,FALSE) -> 0.05 | N40: 2420000 | O40: 121000 | P40: $COP | Q40: =IF($P40="$USD",Inputs!$AQ$5,Inputs!$AQ$4) -> 1 | R40: 0 | S40: =VLOOKUP($D40,Inputs!$AX$4:$AY$11,2,FALSE) -> 0.19 | T40: 0 | U40: 459800 | V40: =($N40+$O40+$T40+$U40)*$Q40*(1+Tablero!$H$31) -> 3000800 | W40: =V40/IF($P40="COP",Inputs!$AQ$4,Inputs!$AQ$5) -> 625.0364507 | X40: Canalización cableado en dc a inversor de 40 kW
B41: 34 | C41: Canalizaciones: canaletas, tubos, prefabricadas con barras o con cables, ductos subterráneos | D41: Bien | E41: Bien | F41: Fotovoltaica | G41: Canalizaciones | H41: 35 | J41: Und | K41: 2 | L41: 220001 | M41: =VLOOKUP($G41,Inputs!$AN$4:$AO$27,2,FALSE) -> 0.05 | N41: 440002 | O41: 22000.1 | P41: $COP | Q41: =IF($P41="$USD",Inputs!$AQ$5,Inputs!$AQ$4) -> 1 | R41: 0 | S41: =VLOOKUP($D41,Inputs!$AX$4:$AY$11,2,FALSE) -> 0.19 | T41: 0 | U41: 83600.38 | V41: =($N41+$O41+$T41+$U41)*$Q41*(1+Tablero!$H$31) -> 545602.48 | W41: =V41/IF($P41="COP",Inputs!$AQ$4,Inputs!$AQ$5) -> 113.6435076 | X41: Canalización cableado en ac de inversor de 40 kW a tablero
B42: 35 | C42: Canalizaciones: canaletas, tubos, prefabricadas con barras o con cables, ductos subterráneos | D42: Bien | E42: Bien | F42: Fotovoltaica | G42: Canalizaciones | H42: 35 | J42: Und | K42: 11 | L42: 275000 | M42: =VLOOKUP($G42,Inputs!$AN$4:$AO$27,2,FALSE) -> 0.05 | N42: 3025000 | O42: 151250 | P42: $COP | Q42: =IF($P42="$USD",Inputs!$AQ$5,Inputs!$AQ$4) -> 1 | R42: 0 | S42: =VLOOKUP($D42,Inputs!$AX$4:$AY$11,2,FALSE) -> 0.19 | T42: 0 | U42: 574750 | V42: =($N42+$O42+$T42+$U42)*$Q42*(1+Tablero!$H$31) -> 3751000 | W42: =V42/IF($P42="COP",Inputs!$AQ$4,Inputs!$AQ$5) -> 781.2955634 | X42: Canalización cableado en dc a inversor de 100 kW
B43: 36 | C43: Canalizaciones: canaletas, tubos, prefabricadas con barras o con cables, ductos subterráneos | D43: Bien | E43: Bien | F43: Fotovoltaica | G43: Canalizaciones | H43: 35 | J43: Und | K43: 2 | L43: 275001 | M43: =VLOOKUP($G43,Inputs!$AN$4:$AO$27,2,FALSE) -> 0.05 | N43: 550002 | O43: 27500.1 | P43: $COP | Q43: =IF($P43="$USD",Inputs!$AQ$5,Inputs!$AQ$4) -> 1 | R43: 0 | S43: =VLOOKUP($D43,Inputs!$AX$4:$AY$11,2,FALSE) -> 0.19 | T43: 0 | U43: 104500.38 | V43: =($N43+$O43+$T43+$U43)*$Q43*(1+Tablero!$H$31) -> 682002.48 | W43: =V43/IF($P43="COP",Inputs!$AQ$4,Inputs!$AQ$5) -> 142.0542554 | X43: Canalización cableado en ac de inversor de 100 kW a tablero
B44: 37 | C44: Bandejas portacables | D44: Bien | E44: Bien | F44: Fotovoltaica | G44: Canalizaciones | H44: 35 | J44: Und | K44: 5 | L44: 187000 | M44: =VLOOKUP($G44,Inputs!$AN$4:$AO$27,2,FALSE) -> 0.05 | N44: =K44*L44 -> 935000 | O44: 46750 | P44: $COP | Q44: =IF($P44="$USD",Inputs!$AQ$5,Inputs!$AQ$4) -> 1 | R44: 0 | S44: =VLOOKUP($D44,Inputs!$AX$4:$AY$11,2,FALSE) -> 0.19 | T44: =$N44*$R44 -> 0 | U44: =$N44*$S44 -> 177650 | V44: =($N44+$O44+$T44+$U44)*$Q44*(1+Tablero!$H$31) -> 1159400 | W44: =V44/IF($P44="COP",Inputs!$AQ$4,Inputs!$AQ$5) -> 241.491356
B45: 38 | C45: Cajas y conduletas | D45: Bien | E45: Bien | F45: Fotovoltaica | G45: Canalizaciones | H45: 30 | J45: Und | K45: 3 | L45: 819875.25 | M45: =VLOOKUP($G45,Inputs!$AN$4:$AO$27,2,FALSE) -> 0.05 | N45: 2459625.75 | O45: 122981.2875 | P45: $COP | Q45: =IF($P45="$USD",Inputs!$AQ$5,Inputs!$AQ$4) -> 1 | R45: 0 | S45: =VLOOKUP($D45,Inputs!$AX$4:$AY$11,2,FALSE) -> 0.19 | T45: 0 | U45: 467328.8925 | V45: =($N45+$O45+$T45+$U45)*$Q45*(1+Tablero!$H$31) -> 3049935.93 | W45: =V45/IF($P45="COP",Inputs!$AQ$4,Inputs!$AQ$5) -> 635.2709706
B46: 39 | C46: Barrajes | D46: Bien | E46: Bien | F46: Fotovoltaica | G46: Cableado en AC | H46: 30 | J46: Und | K46: 3 | L46: 345000 | M46: =VLOOKUP($G46,Inputs!$AN$4:$AO$27,2,FALSE) -> 0.05 | N46: 1035000 | O46: 51750 | P46: $COP | Q46: =IF($P46="$USD",Inputs!$AQ$5,Inputs!$AQ$4) -> 1 | R46: 0 | S46: =VLOOKUP($D46,Inputs!$AX$4:$AY$11,2,FALSE) -> 0.19 | T46: 0 | U46: 196650 | V46: =($N46+$O46+$T46+$U46)*$Q46*(1+Tablero!$H$31) -> 1283400 | W46: =V46/IF($P46="COP",Inputs!$AQ$4,Inputs!$AQ$5) -> 267.3193085
B47: 40 | C47: Interruptores de baja tensión | D47: Bien | E47: Bien | F47: Fotovoltaica | G47: Protecciones | H47: 30 | J47: Und | L47: 0 | M47: =VLOOKUP($G47,Inputs!$AN$4:$AO$27,2,FALSE) -> 0.05 | N47: 0 | O47: 0 | P47: $COP | Q47: =IF($P47="$USD",Inputs!$AQ$5,Inputs!$AQ$4) -> 1 | R47: 0 | S47: =VLOOKUP($D47,Inputs!$AX$4:$AY$11,2,FALSE) -> 0.19 | T47: 0 | U47: 0 | V47: =($N47+$O47+$T47+$U47)*$Q47*(1+Tablero!$H$31) -> 0 | W47: =V47/IF($P47="COP",Inputs!$AQ$4,Inputs!$AQ$5) -> 0
B48: 41 | C48: Interruptores, reconectadores, seccionadores y transferencias automáticas | D48: Bien | E48: Bien | F48: Fotovoltaica | G48: Protecciones | H48: 30 | J48: Und | L48: 0 | M48: =VLOOKUP($G48,Inputs!$AN$4:$AO$27,2,FALSE) -> 0.05 | N48: 0 | O48: 0 | P48: $COP | Q48: =IF($P48="$USD",Inputs!$AQ$5,Inputs!$AQ$4) -> 1 | R48: 0 | S48: =VLOOKUP($D48,Inputs!$AX$4:$AY$11,2,FALSE) -> 0.19 | T48: 0 | U48: 0 | V48: =($N48+$O48+$T48+$U48)*$Q48*(1+Tablero!$H$31) -> 0 | W48: =V48/IF($P48="COP",Inputs!$AQ$4,Inputs!$AQ$5) -> 0
B49: 42 | C49: Transformadores | D49: Bien | E49: Bien | F49: Fotovoltaica | G49: Transformador | H49: 30 | J49: Und | L49: 0 | M49: =VLOOKUP($G49,Inputs!$AN$4:$AO$27,2,FALSE) -> 0.05 | N49: 0 | O49: 0 | P49: $COP | Q49: =IF($P49="$USD",Inputs!$AQ$5,Inputs!$AQ$4) -> 1 | R49: 0 | S49: =VLOOKUP($D49,Inputs!$AX$4:$AY$11,2,FALSE) -> 0.19 | T49: 0 | U49: 0 | V49: =($N49+$O49+$T49+$U49)*$Q49*(1+Tablero!$H$31) -> 0 | W49: =V49/IF($P49="COP",Inputs!$AQ$4,Inputs!$AQ$5) -> 0
B50: 43 | C50: Bóvedas, puertas cortafuego, compuertas de ventilación y sellos cortafuego | D50: Bien | E50: Bien | F50: Fotovoltaica | G50: Transformador | H50: 30 | J50: Und | L50: 0 | M50: =VLOOKUP($G50,Inputs!$AN$4:$AO$27,2,FALSE) -> 0.05 | N50: 0 | O50: 0 | P50: $COP | Q50: =IF($P50="$USD",Inputs!$AQ$5,Inputs!$AQ$4) -> 1 | R50: 0 | S50: =VLOOKUP($D50,Inputs!$AX$4:$AY$11,2,FALSE) -> 0.19 | T50: 0 | U50: 0 | V50: =($N50+$O50+$T50+$U50)*$Q50*(1+Tablero!$H$31) -> 0 | W50: =V50/IF($P50="COP",Inputs!$AQ$4,Inputs!$AQ$5) -> 0
B51: 44 | C51: Medidores bidireccionales | D51: Bien | E51: Bien | F51: Fotovoltaica | G51: Medida | H51: 10 | I51: 11 | J51: Und | K51: 2 | L51: 1350000 | M51: =VLOOKUP($G51,Inputs!$AN$4:$AO$27,2,FALSE) -> 0.05 | N51: 2700000 | O51: 135000 | P51: $COP | Q51: =IF($P51="$USD",Inputs!$AQ$5,Inputs!$AQ$4) -> 1 | R51: 0 | S51: =VLOOKUP($D51,Inputs!$AX$4:$AY$11,2,FALSE) -> 0.19 | T51: 0 | U51: 513000 | V51: =($N51+$O51+$T51+$U51)*$Q51*(1+Tablero!$H$31) -> 3348000 | W51: =V51/IF($P51="COP",Inputs!$AQ$4,Inputs!$AQ$5) -> 697.3547178
B52: 45 | C52: Elementos o equipos para el sistema de puesta a tierra (varillas, mallas, grapas, conectores) | D52: Bien | E52: Bien | F52: Fotovoltaica | G52: SPT | H52: 30 | J52: gl | K52: 3 | L52: 485000 | M52: =VLOOKUP($G52,Inputs!$AN$4:$AO$27,2,FALSE) -> 0.05 | N52: 1455000 | O52: 72750 | P52: $COP | Q52: =IF($P52="$USD",Inputs!$AQ$5,Inputs!$AQ$4) -> 1 | R52: 0 | S52: =VLOOKUP($D52,Inputs!$AX$4:$AY$11,2,FALSE) -> 0.19 | T52: 0 | U52: 276450 | V52: =($N52+$O52+$T52+$U52)*$Q52*(1+Tablero!$H$31) -> 1804200 | W52: =V52/IF($P52="COP",Inputs!$AQ$4,Inputs!$AQ$5) -> 375.796709
B53: 46 | C53: Reguladores o controladores de carga | D53: Bien | E53: Bien | F53: Fotovoltaica | G53: Protecciones | H53: 15 | I53: 16 | J53: Und | L53: 0 | M53: =VLOOKUP($G53,Inputs!$AN$4:$AO$27,2,FALSE) -> 0.05 | N53: 0 | O53: 0 | P53: $COP | Q53: =IF($P53="$USD",Inputs!$AQ$5,Inputs!$AQ$4) -> 1 | R53: 0 | S53: =VLOOKUP($D53,Inputs!$AX$4:$AY$11,2,FALSE) -> 0.19 | T53: 0 | U53: 0 | V53: =($N53+$O53+$T53+$U53)*$Q53*(1+Tablero!$H$31) -> 0 | W53: =V53/IF($P53="COP",Inputs!$AQ$4,Inputs!$AQ$5) -> 0
B54: 47 | C54: Baterías solares (de ciclo de descarga profunda): Puede ser de plomo-acido, ions de litio, niquel cadmio, u otro. | D54: Bien | E54: Bien | F54: Fotovoltaica | G54: Protecciones | H54: 15 | I54: 16 | J54: Und | L54: 0 | M54: =VLOOKUP($G54,Inputs!$AN$4:$AO$27,2,FALSE) -> 0.05 | N54: 0 | O54: 0 | P54: $COP | Q54: =IF($P54="$USD",Inputs!$AQ$5,Inputs!$AQ$4) -> 1 | R54: 0 | S54: =VLOOKUP($D54,Inputs!$AX$4:$AY$11,2,FALSE) -> 0.19 | T54: 0 | U54: 0 | V54: =($N54+$O54+$T54+$U54)*$Q54*(1+Tablero!$H$31) -> 0 | W54: =V54/IF($P54="COP",Inputs!$AQ$4,Inputs!$AQ$5) -> 0
B55: 48 | C55: Equipos de compensación de potencia reactiva | D55: Bien | E55: Bien | F55: Fotovoltaica | G55: Compensación | H55: 30 | I55: 16 | J55: Und | L55: 0 | M55: =VLOOKUP($G55,Inputs!$AN$4:$AO$27,2,FALSE) -> 0.05 | N55: 0 | O55: 0 | P55: $COP | Q55: =IF($P55="$USD",Inputs!$AQ$5,Inputs!$AQ$4) -> 1 | R55: 0 | S55: =VLOOKUP($D55,Inputs!$AX$4:$AY$11,2,FALSE) -> 0.19 | T55: 0 | U55: 0 | V55: =($N55+$O55+$T55+$U55)*$Q55*(1+Tablero!$H$31) -> 0 | W55: =V55/IF($P55="COP",Inputs!$AQ$4,Inputs!$AQ$5) -> 0
B56: 49 | C56: Equipos para la reducción de armónicos | D56: Bien | E56: Bien | F56: Fotovoltaica | G56: Compensación | H56: 30 | I56: 16 | J56: Und | L56: 0 | M56: =VLOOKUP($G56,Inputs!$AN$4:$AO$27,2,FALSE) -> 0.05 | N56: 0 | O56: 0 | P56: $COP | Q56: =IF($P56="$USD",Inputs!$AQ$5,Inputs!$AQ$4) -> 1 | R56: 0 | S56: =VLOOKUP($D56,Inputs!$AX$4:$AY$11,2,FALSE) -> 0.19 | T56: 0 | U56: 0 | V56: =($N56+$O56+$T56+$U56)*$Q56*(1+Tablero!$H$31) -> 0 | W56: =V56/IF($P56="COP",Inputs!$AQ$4,Inputs!$AQ$5) -> 0
B57: 50 | C57: Sistema de monitoreo, control y automatización | D57: Bien | E57: Bien | F57: Fotovoltaica | G57: Protecciones | H57: 10 | I57: 11 | J57: Und | L57: 0 | M57: =VLOOKUP($G57,Inputs!$AN$4:$AO$27,2,FALSE) -> 0.05 | N57: 0 | O57: 0 | P57: $COP | Q57: =IF($P57="$USD",Inputs!$AQ$5,Inputs!$AQ$4) -> 1 | R57: 0 | S57: =VLOOKUP($D57,Inputs!$AX$4:$AY$11,2,FALSE) -> 0.19 | T57: 0 | U57: 0 | V57: =($N57+$O57+$T57+$U57)*$Q57*(1+Tablero!$H$31) -> 0 | W57: =V57/IF($P57="COP",Inputs!$AQ$4,Inputs!$AQ$5) -> 0
B58: 51 | C58: Unidades de potencia ininterrumpida (UPS) | D58: Bien | E58: Bien | F58: Fotovoltaica | G58: Protecciones | H58: 20 | I58: 21 | J58: Und | L58: 0 | M58: =VLOOKUP($G58,Inputs!$AN$4:$AO$27,2,FALSE) -> 0.05 | N58: 0 | O58: 0 | P58: $COP | Q58: =IF($P58="$USD",Inputs!$AQ$5,Inputs!$AQ$4) -> 1 | R58: 0 | S58: =VLOOKUP($D58,Inputs!$AX$4:$AY$11,2,FALSE) -> 0.19 | T58: 0 | U58: 0 | V58: =($N58+$O58+$T58+$U58)*$Q58*(1+Tablero!$H$31) -> 0 | W58: =V58/IF($P58="COP",Inputs!$AQ$4,Inputs!$AQ$5) -> 0
B59: 52 | C59: Subestación o Power Station | D59: Bien | E59: Bien | F59: Fotovoltaica | G59: Unidad de potencia | H59: 30 | J59: gl | L59: 0 | M59: =VLOOKUP($G59,Inputs!$AN$4:$AO$27,2,FALSE) -> 0.05 | N59: 0 | O59: 0 | P59: $COP | Q59: =IF($P59="$USD",Inputs!$AQ$5,Inputs!$AQ$4) -> 1 | R59: 0 | S59: =VLOOKUP($D59,Inputs!$AX$4:$AY$11,2,FALSE) -> 0.19 | T59: 0 | U59: 0 | V59: =($N59+$O59+$T59+$U59)*$Q59*(1+Tablero!$H$31) -> 0 | W59: =V59/IF($P59="COP",Inputs!$AQ$4,Inputs!$AQ$5) -> 0
B60: 53 | C60: Elementos o equipos para la línea de transmisión (estructuras, aisladores y aislamiento de conductores, cables de guarda, señales de aeronavegación, líneas subterráneas y herrajes) | D60: Bien | E60: Bien | F60: Fotovoltaica | G60: Líneas | H60: 30 | J60: gl | L60: 0 | M60: =VLOOKUP($G60,Inputs!$AN$4:$AO$27,2,FALSE) -> 0.05 | N60: 0 | O60: 0 | P60: $COP | Q60: =IF($P60="$USD",Inputs!$AQ$5,Inputs!$AQ$4) -> 1 | R60: 0 | S60: =VLOOKUP($D60,Inputs!$AX$4:$AY$11,2,FALSE) -> 0.19 | T60: 0 | U60: 0 | V60: =($N60+$O60+$T60+$U60)*$Q60*(1+Tablero!$H$31) -> 0 | W60: =V60/IF($P60="COP",Inputs!$AQ$4,Inputs!$AQ$5) -> 0
B61: 54 | C61: Unidad funcional | D61: Bien | E61: Bien | F61: Fotovoltaica | G61: Líneas | J61: Und | L61: 0 | M61: =VLOOKUP($G61,Inputs!$AN$4:$AO$27,2,FALSE) -> 0.05 | N61: 0 | O61: 0 | P61: $COP | Q61: =IF($P61="$USD",Inputs!$AQ$5,Inputs!$AQ$4) -> 1 | R61: 0 | S61: =VLOOKUP($D61,Inputs!$AX$4:$AY$11,2,FALSE) -> 0.19 | T61: 0 | U61: 0 | V61: =($N61+$O61+$T61+$U61)*$Q61*(1+Tablero!$H$31) -> 0 | W61: =V61/IF($P61="COP",Inputs!$AQ$4,Inputs!$AQ$5) -> 0
B62: 55 | C62: Seguridad física (iluminación perimetral y seguridad remoto CCTV) | D62: Bien | E62: Bien | F62: Fotovoltaica | G62: Iluminación | H62: 15 | I62: 16 | J62: gl | L62: 0 | M62: =VLOOKUP($G62,Inputs!$AN$4:$AO$27,2,FALSE) -> 0.05 | N62: 0 | O62: 0 | P62: $COP | Q62: =IF($P62="$USD",Inputs!$AQ$5,Inputs!$AQ$4) -> 1 | R62: 0 | S62: =VLOOKUP($D62,Inputs!$AX$4:$AY$11,2,FALSE) -> 0.19 | T62: 0 | U62: 0 | V62: =($N62+$O62+$T62+$U62)*$Q62*(1+Tablero!$H$31) -> 0 | W62: =V62/IF($P62="COP",Inputs!$AQ$4,Inputs!$AQ$5) -> 0
B63: 56 | C63: Dirección de proyectos, seguimiento y control (costos administrativos durante la construcción) | D63: Servicio | E63: Servicio | F63: Fotovoltaica | G63: Ingeniería | J63: día | K63: 10 | L63: 320000 | M63: =VLOOKUP($G63,Inputs!$AN$4:$AO$27,2,FALSE) -> 0.05 | N63: 3200000 | O63: 160000 | P63: $COP | Q63: =IF($P63="$USD",Inputs!$AQ$5,Inputs!$AQ$4) -> 1 | R63: 0 | S63: =VLOOKUP($D63,Inputs!$AX$4:$AY$11,2,FALSE) -> 0.19 | T63: 0 | U63: 608000 | V63: =($N63+$O63+$T63+$U63)*$Q63*(1+Tablero!$H$31) -> 3968000 | W63: =V63/IF($P63="COP",Inputs!$AQ$4,Inputs!$AQ$5) -> 826.4944803
N64: =SUM(N$3:N$63) -> 181717973.8 | O64: =SUM(O$3:O$63) -> 7714827.081 | T64: =SUM(T3:T63) -> 0 | U64: =SUM(U$3:U$63) -> 31202375.3 | V64: =SUM(V$3:V$63) -> 549059978.6 | W64: =SUM(W$3:W$63) -> 114363.6698
Q67: RESUMEN | S67: CAPEX COP | U67: CAPEX USD
Q68: Fotovoltaica | S68: =SUMIFS($V$3:$V$63,$F$3:$F$63,$Q68) -> 549059978.6 | U68: =SUMIFS($W$3:$W$63,$F$3:$F$63,$Q68) -> 114363.6698
Q70: =Q68 -> Fotovoltaica
Q71: Administración | S71: =VLOOKUP($Q71,Inputs!$AV$4:$AW$7,2,FALSE) -> 0.175 | U71: =$S71*$S$68 -> 96085496.26
Q72: Imprevistos | S72: =VLOOKUP($Q72,Inputs!$AV$4:$AW$7,2,FALSE) -> 0.02 | U72: =$S72*$S$68 -> 10981199.57
Q73: Utilidad | S73: =VLOOKUP($Q73,Inputs!$AV$4:$AW$7,2,FALSE) -> 0.06 | U73: 32943598.72
Q74: IVA sobre la Utilidad | S74: =VLOOKUP($Q74,Inputs!$AV$4:$AW$7,2,FALSE) -> 0.0114 | U74: =$S74*$S$68 -> 6259283.756
Q75: Subtotal AIU + IVA | S75: =SUM(S71:S74) -> 0.2664 | U75: =SUM(U71:U74) -> 146269578.3
Q76: Inversión total (Solución PV - incluido IVA) | U76: =S68+U75 -> 695329556.9
Q78: IVA Suministro o bienes | U78: =U64 -> 31202375.3
Q79: IVA Servicios | U79: =U74 -> 6259283.756
Q80: Total IVA causado (Solución PV) | U80: =SUM(U78:U79) -> 37461659.06
Q82: Inversión total (Solución PV) sin incluir IVA | U82: =U76-U80 -> 657867897.8
Q83: OPEX Anual | S83: =OPEX!N29 -> 0.02599999948 | U83: =S83*U82 -> 17104565
Q85: Capacidad kWp | U85: =Tablero!D18 -> 171.05
Q86: Relación $COP/kWp (sin incluir IVA) | U86: =U82/U85 -> 3846056.111
Q87: Relación $USD/kWp (sin incluir IVA) | U87: =U86/Inputs!AQ5 -> 801.0947951

Sheet Exclusiones
B2: Ítem | C2: Descripción | D2: Vida útil [año] | E2: Tipo contabilidad | F2: Categoría entregables | G2: Unidad | H2: Cantidad | I2: Valor Unitario DDP [$USD/$COP] | J2: Contingencia [%] | K2: Valor DDP [$USD/$COP] | L2: Contingencia [$USD/$COP] | M2: Divisa | N2: TRM | O2: ARANCEL [%] | P2: IVA [%] | Q2: ARANCEL [$COP] | R2: IVA [$COP] | S2: Subtotal DDP [$COP] | T2: Subtotal DDP [$USD] | U2: Observaciones
B3: 1 | C3: Reforzamiento estructural de cubiertas | D3: 25 | E3: Obra | F3: Estructura solar | G3: gl | H3: 0 | I3: 0 | J3: =VLOOKUP($F3,Inputs!$AN$4:$AO$27,2,FALSE) -> 0.03 | K3: =H3*I3 -> 0 | L3: =J3*K3 -> 0 | M3: $COP | N3: =IF($M3="$USD",Inputs!$AQ$5,Inputs!$AQ$4) -> 1 | O3: 0 | P3: =VLOOKUP($E3,Inputs!$AX$4:$AY$11,2,FALSE) -> 0.0114 | Q3: =K3*O3 -> 0 | R3: =K3*P3 -> 0 | S3: =((K3+L3+Q3+R3)*N3)*(1+Tablero!$H$31) -> 0 | T3: =S3/Inputs!$AQ$5 -> 0
B4: 2 | C4: Equipos de compensación de potencia reactiva | D4: 12 | E4: Bien | F4: Compensación | G4: Und | H4: 1 | I4: 8500000 | J4: =VLOOKUP($F4,Inputs!$AN$4:$AO$27,2,FALSE) -> 0.05 | K4: =H4*I4 -> 8500000 | L4: =J4*K4 -> 425000 | M4: $COP | N4: =IF($M4="$USD",Inputs!$AQ$5,Inputs!$AQ$4) -> 1 | O4: 0 | P4: =VLOOKUP($E4,Inputs!$AX$4:$AY$11,2,FALSE) -> 0.19 | Q4: =K4*O4 -> 0 | R4: =K4*P4 -> 1615000 | S4: =((K4+L4+Q4+R4)*N4)*(1+Tablero!$H$31) -> 10540000 | T4: =S4/Inputs!$AQ$5 -> 2195.375963
B5: 3 | C5: Equipos para la reducción de armónicos | D5: 12 | E5: Bien | F5: Compensación | G5: Und | H5: 0 | I5: 0 | J5: =VLOOKUP($F5,Inputs!$AN$4:$AO$27,2,FALSE) -> 0.05 | K5: 0 | L5: 0 | M5: $COP | N5: =IF($M5="$USD",Inputs!$AQ$5,Inputs!$AQ$4) -> 1 | O5: 0 | P5: =VLOOKUP($E5,Inputs!$AX$4:$AY$11,2,FALSE) -> 0.19 | Q5: 0 | R5: 0 | S5: =((K5+L5+Q5+R5)*N5)*(1+Tablero!$H$31) -> 0 | T5: =S5/Inputs!$AQ$5 -> 0
B6: 4 | C6: Sistema de video vigilancia | D6: 10 | E6: Bien | F6: Comunicaciones | G6: Und | H6: 0 | I6: 0 | J6: =VLOOKUP($F6,Inputs!$AN$4:$AO$27,2,FALSE) -> 0.05 | K6: 0 | L6: 0 | M6: $COP | N6: =IF($M6="$USD",Inputs!$AQ$5,Inputs!$AQ$4) -> 1 | O6: 0 | P6: =VLOOKUP($E6,Inputs!$AX$4:$AY$11,2,FALSE) -> 0.19 | Q6: 0 | R6: 0 | S6: =((K6+L6+Q6+R6)*N6)*(1+Tablero!$H$31) -> 0 | T6: =S6/Inputs!$AQ$5 -> 0
B7: 5 | C7: Cerramiento perimetral | D7: 20 | E7: Obra | F7: Obra Civil | G7: ml | H7: 0 | I7: 0 | J7: =VLOOKUP($F7,Inputs!$AN$4:$AO$27,2,FALSE) -> 0.05 | K7: 0 | L7: 0 | M7: $COP | N7: =IF($M7="$USD",Inputs!$AQ$5,Inputs!$AQ$4) -> 1 | O7: 0 | P7: =VLOOKUP($E7,Inputs!$AX$4:$AY$11,2,FALSE) -> 0.0114 | Q7: 0 | R7: 0 | S7: =((K7+L7+Q7+R7)*N7)*(1+Tablero!$H$31) -> 0 | T7: =S7/Inputs!$AQ$5 -> 0
B8: 6 | C8: Apantallamiento cubiertas | E8: Obra | F8: Protecciones | G8: gl | H8: 1 | I8: 3530000 | J8: =VLOOKUP($F8,Inputs!$AN$4:$AO$27,2,FALSE) -> 0.05 | K8: =H8*I8 -> 3530000 | L8: =J8*K8 -> 176500 | M8: $COP | N8: =IF($M8="$USD",Inputs!$AQ$5,Inputs!$AQ$4) -> 1 | O8: 0 | P8: =VLOOKUP($E8,Inputs!$AX$4:$AY$11,2,FALSE) -> 0.0114 | Q8: =K8*O8 -> 0 | R8: =K8*P8 -> 40242 | S8: =((K8+L8+Q8+R8)*N8)*(1+Tablero!$H$31) -> 3746742 | T8: =S8/Inputs!$AQ$5 -> 780.4086649
B9: 7 | C9: Instalación de líneas de vida | E9: Obra | F9: Protecciones | G9: Und | H9: 4 | I9: 1650000 | J9: =VLOOKUP($F9,Inputs!$AN$4:$AO$27,2,FALSE) -> 0.05 | K9: =H9*I9 -> 6600000 | L9: =J9*K9 -> 330000 | M9: $COP | N9: =IF($M9="$USD",Inputs!$AQ$5,Inputs!$AQ$4) -> 1 | O9: 0 | P9: =VLOOKUP($E9,Inputs!$AX$4:$AY$11,2,FALSE) -> 0.0114 | Q9: =K9*O9 -> 0 | R9: =K9*P9 -> 75240 | S9: =((K9+L9+Q9+R9)*N9)*(1+Tablero!$H$31) -> 7005240 | T9: =S9/Inputs!$AQ$5 -> 1459.121016
B10: 8 | C10: Normalización de la subestación | E10: Servicio | F10: Certificaciones | G10: gl | H10: 0 | I10: 0 | J10: =VLOOKUP($F10,Inputs!$AN$4:$AO$27,2,FALSE) -> 0.03 | K10: =H10*I10 -> 0 | L10: =J10*K10 -> 0 | M10: $COP | N10: =IF($M10="$USD",Inputs!$AQ$5,Inputs!$AQ$4) -> 1 | O10: 0 | P10: =VLOOKUP($E10,Inputs!$AX$4:$AY$11,2,FALSE) -> 0.19 | Q10: =K10*O10 -> 0 | R10: =K10*P10 -> 0 | S10: =((K10+L10+Q10+R10)*N10)*(1+Tablero!$H$31) -> 0 | T10: =S10/Inputs!$AQ$5 -> 0
B11: 9 | C11: Punto de red local o Wifi (comunicaciones) | D11: 10 | E11: Bien | F11: Comunicaciones | G11: Und | H11: 1 | I11: 1760000 | J11: =VLOOKUP($F11,Inputs!$AN$4:$AO$27,2,FALSE) -> 0.05 | K11: 1760000 | L11: 88000 | M11: $COP | N11: =IF($M11="$USD",Inputs!$AQ$5,Inputs!$AQ$4) -> 1 | O11: 0 | P11: =VLOOKUP($E11,Inputs!$AX$4:$AY$11,2,FALSE) -> 0.19 | Q11: 0 | R11: 334400 | S11: =((K11+L11+Q11+R11)*N11)*(1+Tablero!$H$31) -> 2182400 | T11: =S11/Inputs!$AQ$5 -> 454.5719642
B12: 10 | C12: Tanques de recolección de aguas lluvias | D12: 15 | E12: Obra | F12: Obra Civil | G12: Und | H12: 0 | I12: 0 | J12: =VLOOKUP($F12,Inputs!$AN$4:$AO$27,2,FALSE) -> 0.05 | K12: =H12*I12 -> 0 | L12: =J12*K12 -> 0 | M12: $COP | N12: =IF($M12="$USD",Inputs!$AQ$5,Inputs!$AQ$4) -> 1 | O12: 0 | P12: =VLOOKUP($E12,Inputs!$AX$4:$AY$11,2,FALSE) -> 0.0114 | Q12: =K12*O12 -> 0 | R12: =K12*P12 -> 0 | S12: =((K12+L12+Q12+R12)*N12)*(1+Tablero!$H$31) -> 0 | T12: =S12/Inputs!$AQ$5 -> 0
B13: 11 | C13: Escaleras o accesos a cubiertas | D13: 20 | E13: Obra | F13: Obra Civil | G13: Und | H13: 1 | I13: 12000000 | J13: =VLOOKUP($F13,Inputs!$AN$4:$AO$27,2,FALSE) -> 0.05 | K13: 12000000 | L13: 600000 | M13: $COP | N13: =IF($M13="$USD",Inputs!$AQ$5,Inputs!$AQ$4) -> 1 | O13: 0 | P13: =VLOOKUP($E13,Inputs!$AX$4:$AY$11,2,FALSE) -> 0.0114 | Q13: 0 | R13: 136800 | S13: =((K13+L13+Q13+R13)*N13)*(1+Tablero!$H$31) -> 12736800 | T13: =S13/Inputs!$AQ$5 -> 2652.947303
D14: =INT(AVERAGE(D3:D13)) -> 15 | K14: =SUM(K3:K13) -> 32390000 | L14: =SUM(L3:L13) -> 1619500 | Q14: =SUM(Q3:Q13) -> 0 | R14: =SUM(R3:R13) -> 2201682 | S14: =SUM(S3:S13) -> 36211182 | T14: =SUM(T3:T13) -> 7542.424911
R16: Trabajo de terceros - no incluidos en el PPA
R17: Administración | S17: =VLOOKUP($R17,Inputs!$AV$4:$AW$7,2,FALSE) -> 0.175 | T17: =S17*$S$14 -> 6336956.85
R18: Imprevistos | S18: =VLOOKUP($R18,Inputs!$AV$4:$AW$7,2,FALSE) -> 0.02 | T18: =S18*$S$14 -> 724223.64
R19: Utilidad | S19: =VLOOKUP($R19,Inputs!$AV$4:$AW$7,2,FALSE) -> 0.06 | T19: 2172670.92
R20: IVA sobre la Utilidad | S20: =VLOOKUP($R20,Inputs!$AV$4:$AW$7,2,FALSE) -> 0.0114 | T20: 412807.4748
R21: Subtotal AIU + IVA | S21: =SUM(S17:S20) -> 0.2664 | T21: =SUM(T17:T20) -> 9646658.885
R22: Costo total adecuaciones | T22: =S14+T21 -> 45857840.88

Sheet OPEX
B2: Ítem | C2: Descripción | D2: Tipo contabilidad | E2: Categoría A&OM | F2: Categoría Tecnología | G2: Unidad | H2: Cantidad | I2: Valor Unitario DDP [$COP] | J2: Contingencia [%] | K2: Valor DDP [$COP] | L2: Contingencia [$COP] | M2: IVA [%] | N2: IVA [$COP] | O2: Subtotal DDP [$COP] | P2: Observaciones | R2: Categoría entregables | S2: Valor [$MCOP] | T2: IVA [$MCOP] | U2: Peso [%]
B3: 1 | C3: Póliza o seguro de activos | D3: Servicio | E3: Administración | F3: Fotovoltaica | G3: Und | H3: 1 | I3: 0 | J3: =VLOOKUP($E3,Inputs!$AJ$4:$AK$6,2,FALSE) -> 0.03 | K3: =$H3*$I3 -> 0 | L3: =$H3*$I3*$J3 -> 0 | M3: =VLOOKUP($D3,Inputs!$AX$4:$AY$10,2,FALSE) -> 0.19 | N3: =$H3*$I3*$M3 -> 0 | O3: =($K3+$L3+$N3)*(1+Tablero!$H$42) -> 0 | R3: Administración | S3: =SUMIFS($O$3:$O$10,$E$3:$E$10,R3)/Inputs!$C$5-T3 -> 2.06 | T3: =SUMIFS($N$3:$N$10,$E$3:$E$10,R3)/Inputs!$C$5 -> 0.38 | U3: =SUM(S3:T3)/SUM($S$7:$T$7) -> 0.1426519762
B4: 2 | C4: Seguridad física y vigilancia | D4: Servicio | E4: Administración | F4: Fotovoltaica | G4: Und | H4: 12 | I4: 0 | J4: =VLOOKUP($E4,Inputs!$AJ$4:$AK$6,2,FALSE) -> 0.03 | K4: =$H4*$I4 -> 0 | L4: =$H4*$I4*$J4 -> 0 | M4: =VLOOKUP($D4,Inputs!$AX$4:$AY$10,2,FALSE) -> 0.19 | N4: 0 | O4: =($K4+$L4+$N4)*(1+Tablero!$H$42) -> 0 | R4: Mantenimiento | S4: =SUMIFS($O$3:$O$10,$E$3:$E$10,R4)/Inputs!$C$5-T4 -> 9.410837168 | T4: =SUMIFS($N$3:$N$10,$E$3:$E$10,R4)/Inputs!$C$5 -> 1.655610242 | U4: =SUM(S4:T4)/SUM($S$7:$T$7) -> 0.646987948
B5: 3 | C5: Arrendamiento o usufructo del terreno o área útil | D5: Servicio | E5: Administración | F5: Fotovoltaica | G5: gl | H5: 1 | I5: 0 | J5: =VLOOKUP($E5,Inputs!$AJ$4:$AK$6,2,FALSE) -> 0.03 | K5: 0 | L5: 0 | M5: =VLOOKUP($D5,Inputs!$AX$4:$AY$10,2,FALSE) -> 0.19 | N5: 0 | O5: =($K5+$L5+$N5)*(1+Tablero!$H$42) -> 0 | R5: Operación | S5: =SUMIFS($O$3:$O$10,$E$3:$E$10,R5)/Inputs!$C$5-T5 -> 0 | T5: =SUMIFS($N$3:$N$10,$E$3:$E$10,R5)/Inputs!$C$5 -> 0 | U5: 0
B6: 4 | C6: Gestión de activos | D6: Servicio | E6: Administración | F6: Fotovoltaica | G6: gl | H6: 1 | I6: 2000000 | J6: =VLOOKUP($E6,Inputs!$AJ$4:$AK$6,2,FALSE) -> 0.03 | K6: 2000000 | L6: 60000 | M6: =VLOOKUP($D6,Inputs!$AX$4:$AY$10,2,FALSE) -> 0.19 | N6: 380000 | O6: =($K6+$L6+$N6)*(1+Tablero!$H$42) -> 2440000 | R6: AIU + IVA sobre la utilidad | S6: =N22/Inputs!$C$5-T6 -> 3.44414409 | T6: =N21/Inputs!$C$5 -> 0.1539735005 | U6: 0.2103600758
B7: 5 | C7: Mantenimientos preventivos y predictivos, mantenimientos correctivos menores, supervisión y Retorno de la inversión | D7: Servicio | E7: Mantenimiento | F7: Fotovoltaica | G7: gl | H7: 1 | I7: 7833738.118 | J7: =VLOOKUP($E7,Inputs!$AJ$4:$AK$6,2,FALSE) -> 0.08 | K7: 7833738.118 | L7: 626699.0494 | M7: =VLOOKUP($D7,Inputs!$AX$4:$AY$10,2,FALSE) -> 0.19 | N7: 1488410.242 | O7: =($K7+$L7+$N7)*(1+Tablero!$H$42) -> 9948847.41 | R7: Total costos de A&OM | S7: =SUM(S3:S6) -> 14.91498126 | T7: =SUM(T3:T6) -> 2.189583743 | U7: =SUM(U3:U6) -> 1
B8: 6 | C8: Tele medida y reporte a XM (revisiones técnicas, fronteras) | D8: Servicio | E8: Operación | F8: Fotovoltaica | G8: Und | H8: 12 | I8: 0 | J8: =VLOOKUP($E8,Inputs!$AJ$4:$AK$6,2,FALSE) -> 0.03 | K8: 0 | L8: 0 | M8: =VLOOKUP($D8,Inputs!$AX$4:$AY$10,2,FALSE) -> 0.19 | N8: 0 | O8: =($K8+$L8+$N8)*(1+Tablero!$H$42) -> 0
B9: 7 | C9: Limpieza de módulos e inversores (Suministro de agua m3) | D9: Servicio | E9: Mantenimiento | F9: Fotovoltaica | G9: Und | H9: 4 | I9: 40000 | J9: =VLOOKUP($E9,Inputs!$AJ$4:$AK$6,2,FALSE) -> 0.08 | K9: 160000 | L9: 12800 | M9: =VLOOKUP($D9,Inputs!$AX$4:$AY$10,2,FALSE) -> 0.19 | N9: 30400 | O9: =($K9+$L9+$N9)*(1+Tablero!$H$42) -> 203200
B10: 8 | C10: Poda de cesped y/o control de maleza (limpieza de terraza o emplazamiento) | D10: Servicio | E10: Mantenimiento | F10: Fotovoltaica | G10: Und | H10: 6 | I10: 120000 | J10: =VLOOKUP($E10,Inputs!$AJ$4:$AK$6,2,FALSE) -> 0.08 | K10: 720000 | L10: 57600 | M10: =VLOOKUP($D10,Inputs!$AX$4:$AY$10,2,FALSE) -> 0.19 | N10: 136800 | O10: =($K10+$L10+$N10)*(1+Tablero!$H$42) -> 914400
I11: =SUMPRODUCT(H$3:H$10,I$3:I$10) -> 10713738.12 | K11: =SUM(K$3:K$10) -> 10713738.12 | L11: =SUM(L$3:L$10) -> 757099.0494 | N11: =SUM(N$3:N$10) -> 2035610.242 | O11: =SUM(O$3:O$10) -> 13506447.41
L13: RESUMEN | M13: OPEX $COP | N13: IVA | O13: OPEX $USD
L14: =CAPEX!Q68 -> Fotovoltaica | M14: =SUMIFS($O$3:$O$10,$F$3:$F$10,$L14) -> 13506447.41 | N14: =SUMIFS($N$3:$N$10,$F$3:$F$10,$L14) -> 2035610.242 | O14: =M14/Inputs!$AQ$5 -> 2813.257115
L15: OPEX | M15: =O11 -> 13506447.41 | N15: =N11 -> 2035610.242 | O15: =M15/Inputs!$AQ$5 -> 2813.257115
L17: =L14 -> Fotovoltaica
L18: Administración | M18: =VLOOKUP($L18,Inputs!$AV$4:$AW$6,2,FALSE) -> 0.175 | N18: =$M18*$M$14 -> 2363628.297
L19: Imprevistos | M19: =VLOOKUP($L19,Inputs!$AV$4:$AW$6,2,FALSE) -> 0.02 | N19: =$M19*$M$14 -> 270128.9482
L20: Utilidad | M20: =VLOOKUP($L20,Inputs!$AV$4:$AW$6,2,FALSE) -> 0.06 | N20: 810386.8446
L21: IVA sobre la Utilidad | M21: =Inputs!$AY$6 -> 0.0114 | N21: 153973.5005
L22: Subtotal AIU + IVA | M22: =SUM(M18:M21) -> 0.2664 | N22: =SUM(N18:N21) -> 3598117.59
L23: Total OPEX Fotovoltaica | N23: =M14+N22 -> 17104565
L25: IVA Servicios | N25: =N11 -> 2035610.242
L27: Total A&OM SIN IVA | N27: =N23-N25 -> 15068954.76
L29: Relación OPEX/CAPEX | N29: =N23/CAPEX!U82 -> 0.02599999948

Sheet Tarifa
B2: Tarifa Mercado No Regulado (MNR)
B3: Pesos | D3: Componentes | E3: Nivel 1 Propiedad OR | F3: Nivel 1 Act. Cliente | G3: Nivel 1 Act. Compartidos | H3: Nivel 2 | I3: Nivel 3 | J3: Nivel 4
B4: =AVERAGE(C56,C66,C76,C86,C96,C106) -> 0.5462321915 | C4: =SUMIF($E$3:$J$3,Tablero!$G$3,Tarifa!$E4:$J4)/SUMIF($E$3:$J$3,Tablero!$G$3,Tarifa!$E$10:$J$10) -> 0.4632052242 | D4: Gm,i,j | E4: 251.235 | F4: 251.235 | G4: 251.235 | H4: 263.8468 | I4: 190.05 | J4: 180.05
B5: 0.09344218403 | C5: =SUMIF($E$3:$J$3,Tablero!$G$3,Tarifa!$E5:$J5)/SUMIF($E$3:$J$3,Tablero!$G$3,Tarifa!$E$10:$J$10) -> 0.1097507563 | D5: Tm | E5: 45.03 | F5: =$E$5 -> 45.03 | G5: =$E$5 -> 45.03 | H5: =$E$5 -> 45.03 | I5: =$E$5 -> 45.03 | J5: =$E$5 -> 45.03
B6: =AVERAGE(C58,C68,C78,C88,C98,C108) -> 0.184728923 | C6: =SUMIF($E$3:$J$3,Tablero!$G$3,Tarifa!$E6:$J6)/SUMIF($E$3:$J$3,Tablero!$G$3,Tarifa!$E$10:$J$10) -> 0.216917995 | D6: Dn,m | E6: 320.4069 | F6: 249.2722 | G6: 284.8396 | H6: 89 | I6: 89 | J6: 33.6366
B7: 0.0475463011 | C7: =SUMIF($E$3:$J$3,Tablero!$G$3,Tarifa!$E7:$J7)/SUMIF($E$3:$J$3,Tablero!$G$3,Tarifa!$E$10:$J$10) -> 0.06803669473 | D7: CVm,i,j | E7: 20.25 | F7: 20.25 | G7: 20.25 | H7: 22.9432 | I7: 27.915 | J7: 5.5
B8: 0.04128117777 | C8: =SUMIF($E$3:$J$3,Tablero!$G$3,Tarifa!$E8:$J8)/SUMIF($E$3:$J$3,Tablero!$G$3,Tarifa!$E$10:$J$10) -> 0.04004038087 | D8: PRn,m,i,j | E8: 45.0985 | F8: =$E$8 -> 45.0985 | G8: =$E$8 -> 45.0985 | H8: 19.92 | I8: 16.4283 | J8: 12.6756
B9: 0.08676922256 | C9: =SUMIF($E$3:$J$3,Tablero!$G$3,Tarifa!$E9:$J9)/SUMIF($E$3:$J$3,Tablero!$G$3,Tarifa!$E$10:$J$10) -> 0.1020489489 | D9: Rm,i | E9: 41.87 | F9: =$E$9 -> 41.87 | G9: =$E$9 -> 41.87 | H9: =$E$9 -> 41.87 | I9: =$E$9 -> 41.87 | J9: =$E$9 -> 41.87
B10: =SUM(B4:B9) -> 1 | C10: =SUM(C4:C9) -> 1 | D10: CUVn,m,i,j | E10: =SUM(E4:E9) -> 723.8904 | F10: =SUM(F4:F9) -> 652.7557 | G10: 688.3231 | H10: 482.61 | I10: 410.2933 | J10: 318.7622
E12: 1 | F12: 2 | G12: 3 | H12: 4 | I12: 5 | J12: 6
B13: Contribución | D13: Tarifa | E13: Nivel 1 Propiedad OR | F13: Nivel 1 Act. Cliente | G13: Nivel 1 Act. Compartidos | H13: Nivel 2 | I13: Nivel 3 | J13: Nivel 4 | K13: Consumo <=CS | L13: Consumo > CS
A14: 1 | C14: -0.6 | D14: E1 | E14: =E$17*(1+$C14)*$K14+E$17*$L14 -> 722.7659394 | F14: =F$17*(1+$C14)*$K14+F$17*$L14 -> 651.741737 | G14: 687.2538881 | H14: 0 | I14: 0 | J14: 0 | K14: =Inputs!$BG$6/AVERAGE(Balance!$G$8798:$G$8809) -> 0.002588929188 | L14: =1-K14 -> 0.9974110708
A15: 2 | C15: -0.5 | D15: E2 | E15: =E$17*(1+$C15)*$K15+E$17*$L15 -> 722.9533495 | F15: 651.9107309 | G15: 687.4320901 | H15: 0 | I15: 0 | J15: 0 | K15: =Inputs!$BG$6/AVERAGE(Balance!$G$8798:$G$8809) -> 0.002588929188 | L15: =1-K15 -> 0.9974110708
A16: 3 | C16: -0.15 | D16: E3 | E16: =E$17*(1+$C16)*$K16+E$17*$L16 -> 723.6092849 | F16: 652.5022093 | G16: 688.055797 | H16: 0 | I16: 0 | J16: 0 | K16: =Inputs!$BG$6/AVERAGE(Balance!$G$8798:$G$8809) -> 0.002588929188 | L16: 0.9974110708
A17: 4 | C17: 0 | D17: E4 - ESP - OFI - AP | E17: =E10 -> 723.8904 | F17: =F10 -> 652.7557 | G17: 688.3231 | H17: 482.61 | I17: 410.2933 | J17: 318.7622 | K17: 0 | L17: 0
A18: 5 | B18: 0.2 | C18: =IF(Tablero!$G$5="No",0,B18) -> 0 | D18: E5 - E6 - Ind - Com | E18: =E$17*(1+$C18) -> 723.8904 | F18: 652.7557 | G18: 688.3231 | H18: 482.61 | I18: 410.2933 | J18: 318.7622 | K18: 0 | L18: 0
A19: 6 | B19: 0.1 | C19: =IF(Tablero!$G$5="No",0,B19) -> 0 | D19: Acueducto y Alcan | E19: 723.8904 | F19: 652.7557 | G19: 688.3231 | H19: 482.61 | I19: 410.2933 | J19: 318.7622 | K19: 0 | L19: 0
A20: 7 | B20: 0.2 | C20: =IF(Tablero!$G$5="No",0,B20) -> 0 | D20: Industrial T.Horaria | E20: =E27*(1+$C20) -> 662.3699173 | F20: =F27*(1+$C20) -> 591.2352173 | G20: 626.8026173 | H20: 481.7371066 | I20: 481.7371066 | J20: 326.9026203 | K20: 0 | L20: 0
D21: Bloque 1 | E21: =E62 -> 656.2807123 | F21: =F62 -> 585.1460123 | G21: 620.7134123 | H21: 476.781303 | I21: 476.781303 | J21: 320.8796123 | K21: 0 | L21: 0
D22: Bloque 2 | E22: =E72 -> 657.3977322 | F22: =F72 -> 586.2630322 | G22: 621.8304322 | H22: 481.8380788 | I22: 481.8380788 | J22: 321.9966322 | K22: 0 | L22: 0
D23: Bloque 3 | E23: =E82 -> 658.1075803 | F23: =F82 -> 586.9728803 | G23: 622.5402803 | H23: 483.4553891 | I23: 483.4553891 | J23: 322.7064803 | K23: 0 | L23: 0
D24: Bloque 4 | E24: =E92 -> 657.3977322 | F24: =F92 -> 586.2630322 | G24: 621.8304322 | H24: 481.8380788 | I24: 481.8380788 | J24: 321.9966322 | K24: 0 | L24: 0
D25: Bloque 5 | E25: =E102 -> 692.4901803 | F25: =F102 -> 621.3554803 | G25: 656.9228803 | H25: 485.0515783 | I25: 485.0515783 | J25: 356.6256803 | K25: 0 | L25: 0
D26: Bloque 6 | E26: =E112 -> 657.3977322 | F26: =F112 -> 586.2630322 | G26: 621.8304322 | H26: 481.8380788 | I26: 481.8380788 | J26: 321.9966322 | K26: 0 | L26: 0
D27: Precio Ponderado | E27: =(E$21*$E$44+E$22*$F$44+E$23*$G$44+E$24*$H$44+E$25*$I$44+E$26*$J$44)/$K$44 -> 662.3699173 | F27: =(F$21*$E$44+F$22*$F$44+F$23*$G$44+F$24*$H$44+F$25*$I$44+F$26*$J$44)/$K$44 -> 591.2352173 | G27: 626.8026173 | H27: 481.7371066 | I27: 481.7371066 | J27: 326.9026203
C31: Días del mes | D31: Mes | E31: Bloque 1 | F31: Bloque 2 | G31: Bloque 3 | H31: Bloque 4 | I31: Bloque 5 | J31: Bloque 6 | K31: Total
C32: 31 | D32: 1 | E32: =SUMIFS(Balance!$G$5:$G$8764,Balance!$C$5:$C$8764,$D32,Balance!$E$5:$E$8764,$C$48)+SUMIFS(Balance!$G$5:$G$8764,Balance!$C$5:$C$8764,$D32,Balance!$E$5:$E$8764,$C$49)+SUMIFS(Balance!$G$5:$G$8764,Balance!$C$5:$C$8764,$D32,Balance!$E$5:$E$8764,$C$50)+SUMIFS(Balance!$G$5:$G$8764,Balance!$C$5:$C$8764,$D32,Balance!$E$5:$E$8764,$C$51)+SUMIFS(Balance!$G$5:$G$8764,Balance!$C$5:$C$8764,$D32,Balance!$E$5:$E$8764,$C$52) -> 14446.57 | F32: =SUMIFS(Balance!$G$5:$G$8764,Balance!$C$5:$C$8764,$D32,Balance!$E$5:$E$8764,$D$48)+SUMIFS(Balance!$G$5:$G$8764,Balance!$C$5:$C$8764,$D32,Balance!$E$5:$E$8764,$D$49)+SUMIFS(Balance!$G$5:$G$8764,Balance!$C$5:$C$8764,$D32,Balance!$E$5:$E$8764,$D$50)+SUMIFS(Balance!$G$5:$G$8764,Balance!$C$5:$C$8764,$D32,Balance!$E$5:$E$8764,$D$51) -> 10023.11 | G32: =SUMIFS(Balance!$G$5:$G$8764,Balance!$C$5:$C$8764,$D32,Balance!$E$5:$E$8764,$E$48)+SUMIFS(Balance!$G$5:$G$8764,Balance!$C$5:$C$8764,$D32,Balance!$E$5:$E$8764,$E$49)+SUMIFS(Balance!$G$5:$G$8764,Balance!$C$5:$C$8764,$D32,Balance!$E$5:$E$8764,$E$50)+SUMIFS(Balance!$G$5:$G$8764,Balance!$C$5:$C$8764,$D32,Balance!$E$5:$E$8764,$E$51)+SUMIFS(Balance!$G$5:$G$8764,Balance!$C$5:$C$8764,$D32,Balance!$E$5:$E$8764,$E$52) -> 19111.43 | H32: =SUMIFS(Balance!$G$5:$G$8764,Balance!$C$5:$C$8764,$D32,Balance!$E$5:$E$8764,$F$48)+SUMIFS(Balance!$G$5:$G$8764,Balance!$C$5:$C$8764,$D32,Balance!$E$5:$E$8764,$F$49)+SUMIFS(Balance!$G$5:$G$8764,Balance!$C$5:$C$8764,$D32,Balance!$E$5:$E$8764,$F$50)+SUMIFS(Balance!$G$5:$G$8764,Balance!$C$5:$C$8764,$D32,Balance!$E$5:$E$8764,$F$51) -> 14579.36 | I32: =SUMIFS(Balance!$G$5:$G$8764,Balance!$C$5:$C$8764,$D32,Balance!$E$5:$E$8764,$G$48)+SUMIFS(Balance!$G$5:$G$8764,Balance!$C$5:$C$8764,$D32,Balance!$E$5:$E$8764,$G$49)+SUMIFS(Balance!$G$5:$G$8764,Balance!$C$5:$C$8764,$D32,Balance!$E$5:$E$8764,$G$50) -> 10888.81 | J32: =SUMIFS(Balance!$G$5:$G$8764,Balance!$C$5:$C$8764,$D32,Balance!$E$5:$E$8764,$H$48)+SUMIFS(Balance!$G$5:$G$8764,Balance!$C$5:$C$8764,$D32,Balance!$E$5:$E$8764,$H$49)+SUMIFS(Balance!$G$5:$G$8764,Balance!$C$5:$C$8764,$D32,Balance!$E$5:$E$8764,$H$50) -> 9421.53 | K32: =SUM(E32:J32) -> 78470.81
C33: 28 | D33: 2 | E33: =SUMIFS(Balance!$G$5:$G$8764,Balance!$C$5:$C$8764,$D33,Balance!$E$5:$E$8764,$C$48)+SUMIFS(Balance!$G$5:$G$8764,Balance!$C$5:$C$8764,$D33,Balance!$E$5:$E$8764,$C$49)+SUMIFS(Balance!$G$5:$G$8764,Balance!$C$5:$C$8764,$D33,Balance!$E$5:$E$8764,$C$50)+SUMIFS(Balance!$G$5:$G$8764,Balance!$C$5:$C$8764,$D33,Balance!$E$5:$E$8764,$C$51)+SUMIFS(Balance!$G$5:$G$8764,Balance!$C$5:$C$8764,$D33,Balance!$E$5:$E$8764,$C$52) -> 16597.34 | F33: =SUMIFS(Balance!$G$5:$G$8764,Balance!$C$5:$C$8764,$D33,Balance!$E$5:$E$8764,$D$48)+SUMIFS(Balance!$G$5:$G$8764,Balance!$C$5:$C$8764,$D33,Balance!$E$5:$E$8764,$D$49)+SUMIFS(Balance!$G$5:$G$8764,Balance!$C$5:$C$8764,$D33,Balance!$E$5:$E$8764,$D$50)+SUMIFS(Balance!$G$5:$G$8764,Balance!$C$5:$C$8764,$D33,Balance!$E$5:$E$8764,$D$51) -> 9578.91 | G33: =SUMIFS(Balance!$G$5:$G$8764,Balance!$C$5:$C$8764,$D33,Balance!$E$5:$E$8764,$E$48)+SUMIFS(Balance!$G$5:$G$8764,Balance!$C$5:$C$8764,$D33,Balance!$E$5:$E$8764,$E$49)+SUMIFS(Balance!$G$5:$G$8764,Balance!$C$5:$C$8764,$D33,Balance!$E$5:$E$8764,$E$50)+SUMIFS(Balance!$G$5:$G$8764,Balance!$C$5:$C$8764,$D33,Balance!$E$5:$E$8764,$E$51)+SUMIFS(Balance!$G$5:$G$8764,Balance!$C$5:$C$8764,$D33,Balance!$E$5:$E$8764,$E$52) -> 17356.66 | H33: =SUMIFS(Balance!$G$5:$G$8764,Balance!$C$5:$C$8764,$D33,Balance!$E$5:$E$8764,$F$48)+SUMIFS(Balance!$G$5:$G$8764,Balance!$C$5:$C$8764,$D33,Balance!$E$5:$E$8764,$F$49)+SUMIFS(Balance!$G$5:$G$8764,Balance!$C$5:$C$8764,$D33,Balance!$E$5:$E$8764,$F$50)+SUMIFS(Balance!$G$5:$G$8764,Balance!$C$5:$C$8764,$D33,Balance!$E$5:$E$8764,$F$51) -> 15906.32 | I33: =SUMIFS(Balance!$G$5:$G$8764,Balance!$C$5:$C$8764,$D33,Balance!$E$5:$E$8764,$G$48)+SUMIFS(Balance!$G$5:$G$8764,Balance!$C$5:$C$8764,$D33,Balance!$E$5:$E$8764,$G$49)+SUMIFS(Balance!$G$5:$G$8764,Balance!$C$5:$C$8764,$D33,Balance!$E$5:$E$8764,$G$50) -> 11827.29 | J33: =SUMIFS(Balance!$G$5:$G$8764,Balance!$C$5:$C$8764,$D33,Balance!$E$5:$E$8764,$H$48)+SUMIFS(Balance!$G$5:$G$8764,Balance!$C$5:$C$8764,$D33,Balance!$E$5:$E$8764,$H$49)+SUMIFS(Balance!$G$5:$G$8764,Balance!$C$5:$C$8764,$D33,Balance!$E$5:$E$8764,$H$50) -> 10371.46 | K33: =SUM(E33:J33) -> 81637.98
C34: 31 | D34: 3 | E34: =SUMIFS(Balance!$G$5:$G$8764,Balance!$C$5:$C$8764,$D34,Balance!$E$5:$E$8764,$C$48)+SUMIFS(Balance!$G$5:$G$8764,Balance!$C$5:$C$8764,$D34,Balance!$E$5:$E$8764,$C$49)+SUMIFS(Balance!$G$5:$G$8764,Balance!$C$5:$C$8764,$D34,Balance!$E$5:$E$8764,$C$50)+SUMIFS(Balance!$G$5:$G$8764,Balance!$C$5:$C$8764,$D34,Balance!$E$5:$E$8764,$C$51)+SUMIFS(Balance!$G$5:$G$8764,Balance!$C$5:$C$8764,$D34,Balance!$E$5:$E$8764,$C$52) -> 11930.39 | F34: =SUMIFS(Balance!$G$5:$G$8764,Balance!$C$5:$C$8764,$D34,Balance!$E$5:$E$8764,$D$48)+SUMIFS(Balance!$G$5:$G$8764,Balance!$C$5:$C$8764,$D34,Balance!$E$5:$E$8764,$D$49)+SUMIFS(Balance!$G$5:$G$8764,Balance!$C$5:$C$8764,$D34,Balance!$E$5:$E$8764,$D$50)+SUMIFS(Balance!$G$5:$G$8764,Balance!$C$5:$C$8764,$D34,Balance!$E$5:$E$8764,$D$51) -> 8164.85 | G34: =SUMIFS(Balance!$G$5:$G$8764,Balance!$C$5:$C$8764,$D34,Balance!$E$5:$E$8764,$E$48)+SUMIFS(Balance!$G$5:$G$8764,Balance!$C$5:$C$8764,$D34,Balance!$E$5:$E$8764,$E$49)+SUMIFS(Balance!$G$5:$G$8764,Balance!$C$5:$C$8764,$D34,Balance!$E$5:$E$8764,$E$50)+SUMIFS(Balance!$G$5:$G$8764,Balance!$C$5:$C$8764,$D34,Balance!$E$5:$E$8764,$E$51)+SUMIFS(Balance!$G$5:$G$8764,Balance!$C$5:$C$8764,$D34,Balance!$E$5:$E$8764,$E$52) -> 17379.85 | H34: =SUMIFS(Balance!$G$5:$G$8764,Balance!$C$5:$C$8764,$D34,Balance!$E$5:$E$8764,$F$48)+SUMIFS(Balance!$G$5:$G$8764,Balance!$C$5:$C$8764,$D34,Balance!$E$5:$E$8764,$F$49)+SUMIFS(Balance!$G$5:$G$8764,Balance!$C$5:$C$8764,$D34,Balance!$E$5:$E$8764,$F$50)+SUMIFS(Balance!$G$5:$G$8764,Balance!$C$5:$C$8764,$D34,Balance!$E$5:$E$8764,$F$51) -> 13862.16 | I34: =SUMIFS(Balance!$G$5:$G$8764,Balance!$C$5:$C$8764,$D34,Balance!$E$5:$E$8764,$G$48)+SUMIFS(Balance!$G$5:$G$8764,Balance!$C$5:$C$8764,$D34,Balance!$E$5:$E$8764,$G$49)+SUMIFS(Balance!$G$5:$G$8764,Balance!$C$5:$C$8764,$D34,Balance!$E$5:$E$8764,$G$50) -> 10181.41 | J34: =SUMIFS(Balance!$G$5:$G$8764,Balance!$C$5:$C$8764,$D34,Balance!$E$5:$E$8764,$H$48)+SUMIFS(Balance!$G$5:$G$8764,Balance!$C$5:$C$8764,$D34,Balance!$E$5:$E$8764,$H$49)+SUMIFS(Balance!$G$5:$G$8764,Balance!$C$5:$C$8764,$D34,Balance!$E$5:$E$8764,$H$50) -> 8565.38 | K34: 70084.04
